Workbook

Sheet Instructions
B2: Pour un meilleur résultat merci de télécharger cet outil sur votre ordinateur
B3: Utiliser cet outil directement depuis le site Internet peut causer des erreurs
B7: 1 | C7: Afin de télécharger l’outil de Gestion d’Allocation sur votre ordinateur :
C8: Allez sur le site pro et faite un click droit sur le lien sélectionner « Sauvegarder la cible sur » (si le system d’exploitation est en anglais « Save Target As ») ceci téléchargera automatiquement l’outil sur votre ordinateur.
B11: 2 | C11: Entrer les informations dans l’onglet « Client Data Sheet » (merci de ne pas éditer les informations pour le Client A)
B12: 3 | C12: Cliquer sur le bouton « Imprimer » localiser en haut a gauche.
B13: 4 | C13: Cliquer sur « Suivant » (si le system d’exploitation est en anglais « Next ») dans la bar d’outils ou utiliser le bouton de navigation de votre souris afin de visualiser vos informations.
B14: 5 | C14: Un message apparaîtra afin de supprimer la fiche de donnée ou « OUTPUT SHEET » après impression.
C20: Nota bene:
C21: Les caractéristiques de ce fichier ne sont pas modifiables, à l’exception de certaines cellules localisées dans « Client Data Sheet ». Si vous des questions ou si vous souhaitez plus d’information, prier de contacter votre Représentant du Service à la Clientèle.

Sheet Client Data Sheet
F1: 1 | G1: 2 | H1: 3 | I1: 4 | J1: 5 | K1: 6 | L1: 7 | M1: 8 | N1: 9 | O1: 10 | P1: 11 | Q1: 12 | R1: 13 | S1: 14 | T1: 15 | U1: 16 | V1: 17 | W1: 18 | X1: 19 | Y1: 20 | Z1: 21 | AA1: 22 | AB1: 23 | AC1: 24 | AD1: 25 | AE1: 26 | AF1: 27 | AG1: 28 | AH1: 29
A2: Imprimer (Y/N) | B2: Nom du client | C2: Montant d’investissement | D2: Type de fonds | E2: Type de proposition | F2: Fonds de revenu à court terme Investissements Russell | G2: Fonds à revenu fixe Investissements Russell | H2: Fonds d’investissement à revenu fixe canadien Investissements Russell | I2: Fonds à revenu fixe Plus Investissements Russell | J2: Fonds d’investissement d’obligations indexées sur l’inflation Investissements Russell | K2: Fonds d’obligations mondiales sans contrainte Investissements Russell | L2: Fonds de titres de créance mondiaux Investissements Russell | M2: BlueBay Global Convertible Bond Fund (Canada) | N2: Fonds de dividendes canadien Investissements Russell | O2: Fonds multi-facteurs actions canadiennes Investissements Russell | P2: Fonds d’actions canadiennes Investissements Russell | Q2: Fonds de petites sociétés mondiales Investissements Russell | R2: Fonds d'actions américaines à gestion fiscale Investissements Russell | S2: Fonds multi-facteurs actions américaines Investissements Russell | T2: Fonds d’actions américaines Investissements Russell | U2: Fonds multi-facteurs actions internationales Investissements Russell | V2: Fonds d’actions outre-mer Investissements Russell | W2: Fonds d'actions mondiales à gestion fiscale Investissements Russell | X2: Fonds d’actions mondiales ESG Investissements Russell | Y2: Fonds d’actions mondiales Investissements Russell | Z2: Fonds d’actions marchés émergents Investissements Russell | AA2: Fonds du marché monétaire Investissements Russell | AB2: Fonds d’infrastructures mondiales Investissements Russell | AC2: Fonds immobilier mondial Investissements Russell | AD2: Portefeuille d’actifs réels Investissements Russell | AE2: iShares Gold Trust | AF2: Invesco DB Commodity Index Tracking Fund | AG2: Fonds d’opportunités de revenu Investissements Russell | AH2: Stratégies de positionnement Investissements Russell | AI2: Total | AK2: Check TR/CC | AL2: Group Name | AM2: Index
A3: 1 | B3: 1 | C3: 1 | D3: 1 | E3: 1 | F3: 1 | G3: 1 | H3: 0 | I3: 1 | J3: 0 | K3: 0 | L3: 1 | M3: 0 | N3: 1 | O3: 1 | P3: 1 | Q3: 1 | R3: 1 | S3: 1 | T3: 1 | U3: 1 | V3: 1 | W3: 1 | X3: 1 | Y3: 1 | Z3: 1 | AA3: 1 | AB3: 1 | AC3: 1 | AD3: 1 | AE3: 0 | AF3: 0 | AG3: 1 | AH3: 0 | AI3: 1 | AJ3: 0 | AK3: 0 | AL3: 0 | AM3: 0 | AN3: 0 | AO3: 0 | AP3: 0 | AQ3: 0 | AR3: 0
A4: Y | B4: Client A | C4: 100000 | D4: Fonds fiduciaires | E4: Répartition de l’actif cible Investissements Russell | F4: 0.05 | G4: 0.2 | H4: 0 | I4: 0 | J4: 0 | K4: 0 | L4: 0.1 | M4: 0 | N4: 0.1 | O4: 0 | P4: 0.08 | Q4: 0.03 | R4: 0.05 | S4: 0 | T4: 0.05 | U4: 0 | V4: 0.05 | W4: 0.05 | X4: 0 | Y4: 0.05 | Z4: 0.05 | AA4: 0.05 | AB4: 0.03 | AC4: 0.03 | AD4: 0.03 | AE4: 0 | AF4: 0 | AG4: 0 | AH4: 0 | AI4: =SUM(F4:AH4) -> 1 | AK4: =($D4=$AQ$11)*SUMPRODUCT(--($E4=InputSelectionTR))+($D4=$AR$11)*SUMPRODUCT(--($E4=InputSelectionCC)) -> 1 | AL4: =VLOOKUP($E4,Allocation!$J$40:$M$65,4,FALSE) -> Fonds Investissements Russell | AM4: =VLOOKUP($E4,Allocation!$J$40:$M$65,3,FALSE) -> SAA
A5: N | B5: Client B | C5: 100000 | D5: Fonds fiduciaires | E5: Portefeuille de revenu prudent Investissements Russell | F5: =IFERROR(INDEX(Allocation!$K$4:$AL$32,MATCH(F$2,Allocation!$J$4:$J$32,0),MATCH($AM5,Allocation!$K$3:$AL$3,0))/100,"") -> 0 | G5: =IFERROR(INDEX(Allocation!$K$4:$AL$32,MATCH(G$2,Allocation!$J$4:$J$32,0),MATCH($AM5,Allocation!$K$3:$AL$3,0))/100,"") -> 0.6 | H5: =IFERROR(INDEX(Allocation!$K$4:$AL$32,MATCH(H$2,Allocation!$J$4:$J$32,0),MATCH($AM5,Allocation!$K$3:$AL$3,0))/100,"") -> 0 | I5: =IFERROR(INDEX(Allocation!$K$4:$AL$32,MATCH(I$2,Allocation!$J$4:$J$32,0),MATCH($AM5,Allocation!$K$3:$AL$3,0))/100,"") -> 0 | J5: =IFERROR(INDEX(Allocation!$K$4:$AL$32,MATCH(J$2,Allocation!$J$4:$J$32,0),MATCH($AM5,Allocation!$K$3:$AL$3,0))/100,"") -> 0.01 | K5: =IFERROR(INDEX(Allocation!$K$4:$AL$32,MATCH(K$2,Allocation!$J$4:$J$32,0),MATCH($AM5,Allocation!$K$3:$AL$3,0))/100,"") -> 0 | L5: =IFERROR(INDEX(Allocation!$K$4:$AL$32,MATCH(L$2,Allocation!$J$4:$J$32,0),MATCH($AM5,Allocation!$K$3:$AL$3,0))/100,"") -> 0.14 | M5: =IFERROR(INDEX(Allocation!$K$4:$AL$32,MATCH(M$2,Allocation!$J$4:$J$32,0),MATCH($AM5,Allocation!$K$3:$AL$3,0))/100,"") -> 0 | N5: =IFERROR(INDEX(Allocation!$K$4:$AL$32,MATCH(N$2,Allocation!$J$4:$J$32,0),MATCH($AM5,Allocation!$K$3:$AL$3,0))/100,"") -> 0.06 | O5: =IFERROR(INDEX(Allocation!$K$4:$AL$32,MATCH(O$2,Allocation!$J$4:$J$32,0),MATCH($AM5,Allocation!$K$3:$AL$3,0))/100,"") -> 0 | P5: =IFERROR(INDEX(Allocation!$K$4:$AL$32,MATCH(P$2,Allocation!$J$4:$J$32,0),MATCH($AM5,Allocation!$K$3:$AL$3,0))/100,"") -> 0 | Q5: =IFERROR(INDEX(Allocation!$K$4:$AL$32,MATCH(Q$2,Allocation!$J$4:$J$32,0),MATCH($AM5,Allocation!$K$3:$AL$3,0))/100,"") -> 0.02 | R5: =IFERROR(INDEX(Allocation!$K$4:$AL$32,MATCH(R$2,Allocation!$J$4:$J$32,0),MATCH($AM5,Allocation!$K$3:$AL$3,0))/100,"") -> 0 | S5: =IFERROR(INDEX(Allocation!$K$4:$AL$32,MATCH(S$2,Allocation!$J$4:$J$32,0),MATCH($AM5,Allocation!$K$3:$AL$3,0))/100,"") -> 0 | T5: =IFERROR(INDEX(Allocation!$K$4:$AL$32,MATCH(T$2,Allocation!$J$4:$J$32,0),MATCH($AM5,Allocation!$K$3:$AL$3,0))/100,"") -> 0 | U5: =IFERROR(INDEX(Allocation!$K$4:$AL$32,MATCH(U$2,Allocation!$J$4:$J$32,0),MATCH($AM5,Allocation!$K$3:$AL$3,0))/100,"") -> 0 | V5: =IFERROR(INDEX(Allocation!$K$4:$AL$32,MATCH(V$2,Allocation!$J$4:$J$32,0),MATCH($AM5,Allocation!$K$3:$AL$3,0))/100,"") -> 0 | W5: =IFERROR(INDEX(Allocation!$K$4:$AL$32,MATCH(W$2,Allocation!$J$4:$J$32,0),MATCH($AM5,Allocation!$K$3:$AL$3,0))/100,"") -> 0 | X5: =IFERROR(INDEX(Allocation!$K$4:$AL$32,MATCH(X$2,Allocation!$J$4:$J$32,0),MATCH($AM5,Allocation!$K$3:$AL$3,0))/100,"") -> 0 | Y5: =IFERROR(INDEX(Allocation!$K$4:$AL$32,MATCH(Y$2,Allocation!$J$4:$J$32,0),MATCH($AM5,Allocation!$K$3:$AL$3,0))/100,"") -> 0.03 | Z5: =IFERROR(INDEX(Allocation!$K$4:$AL$32,MATCH(Z$2,Allocation!$J$4:$J$32,0),MATCH($AM5,Allocation!$K$3:$AL$3,0))/100,"") -> 0.02 | AA5: =IFERROR(INDEX(Allocation!$K$4:$AL$32,MATCH(AA$2,Allocation!$J$4:$J$32,0),MATCH($AM5,Allocation!$K$3:$AL$3,0))/100,"") -> 0 | AB5: =IFERROR(INDEX(Allocation!$K$4:$AL$32,MATCH(AB$2,Allocation!$J$4:$J$32,0),MATCH($AM5,Allocation!$K$3:$AL$3,0))/100,"") -> 0.025 | AC5: =IFERROR(INDEX(Allocation!$K$4:$AL$32,MATCH(AC$2,Allocation!$J$4:$J$32,0),MATCH($AM5,Allocation!$K$3:$AL$3,0))/100,"") -> 0.025 | AD5: =IFERROR(INDEX(Allocation!$K$4:$AL$32,MATCH(AD$2,Allocation!$J$4:$J$32,0),MATCH($AM5,Allocation!$K$3:$AL$3,0))/100,"") -> 0 | AE5: =IFERROR(INDEX(Allocation!$K$4:$AL$32,MATCH(AE$2,Allocation!$J$4:$J$32,0),MATCH($AM5,Allocation!$K$3:$AL$3,0))/100,"") -> 0 | AF5: =IFERROR(INDEX(Allocation!$K$4:$AL$32,MATCH(AF$2,Allocation!$J$4:$J$32,0),MATCH($AM5,Allocation!$K$3:$AL$3,0))/100,"") -> 0 | AG5: =IFERROR(INDEX(Allocation!$K$4:$AL$32,MATCH(AG$2,Allocation!$J$4:$J$32,0),MATCH($AM5,Allocation!$K$3:$AL$3,0))/100,"") -> 0.06 | AH5: =IFERROR(INDEX(Allocation!$K$4:$AL$32,MATCH(AH$2,Allocation!$J$4:$J$32,0),MATCH($AM5,Allocation!$K$3:$AL$3,0))/100,"") -> 0.01 | AI5: =SUM(F5:AH5) -> 1 | AK5: 1 | AL5: =VLOOKUP($E5,Allocation!$J$40:$M$65,4,FALSE) -> Portefeuilles de revenu Investissements Russell | AM5: =VLOOKUP($E5,Allocation!$J$40:$M$65,3,FALSE) -> RICI
A6: N | B6: Client C | C6: 100000 | D6: Fonds fiduciaires | E6: Portefeuille essentiel de revenu Investissements Russell | F6: =IFERROR(INDEX(Allocation!$K$4:$AL$32,MATCH(F$2,Allocation!$J$4:$J$32,0),MATCH($AM6,Allocation!$K$3:$AL$3,0))/100,"") -> 0 | G6: =IFERROR(INDEX(Allocation!$K$4:$AL$32,MATCH(G$2,Allocation!$J$4:$J$32,0),MATCH($AM6,Allocation!$K$3:$AL$3,0))/100,"") -> 0.49 | H6: =IFERROR(INDEX(Allocation!$K$4:$AL$32,MATCH(H$2,Allocation!$J$4:$J$32,0),MATCH($AM6,Allocation!$K$3:$AL$3,0))/100,"") -> 0 | I6: =IFERROR(INDEX(Allocation!$K$4:$AL$32,MATCH(I$2,Allocation!$J$4:$J$32,0),MATCH($AM6,Allocation!$K$3:$AL$3,0))/100,"") -> 0 | J6: =IFERROR(INDEX(Allocation!$K$4:$AL$32,MATCH(J$2,Allocation!$J$4:$J$32,0),MATCH($AM6,Allocation!$K$3:$AL$3,0))/100,"") -> 0.01 | K6: =IFERROR(INDEX(Allocation!$K$4:$AL$32,MATCH(K$2,Allocation!$J$4:$J$32,0),MATCH($AM6,Allocation!$K$3:$AL$3,0))/100,"") -> 0 | L6: =IFERROR(INDEX(Allocation!$K$4:$AL$32,MATCH(L$2,Allocation!$J$4:$J$32,0),MATCH($AM6,Allocation!$K$3:$AL$3,0))/100,"") -> 0.13 | M6: =IFERROR(INDEX(Allocation!$K$4:$AL$32,MATCH(M$2,Allocation!$J$4:$J$32,0),MATCH($AM6,Allocation!$K$3:$AL$3,0))/100,"") -> 0 | N6: =IFERROR(INDEX(Allocation!$K$4:$AL$32,MATCH(N$2,Allocation!$J$4:$J$32,0),MATCH($AM6,Allocation!$K$3:$AL$3,0))/100,"") -> 0.09 | O6: =IFERROR(INDEX(Allocation!$K$4:$AL$32,MATCH(O$2,Allocation!$J$4:$J$32,0),MATCH($AM6,Allocation!$K$3:$AL$3,0))/100,"") -> 0 | P6: =IFERROR(INDEX(Allocation!$K$4:$AL$32,MATCH(P$2,Allocation!$J$4:$J$32,0),MATCH($AM6,Allocation!$K$3:$AL$3,0))/100,"") -> 0 | Q6: =IFERROR(INDEX(Allocation!$K$4:$AL$32,MATCH(Q$2,Allocation!$J$4:$J$32,0),MATCH($AM6,Allocation!$K$3:$AL$3,0))/100,"") -> 0.02 | R6: =IFERROR(INDEX(Allocation!$K$4:$AL$32,MATCH(R$2,Allocation!$J$4:$J$32,0),MATCH($AM6,Allocation!$K$3:$AL$3,0))/100,"") -> 0 | S6: =IFERROR(INDEX(Allocation!$K$4:$AL$32,MATCH(S$2,Allocation!$J$4:$J$32,0),MATCH($AM6,Allocation!$K$3:$AL$3,0))/100,"") -> 0 | T6: =IFERROR(INDEX(Allocation!$K$4:$AL$32,MATCH(T$2,Allocation!$J$4:$J$32,0),MATCH($AM6,Allocation!$K$3:$AL$3,0))/100,"") -> 0.05 | U6: =IFERROR(INDEX(Allocation!$K$4:$AL$32,MATCH(U$2,Allocation!$J$4:$J$32,0),MATCH($AM6,Allocation!$K$3:$AL$3,0))/100,"") -> 0 | V6: =IFERROR(INDEX(Allocation!$K$4:$AL$32,MATCH(V$2,Allocation!$J$4:$J$32,0),MATCH($AM6,Allocation!$K$3:$AL$3,0))/100,"") -> 0.03 | W6: =IFERROR(INDEX(Allocation!$K$4:$AL$32,MATCH(W$2,Allocation!$J$4:$J$32,0),MATCH($AM6,Allocation!$K$3:$AL$3,0))/100,"") -> 0 | X6: =IFERROR(INDEX(Allocation!$K$4:$AL$32,MATCH(X$2,Allocation!$J$4:$J$32,0),MATCH($AM6,Allocation!$K$3:$AL$3,0))/100,"") -> 0 | Y6: =IFERROR(INDEX(Allocation!$K$4:$AL$32,MATCH(Y$2,Allocation!$J$4:$J$32,0),MATCH($AM6,Allocation!$K$3:$AL$3,0))/100,"") -> 0.05 | Z6: =IFERROR(INDEX(Allocation!$K$4:$AL$32,MATCH(Z$2,Allocation!$J$4:$J$32,0),MATCH($AM6,Allocation!$K$3:$AL$3,0))/100,"") -> 0.02 | AA6: =IFERROR(INDEX(Allocation!$K$4:$AL$32,MATCH(AA$2,Allocation!$J$4:$J$32,0),MATCH($AM6,Allocation!$K$3:$AL$3,0))/100,"") -> 0 | AB6: =IFERROR(INDEX(Allocation!$K$4:$AL$32,MATCH(AB$2,Allocation!$J$4:$J$32,0),MATCH($AM6,Allocation!$K$3:$AL$3,0))/100,"") -> 0.025 | AC6: =IFERROR(INDEX(Allocation!$K$4:$AL$32,MATCH(AC$2,Allocation!$J$4:$J$32,0),MATCH($AM6,Allocation!$K$3:$AL$3,0))/100,"") -> 0.025 | AD6: =IFERROR(INDEX(Allocation!$K$4:$AL$32,MATCH(AD$2,Allocation!$J$4:$J$32,0),MATCH($AM6,Allocation!$K$3:$AL$3,0))/100,"") -> 0 | AE6: =IFERROR(INDEX(Allocation!$K$4:$AL$32,MATCH(AE$2,Allocation!$J$4:$J$32,0),MATCH($AM6,Allocation!$K$3:$AL$3,0))/100,"") -> 0 | AF6: =IFERROR(INDEX(Allocation!$K$4:$AL$32,MATCH(AF$2,Allocation!$J$4:$J$32,0),MATCH($AM6,Allocation!$K$3:$AL$3,0))/100,"") -> 0 | AG6: =IFERROR(INDEX(Allocation!$K$4:$AL$32,MATCH(AG$2,Allocation!$J$4:$J$32,0),MATCH($AM6,Allocation!$K$3:$AL$3,0))/100,"") -> 0.05 | AH6: =IFERROR(INDEX(Allocation!$K$4:$AL$32,MATCH(AH$2,Allocation!$J$4:$J$32,0),MATCH($AM6,Allocation!$K$3:$AL$3,0))/100,"") -> 0.01 | AI6: 1 | AK6: 1 | AL6: =VLOOKUP($E6,Allocation!$J$40:$M$65,4,FALSE) -> Portefeuilles de revenu Investissements Russell | AM6: =VLOOKUP($E6,Allocation!$J$40:$M$65,3,FALSE) -> RIEP
A7: N | B7: Client D | C7: 100000 | D7: Fonds fiduciaires | E7: Portefeuille diversifié de revenu mensuel Investissements Russell | F7: =IFERROR(INDEX(Allocation!$K$4:$AL$32,MATCH(F$2,Allocation!$J$4:$J$32,0),MATCH($AM7,Allocation!$K$3:$AL$3,0))/100,"") -> 0 | G7: =IFERROR(INDEX(Allocation!$K$4:$AL$32,MATCH(G$2,Allocation!$J$4:$J$32,0),MATCH($AM7,Allocation!$K$3:$AL$3,0))/100,"") -> 0.31 | H7: =IFERROR(INDEX(Allocation!$K$4:$AL$32,MATCH(H$2,Allocation!$J$4:$J$32,0),MATCH($AM7,Allocation!$K$3:$AL$3,0))/100,"") -> 0 | I7: =IFERROR(INDEX(Allocation!$K$4:$AL$32,MATCH(I$2,Allocation!$J$4:$J$32,0),MATCH($AM7,Allocation!$K$3:$AL$3,0))/100,"") -> 0 | J7: =IFERROR(INDEX(Allocation!$K$4:$AL$32,MATCH(J$2,Allocation!$J$4:$J$32,0),MATCH($AM7,Allocation!$K$3:$AL$3,0))/100,"") -> 0.01 | K7: =IFERROR(INDEX(Allocation!$K$4:$AL$32,MATCH(K$2,Allocation!$J$4:$J$32,0),MATCH($AM7,Allocation!$K$3:$AL$3,0))/100,"") -> 0 | L7: =IFERROR(INDEX(Allocation!$K$4:$AL$32,MATCH(L$2,Allocation!$J$4:$J$32,0),MATCH($AM7,Allocation!$K$3:$AL$3,0))/100,"") -> 0.09 | M7: =IFERROR(INDEX(Allocation!$K$4:$AL$32,MATCH(M$2,Allocation!$J$4:$J$32,0),MATCH($AM7,Allocation!$K$3:$AL$3,0))/100,"") -> 0 | N7: =IFERROR(INDEX(Allocation!$K$4:$AL$32,MATCH(N$2,Allocation!$J$4:$J$32,0),MATCH($AM7,Allocation!$K$3:$AL$3,0))/100,"") -> 0.14 | O7: =IFERROR(INDEX(Allocation!$K$4:$AL$32,MATCH(O$2,Allocation!$J$4:$J$32,0),MATCH($AM7,Allocation!$K$3:$AL$3,0))/100,"") -> 0 | P7: =IFERROR(INDEX(Allocation!$K$4:$AL$32,MATCH(P$2,Allocation!$J$4:$J$32,0),MATCH($AM7,Allocation!$K$3:$AL$3,0))/100,"") -> 0 | Q7: =IFERROR(INDEX(Allocation!$K$4:$AL$32,MATCH(Q$2,Allocation!$J$4:$J$32,0),MATCH($AM7,Allocation!$K$3:$AL$3,0))/100,"") -> 0.03 | R7: =IFERROR(INDEX(Allocation!$K$4:$AL$32,MATCH(R$2,Allocation!$J$4:$J$32,0),MATCH($AM7,Allocation!$K$3:$AL$3,0))/100,"") -> 0 | S7: =IFERROR(INDEX(Allocation!$K$4:$AL$32,MATCH(S$2,Allocation!$J$4:$J$32,0),MATCH($AM7,Allocation!$K$3:$AL$3,0))/100,"") -> 0 | T7: =IFERROR(INDEX(Allocation!$K$4:$AL$32,MATCH(T$2,Allocation!$J$4:$J$32,0),MATCH($AM7,Allocation!$K$3:$AL$3,0))/100,"") -> 0.1 | U7: =IFERROR(INDEX(Allocation!$K$4:$AL$32,MATCH(U$2,Allocation!$J$4:$J$32,0),MATCH($AM7,Allocation!$K$3:$AL$3,0))/100,"") -> 0 | V7: =IFERROR(INDEX(Allocation!$K$4:$AL$32,MATCH(V$2,Allocation!$J$4:$J$32,0),MATCH($AM7,Allocation!$K$3:$AL$3,0))/100,"") -> 0.05 | W7: =IFERROR(INDEX(Allocation!$K$4:$AL$32,MATCH(W$2,Allocation!$J$4:$J$32,0),MATCH($AM7,Allocation!$K$3:$AL$3,0))/100,"") -> 0 | X7: =IFERROR(INDEX(Allocation!$K$4:$AL$32,MATCH(X$2,Allocation!$J$4:$J$32,0),MATCH($AM7,Allocation!$K$3:$AL$3,0))/100,"") -> 0 | Y7: =IFERROR(INDEX(Allocation!$K$4:$AL$32,MATCH(Y$2,Allocation!$J$4:$J$32,0),MATCH($AM7,Allocation!$K$3:$AL$3,0))/100,"") -> 0.11 | Z7: =IFERROR(INDEX(Allocation!$K$4:$AL$32,MATCH(Z$2,Allocation!$J$4:$J$32,0),MATCH($AM7,Allocation!$K$3:$AL$3,0))/100,"") -> 0.03 | AA7: =IFERROR(INDEX(Allocation!$K$4:$AL$32,MATCH(AA$2,Allocation!$J$4:$J$32,0),MATCH($AM7,Allocation!$K$3:$AL$3,0))/100,"") -> 0 | AB7: =IFERROR(INDEX(Allocation!$K$4:$AL$32,MATCH(AB$2,Allocation!$J$4:$J$32,0),MATCH($AM7,Allocation!$K$3:$AL$3,0))/100,"") -> 0.035 | AC7: =IFERROR(INDEX(Allocation!$K$4:$AL$32,MATCH(AC$2,Allocation!$J$4:$J$32,0),MATCH($AM7,Allocation!$K$3:$AL$3,0))/100,"") -> 0.035 | AD7: =IFERROR(INDEX(Allocation!$K$4:$AL$32,MATCH(AD$2,Allocation!$J$4:$J$32,0),MATCH($AM7,Allocation!$K$3:$AL$3,0))/100,"") -> 0 | AE7: =IFERROR(INDEX(Allocation!$K$4:$AL$32,MATCH(AE$2,Allocation!$J$4:$J$32,0),MATCH($AM7,Allocation!$K$3:$AL$3,0))/100,"") -> 0 | AF7: =IFERROR(INDEX(Allocation!$K$4:$AL$32,MATCH(AF$2,Allocation!$J$4:$J$32,0),MATCH($AM7,Allocation!$K$3:$AL$3,0))/100,"") -> 0 | AG7: =IFERROR(INDEX(Allocation!$K$4:$AL$32,MATCH(AG$2,Allocation!$J$4:$J$32,0),MATCH($AM7,Allocation!$K$3:$AL$3,0))/100,"") -> 0.05 | AH7: =IFERROR(INDEX(Allocation!$K$4:$AL$32,MATCH(AH$2,Allocation!$J$4:$J$32,0),MATCH($AM7,Allocation!$K$3:$AL$3,0))/100,"") -> 0.01 | AI7: 1 | AK7: 1 | AL7: =VLOOKUP($E7,Allocation!$J$40:$M$65,4,FALSE) -> Portefeuilles de revenu Investissements Russell | AM7: =VLOOKUP($E7,Allocation!$J$40:$M$65,3,FALSE) -> RDMIP
A8: N | B8: Client E | C8: 100000 | D8: Fonds fiduciaires | E8: Multi-actifs stratégie de revenu | F8: =IFERROR(INDEX(Allocation!$K$4:$AL$32,MATCH(F$2,Allocation!$J$4:$J$32,0),MATCH($AM8,Allocation!$K$3:$AL$3,0))/100,"") -> 0.12 | G8: =IFERROR(INDEX(Allocation!$K$4:$AL$32,MATCH(G$2,Allocation!$J$4:$J$32,0),MATCH($AM8,Allocation!$K$3:$AL$3,0))/100,"") -> 0.33 | H8: =IFERROR(INDEX(Allocation!$K$4:$AL$32,MATCH(H$2,Allocation!$J$4:$J$32,0),MATCH($AM8,Allocation!$K$3:$AL$3,0))/100,"") -> 0 | I8: =IFERROR(INDEX(Allocation!$K$4:$AL$32,MATCH(I$2,Allocation!$J$4:$J$32,0),MATCH($AM8,Allocation!$K$3:$AL$3,0))/100,"") -> 0 | J8: =IFERROR(INDEX(Allocation!$K$4:$AL$32,MATCH(J$2,Allocation!$J$4:$J$32,0),MATCH($AM8,Allocation!$K$3:$AL$3,0))/100,"") -> 0.04 | K8: =IFERROR(INDEX(Allocation!$K$4:$AL$32,MATCH(K$2,Allocation!$J$4:$J$32,0),MATCH($AM8,Allocation!$K$3:$AL$3,0))/100,"") -> 0 | L8: =IFERROR(INDEX(Allocation!$K$4:$AL$32,MATCH(L$2,Allocation!$J$4:$J$32,0),MATCH($AM8,Allocation!$K$3:$AL$3,0))/100,"") -> 0.09 | M8: =IFERROR(INDEX(Allocation!$K$4:$AL$32,MATCH(M$2,Allocation!$J$4:$J$32,0),MATCH($AM8,Allocation!$K$3:$AL$3,0))/100,"") -> 0.04 | N8: =IFERROR(INDEX(Allocation!$K$4:$AL$32,MATCH(N$2,Allocation!$J$4:$J$32,0),MATCH($AM8,Allocation!$K$3:$AL$3,0))/100,"") -> 0.02 | O8: =IFERROR(INDEX(Allocation!$K$4:$AL$32,MATCH(O$2,Allocation!$J$4:$J$32,0),MATCH($AM8,Allocation!$K$3:$AL$3,0))/100,"") -> 0 | P8: =IFERROR(INDEX(Allocation!$K$4:$AL$32,MATCH(P$2,Allocation!$J$4:$J$32,0),MATCH($AM8,Allocation!$K$3:$AL$3,0))/100,"") -> 0 | Q8: =IFERROR(INDEX(Allocation!$K$4:$AL$32,MATCH(Q$2,Allocation!$J$4:$J$32,0),MATCH($AM8,Allocation!$K$3:$AL$3,0))/100,"") -> 0.03 | R8: =IFERROR(INDEX(Allocation!$K$4:$AL$32,MATCH(R$2,Allocation!$J$4:$J$32,0),MATCH($AM8,Allocation!$K$3:$AL$3,0))/100,"") -> 0 | S8: =IFERROR(INDEX(Allocation!$K$4:$AL$32,MATCH(S$2,Allocation!$J$4:$J$32,0),MATCH($AM8,Allocation!$K$3:$AL$3,0))/100,"") -> 0 | T8: =IFERROR(INDEX(Allocation!$K$4:$AL$32,MATCH(T$2,Allocation!$J$4:$J$32,0),MATCH($AM8,Allocation!$K$3:$AL$3,0))/100,"") -> 0.04 | U8: =IFERROR(INDEX(Allocation!$K$4:$AL$32,MATCH(U$2,Allocation!$J$4:$J$32,0),MATCH($AM8,Allocation!$K$3:$AL$3,0))/100,"") -> 0 | V8: =IFERROR(INDEX(Allocation!$K$4:$AL$32,MATCH(V$2,Allocation!$J$4:$J$32,0),MATCH($AM8,Allocation!$K$3:$AL$3,0))/100,"") -> 0.04 | W8: =IFERROR(INDEX(Allocation!$K$4:$AL$32,MATCH(W$2,Allocation!$J$4:$J$32,0),MATCH($AM8,Allocation!$K$3:$AL$3,0))/100,"") -> 0 | X8: =IFERROR(INDEX(Allocation!$K$4:$AL$32,MATCH(X$2,Allocation!$J$4:$J$32,0),MATCH($AM8,Allocation!$K$3:$AL$3,0))/100,"") -> 0 | Y8: =IFERROR(INDEX(Allocation!$K$4:$AL$32,MATCH(Y$2,Allocation!$J$4:$J$32,0),MATCH($AM8,Allocation!$K$3:$AL$3,0))/100,"") -> 0.04 | Z8: =IFERROR(INDEX(Allocation!$K$4:$AL$32,MATCH(Z$2,Allocation!$J$4:$J$32,0),MATCH($AM8,Allocation!$K$3:$AL$3,0))/100,"") -> 0.03 | AA8: =IFERROR(INDEX(Allocation!$K$4:$AL$32,MATCH(AA$2,Allocation!$J$4:$J$32,0),MATCH($AM8,Allocation!$K$3:$AL$3,0))/100,"") -> 0 | AB8: =IFERROR(INDEX(Allocation!$K$4:$AL$32,MATCH(AB$2,Allocation!$J$4:$J$32,0),MATCH($AM8,Allocation!$K$3:$AL$3,0))/100,"") -> 0.04 | AC8: =IFERROR(INDEX(Allocation!$K$4:$AL$32,MATCH(AC$2,Allocation!$J$4:$J$32,0),MATCH($AM8,Allocation!$K$3:$AL$3,0))/100,"") -> 0.04 | AD8: =IFERROR(INDEX(Allocation!$K$4:$AL$32,MATCH(AD$2,Allocation!$J$4:$J$32,0),MATCH($AM8,Allocation!$K$3:$AL$3,0))/100,"") -> 0 | AE8: =IFERROR(INDEX(Allocation!$K$4:$AL$32,MATCH(AE$2,Allocation!$J$4:$J$32,0),MATCH($AM8,Allocation!$K$3:$AL$3,0))/100,"") -> 0 | AF8: =IFERROR(INDEX(Allocation!$K$4:$AL$32,MATCH(AF$2,Allocation!$J$4:$J$32,0),MATCH($AM8,Allocation!$K$3:$AL$3,0))/100,"") -> 0.03 | AG8: =IFERROR(INDEX(Allocation!$K$4:$AL$32,MATCH(AG$2,Allocation!$J$4:$J$32,0),MATCH($AM8,Allocation!$K$3:$AL$3,0))/100,"") -> 0.05 | AH8: =IFERROR(INDEX(Allocation!$K$4:$AL$32,MATCH(AH$2,Allocation!$J$4:$J$32,0),MATCH($AM8,Allocation!$K$3:$AL$3,0))/100,"") -> 0.02 | AI8: 1 | AK8: 1 | AL8: =VLOOKUP($E8,Allocation!$J$40:$M$65,4,FALSE) -> Solutions Multi-actifs Investissements Russell | AM8: =VLOOKUP($E8,Allocation!$J$40:$M$65,3,FALSE) -> MAIS
A9: N | B9: Client F | C9: 100000 | D9: Fonds fiduciaires | E9: Multi-actifs stratégie de croissance et de revenu | F9: =IFERROR(INDEX(Allocation!$K$4:$AL$32,MATCH(F$2,Allocation!$J$4:$J$32,0),MATCH($AM9,Allocation!$K$3:$AL$3,0))/100,"") -> 0.05 | G9: =IFERROR(INDEX(Allocation!$K$4:$AL$32,MATCH(G$2,Allocation!$J$4:$J$32,0),MATCH($AM9,Allocation!$K$3:$AL$3,0))/100,"") -> 0.19 | H9: =IFERROR(INDEX(Allocation!$K$4:$AL$32,MATCH(H$2,Allocation!$J$4:$J$32,0),MATCH($AM9,Allocation!$K$3:$AL$3,0))/100,"") -> 0 | I9: =IFERROR(INDEX(Allocation!$K$4:$AL$32,MATCH(I$2,Allocation!$J$4:$J$32,0),MATCH($AM9,Allocation!$K$3:$AL$3,0))/100,"") -> 0 | J9: =IFERROR(INDEX(Allocation!$K$4:$AL$32,MATCH(J$2,Allocation!$J$4:$J$32,0),MATCH($AM9,Allocation!$K$3:$AL$3,0))/100,"") -> 0.03 | K9: =IFERROR(INDEX(Allocation!$K$4:$AL$32,MATCH(K$2,Allocation!$J$4:$J$32,0),MATCH($AM9,Allocation!$K$3:$AL$3,0))/100,"") -> 0 | L9: =IFERROR(INDEX(Allocation!$K$4:$AL$32,MATCH(L$2,Allocation!$J$4:$J$32,0),MATCH($AM9,Allocation!$K$3:$AL$3,0))/100,"") -> 0.2 | M9: =IFERROR(INDEX(Allocation!$K$4:$AL$32,MATCH(M$2,Allocation!$J$4:$J$32,0),MATCH($AM9,Allocation!$K$3:$AL$3,0))/100,"") -> 0.05 | N9: =IFERROR(INDEX(Allocation!$K$4:$AL$32,MATCH(N$2,Allocation!$J$4:$J$32,0),MATCH($AM9,Allocation!$K$3:$AL$3,0))/100,"") -> 0.02 | O9: =IFERROR(INDEX(Allocation!$K$4:$AL$32,MATCH(O$2,Allocation!$J$4:$J$32,0),MATCH($AM9,Allocation!$K$3:$AL$3,0))/100,"") -> 0 | P9: =IFERROR(INDEX(Allocation!$K$4:$AL$32,MATCH(P$2,Allocation!$J$4:$J$32,0),MATCH($AM9,Allocation!$K$3:$AL$3,0))/100,"") -> 0 | Q9: =IFERROR(INDEX(Allocation!$K$4:$AL$32,MATCH(Q$2,Allocation!$J$4:$J$32,0),MATCH($AM9,Allocation!$K$3:$AL$3,0))/100,"") -> 0.04 | R9: =IFERROR(INDEX(Allocation!$K$4:$AL$32,MATCH(R$2,Allocation!$J$4:$J$32,0),MATCH($AM9,Allocation!$K$3:$AL$3,0))/100,"") -> 0 | S9: =IFERROR(INDEX(Allocation!$K$4:$AL$32,MATCH(S$2,Allocation!$J$4:$J$32,0),MATCH($AM9,Allocation!$K$3:$AL$3,0))/100,"") -> 0 | T9: =IFERROR(INDEX(Allocation!$K$4:$AL$32,MATCH(T$2,Allocation!$J$4:$J$32,0),MATCH($AM9,Allocation!$K$3:$AL$3,0))/100,"") -> 0.06 | U9: =IFERROR(INDEX(Allocation!$K$4:$AL$32,MATCH(U$2,Allocation!$J$4:$J$32,0),MATCH($AM9,Allocation!$K$3:$AL$3,0))/100,"") -> 0 | V9: =IFERROR(INDEX(Allocation!$K$4:$AL$32,MATCH(V$2,Allocation!$J$4:$J$32,0),MATCH($AM9,Allocation!$K$3:$AL$3,0))/100,"") -> 0.07 | W9: =IFERROR(INDEX(Allocation!$K$4:$AL$32,MATCH(W$2,Allocation!$J$4:$J$32,0),MATCH($AM9,Allocation!$K$3:$AL$3,0))/100,"") -> 0 | X9: =IFERROR(INDEX(Allocation!$K$4:$AL$32,MATCH(X$2,Allocation!$J$4:$J$32,0),MATCH($AM9,Allocation!$K$3:$AL$3,0))/100,"") -> 0 | Y9: =IFERROR(INDEX(Allocation!$K$4:$AL$32,MATCH(Y$2,Allocation!$J$4:$J$32,0),MATCH($AM9,Allocation!$K$3:$AL$3,0))/100,"") -> 0.09 | Z9: =IFERROR(INDEX(Allocation!$K$4:$AL$32,MATCH(Z$2,Allocation!$J$4:$J$32,0),MATCH($AM9,Allocation!$K$3:$AL$3,0))/100,"") -> 0.05 | AA9: =IFERROR(INDEX(Allocation!$K$4:$AL$32,MATCH(AA$2,Allocation!$J$4:$J$32,0),MATCH($AM9,Allocation!$K$3:$AL$3,0))/100,"") -> 0 | AB9: =IFERROR(INDEX(Allocation!$K$4:$AL$32,MATCH(AB$2,Allocation!$J$4:$J$32,0),MATCH($AM9,Allocation!$K$3:$AL$3,0))/100,"") -> 0.05 | AC9: =IFERROR(INDEX(Allocation!$K$4:$AL$32,MATCH(AC$2,Allocation!$J$4:$J$32,0),MATCH($AM9,Allocation!$K$3:$AL$3,0))/100,"") -> 0.05 | AD9: =IFERROR(INDEX(Allocation!$K$4:$AL$32,MATCH(AD$2,Allocation!$J$4:$J$32,0),MATCH($AM9,Allocation!$K$3:$AL$3,0))/100,"") -> 0 | AE9: =IFERROR(INDEX(Allocation!$K$4:$AL$32,MATCH(AE$2,Allocation!$J$4:$J$32,0),MATCH($AM9,Allocation!$K$3:$AL$3,0))/100,"") -> 0 | AF9: =IFERROR(INDEX(Allocation!$K$4:$AL$32,MATCH(AF$2,Allocation!$J$4:$J$32,0),MATCH($AM9,Allocation!$K$3:$AL$3,0))/100,"") -> 0.03 | AG9: =IFERROR(INDEX(Allocation!$K$4:$AL$32,MATCH(AG$2,Allocation!$J$4:$J$32,0),MATCH($AM9,Allocation!$K$3:$AL$3,0))/100,"") -> 0 | AH9: =IFERROR(INDEX(Allocation!$K$4:$AL$32,MATCH(AH$2,Allocation!$J$4:$J$32,0),MATCH($AM9,Allocation!$K$3:$AL$3,0))/100,"") -> 0.02 | AI9: 1 | AK9: 1 | AL9: =VLOOKUP($E9,Allocation!$J$40:$M$65,4,FALSE) -> Solutions Multi-actifs Investissements Russell | AM9: =VLOOKUP($E9,Allocation!$J$40:$M$65,3,FALSE) -> MAGIS
A10: N | B10: Client G | C10: 100000 | D10: Fonds fiduciaires | E10: Multi-actifs stratégie de croissance et de revenu - Répartition tactique | F10: =IFERROR(INDEX(Allocation!$K$4:$AL$32,MATCH(F$2,Allocation!$J$4:$J$32,0),MATCH($AM10,Allocation!$K$3:$AL$3,0))/100,"") -> 0.05 | G10: =IFERROR(INDEX(Allocation!$K$4:$AL$32,MATCH(G$2,Allocation!$J$4:$J$32,0),MATCH($AM10,Allocation!$K$3:$AL$3,0))/100,"") -> 0.22 | H10: =IFERROR(INDEX(Allocation!$K$4:$AL$32,MATCH(H$2,Allocation!$J$4:$J$32,0),MATCH($AM10,Allocation!$K$3:$AL$3,0))/100,"") -> 0 | I10: =IFERROR(INDEX(Allocation!$K$4:$AL$32,MATCH(I$2,Allocation!$J$4:$J$32,0),MATCH($AM10,Allocation!$K$3:$AL$3,0))/100,"") -> 0 | J10: =IFERROR(INDEX(Allocation!$K$4:$AL$32,MATCH(J$2,Allocation!$J$4:$J$32,0),MATCH($AM10,Allocation!$K$3:$AL$3,0))/100,"") -> 0.04 | K10: =IFERROR(INDEX(Allocation!$K$4:$AL$32,MATCH(K$2,Allocation!$J$4:$J$32,0),MATCH($AM10,Allocation!$K$3:$AL$3,0))/100,"") -> 0 | L10: =IFERROR(INDEX(Allocation!$K$4:$AL$32,MATCH(L$2,Allocation!$J$4:$J$32,0),MATCH($AM10,Allocation!$K$3:$AL$3,0))/100,"") -> 0.15 | M10: =IFERROR(INDEX(Allocation!$K$4:$AL$32,MATCH(M$2,Allocation!$J$4:$J$32,0),MATCH($AM10,Allocation!$K$3:$AL$3,0))/100,"") -> 0.06 | N10: =IFERROR(INDEX(Allocation!$K$4:$AL$32,MATCH(N$2,Allocation!$J$4:$J$32,0),MATCH($AM10,Allocation!$K$3:$AL$3,0))/100,"") -> 0.02 | O10: =IFERROR(INDEX(Allocation!$K$4:$AL$32,MATCH(O$2,Allocation!$J$4:$J$32,0),MATCH($AM10,Allocation!$K$3:$AL$3,0))/100,"") -> 0 | P10: =IFERROR(INDEX(Allocation!$K$4:$AL$32,MATCH(P$2,Allocation!$J$4:$J$32,0),MATCH($AM10,Allocation!$K$3:$AL$3,0))/100,"") -> 0 | Q10: =IFERROR(INDEX(Allocation!$K$4:$AL$32,MATCH(Q$2,Allocation!$J$4:$J$32,0),MATCH($AM10,Allocation!$K$3:$AL$3,0))/100,"") -> 0.04 | R10: =IFERROR(INDEX(Allocation!$K$4:$AL$32,MATCH(R$2,Allocation!$J$4:$J$32,0),MATCH($AM10,Allocation!$K$3:$AL$3,0))/100,"") -> 0 | S10: =IFERROR(INDEX(Allocation!$K$4:$AL$32,MATCH(S$2,Allocation!$J$4:$J$32,0),MATCH($AM10,Allocation!$K$3:$AL$3,0))/100,"") -> 0 | T10: =IFERROR(INDEX(Allocation!$K$4:$AL$32,MATCH(T$2,Allocation!$J$4:$J$32,0),MATCH($AM10,Allocation!$K$3:$AL$3,0))/100,"") -> 0.04 | U10: =IFERROR(INDEX(Allocation!$K$4:$AL$32,MATCH(U$2,Allocation!$J$4:$J$32,0),MATCH($AM10,Allocation!$K$3:$AL$3,0))/100,"") -> 0 | V10: =IFERROR(INDEX(Allocation!$K$4:$AL$32,MATCH(V$2,Allocation!$J$4:$J$32,0),MATCH($AM10,Allocation!$K$3:$AL$3,0))/100,"") -> 0.07 | W10: =IFERROR(INDEX(Allocation!$K$4:$AL$32,MATCH(W$2,Allocation!$J$4:$J$32,0),MATCH($AM10,Allocation!$K$3:$AL$3,0))/100,"") -> 0 | X10: =IFERROR(INDEX(Allocation!$K$4:$AL$32,MATCH(X$2,Allocation!$J$4:$J$32,0),MATCH($AM10,Allocation!$K$3:$AL$3,0))/100,"") -> 0 | Y10: =IFERROR(INDEX(Allocation!$K$4:$AL$32,MATCH(Y$2,Allocation!$J$4:$J$32,0),MATCH($AM10,Allocation!$K$3:$AL$3,0))/100,"") -> 0.08 | Z10: =IFERROR(INDEX(Allocation!$K$4:$AL$32,MATCH(Z$2,Allocation!$J$4:$J$32,0),MATCH($AM10,Allocation!$K$3:$AL$3,0))/100,"") -> 0.05 | AA10: =IFERROR(INDEX(Allocation!$K$4:$AL$32,MATCH(AA$2,Allocation!$J$4:$J$32,0),MATCH($AM10,Allocation!$K$3:$AL$3,0))/100,"") -> 0.02 | AB10: =IFERROR(INDEX(Allocation!$K$4:$AL$32,MATCH(AB$2,Allocation!$J$4:$J$32,0),MATCH($AM10,Allocation!$K$3:$AL$3,0))/100,"") -> 0.04 | AC10: =IFERROR(INDEX(Allocation!$K$4:$AL$32,MATCH(AC$2,Allocation!$J$4:$J$32,0),MATCH($AM10,Allocation!$K$3:$AL$3,0))/100,"") -> 0.05 | AD10: =IFERROR(INDEX(Allocation!$K$4:$AL$32,MATCH(AD$2,Allocation!$J$4:$J$32,0),MATCH($AM10,Allocation!$K$3:$AL$3,0))/100,"") -> 0 | AE10: =IFERROR(INDEX(Allocation!$K$4:$AL$32,MATCH(AE$2,Allocation!$J$4:$J$32,0),MATCH($AM10,Allocation!$K$3:$AL$3,0))/100,"") -> 0.02 | AF10: =IFERROR(INDEX(Allocation!$K$4:$AL$32,MATCH(AF$2,Allocation!$J$4:$J$32,0),MATCH($AM10,Allocation!$K$3:$AL$3,0))/100,"") -> 0.03 | AG10: =IFERROR(INDEX(Allocation!$K$4:$AL$32,MATCH(AG$2,Allocation!$J$4:$J$32,0),MATCH($AM10,Allocation!$K$3:$AL$3,0))/100,"") -> 0 | AH10: =IFERROR(INDEX(Allocation!$K$4:$AL$32,MATCH(AH$2,Allocation!$J$4:$J$32,0),MATCH($AM10,Allocation!$K$3:$AL$3,0))/100,"") -> 0.02 | AI10: 1 | AK10: 1 | AL10: =VLOOKUP($E10,Allocation!$J$40:$M$65,4,FALSE) -> Solutions Multi-actifs Investissements Russell | AM10: =VLOOKUP($E10,Allocation!$J$40:$M$65,3,FALSE) -> MAGIS-T
A11: N | B11: Client H | C11: 100000 | D11: Fonds fiduciaires | E11: Multi-actifs stratégie de croissance | F11: =IFERROR(INDEX(Allocation!$K$4:$AL$32,MATCH(F$2,Allocation!$J$4:$J$32,0),MATCH($AM11,Allocation!$K$3:$AL$3,0))/100,"") -> 0 | G11: =IFERROR(INDEX(Allocation!$K$4:$AL$32,MATCH(G$2,Allocation!$J$4:$J$32,0),MATCH($AM11,Allocation!$K$3:$AL$3,0))/100,"") -> 0.05 | H11: =IFERROR(INDEX(Allocation!$K$4:$AL$32,MATCH(H$2,Allocation!$J$4:$J$32,0),MATCH($AM11,Allocation!$K$3:$AL$3,0))/100,"") -> 0 | I11: =IFERROR(INDEX(Allocation!$K$4:$AL$32,MATCH(I$2,Allocation!$J$4:$J$32,0),MATCH($AM11,Allocation!$K$3:$AL$3,0))/100,"") -> 0 | J11: =IFERROR(INDEX(Allocation!$K$4:$AL$32,MATCH(J$2,Allocation!$J$4:$J$32,0),MATCH($AM11,Allocation!$K$3:$AL$3,0))/100,"") -> 0 | K11: =IFERROR(INDEX(Allocation!$K$4:$AL$32,MATCH(K$2,Allocation!$J$4:$J$32,0),MATCH($AM11,Allocation!$K$3:$AL$3,0))/100,"") -> 0 | L11: =IFERROR(INDEX(Allocation!$K$4:$AL$32,MATCH(L$2,Allocation!$J$4:$J$32,0),MATCH($AM11,Allocation!$K$3:$AL$3,0))/100,"") -> 0.15 | M11: =IFERROR(INDEX(Allocation!$K$4:$AL$32,MATCH(M$2,Allocation!$J$4:$J$32,0),MATCH($AM11,Allocation!$K$3:$AL$3,0))/100,"") -> 0.05 | N11: =IFERROR(INDEX(Allocation!$K$4:$AL$32,MATCH(N$2,Allocation!$J$4:$J$32,0),MATCH($AM11,Allocation!$K$3:$AL$3,0))/100,"") -> 0.02 | O11: =IFERROR(INDEX(Allocation!$K$4:$AL$32,MATCH(O$2,Allocation!$J$4:$J$32,0),MATCH($AM11,Allocation!$K$3:$AL$3,0))/100,"") -> 0 | P11: =IFERROR(INDEX(Allocation!$K$4:$AL$32,MATCH(P$2,Allocation!$J$4:$J$32,0),MATCH($AM11,Allocation!$K$3:$AL$3,0))/100,"") -> 0 | Q11: =IFERROR(INDEX(Allocation!$K$4:$AL$32,MATCH(Q$2,Allocation!$J$4:$J$32,0),MATCH($AM11,Allocation!$K$3:$AL$3,0))/100,"") -> 0.06 | R11: =IFERROR(INDEX(Allocation!$K$4:$AL$32,MATCH(R$2,Allocation!$J$4:$J$32,0),MATCH($AM11,Allocation!$K$3:$AL$3,0))/100,"") -> 0 | S11: =IFERROR(INDEX(Allocation!$K$4:$AL$32,MATCH(S$2,Allocation!$J$4:$J$32,0),MATCH($AM11,Allocation!$K$3:$AL$3,0))/100,"") -> 0 | T11: =IFERROR(INDEX(Allocation!$K$4:$AL$32,MATCH(T$2,Allocation!$J$4:$J$32,0),MATCH($AM11,Allocation!$K$3:$AL$3,0))/100,"") -> 0.12 | U11: =IFERROR(INDEX(Allocation!$K$4:$AL$32,MATCH(U$2,Allocation!$J$4:$J$32,0),MATCH($AM11,Allocation!$K$3:$AL$3,0))/100,"") -> 0 | V11: =IFERROR(INDEX(Allocation!$K$4:$AL$32,MATCH(V$2,Allocation!$J$4:$J$32,0),MATCH($AM11,Allocation!$K$3:$AL$3,0))/100,"") -> 0.13 | W11: =IFERROR(INDEX(Allocation!$K$4:$AL$32,MATCH(W$2,Allocation!$J$4:$J$32,0),MATCH($AM11,Allocation!$K$3:$AL$3,0))/100,"") -> 0 | X11: =IFERROR(INDEX(Allocation!$K$4:$AL$32,MATCH(X$2,Allocation!$J$4:$J$32,0),MATCH($AM11,Allocation!$K$3:$AL$3,0))/100,"") -> 0 | Y11: =IFERROR(INDEX(Allocation!$K$4:$AL$32,MATCH(Y$2,Allocation!$J$4:$J$32,0),MATCH($AM11,Allocation!$K$3:$AL$3,0))/100,"") -> 0.17 | Z11: =IFERROR(INDEX(Allocation!$K$4:$AL$32,MATCH(Z$2,Allocation!$J$4:$J$32,0),MATCH($AM11,Allocation!$K$3:$AL$3,0))/100,"") -> 0.07 | AA11: =IFERROR(INDEX(Allocation!$K$4:$AL$32,MATCH(AA$2,Allocation!$J$4:$J$32,0),MATCH($AM11,Allocation!$K$3:$AL$3,0))/100,"") -> 0 | AB11: =IFERROR(INDEX(Allocation!$K$4:$AL$32,MATCH(AB$2,Allocation!$J$4:$J$32,0),MATCH($AM11,Allocation!$K$3:$AL$3,0))/100,"") -> 0.06 | AC11: =IFERROR(INDEX(Allocation!$K$4:$AL$32,MATCH(AC$2,Allocation!$J$4:$J$32,0),MATCH($AM11,Allocation!$K$3:$AL$3,0))/100,"") -> 0.06 | AD11: =IFERROR(INDEX(Allocation!$K$4:$AL$32,MATCH(AD$2,Allocation!$J$4:$J$32,0),MATCH($AM11,Allocation!$K$3:$AL$3,0))/100,"") -> 0 | AE11: =IFERROR(INDEX(Allocation!$K$4:$AL$32,MATCH(AE$2,Allocation!$J$4:$J$32,0),MATCH($AM11,Allocation!$K$3:$AL$3,0))/100,"") -> 0 | AF11: =IFERROR(INDEX(Allocation!$K$4:$AL$32,MATCH(AF$2,Allocation!$J$4:$J$32,0),MATCH($AM11,Allocation!$K$3:$AL$3,0))/100,"") -> 0.04 | AG11: =IFERROR(INDEX(Allocation!$K$4:$AL$32,MATCH(AG$2,Allocation!$J$4:$J$32,0),MATCH($AM11,Allocation!$K$3:$AL$3,0))/100,"") -> 0 | AH11: =IFERROR(INDEX(Allocation!$K$4:$AL$32,MATCH(AH$2,Allocation!$J$4:$J$32,0),MATCH($AM11,Allocation!$K$3:$AL$3,0))/100,"") -> 0.02 | AI11: 1 | AK11: 1 | AL11: =VLOOKUP($E11,Allocation!$J$40:$M$65,4,FALSE) -> Solutions Multi-actifs Investissements Russell | AM11: =VLOOKUP($E11,Allocation!$J$40:$M$65,3,FALSE) -> MAGS | AQ11: Fonds fiduciaires | AR11: Catégories de société
A12: N | B12: Client I | C12: 100000 | D12: Fonds fiduciaires | E12: Multi-actifs stratégie de croissance - Répartition tactique | F12: =IFERROR(INDEX(Allocation!$K$4:$AL$32,MATCH(F$2,Allocation!$J$4:$J$32,0),MATCH($AM12,Allocation!$K$3:$AL$3,0))/100,"") -> 0 | G12: =IFERROR(INDEX(Allocation!$K$4:$AL$32,MATCH(G$2,Allocation!$J$4:$J$32,0),MATCH($AM12,Allocation!$K$3:$AL$3,0))/100,"") -> 0.07 | H12: =IFERROR(INDEX(Allocation!$K$4:$AL$32,MATCH(H$2,Allocation!$J$4:$J$32,0),MATCH($AM12,Allocation!$K$3:$AL$3,0))/100,"") -> 0 | I12: =IFERROR(INDEX(Allocation!$K$4:$AL$32,MATCH(I$2,Allocation!$J$4:$J$32,0),MATCH($AM12,Allocation!$K$3:$AL$3,0))/100,"") -> 0 | J12: =IFERROR(INDEX(Allocation!$K$4:$AL$32,MATCH(J$2,Allocation!$J$4:$J$32,0),MATCH($AM12,Allocation!$K$3:$AL$3,0))/100,"") -> 0.02 | K12: =IFERROR(INDEX(Allocation!$K$4:$AL$32,MATCH(K$2,Allocation!$J$4:$J$32,0),MATCH($AM12,Allocation!$K$3:$AL$3,0))/100,"") -> 0 | L12: =IFERROR(INDEX(Allocation!$K$4:$AL$32,MATCH(L$2,Allocation!$J$4:$J$32,0),MATCH($AM12,Allocation!$K$3:$AL$3,0))/100,"") -> 0.11 | M12: =IFERROR(INDEX(Allocation!$K$4:$AL$32,MATCH(M$2,Allocation!$J$4:$J$32,0),MATCH($AM12,Allocation!$K$3:$AL$3,0))/100,"") -> 0.07 | N12: =IFERROR(INDEX(Allocation!$K$4:$AL$32,MATCH(N$2,Allocation!$J$4:$J$32,0),MATCH($AM12,Allocation!$K$3:$AL$3,0))/100,"") -> 0.04 | O12: =IFERROR(INDEX(Allocation!$K$4:$AL$32,MATCH(O$2,Allocation!$J$4:$J$32,0),MATCH($AM12,Allocation!$K$3:$AL$3,0))/100,"") -> 0 | P12: =IFERROR(INDEX(Allocation!$K$4:$AL$32,MATCH(P$2,Allocation!$J$4:$J$32,0),MATCH($AM12,Allocation!$K$3:$AL$3,0))/100,"") -> 0 | Q12: =IFERROR(INDEX(Allocation!$K$4:$AL$32,MATCH(Q$2,Allocation!$J$4:$J$32,0),MATCH($AM12,Allocation!$K$3:$AL$3,0))/100,"") -> 0.06 | R12: =IFERROR(INDEX(Allocation!$K$4:$AL$32,MATCH(R$2,Allocation!$J$4:$J$32,0),MATCH($AM12,Allocation!$K$3:$AL$3,0))/100,"") -> 0 | S12: =IFERROR(INDEX(Allocation!$K$4:$AL$32,MATCH(S$2,Allocation!$J$4:$J$32,0),MATCH($AM12,Allocation!$K$3:$AL$3,0))/100,"") -> 0 | T12: =IFERROR(INDEX(Allocation!$K$4:$AL$32,MATCH(T$2,Allocation!$J$4:$J$32,0),MATCH($AM12,Allocation!$K$3:$AL$3,0))/100,"") -> 0.09 | U12: =IFERROR(INDEX(Allocation!$K$4:$AL$32,MATCH(U$2,Allocation!$J$4:$J$32,0),MATCH($AM12,Allocation!$K$3:$AL$3,0))/100,"") -> 0 | V12: =IFERROR(INDEX(Allocation!$K$4:$AL$32,MATCH(V$2,Allocation!$J$4:$J$32,0),MATCH($AM12,Allocation!$K$3:$AL$3,0))/100,"") -> 0.12 | W12: =IFERROR(INDEX(Allocation!$K$4:$AL$32,MATCH(W$2,Allocation!$J$4:$J$32,0),MATCH($AM12,Allocation!$K$3:$AL$3,0))/100,"") -> 0 | X12: =IFERROR(INDEX(Allocation!$K$4:$AL$32,MATCH(X$2,Allocation!$J$4:$J$32,0),MATCH($AM12,Allocation!$K$3:$AL$3,0))/100,"") -> 0 | Y12: =IFERROR(INDEX(Allocation!$K$4:$AL$32,MATCH(Y$2,Allocation!$J$4:$J$32,0),MATCH($AM12,Allocation!$K$3:$AL$3,0))/100,"") -> 0.15 | Z12: =IFERROR(INDEX(Allocation!$K$4:$AL$32,MATCH(Z$2,Allocation!$J$4:$J$32,0),MATCH($AM12,Allocation!$K$3:$AL$3,0))/100,"") -> 0.06 | AA12: =IFERROR(INDEX(Allocation!$K$4:$AL$32,MATCH(AA$2,Allocation!$J$4:$J$32,0),MATCH($AM12,Allocation!$K$3:$AL$3,0))/100,"") -> 0.02 | AB12: =IFERROR(INDEX(Allocation!$K$4:$AL$32,MATCH(AB$2,Allocation!$J$4:$J$32,0),MATCH($AM12,Allocation!$K$3:$AL$3,0))/100,"") -> 0.05 | AC12: =IFERROR(INDEX(Allocation!$K$4:$AL$32,MATCH(AC$2,Allocation!$J$4:$J$32,0),MATCH($AM12,Allocation!$K$3:$AL$3,0))/100,"") -> 0.06 | AD12: =IFERROR(INDEX(Allocation!$K$4:$AL$32,MATCH(AD$2,Allocation!$J$4:$J$32,0),MATCH($AM12,Allocation!$K$3:$AL$3,0))/100,"") -> 0 | AE12: =IFERROR(INDEX(Allocation!$K$4:$AL$32,MATCH(AE$2,Allocation!$J$4:$J$32,0),MATCH($AM12,Allocation!$K$3:$AL$3,0))/100,"") -> 0.02 | AF12: =IFERROR(INDEX(Allocation!$K$4:$AL$32,MATCH(AF$2,Allocation!$J$4:$J$32,0),MATCH($AM12,Allocation!$K$3:$AL$3,0))/100,"") -> 0.04 | AG12: =IFERROR(INDEX(Allocation!$K$4:$AL$32,MATCH(AG$2,Allocation!$J$4:$J$32,0),MATCH($AM12,Allocation!$K$3:$AL$3,0))/100,"") -> 0 | AH12: =IFERROR(INDEX(Allocation!$K$4:$AL$32,MATCH(AH$2,Allocation!$J$4:$J$32,0),MATCH($AM12,Allocation!$K$3:$AL$3,0))/100,"") -> 0.02 | AI12: 1 | AK12: 1 | AL12: =VLOOKUP($E12,Allocation!$J$40:$M$65,4,FALSE) -> Solutions Multi-actifs Investissements Russell | AM12: =VLOOKUP($E12,Allocation!$J$40:$M$65,3,FALSE) -> MAGS-T
A13: N | B13: Client J | C13: 100000 | D13: Fonds fiduciaires | E13: Multi-actifs actions internationales | F13: =IFERROR(INDEX(Allocation!$K$4:$AL$32,MATCH(F$2,Allocation!$J$4:$J$32,0),MATCH($AM13,Allocation!$K$3:$AL$3,0))/100,"") -> 0 | G13: =IFERROR(INDEX(Allocation!$K$4:$AL$32,MATCH(G$2,Allocation!$J$4:$J$32,0),MATCH($AM13,Allocation!$K$3:$AL$3,0))/100,"") -> 0 | H13: =IFERROR(INDEX(Allocation!$K$4:$AL$32,MATCH(H$2,Allocation!$J$4:$J$32,0),MATCH($AM13,Allocation!$K$3:$AL$3,0))/100,"") -> 0 | I13: =IFERROR(INDEX(Allocation!$K$4:$AL$32,MATCH(I$2,Allocation!$J$4:$J$32,0),MATCH($AM13,Allocation!$K$3:$AL$3,0))/100,"") -> 0 | J13: =IFERROR(INDEX(Allocation!$K$4:$AL$32,MATCH(J$2,Allocation!$J$4:$J$32,0),MATCH($AM13,Allocation!$K$3:$AL$3,0))/100,"") -> 0 | K13: =IFERROR(INDEX(Allocation!$K$4:$AL$32,MATCH(K$2,Allocation!$J$4:$J$32,0),MATCH($AM13,Allocation!$K$3:$AL$3,0))/100,"") -> 0 | L13: =IFERROR(INDEX(Allocation!$K$4:$AL$32,MATCH(L$2,Allocation!$J$4:$J$32,0),MATCH($AM13,Allocation!$K$3:$AL$3,0))/100,"") -> 0 | M13: =IFERROR(INDEX(Allocation!$K$4:$AL$32,MATCH(M$2,Allocation!$J$4:$J$32,0),MATCH($AM13,Allocation!$K$3:$AL$3,0))/100,"") -> 0 | N13: =IFERROR(INDEX(Allocation!$K$4:$AL$32,MATCH(N$2,Allocation!$J$4:$J$32,0),MATCH($AM13,Allocation!$K$3:$AL$3,0))/100,"") -> 0 | O13: =IFERROR(INDEX(Allocation!$K$4:$AL$32,MATCH(O$2,Allocation!$J$4:$J$32,0),MATCH($AM13,Allocation!$K$3:$AL$3,0))/100,"") -> 0 | P13: =IFERROR(INDEX(Allocation!$K$4:$AL$32,MATCH(P$2,Allocation!$J$4:$J$32,0),MATCH($AM13,Allocation!$K$3:$AL$3,0))/100,"") -> 0 | Q13: =IFERROR(INDEX(Allocation!$K$4:$AL$32,MATCH(Q$2,Allocation!$J$4:$J$32,0),MATCH($AM13,Allocation!$K$3:$AL$3,0))/100,"") -> 0.14 | R13: =IFERROR(INDEX(Allocation!$K$4:$AL$32,MATCH(R$2,Allocation!$J$4:$J$32,0),MATCH($AM13,Allocation!$K$3:$AL$3,0))/100,"") -> 0 | S13: =IFERROR(INDEX(Allocation!$K$4:$AL$32,MATCH(S$2,Allocation!$J$4:$J$32,0),MATCH($AM13,Allocation!$K$3:$AL$3,0))/100,"") -> 0 | T13: =IFERROR(INDEX(Allocation!$K$4:$AL$32,MATCH(T$2,Allocation!$J$4:$J$32,0),MATCH($AM13,Allocation!$K$3:$AL$3,0))/100,"") -> 0 | U13: =IFERROR(INDEX(Allocation!$K$4:$AL$32,MATCH(U$2,Allocation!$J$4:$J$32,0),MATCH($AM13,Allocation!$K$3:$AL$3,0))/100,"") -> 0.38 | V13: =IFERROR(INDEX(Allocation!$K$4:$AL$32,MATCH(V$2,Allocation!$J$4:$J$32,0),MATCH($AM13,Allocation!$K$3:$AL$3,0))/100,"") -> 0 | W13: =IFERROR(INDEX(Allocation!$K$4:$AL$32,MATCH(W$2,Allocation!$J$4:$J$32,0),MATCH($AM13,Allocation!$K$3:$AL$3,0))/100,"") -> 0 | X13: =IFERROR(INDEX(Allocation!$K$4:$AL$32,MATCH(X$2,Allocation!$J$4:$J$32,0),MATCH($AM13,Allocation!$K$3:$AL$3,0))/100,"") -> 0 | Y13: =IFERROR(INDEX(Allocation!$K$4:$AL$32,MATCH(Y$2,Allocation!$J$4:$J$32,0),MATCH($AM13,Allocation!$K$3:$AL$3,0))/100,"") -> 0 | Z13: =IFERROR(INDEX(Allocation!$K$4:$AL$32,MATCH(Z$2,Allocation!$J$4:$J$32,0),MATCH($AM13,Allocation!$K$3:$AL$3,0))/100,"") -> 0.16 | AA13: =IFERROR(INDEX(Allocation!$K$4:$AL$32,MATCH(AA$2,Allocation!$J$4:$J$32,0),MATCH($AM13,Allocation!$K$3:$AL$3,0))/100,"") -> 0 | AB13: =IFERROR(INDEX(Allocation!$K$4:$AL$32,MATCH(AB$2,Allocation!$J$4:$J$32,0),MATCH($AM13,Allocation!$K$3:$AL$3,0))/100,"") -> 0.16 | AC13: =IFERROR(INDEX(Allocation!$K$4:$AL$32,MATCH(AC$2,Allocation!$J$4:$J$32,0),MATCH($AM13,Allocation!$K$3:$AL$3,0))/100,"") -> 0.16 | AD13: =IFERROR(INDEX(Allocation!$K$4:$AL$32,MATCH(AD$2,Allocation!$J$4:$J$32,0),MATCH($AM13,Allocation!$K$3:$AL$3,0))/100,"") -> 0 | AE13: =IFERROR(INDEX(Allocation!$K$4:$AL$32,MATCH(AE$2,Allocation!$J$4:$J$32,0),MATCH($AM13,Allocation!$K$3:$AL$3,0))/100,"") -> 0 | AF13: =IFERROR(INDEX(Allocation!$K$4:$AL$32,MATCH(AF$2,Allocation!$J$4:$J$32,0),MATCH($AM13,Allocation!$K$3:$AL$3,0))/100,"") -> 0 | AG13: =IFERROR(INDEX(Allocation!$K$4:$AL$32,MATCH(AG$2,Allocation!$J$4:$J$32,0),MATCH($AM13,Allocation!$K$3:$AL$3,0))/100,"") -> 0 | AH13: =IFERROR(INDEX(Allocation!$K$4:$AL$32,MATCH(AH$2,Allocation!$J$4:$J$32,0),MATCH($AM13,Allocation!$K$3:$AL$3,0))/100,"") -> 0 | AI13: 1 | AK13: 1 | AL13: =VLOOKUP($E13,Allocation!$J$40:$M$65,4,FALSE) -> Solutions Multi-actifs Investissements Russell | AM13: =VLOOKUP($E13,Allocation!$J$40:$M$65,3,FALSE) -> MAIE | AQ13: Répartition de l’actif cible Investissements Russell | AR13: Catégorie portefeuille de revenu prudent Investissements Russell
A14: N | B14: Client K | C14: 100000 | D14: Fonds fiduciaires | E14: Portefeuille équilibré Investissements Russell | F14: =IFERROR(INDEX(Allocation!$K$4:$AL$32,MATCH(F$2,Allocation!$J$4:$J$32,0),MATCH($AM14,Allocation!$K$3:$AL$3,0))/100,"") -> 0 | G14: =IFERROR(INDEX(Allocation!$K$4:$AL$32,MATCH(G$2,Allocation!$J$4:$J$32,0),MATCH($AM14,Allocation!$K$3:$AL$3,0))/100,"") -> 0 | H14: =IFERROR(INDEX(Allocation!$K$4:$AL$32,MATCH(H$2,Allocation!$J$4:$J$32,0),MATCH($AM14,Allocation!$K$3:$AL$3,0))/100,"") -> 0.46 | I14: =IFERROR(INDEX(Allocation!$K$4:$AL$32,MATCH(I$2,Allocation!$J$4:$J$32,0),MATCH($AM14,Allocation!$K$3:$AL$3,0))/100,"") -> 0 | J14: =IFERROR(INDEX(Allocation!$K$4:$AL$32,MATCH(J$2,Allocation!$J$4:$J$32,0),MATCH($AM14,Allocation!$K$3:$AL$3,0))/100,"") -> 0.01 | K14: =IFERROR(INDEX(Allocation!$K$4:$AL$32,MATCH(K$2,Allocation!$J$4:$J$32,0),MATCH($AM14,Allocation!$K$3:$AL$3,0))/100,"") -> 0 | L14: =IFERROR(INDEX(Allocation!$K$4:$AL$32,MATCH(L$2,Allocation!$J$4:$J$32,0),MATCH($AM14,Allocation!$K$3:$AL$3,0))/100,"") -> 0.17 | M14: =IFERROR(INDEX(Allocation!$K$4:$AL$32,MATCH(M$2,Allocation!$J$4:$J$32,0),MATCH($AM14,Allocation!$K$3:$AL$3,0))/100,"") -> 0 | N14: =IFERROR(INDEX(Allocation!$K$4:$AL$32,MATCH(N$2,Allocation!$J$4:$J$32,0),MATCH($AM14,Allocation!$K$3:$AL$3,0))/100,"") -> 0 | O14: =IFERROR(INDEX(Allocation!$K$4:$AL$32,MATCH(O$2,Allocation!$J$4:$J$32,0),MATCH($AM14,Allocation!$K$3:$AL$3,0))/100,"") -> 0.09 | P14: =IFERROR(INDEX(Allocation!$K$4:$AL$32,MATCH(P$2,Allocation!$J$4:$J$32,0),MATCH($AM14,Allocation!$K$3:$AL$3,0))/100,"") -> 0 | Q14: =IFERROR(INDEX(Allocation!$K$4:$AL$32,MATCH(Q$2,Allocation!$J$4:$J$32,0),MATCH($AM14,Allocation!$K$3:$AL$3,0))/100,"") -> 0.02 | R14: =IFERROR(INDEX(Allocation!$K$4:$AL$32,MATCH(R$2,Allocation!$J$4:$J$32,0),MATCH($AM14,Allocation!$K$3:$AL$3,0))/100,"") -> 0 | S14: =IFERROR(INDEX(Allocation!$K$4:$AL$32,MATCH(S$2,Allocation!$J$4:$J$32,0),MATCH($AM14,Allocation!$K$3:$AL$3,0))/100,"") -> 0.06 | T14: =IFERROR(INDEX(Allocation!$K$4:$AL$32,MATCH(T$2,Allocation!$J$4:$J$32,0),MATCH($AM14,Allocation!$K$3:$AL$3,0))/100,"") -> 0 | U14: =IFERROR(INDEX(Allocation!$K$4:$AL$32,MATCH(U$2,Allocation!$J$4:$J$32,0),MATCH($AM14,Allocation!$K$3:$AL$3,0))/100,"") -> 0.04 | V14: =IFERROR(INDEX(Allocation!$K$4:$AL$32,MATCH(V$2,Allocation!$J$4:$J$32,0),MATCH($AM14,Allocation!$K$3:$AL$3,0))/100,"") -> 0 | W14: =IFERROR(INDEX(Allocation!$K$4:$AL$32,MATCH(W$2,Allocation!$J$4:$J$32,0),MATCH($AM14,Allocation!$K$3:$AL$3,0))/100,"") -> 0 | X14: =IFERROR(INDEX(Allocation!$K$4:$AL$32,MATCH(X$2,Allocation!$J$4:$J$32,0),MATCH($AM14,Allocation!$K$3:$AL$3,0))/100,"") -> 0 | Y14: =IFERROR(INDEX(Allocation!$K$4:$AL$32,MATCH(Y$2,Allocation!$J$4:$J$32,0),MATCH($AM14,Allocation!$K$3:$AL$3,0))/100,"") -> 0.1 | Z14: =IFERROR(INDEX(Allocation!$K$4:$AL$32,MATCH(Z$2,Allocation!$J$4:$J$32,0),MATCH($AM14,Allocation!$K$3:$AL$3,0))/100,"") -> 0.02 | AA14: =IFERROR(INDEX(Allocation!$K$4:$AL$32,MATCH(AA$2,Allocation!$J$4:$J$32,0),MATCH($AM14,Allocation!$K$3:$AL$3,0))/100,"") -> 0 | AB14: =IFERROR(INDEX(Allocation!$K$4:$AL$32,MATCH(AB$2,Allocation!$J$4:$J$32,0),MATCH($AM14,Allocation!$K$3:$AL$3,0))/100,"") -> 0.015 | AC14: =IFERROR(INDEX(Allocation!$K$4:$AL$32,MATCH(AC$2,Allocation!$J$4:$J$32,0),MATCH($AM14,Allocation!$K$3:$AL$3,0))/100,"") -> 0.015 | AD14: =IFERROR(INDEX(Allocation!$K$4:$AL$32,MATCH(AD$2,Allocation!$J$4:$J$32,0),MATCH($AM14,Allocation!$K$3:$AL$3,0))/100,"") -> 0 | AE14: =IFERROR(INDEX(Allocation!$K$4:$AL$32,MATCH(AE$2,Allocation!$J$4:$J$32,0),MATCH($AM14,Allocation!$K$3:$AL$3,0))/100,"") -> 0 | AF14: =IFERROR(INDEX(Allocation!$K$4:$AL$32,MATCH(AF$2,Allocation!$J$4:$J$32,0),MATCH($AM14,Allocation!$K$3:$AL$3,0))/100,"") -> 0 | AG14: =IFERROR(INDEX(Allocation!$K$4:$AL$32,MATCH(AG$2,Allocation!$J$4:$J$32,0),MATCH($AM14,Allocation!$K$3:$AL$3,0))/100,"") -> 0 | AH14: =IFERROR(INDEX(Allocation!$K$4:$AL$32,MATCH(AH$2,Allocation!$J$4:$J$32,0),MATCH($AM14,Allocation!$K$3:$AL$3,0))/100,"") -> 0 | AI14: 1 | AK14: 1 | AL14: =VLOOKUP($E14,Allocation!$J$40:$M$65,4,FALSE) -> Portefeuilles d’accumulation Investissements Russell | AM14: =VLOOKUP($E14,Allocation!$J$40:$M$65,3,FALSE) -> RIB | AQ14: Portefeuille de revenu prudent Investissements Russell | AR14: Catégorie portefeuille essentiel de revenu Investissements Russell
A15: N | B15: Client L | C15: 100000 | D15: Fonds fiduciaires | E15: Portefeuille équilibré de croissance Investissements Russell | F15: =IFERROR(INDEX(Allocation!$K$4:$AL$32,MATCH(F$2,Allocation!$J$4:$J$32,0),MATCH($AM15,Allocation!$K$3:$AL$3,0))/100,"") -> 0 | G15: =IFERROR(INDEX(Allocation!$K$4:$AL$32,MATCH(G$2,Allocation!$J$4:$J$32,0),MATCH($AM15,Allocation!$K$3:$AL$3,0))/100,"") -> 0 | H15: =IFERROR(INDEX(Allocation!$K$4:$AL$32,MATCH(H$2,Allocation!$J$4:$J$32,0),MATCH($AM15,Allocation!$K$3:$AL$3,0))/100,"") -> 0.33 | I15: =IFERROR(INDEX(Allocation!$K$4:$AL$32,MATCH(I$2,Allocation!$J$4:$J$32,0),MATCH($AM15,Allocation!$K$3:$AL$3,0))/100,"") -> 0 | J15: =IFERROR(INDEX(Allocation!$K$4:$AL$32,MATCH(J$2,Allocation!$J$4:$J$32,0),MATCH($AM15,Allocation!$K$3:$AL$3,0))/100,"") -> 0.01 | K15: =IFERROR(INDEX(Allocation!$K$4:$AL$32,MATCH(K$2,Allocation!$J$4:$J$32,0),MATCH($AM15,Allocation!$K$3:$AL$3,0))/100,"") -> 0 | L15: =IFERROR(INDEX(Allocation!$K$4:$AL$32,MATCH(L$2,Allocation!$J$4:$J$32,0),MATCH($AM15,Allocation!$K$3:$AL$3,0))/100,"") -> 0.1 | M15: =IFERROR(INDEX(Allocation!$K$4:$AL$32,MATCH(M$2,Allocation!$J$4:$J$32,0),MATCH($AM15,Allocation!$K$3:$AL$3,0))/100,"") -> 0 | N15: =IFERROR(INDEX(Allocation!$K$4:$AL$32,MATCH(N$2,Allocation!$J$4:$J$32,0),MATCH($AM15,Allocation!$K$3:$AL$3,0))/100,"") -> 0 | O15: =IFERROR(INDEX(Allocation!$K$4:$AL$32,MATCH(O$2,Allocation!$J$4:$J$32,0),MATCH($AM15,Allocation!$K$3:$AL$3,0))/100,"") -> 0.14 | P15: =IFERROR(INDEX(Allocation!$K$4:$AL$32,MATCH(P$2,Allocation!$J$4:$J$32,0),MATCH($AM15,Allocation!$K$3:$AL$3,0))/100,"") -> 0 | Q15: =IFERROR(INDEX(Allocation!$K$4:$AL$32,MATCH(Q$2,Allocation!$J$4:$J$32,0),MATCH($AM15,Allocation!$K$3:$AL$3,0))/100,"") -> 0.025 | R15: =IFERROR(INDEX(Allocation!$K$4:$AL$32,MATCH(R$2,Allocation!$J$4:$J$32,0),MATCH($AM15,Allocation!$K$3:$AL$3,0))/100,"") -> 0 | S15: =IFERROR(INDEX(Allocation!$K$4:$AL$32,MATCH(S$2,Allocation!$J$4:$J$32,0),MATCH($AM15,Allocation!$K$3:$AL$3,0))/100,"") -> 0.13 | T15: =IFERROR(INDEX(Allocation!$K$4:$AL$32,MATCH(T$2,Allocation!$J$4:$J$32,0),MATCH($AM15,Allocation!$K$3:$AL$3,0))/100,"") -> 0 | U15: =IFERROR(INDEX(Allocation!$K$4:$AL$32,MATCH(U$2,Allocation!$J$4:$J$32,0),MATCH($AM15,Allocation!$K$3:$AL$3,0))/100,"") -> 0.07 | V15: =IFERROR(INDEX(Allocation!$K$4:$AL$32,MATCH(V$2,Allocation!$J$4:$J$32,0),MATCH($AM15,Allocation!$K$3:$AL$3,0))/100,"") -> 0 | W15: =IFERROR(INDEX(Allocation!$K$4:$AL$32,MATCH(W$2,Allocation!$J$4:$J$32,0),MATCH($AM15,Allocation!$K$3:$AL$3,0))/100,"") -> 0 | X15: =IFERROR(INDEX(Allocation!$K$4:$AL$32,MATCH(X$2,Allocation!$J$4:$J$32,0),MATCH($AM15,Allocation!$K$3:$AL$3,0))/100,"") -> 0 | Y15: =IFERROR(INDEX(Allocation!$K$4:$AL$32,MATCH(Y$2,Allocation!$J$4:$J$32,0),MATCH($AM15,Allocation!$K$3:$AL$3,0))/100,"") -> 0.13 | Z15: =IFERROR(INDEX(Allocation!$K$4:$AL$32,MATCH(Z$2,Allocation!$J$4:$J$32,0),MATCH($AM15,Allocation!$K$3:$AL$3,0))/100,"") -> 0.025 | AA15: =IFERROR(INDEX(Allocation!$K$4:$AL$32,MATCH(AA$2,Allocation!$J$4:$J$32,0),MATCH($AM15,Allocation!$K$3:$AL$3,0))/100,"") -> 0 | AB15: =IFERROR(INDEX(Allocation!$K$4:$AL$32,MATCH(AB$2,Allocation!$J$4:$J$32,0),MATCH($AM15,Allocation!$K$3:$AL$3,0))/100,"") -> 0.02 | AC15: =IFERROR(INDEX(Allocation!$K$4:$AL$32,MATCH(AC$2,Allocation!$J$4:$J$32,0),MATCH($AM15,Allocation!$K$3:$AL$3,0))/100,"") -> 0.02 | AD15: =IFERROR(INDEX(Allocation!$K$4:$AL$32,MATCH(AD$2,Allocation!$J$4:$J$32,0),MATCH($AM15,Allocation!$K$3:$AL$3,0))/100,"") -> 0 | AE15: =IFERROR(INDEX(Allocation!$K$4:$AL$32,MATCH(AE$2,Allocation!$J$4:$J$32,0),MATCH($AM15,Allocation!$K$3:$AL$3,0))/100,"") -> 0 | AF15: =IFERROR(INDEX(Allocation!$K$4:$AL$32,MATCH(AF$2,Allocation!$J$4:$J$32,0),MATCH($AM15,Allocation!$K$3:$AL$3,0))/100,"") -> 0 | AG15: =IFERROR(INDEX(Allocation!$K$4:$AL$32,MATCH(AG$2,Allocation!$J$4:$J$32,0),MATCH($AM15,Allocation!$K$3:$AL$3,0))/100,"") -> 0 | AH15: =IFERROR(INDEX(Allocation!$K$4:$AL$32,MATCH(AH$2,Allocation!$J$4:$J$32,0),MATCH($AM15,Allocation!$K$3:$AL$3,0))/100,"") -> 0 | AI15: 1 | AK15: 1 | AL15: =VLOOKUP($E15,Allocation!$J$40:$M$65,4,FALSE) -> Portefeuilles d’accumulation Investissements Russell | AM15: =VLOOKUP($E15,Allocation!$J$40:$M$65,3,FALSE) -> RIBG | AQ15: Portefeuille essentiel de revenu Investissements Russell | AR15: Catégorie portefeuille diversifié de revenu mensuel Investissements Russell
A16: N | B16: Client M | C16: 100000 | D16: Fonds fiduciaires | E16: Portefeuille de croissance à long terme Investissements Russell | F16: =IFERROR(INDEX(Allocation!$K$4:$AL$32,MATCH(F$2,Allocation!$J$4:$J$32,0),MATCH($AM16,Allocation!$K$3:$AL$3,0))/100,"") -> 0 | G16: =IFERROR(INDEX(Allocation!$K$4:$AL$32,MATCH(G$2,Allocation!$J$4:$J$32,0),MATCH($AM16,Allocation!$K$3:$AL$3,0))/100,"") -> 0 | H16: =IFERROR(INDEX(Allocation!$K$4:$AL$32,MATCH(H$2,Allocation!$J$4:$J$32,0),MATCH($AM16,Allocation!$K$3:$AL$3,0))/100,"") -> 0.16 | I16: =IFERROR(INDEX(Allocation!$K$4:$AL$32,MATCH(I$2,Allocation!$J$4:$J$32,0),MATCH($AM16,Allocation!$K$3:$AL$3,0))/100,"") -> 0 | J16: =IFERROR(INDEX(Allocation!$K$4:$AL$32,MATCH(J$2,Allocation!$J$4:$J$32,0),MATCH($AM16,Allocation!$K$3:$AL$3,0))/100,"") -> 0.01 | K16: =IFERROR(INDEX(Allocation!$K$4:$AL$32,MATCH(K$2,Allocation!$J$4:$J$32,0),MATCH($AM16,Allocation!$K$3:$AL$3,0))/100,"") -> 0 | L16: =IFERROR(INDEX(Allocation!$K$4:$AL$32,MATCH(L$2,Allocation!$J$4:$J$32,0),MATCH($AM16,Allocation!$K$3:$AL$3,0))/100,"") -> 0.055 | M16: =IFERROR(INDEX(Allocation!$K$4:$AL$32,MATCH(M$2,Allocation!$J$4:$J$32,0),MATCH($AM16,Allocation!$K$3:$AL$3,0))/100,"") -> 0 | N16: =IFERROR(INDEX(Allocation!$K$4:$AL$32,MATCH(N$2,Allocation!$J$4:$J$32,0),MATCH($AM16,Allocation!$K$3:$AL$3,0))/100,"") -> 0 | O16: =IFERROR(INDEX(Allocation!$K$4:$AL$32,MATCH(O$2,Allocation!$J$4:$J$32,0),MATCH($AM16,Allocation!$K$3:$AL$3,0))/100,"") -> 0.19 | P16: =IFERROR(INDEX(Allocation!$K$4:$AL$32,MATCH(P$2,Allocation!$J$4:$J$32,0),MATCH($AM16,Allocation!$K$3:$AL$3,0))/100,"") -> 0 | Q16: =IFERROR(INDEX(Allocation!$K$4:$AL$32,MATCH(Q$2,Allocation!$J$4:$J$32,0),MATCH($AM16,Allocation!$K$3:$AL$3,0))/100,"") -> 0.03 | R16: =IFERROR(INDEX(Allocation!$K$4:$AL$32,MATCH(R$2,Allocation!$J$4:$J$32,0),MATCH($AM16,Allocation!$K$3:$AL$3,0))/100,"") -> 0 | S16: =IFERROR(INDEX(Allocation!$K$4:$AL$32,MATCH(S$2,Allocation!$J$4:$J$32,0),MATCH($AM16,Allocation!$K$3:$AL$3,0))/100,"") -> 0.18 | T16: =IFERROR(INDEX(Allocation!$K$4:$AL$32,MATCH(T$2,Allocation!$J$4:$J$32,0),MATCH($AM16,Allocation!$K$3:$AL$3,0))/100,"") -> 0 | U16: =IFERROR(INDEX(Allocation!$K$4:$AL$32,MATCH(U$2,Allocation!$J$4:$J$32,0),MATCH($AM16,Allocation!$K$3:$AL$3,0))/100,"") -> 0.1 | V16: =IFERROR(INDEX(Allocation!$K$4:$AL$32,MATCH(V$2,Allocation!$J$4:$J$32,0),MATCH($AM16,Allocation!$K$3:$AL$3,0))/100,"") -> 0 | W16: =IFERROR(INDEX(Allocation!$K$4:$AL$32,MATCH(W$2,Allocation!$J$4:$J$32,0),MATCH($AM16,Allocation!$K$3:$AL$3,0))/100,"") -> 0 | X16: =IFERROR(INDEX(Allocation!$K$4:$AL$32,MATCH(X$2,Allocation!$J$4:$J$32,0),MATCH($AM16,Allocation!$K$3:$AL$3,0))/100,"") -> 0 | Y16: =IFERROR(INDEX(Allocation!$K$4:$AL$32,MATCH(Y$2,Allocation!$J$4:$J$32,0),MATCH($AM16,Allocation!$K$3:$AL$3,0))/100,"") -> 0.18 | Z16: =IFERROR(INDEX(Allocation!$K$4:$AL$32,MATCH(Z$2,Allocation!$J$4:$J$32,0),MATCH($AM16,Allocation!$K$3:$AL$3,0))/100,"") -> 0.045 | AA16: =IFERROR(INDEX(Allocation!$K$4:$AL$32,MATCH(AA$2,Allocation!$J$4:$J$32,0),MATCH($AM16,Allocation!$K$3:$AL$3,0))/100,"") -> 0 | AB16: =IFERROR(INDEX(Allocation!$K$4:$AL$32,MATCH(AB$2,Allocation!$J$4:$J$32,0),MATCH($AM16,Allocation!$K$3:$AL$3,0))/100,"") -> 0.025 | AC16: =IFERROR(INDEX(Allocation!$K$4:$AL$32,MATCH(AC$2,Allocation!$J$4:$J$32,0),MATCH($AM16,Allocation!$K$3:$AL$3,0))/100,"") -> 0.025 | AD16: =IFERROR(INDEX(Allocation!$K$4:$AL$32,MATCH(AD$2,Allocation!$J$4:$J$32,0),MATCH($AM16,Allocation!$K$3:$AL$3,0))/100,"") -> 0 | AE16: =IFERROR(INDEX(Allocation!$K$4:$AL$32,MATCH(AE$2,Allocation!$J$4:$J$32,0),MATCH($AM16,Allocation!$K$3:$AL$3,0))/100,"") -> 0 | AF16: =IFERROR(INDEX(Allocation!$K$4:$AL$32,MATCH(AF$2,Allocation!$J$4:$J$32,0),MATCH($AM16,Allocation!$K$3:$AL$3,0))/100,"") -> 0 | AG16: =IFERROR(INDEX(Allocation!$K$4:$AL$32,MATCH(AG$2,Allocation!$J$4:$J$32,0),MATCH($AM16,Allocation!$K$3:$AL$3,0))/100,"") -> 0 | AH16: =IFERROR(INDEX(Allocation!$K$4:$AL$32,MATCH(AH$2,Allocation!$J$4:$J$32,0),MATCH($AM16,Allocation!$K$3:$AL$3,0))/100,"") -> 0 | AI16: 1 | AK16: 1 | AL16: =VLOOKUP($E16,Allocation!$J$40:$M$65,4,FALSE) -> Portefeuilles d’accumulation Investissements Russell | AM16: =VLOOKUP($E16,Allocation!$J$40:$M$65,3,FALSE) -> RILTG | AQ16: Portefeuille diversifié de revenu mensuel Investissements Russell | AR16: Catégorie multi-actifs stratégie de revenu
A17: N | B17: Client N | C17: 100000 | D17: Fonds fiduciaires | E17: Multi-facteurs équilibré mondial Investissements Russell | F17: =IFERROR(INDEX(Allocation!$K$4:$AL$32,MATCH(F$2,Allocation!$J$4:$J$32,0),MATCH($AM17,Allocation!$K$3:$AL$3,0))/100,"") -> 0 | G17: =IFERROR(INDEX(Allocation!$K$4:$AL$32,MATCH(G$2,Allocation!$J$4:$J$32,0),MATCH($AM17,Allocation!$K$3:$AL$3,0))/100,"") -> 0.3 | H17: =IFERROR(INDEX(Allocation!$K$4:$AL$32,MATCH(H$2,Allocation!$J$4:$J$32,0),MATCH($AM17,Allocation!$K$3:$AL$3,0))/100,"") -> 0 | I17: =IFERROR(INDEX(Allocation!$K$4:$AL$32,MATCH(I$2,Allocation!$J$4:$J$32,0),MATCH($AM17,Allocation!$K$3:$AL$3,0))/100,"") -> 0 | J17: =IFERROR(INDEX(Allocation!$K$4:$AL$32,MATCH(J$2,Allocation!$J$4:$J$32,0),MATCH($AM17,Allocation!$K$3:$AL$3,0))/100,"") -> 0 | K17: =IFERROR(INDEX(Allocation!$K$4:$AL$32,MATCH(K$2,Allocation!$J$4:$J$32,0),MATCH($AM17,Allocation!$K$3:$AL$3,0))/100,"") -> 0 | L17: =IFERROR(INDEX(Allocation!$K$4:$AL$32,MATCH(L$2,Allocation!$J$4:$J$32,0),MATCH($AM17,Allocation!$K$3:$AL$3,0))/100,"") -> 0 | M17: =IFERROR(INDEX(Allocation!$K$4:$AL$32,MATCH(M$2,Allocation!$J$4:$J$32,0),MATCH($AM17,Allocation!$K$3:$AL$3,0))/100,"") -> 0 | N17: =IFERROR(INDEX(Allocation!$K$4:$AL$32,MATCH(N$2,Allocation!$J$4:$J$32,0),MATCH($AM17,Allocation!$K$3:$AL$3,0))/100,"") -> 0 | O17: =IFERROR(INDEX(Allocation!$K$4:$AL$32,MATCH(O$2,Allocation!$J$4:$J$32,0),MATCH($AM17,Allocation!$K$3:$AL$3,0))/100,"") -> 0.17 | P17: =IFERROR(INDEX(Allocation!$K$4:$AL$32,MATCH(P$2,Allocation!$J$4:$J$32,0),MATCH($AM17,Allocation!$K$3:$AL$3,0))/100,"") -> 0 | Q17: =IFERROR(INDEX(Allocation!$K$4:$AL$32,MATCH(Q$2,Allocation!$J$4:$J$32,0),MATCH($AM17,Allocation!$K$3:$AL$3,0))/100,"") -> 0 | R17: =IFERROR(INDEX(Allocation!$K$4:$AL$32,MATCH(R$2,Allocation!$J$4:$J$32,0),MATCH($AM17,Allocation!$K$3:$AL$3,0))/100,"") -> 0 | S17: =IFERROR(INDEX(Allocation!$K$4:$AL$32,MATCH(S$2,Allocation!$J$4:$J$32,0),MATCH($AM17,Allocation!$K$3:$AL$3,0))/100,"") -> 0.24 | T17: =IFERROR(INDEX(Allocation!$K$4:$AL$32,MATCH(T$2,Allocation!$J$4:$J$32,0),MATCH($AM17,Allocation!$K$3:$AL$3,0))/100,"") -> 0 | U17: =IFERROR(INDEX(Allocation!$K$4:$AL$32,MATCH(U$2,Allocation!$J$4:$J$32,0),MATCH($AM17,Allocation!$K$3:$AL$3,0))/100,"") -> 0.19 | V17: =IFERROR(INDEX(Allocation!$K$4:$AL$32,MATCH(V$2,Allocation!$J$4:$J$32,0),MATCH($AM17,Allocation!$K$3:$AL$3,0))/100,"") -> 0 | W17: =IFERROR(INDEX(Allocation!$K$4:$AL$32,MATCH(W$2,Allocation!$J$4:$J$32,0),MATCH($AM17,Allocation!$K$3:$AL$3,0))/100,"") -> 0 | X17: =IFERROR(INDEX(Allocation!$K$4:$AL$32,MATCH(X$2,Allocation!$J$4:$J$32,0),MATCH($AM17,Allocation!$K$3:$AL$3,0))/100,"") -> 0 | Y17: =IFERROR(INDEX(Allocation!$K$4:$AL$32,MATCH(Y$2,Allocation!$J$4:$J$32,0),MATCH($AM17,Allocation!$K$3:$AL$3,0))/100,"") -> 0 | Z17: =IFERROR(INDEX(Allocation!$K$4:$AL$32,MATCH(Z$2,Allocation!$J$4:$J$32,0),MATCH($AM17,Allocation!$K$3:$AL$3,0))/100,"") -> 0 | AA17: =IFERROR(INDEX(Allocation!$K$4:$AL$32,MATCH(AA$2,Allocation!$J$4:$J$32,0),MATCH($AM17,Allocation!$K$3:$AL$3,0))/100,"") -> 0 | AB17: =IFERROR(INDEX(Allocation!$K$4:$AL$32,MATCH(AB$2,Allocation!$J$4:$J$32,0),MATCH($AM17,Allocation!$K$3:$AL$3,0))/100,"") -> 0.05 | AC17: =IFERROR(INDEX(Allocation!$K$4:$AL$32,MATCH(AC$2,Allocation!$J$4:$J$32,0),MATCH($AM17,Allocation!$K$3:$AL$3,0))/100,"") -> 0.05 | AD17: =IFERROR(INDEX(Allocation!$K$4:$AL$32,MATCH(AD$2,Allocation!$J$4:$J$32,0),MATCH($AM17,Allocation!$K$3:$AL$3,0))/100,"") -> 0 | AE17: =IFERROR(INDEX(Allocation!$K$4:$AL$32,MATCH(AE$2,Allocation!$J$4:$J$32,0),MATCH($AM17,Allocation!$K$3:$AL$3,0))/100,"") -> 0 | AF17: =IFERROR(INDEX(Allocation!$K$4:$AL$32,MATCH(AF$2,Allocation!$J$4:$J$32,0),MATCH($AM17,Allocation!$K$3:$AL$3,0))/100,"") -> 0 | AG17: =IFERROR(INDEX(Allocation!$K$4:$AL$32,MATCH(AG$2,Allocation!$J$4:$J$32,0),MATCH($AM17,Allocation!$K$3:$AL$3,0))/100,"") -> 0 | AH17: =IFERROR(INDEX(Allocation!$K$4:$AL$32,MATCH(AH$2,Allocation!$J$4:$J$32,0),MATCH($AM17,Allocation!$K$3:$AL$3,0))/100,"") -> 0 | AI17: 1 | AK17: 1 | AL17: =VLOOKUP($E17,Allocation!$J$40:$M$65,4,FALSE) -> Solutions Multi-facteurs Investissements Russell | AM17: =VLOOKUP($E17,Allocation!$J$40:$M$65,3,FALSE) -> MFGB | AQ17: Multi-actifs stratégie de revenu | AR17: Catégorie multi-actifs stratégie de croissance et de revenu
F18: =IFERROR(INDEX(Allocation!$K$4:$AL$32,MATCH(F$2,Allocation!$J$4:$J$32,0),MATCH($AM18,Allocation!$K$3:$AL$3,0))/100,"") ->  | G18: =IFERROR(INDEX(Allocation!$K$4:$AL$32,MATCH(G$2,Allocation!$J$4:$J$32,0),MATCH($AM18,Allocation!$K$3:$AL$3,0))/100,"") ->  | H18: =IFERROR(INDEX(Allocation!$K$4:$AL$32,MATCH(H$2,Allocation!$J$4:$J$32,0),MATCH($AM18,Allocation!$K$3:$AL$3,0))/100,"") ->  | I18: =IFERROR(INDEX(Allocation!$K$4:$AL$32,MATCH(I$2,Allocation!$J$4:$J$32,0),MATCH($AM18,Allocation!$K$3:$AL$3,0))/100,"") ->  | J18: =IFERROR(INDEX(Allocation!$K$4:$AL$32,MATCH(J$2,Allocation!$J$4:$J$32,0),MATCH($AM18,Allocation!$K$3:$AL$3,0))/100,"") ->  | K18: =IFERROR(INDEX(Allocation!$K$4:$AL$32,MATCH(K$2,Allocation!$J$4:$J$32,0),MATCH($AM18,Allocation!$K$3:$AL$3,0))/100,"") ->  | L18: =IFERROR(INDEX(Allocation!$K$4:$AL$32,MATCH(L$2,Allocation!$J$4:$J$32,0),MATCH($AM18,Allocation!$K$3:$AL$3,0))/100,"") ->  | M18: =IFERROR(INDEX(Allocation!$K$4:$AL$32,MATCH(M$2,Allocation!$J$4:$J$32,0),MATCH($AM18,Allocation!$K$3:$AL$3,0))/100,"") ->  | N18: =IFERROR(INDEX(Allocation!$K$4:$AL$32,MATCH(N$2,Allocation!$J$4:$J$32,0),MATCH($AM18,Allocation!$K$3:$AL$3,0))/100,"") ->  | O18: =IFERROR(INDEX(Allocation!$K$4:$AL$32,MATCH(O$2,Allocation!$J$4:$J$32,0),MATCH($AM18,Allocation!$K$3:$AL$3,0))/100,"") ->  | P18: =IFERROR(INDEX(Allocation!$K$4:$AL$32,MATCH(P$2,Allocation!$J$4:$J$32,0),MATCH($AM18,Allocation!$K$3:$AL$3,0))/100,"") ->  | Q18: =IFERROR(INDEX(Allocation!$K$4:$AL$32,MATCH(Q$2,Allocation!$J$4:$J$32,0),MATCH($AM18,Allocation!$K$3:$AL$3,0))/100,"") ->  | R18: =IFERROR(INDEX(Allocation!$K$4:$AL$32,MATCH(R$2,Allocation!$J$4:$J$32,0),MATCH($AM18,Allocation!$K$3:$AL$3,0))/100,"") ->  | S18: =IFERROR(INDEX(Allocation!$K$4:$AL$32,MATCH(S$2,Allocation!$J$4:$J$32,0),MATCH($AM18,Allocation!$K$3:$AL$3,0))/100,"") ->  | T18: =IFERROR(INDEX(Allocation!$K$4:$AL$32,MATCH(T$2,Allocation!$J$4:$J$32,0),MATCH($AM18,Allocation!$K$3:$AL$3,0))/100,"") ->  | U18: =IFERROR(INDEX(Allocation!$K$4:$AL$32,MATCH(U$2,Allocation!$J$4:$J$32,0),MATCH($AM18,Allocation!$K$3:$AL$3,0))/100,"") ->  | V18: =IFERROR(INDEX(Allocation!$K$4:$AL$32,MATCH(V$2,Allocation!$J$4:$J$32,0),MATCH($AM18,Allocation!$K$3:$AL$3,0))/100,"") ->  | W18: =IFERROR(INDEX(Allocation!$K$4:$AL$32,MATCH(W$2,Allocation!$J$4:$J$32,0),MATCH($AM18,Allocation!$K$3:$AL$3,0))/100,"") ->  | X18: =IFERROR(INDEX(Allocation!$K$4:$AL$32,MATCH(X$2,Allocation!$J$4:$J$32,0),MATCH($AM18,Allocation!$K$3:$AL$3,0))/100,"") ->  | Y18: =IFERROR(INDEX(Allocation!$K$4:$AL$32,MATCH(Y$2,Allocation!$J$4:$J$32,0),MATCH($AM18,Allocation!$K$3:$AL$3,0))/100,"") ->  | Z18: =IFERROR(INDEX(Allocation!$K$4:$AL$32,MATCH(Z$2,Allocation!$J$4:$J$32,0),MATCH($AM18,Allocation!$K$3:$AL$3,0))/100,"") ->  | AA18: =IFERROR(INDEX(Allocation!$K$4:$AL$32,MATCH(AA$2,Allocation!$J$4:$J$32,0),MATCH($AM18,Allocation!$K$3:$AL$3,0))/100,"") ->  | AB18: =IFERROR(INDEX(Allocation!$K$4:$AL$32,MATCH(AB$2,Allocation!$J$4:$J$32,0),MATCH($AM18,Allocation!$K$3:$AL$3,0))/100,"") ->  | AC18: =IFERROR(INDEX(Allocation!$K$4:$AL$32,MATCH(AC$2,Allocation!$J$4:$J$32,0),MATCH($AM18,Allocation!$K$3:$AL$3,0))/100,"") ->  | AD18: =IFERROR(INDEX(Allocation!$K$4:$AL$32,MATCH(AD$2,Allocation!$J$4:$J$32,0),MATCH($AM18,Allocation!$K$3:$AL$3,0))/100,"") ->  | AE18: =IFERROR(INDEX(Allocation!$K$4:$AL$32,MATCH(AE$2,Allocation!$J$4:$J$32,0),MATCH($AM18,Allocation!$K$3:$AL$3,0))/100,"") ->  | AF18: =IFERROR(INDEX(Allocation!$K$4:$AL$32,MATCH(AF$2,Allocation!$J$4:$J$32,0),MATCH($AM18,Allocation!$K$3:$AL$3,0))/100,"") ->  | AG18: =IFERROR(INDEX(Allocation!$K$4:$AL$32,MATCH(AG$2,Allocation!$J$4:$J$32,0),MATCH($AM18,Allocation!$K$3:$AL$3,0))/100,"") ->  | AH18: =IFERROR(INDEX(Allocation!$K$4:$AL$32,MATCH(AH$2,Allocation!$J$4:$J$32,0),MATCH($AM18,Allocation!$K$3:$AL$3,0))/100,"") ->  | AI18: 0 | AK18: 0 | AL18: =VLOOKUP($E18,Allocation!$J$40:$M$65,4,FALSE) ->  | AM18: =VLOOKUP($E18,Allocation!$J$40:$M$65,3,FALSE) ->  | AQ18: Multi-actifs stratégie de croissance et de revenu | AR18: Catégorie multi-actifs stratégie de croissance et de revenu - Répartition tactique
F19: =IFERROR(INDEX(Allocation!$K$4:$AL$32,MATCH(F$2,Allocation!$J$4:$J$32,0),MATCH($AM19,Allocation!$K$3:$AL$3,0))/100,"") ->  | G19: =IFERROR(INDEX(Allocation!$K$4:$AL$32,MATCH(G$2,Allocation!$J$4:$J$32,0),MATCH($AM19,Allocation!$K$3:$AL$3,0))/100,"") ->  | H19: =IFERROR(INDEX(Allocation!$K$4:$AL$32,MATCH(H$2,Allocation!$J$4:$J$32,0),MATCH($AM19,Allocation!$K$3:$AL$3,0))/100,"") ->  | I19: =IFERROR(INDEX(Allocation!$K$4:$AL$32,MATCH(I$2,Allocation!$J$4:$J$32,0),MATCH($AM19,Allocation!$K$3:$AL$3,0))/100,"") ->  | J19: =IFERROR(INDEX(Allocation!$K$4:$AL$32,MATCH(J$2,Allocation!$J$4:$J$32,0),MATCH($AM19,Allocation!$K$3:$AL$3,0))/100,"") ->  | K19: =IFERROR(INDEX(Allocation!$K$4:$AL$32,MATCH(K$2,Allocation!$J$4:$J$32,0),MATCH($AM19,Allocation!$K$3:$AL$3,0))/100,"") ->  | L19: =IFERROR(INDEX(Allocation!$K$4:$AL$32,MATCH(L$2,Allocation!$J$4:$J$32,0),MATCH($AM19,Allocation!$K$3:$AL$3,0))/100,"") ->  | M19: =IFERROR(INDEX(Allocation!$K$4:$AL$32,MATCH(M$2,Allocation!$J$4:$J$32,0),MATCH($AM19,Allocation!$K$3:$AL$3,0))/100,"") ->  | N19: =IFERROR(INDEX(Allocation!$K$4:$AL$32,MATCH(N$2,Allocation!$J$4:$J$32,0),MATCH($AM19,Allocation!$K$3:$AL$3,0))/100,"") ->  | O19: =IFERROR(INDEX(Allocation!$K$4:$AL$32,MATCH(O$2,Allocation!$J$4:$J$32,0),MATCH($AM19,Allocation!$K$3:$AL$3,0))/100,"") ->  | P19: =IFERROR(INDEX(Allocation!$K$4:$AL$32,MATCH(P$2,Allocation!$J$4:$J$32,0),MATCH($AM19,Allocation!$K$3:$AL$3,0))/100,"") ->  | Q19: =IFERROR(INDEX(Allocation!$K$4:$AL$32,MATCH(Q$2,Allocation!$J$4:$J$32,0),MATCH($AM19,Allocation!$K$3:$AL$3,0))/100,"") ->  | R19: =IFERROR(INDEX(Allocation!$K$4:$AL$32,MATCH(R$2,Allocation!$J$4:$J$32,0),MATCH($AM19,Allocation!$K$3:$AL$3,0))/100,"") ->  | S19: =IFERROR(INDEX(Allocation!$K$4:$AL$32,MATCH(S$2,Allocation!$J$4:$J$32,0),MATCH($AM19,Allocation!$K$3:$AL$3,0))/100,"") ->  | T19: =IFERROR(INDEX(Allocation!$K$4:$AL$32,MATCH(T$2,Allocation!$J$4:$J$32,0),MATCH($AM19,Allocation!$K$3:$AL$3,0))/100,"") ->  | U19: =IFERROR(INDEX(Allocation!$K$4:$AL$32,MATCH(U$2,Allocation!$J$4:$J$32,0),MATCH($AM19,Allocation!$K$3:$AL$3,0))/100,"") ->  | V19: =IFERROR(INDEX(Allocation!$K$4:$AL$32,MATCH(V$2,Allocation!$J$4:$J$32,0),MATCH($AM19,Allocation!$K$3:$AL$3,0))/100,"") ->  | W19: =IFERROR(INDEX(Allocation!$K$4:$AL$32,MATCH(W$2,Allocation!$J$4:$J$32,0),MATCH($AM19,Allocation!$K$3:$AL$3,0))/100,"") ->  | X19: =IFERROR(INDEX(Allocation!$K$4:$AL$32,MATCH(X$2,Allocation!$J$4:$J$32,0),MATCH($AM19,Allocation!$K$3:$AL$3,0))/100,"") ->  | Y19: =IFERROR(INDEX(Allocation!$K$4:$AL$32,MATCH(Y$2,Allocation!$J$4:$J$32,0),MATCH($AM19,Allocation!$K$3:$AL$3,0))/100,"") ->  | Z19: =IFERROR(INDEX(Allocation!$K$4:$AL$32,MATCH(Z$2,Allocation!$J$4:$J$32,0),MATCH($AM19,Allocation!$K$3:$AL$3,0))/100,"") ->  | AA19: =IFERROR(INDEX(Allocation!$K$4:$AL$32,MATCH(AA$2,Allocation!$J$4:$J$32,0),MATCH($AM19,Allocation!$K$3:$AL$3,0))/100,"") ->  | AB19: =IFERROR(INDEX(Allocation!$K$4:$AL$32,MATCH(AB$2,Allocation!$J$4:$J$32,0),MATCH($AM19,Allocation!$K$3:$AL$3,0))/100,"") ->  | AC19: =IFERROR(INDEX(Allocation!$K$4:$AL$32,MATCH(AC$2,Allocation!$J$4:$J$32,0),MATCH($AM19,Allocation!$K$3:$AL$3,0))/100,"") ->  | AD19: =IFERROR(INDEX(Allocation!$K$4:$AL$32,MATCH(AD$2,Allocation!$J$4:$J$32,0),MATCH($AM19,Allocation!$K$3:$AL$3,0))/100,"") ->  | AE19: =IFERROR(INDEX(Allocation!$K$4:$AL$32,MATCH(AE$2,Allocation!$J$4:$J$32,0),MATCH($AM19,Allocation!$K$3:$AL$3,0))/100,"") ->  | AF19: =IFERROR(INDEX(Allocation!$K$4:$AL$32,MATCH(AF$2,Allocation!$J$4:$J$32,0),MATCH($AM19,Allocation!$K$3:$AL$3,0))/100,"") ->  | AG19: =IFERROR(INDEX(Allocation!$K$4:$AL$32,MATCH(AG$2,Allocation!$J$4:$J$32,0),MATCH($AM19,Allocation!$K$3:$AL$3,0))/100,"") ->  | AH19: =IFERROR(INDEX(Allocation!$K$4:$AL$32,MATCH(AH$2,Allocation!$J$4:$J$32,0),MATCH($AM19,Allocation!$K$3:$AL$3,0))/100,"") ->  | AI19: 0 | AK19: 0 | AL19: =VLOOKUP($E19,Allocation!$J$40:$M$65,4,FALSE) ->  | AM19: =VLOOKUP($E19,Allocation!$J$40:$M$65,3,FALSE) ->  | AQ19: Multi-actifs stratégie de croissance et de revenu - Répartition tactique | AR19: Catégorie multi-actifs stratégie de croissance
F20: =IFERROR(INDEX(Allocation!$K$4:$AL$32,MATCH(F$2,Allocation!$J$4:$J$32,0),MATCH($AM20,Allocation!$K$3:$AL$3,0))/100,"") ->  | G20: =IFERROR(INDEX(Allocation!$K$4:$AL$32,MATCH(G$2,Allocation!$J$4:$J$32,0),MATCH($AM20,Allocation!$K$3:$AL$3,0))/100,"") ->  | H20: =IFERROR(INDEX(Allocation!$K$4:$AL$32,MATCH(H$2,Allocation!$J$4:$J$32,0),MATCH($AM20,Allocation!$K$3:$AL$3,0))/100,"") ->  | I20: =IFERROR(INDEX(Allocation!$K$4:$AL$32,MATCH(I$2,Allocation!$J$4:$J$32,0),MATCH($AM20,Allocation!$K$3:$AL$3,0))/100,"") ->  | J20: =IFERROR(INDEX(Allocation!$K$4:$AL$32,MATCH(J$2,Allocation!$J$4:$J$32,0),MATCH($AM20,Allocation!$K$3:$AL$3,0))/100,"") ->  | K20: =IFERROR(INDEX(Allocation!$K$4:$AL$32,MATCH(K$2,Allocation!$J$4:$J$32,0),MATCH($AM20,Allocation!$K$3:$AL$3,0))/100,"") ->  | L20: =IFERROR(INDEX(Allocation!$K$4:$AL$32,MATCH(L$2,Allocation!$J$4:$J$32,0),MATCH($AM20,Allocation!$K$3:$AL$3,0))/100,"") ->  | M20: =IFERROR(INDEX(Allocation!$K$4:$AL$32,MATCH(M$2,Allocation!$J$4:$J$32,0),MATCH($AM20,Allocation!$K$3:$AL$3,0))/100,"") ->  | N20: =IFERROR(INDEX(Allocation!$K$4:$AL$32,MATCH(N$2,Allocation!$J$4:$J$32,0),MATCH($AM20,Allocation!$K$3:$AL$3,0))/100,"") ->  | O20: =IFERROR(INDEX(Allocation!$K$4:$AL$32,MATCH(O$2,Allocation!$J$4:$J$32,0),MATCH($AM20,Allocation!$K$3:$AL$3,0))/100,"") ->  | P20: =IFERROR(INDEX(Allocation!$K$4:$AL$32,MATCH(P$2,Allocation!$J$4:$J$32,0),MATCH($AM20,Allocation!$K$3:$AL$3,0))/100,"") ->  | Q20: =IFERROR(INDEX(Allocation!$K$4:$AL$32,MATCH(Q$2,Allocation!$J$4:$J$32,0),MATCH($AM20,Allocation!$K$3:$AL$3,0))/100,"") ->  | R20: =IFERROR(INDEX(Allocation!$K$4:$AL$32,MATCH(R$2,Allocation!$J$4:$J$32,0),MATCH($AM20,Allocation!$K$3:$AL$3,0))/100,"") ->  | S20: =IFERROR(INDEX(Allocation!$K$4:$AL$32,MATCH(S$2,Allocation!$J$4:$J$32,0),MATCH($AM20,Allocation!$K$3:$AL$3,0))/100,"") ->  | T20: =IFERROR(INDEX(Allocation!$K$4:$AL$32,MATCH(T$2,Allocation!$J$4:$J$32,0),MATCH($AM20,Allocation!$K$3:$AL$3,0))/100,"") ->  | U20: =IFERROR(INDEX(Allocation!$K$4:$AL$32,MATCH(U$2,Allocation!$J$4:$J$32,0),MATCH($AM20,Allocation!$K$3:$AL$3,0))/100,"") ->  | V20: =IFERROR(INDEX(Allocation!$K$4:$AL$32,MATCH(V$2,Allocation!$J$4:$J$32,0),MATCH($AM20,Allocation!$K$3:$AL$3,0))/100,"") ->  | W20: =IFERROR(INDEX(Allocation!$K$4:$AL$32,MATCH(W$2,Allocation!$J$4:$J$32,0),MATCH($AM20,Allocation!$K$3:$AL$3,0))/100,"") ->  | X20: =IFERROR(INDEX(Allocation!$K$4:$AL$32,MATCH(X$2,Allocation!$J$4:$J$32,0),MATCH($AM20,Allocation!$K$3:$AL$3,0))/100,"") ->  | Y20: =IFERROR(INDEX(Allocation!$K$4:$AL$32,MATCH(Y$2,Allocation!$J$4:$J$32,0),MATCH($AM20,Allocation!$K$3:$AL$3,0))/100,"") ->  | Z20: =IFERROR(INDEX(Allocation!$K$4:$AL$32,MATCH(Z$2,Allocation!$J$4:$J$32,0),MATCH($AM20,Allocation!$K$3:$AL$3,0))/100,"") ->  | AA20: =IFERROR(INDEX(Allocation!$K$4:$AL$32,MATCH(AA$2,Allocation!$J$4:$J$32,0),MATCH($AM20,Allocation!$K$3:$AL$3,0))/100,"") ->  | AB20: =IFERROR(INDEX(Allocation!$K$4:$AL$32,MATCH(AB$2,Allocation!$J$4:$J$32,0),MATCH($AM20,Allocation!$K$3:$AL$3,0))/100,"") ->  | AC20: =IFERROR(INDEX(Allocation!$K$4:$AL$32,MATCH(AC$2,Allocation!$J$4:$J$32,0),MATCH($AM20,Allocation!$K$3:$AL$3,0))/100,"") ->  | AD20: =IFERROR(INDEX(Allocation!$K$4:$AL$32,MATCH(AD$2,Allocation!$J$4:$J$32,0),MATCH($AM20,Allocation!$K$3:$AL$3,0))/100,"") ->  | AE20: =IFERROR(INDEX(Allocation!$K$4:$AL$32,MATCH(AE$2,Allocation!$J$4:$J$32,0),MATCH($AM20,Allocation!$K$3:$AL$3,0))/100,"") ->  | AF20: =IFERROR(INDEX(Allocation!$K$4:$AL$32,MATCH(AF$2,Allocation!$J$4:$J$32,0),MATCH($AM20,Allocation!$K$3:$AL$3,0))/100,"") ->  | AG20: =IFERROR(INDEX(Allocation!$K$4:$AL$32,MATCH(AG$2,Allocation!$J$4:$J$32,0),MATCH($AM20,Allocation!$K$3:$AL$3,0))/100,"") ->  | AH20: =IFERROR(INDEX(Allocation!$K$4:$AL$32,MATCH(AH$2,Allocation!$J$4:$J$32,0),MATCH($AM20,Allocation!$K$3:$AL$3,0))/100,"") ->  | AI20: 0 | AK20: 0 | AL20: =VLOOKUP($E20,Allocation!$J$40:$M$65,4,FALSE) ->  | AM20: =VLOOKUP($E20,Allocation!$J$40:$M$65,3,FALSE) ->  | AQ20: Multi-actifs stratégie de croissance | AR20: Catégorie multi-actifs stratégie de croissance - Répartition tactique
F21: =IFERROR(INDEX(Allocation!$K$4:$AL$32,MATCH(F$2,Allocation!$J$4:$J$32,0),MATCH($AM21,Allocation!$K$3:$AL$3,0))/100,"") ->  | G21: =IFERROR(INDEX(Allocation!$K$4:$AL$32,MATCH(G$2,Allocation!$J$4:$J$32,0),MATCH($AM21,Allocation!$K$3:$AL$3,0))/100,"") ->  | H21: =IFERROR(INDEX(Allocation!$K$4:$AL$32,MATCH(H$2,Allocation!$J$4:$J$32,0),MATCH($AM21,Allocation!$K$3:$AL$3,0))/100,"") ->  | I21: =IFERROR(INDEX(Allocation!$K$4:$AL$32,MATCH(I$2,Allocation!$J$4:$J$32,0),MATCH($AM21,Allocation!$K$3:$AL$3,0))/100,"") ->  | J21: =IFERROR(INDEX(Allocation!$K$4:$AL$32,MATCH(J$2,Allocation!$J$4:$J$32,0),MATCH($AM21,Allocation!$K$3:$AL$3,0))/100,"") ->  | K21: =IFERROR(INDEX(Allocation!$K$4:$AL$32,MATCH(K$2,Allocation!$J$4:$J$32,0),MATCH($AM21,Allocation!$K$3:$AL$3,0))/100,"") ->  | L21: =IFERROR(INDEX(Allocation!$K$4:$AL$32,MATCH(L$2,Allocation!$J$4:$J$32,0),MATCH($AM21,Allocation!$K$3:$AL$3,0))/100,"") ->  | M21: =IFERROR(INDEX(Allocation!$K$4:$AL$32,MATCH(M$2,Allocation!$J$4:$J$32,0),MATCH($AM21,Allocation!$K$3:$AL$3,0))/100,"") ->  | N21: =IFERROR(INDEX(Allocation!$K$4:$AL$32,MATCH(N$2,Allocation!$J$4:$J$32,0),MATCH($AM21,Allocation!$K$3:$AL$3,0))/100,"") ->  | O21: =IFERROR(INDEX(Allocation!$K$4:$AL$32,MATCH(O$2,Allocation!$J$4:$J$32,0),MATCH($AM21,Allocation!$K$3:$AL$3,0))/100,"") ->  | P21: =IFERROR(INDEX(Allocation!$K$4:$AL$32,MATCH(P$2,Allocation!$J$4:$J$32,0),MATCH($AM21,Allocation!$K$3:$AL$3,0))/100,"") ->  | Q21: =IFERROR(INDEX(Allocation!$K$4:$AL$32,MATCH(Q$2,Allocation!$J$4:$J$32,0),MATCH($AM21,Allocation!$K$3:$AL$3,0))/100,"") ->  | R21: =IFERROR(INDEX(Allocation!$K$4:$AL$32,MATCH(R$2,Allocation!$J$4:$J$32,0),MATCH($AM21,Allocation!$K$3:$AL$3,0))/100,"") ->  | S21: =IFERROR(INDEX(Allocation!$K$4:$AL$32,MATCH(S$2,Allocation!$J$4:$J$32,0),MATCH($AM21,Allocation!$K$3:$AL$3,0))/100,"") ->  | T21: =IFERROR(INDEX(Allocation!$K$4:$AL$32,MATCH(T$2,Allocation!$J$4:$J$32,0),MATCH($AM21,Allocation!$K$3:$AL$3,0))/100,"") ->  | U21: =IFERROR(INDEX(Allocation!$K$4:$AL$32,MATCH(U$2,Allocation!$J$4:$J$32,0),MATCH($AM21,Allocation!$K$3:$AL$3,0))/100,"") ->  | V21: =IFERROR(INDEX(Allocation!$K$4:$AL$32,MATCH(V$2,Allocation!$J$4:$J$32,0),MATCH($AM21,Allocation!$K$3:$AL$3,0))/100,"") ->  | W21: =IFERROR(INDEX(Allocation!$K$4:$AL$32,MATCH(W$2,Allocation!$J$4:$J$32,0),MATCH($AM21,Allocation!$K$3:$AL$3,0))/100,"") ->  | X21: =IFERROR(INDEX(Allocation!$K$4:$AL$32,MATCH(X$2,Allocation!$J$4:$J$32,0),MATCH($AM21,Allocation!$K$3:$AL$3,0))/100,"") ->  | Y21: =IFERROR(INDEX(Allocation!$K$4:$AL$32,MATCH(Y$2,Allocation!$J$4:$J$32,0),MATCH($AM21,Allocation!$K$3:$AL$3,0))/100,"") ->  | Z21: =IFERROR(INDEX(Allocation!$K$4:$AL$32,MATCH(Z$2,Allocation!$J$4:$J$32,0),MATCH($AM21,Allocation!$K$3:$AL$3,0))/100,"") ->  | AA21: =IFERROR(INDEX(Allocation!$K$4:$AL$32,MATCH(AA$2,Allocation!$J$4:$J$32,0),MATCH($AM21,Allocation!$K$3:$AL$3,0))/100,"") ->  | AB21: =IFERROR(INDEX(Allocation!$K$4:$AL$32,MATCH(AB$2,Allocation!$J$4:$J$32,0),MATCH($AM21,Allocation!$K$3:$AL$3,0))/100,"") ->  | AC21: =IFERROR(INDEX(Allocation!$K$4:$AL$32,MATCH(AC$2,Allocation!$J$4:$J$32,0),MATCH($AM21,Allocation!$K$3:$AL$3,0))/100,"") ->  | AD21: =IFERROR(INDEX(Allocation!$K$4:$AL$32,MATCH(AD$2,Allocation!$J$4:$J$32,0),MATCH($AM21,Allocation!$K$3:$AL$3,0))/100,"") ->  | AE21: =IFERROR(INDEX(Allocation!$K$4:$AL$32,MATCH(AE$2,Allocation!$J$4:$J$32,0),MATCH($AM21,Allocation!$K$3:$AL$3,0))/100,"") ->  | AF21: =IFERROR(INDEX(Allocation!$K$4:$AL$32,MATCH(AF$2,Allocation!$J$4:$J$32,0),MATCH($AM21,Allocation!$K$3:$AL$3,0))/100,"") ->  | AG21: =IFERROR(INDEX(Allocation!$K$4:$AL$32,MATCH(AG$2,Allocation!$J$4:$J$32,0),MATCH($AM21,Allocation!$K$3:$AL$3,0))/100,"") ->  | AH21: =IFERROR(INDEX(Allocation!$K$4:$AL$32,MATCH(AH$2,Allocation!$J$4:$J$32,0),MATCH($AM21,Allocation!$K$3:$AL$3,0))/100,"") ->  | AI21: 0 | AK21: 0 | AL21: =VLOOKUP($E21,Allocation!$J$40:$M$65,4,FALSE) ->  | AM21: =VLOOKUP($E21,Allocation!$J$40:$M$65,3,FALSE) ->  | AQ21: Multi-actifs stratégie de croissance - Répartition tactique | AR21: Catégorie portefeuille équilibré Investissements Russell
F22: =IFERROR(INDEX(Allocation!$K$4:$AL$32,MATCH(F$2,Allocation!$J$4:$J$32,0),MATCH($AM22,Allocation!$K$3:$AL$3,0))/100,"") ->  | G22: =IFERROR(INDEX(Allocation!$K$4:$AL$32,MATCH(G$2,Allocation!$J$4:$J$32,0),MATCH($AM22,Allocation!$K$3:$AL$3,0))/100,"") ->  | H22: =IFERROR(INDEX(Allocation!$K$4:$AL$32,MATCH(H$2,Allocation!$J$4:$J$32,0),MATCH($AM22,Allocation!$K$3:$AL$3,0))/100,"") ->  | I22: =IFERROR(INDEX(Allocation!$K$4:$AL$32,MATCH(I$2,Allocation!$J$4:$J$32,0),MATCH($AM22,Allocation!$K$3:$AL$3,0))/100,"") ->  | J22: =IFERROR(INDEX(Allocation!$K$4:$AL$32,MATCH(J$2,Allocation!$J$4:$J$32,0),MATCH($AM22,Allocation!$K$3:$AL$3,0))/100,"") ->  | K22: =IFERROR(INDEX(Allocation!$K$4:$AL$32,MATCH(K$2,Allocation!$J$4:$J$32,0),MATCH($AM22,Allocation!$K$3:$AL$3,0))/100,"") ->  | L22: =IFERROR(INDEX(Allocation!$K$4:$AL$32,MATCH(L$2,Allocation!$J$4:$J$32,0),MATCH($AM22,Allocation!$K$3:$AL$3,0))/100,"") ->  | M22: =IFERROR(INDEX(Allocation!$K$4:$AL$32,MATCH(M$2,Allocation!$J$4:$J$32,0),MATCH($AM22,Allocation!$K$3:$AL$3,0))/100,"") ->  | N22: =IFERROR(INDEX(Allocation!$K$4:$AL$32,MATCH(N$2,Allocation!$J$4:$J$32,0),MATCH($AM22,Allocation!$K$3:$AL$3,0))/100,"") ->  | O22: =IFERROR(INDEX(Allocation!$K$4:$AL$32,MATCH(O$2,Allocation!$J$4:$J$32,0),MATCH($AM22,Allocation!$K$3:$AL$3,0))/100,"") ->  | P22: =IFERROR(INDEX(Allocation!$K$4:$AL$32,MATCH(P$2,Allocation!$J$4:$J$32,0),MATCH($AM22,Allocation!$K$3:$AL$3,0))/100,"") ->  | Q22: =IFERROR(INDEX(Allocation!$K$4:$AL$32,MATCH(Q$2,Allocation!$J$4:$J$32,0),MATCH($AM22,Allocation!$K$3:$AL$3,0))/100,"") ->  | R22: =IFERROR(INDEX(Allocation!$K$4:$AL$32,MATCH(R$2,Allocation!$J$4:$J$32,0),MATCH($AM22,Allocation!$K$3:$AL$3,0))/100,"") ->  | S22: =IFERROR(INDEX(Allocation!$K$4:$AL$32,MATCH(S$2,Allocation!$J$4:$J$32,0),MATCH($AM22,Allocation!$K$3:$AL$3,0))/100,"") ->  | T22: =IFERROR(INDEX(Allocation!$K$4:$AL$32,MATCH(T$2,Allocation!$J$4:$J$32,0),MATCH($AM22,Allocation!$K$3:$AL$3,0))/100,"") ->  | U22: =IFERROR(INDEX(Allocation!$K$4:$AL$32,MATCH(U$2,Allocation!$J$4:$J$32,0),MATCH($AM22,Allocation!$K$3:$AL$3,0))/100,"") ->  | V22: =IFERROR(INDEX(Allocation!$K$4:$AL$32,MATCH(V$2,Allocation!$J$4:$J$32,0),MATCH($AM22,Allocation!$K$3:$AL$3,0))/100,"") ->  | W22: =IFERROR(INDEX(Allocation!$K$4:$AL$32,MATCH(W$2,Allocation!$J$4:$J$32,0),MATCH($AM22,Allocation!$K$3:$AL$3,0))/100,"") ->  | X22: =IFERROR(INDEX(Allocation!$K$4:$AL$32,MATCH(X$2,Allocation!$J$4:$J$32,0),MATCH($AM22,Allocation!$K$3:$AL$3,0))/100,"") ->  | Y22: =IFERROR(INDEX(Allocation!$K$4:$AL$32,MATCH(Y$2,Allocation!$J$4:$J$32,0),MATCH($AM22,Allocation!$K$3:$AL$3,0))/100,"") ->  | Z22: =IFERROR(INDEX(Allocation!$K$4:$AL$32,MATCH(Z$2,Allocation!$J$4:$J$32,0),MATCH($AM22,Allocation!$K$3:$AL$3,0))/100,"") ->  | AA22: =IFERROR(INDEX(Allocation!$K$4:$AL$32,MATCH(AA$2,Allocation!$J$4:$J$32,0),MATCH($AM22,Allocation!$K$3:$AL$3,0))/100,"") ->  | AB22: =IFERROR(INDEX(Allocation!$K$4:$AL$32,MATCH(AB$2,Allocation!$J$4:$J$32,0),MATCH($AM22,Allocation!$K$3:$AL$3,0))/100,"") ->  | AC22: =IFERROR(INDEX(Allocation!$K$4:$AL$32,MATCH(AC$2,Allocation!$J$4:$J$32,0),MATCH($AM22,Allocation!$K$3:$AL$3,0))/100,"") ->  | AD22: =IFERROR(INDEX(Allocation!$K$4:$AL$32,MATCH(AD$2,Allocation!$J$4:$J$32,0),MATCH($AM22,Allocation!$K$3:$AL$3,0))/100,"") ->  | AE22: =IFERROR(INDEX(Allocation!$K$4:$AL$32,MATCH(AE$2,Allocation!$J$4:$J$32,0),MATCH($AM22,Allocation!$K$3:$AL$3,0))/100,"") ->  | AF22: =IFERROR(INDEX(Allocation!$K$4:$AL$32,MATCH(AF$2,Allocation!$J$4:$J$32,0),MATCH($AM22,Allocation!$K$3:$AL$3,0))/100,"") ->  | AG22: =IFERROR(INDEX(Allocation!$K$4:$AL$32,MATCH(AG$2,Allocation!$J$4:$J$32,0),MATCH($AM22,Allocation!$K$3:$AL$3,0))/100,"") ->  | AH22: =IFERROR(INDEX(Allocation!$K$4:$AL$32,MATCH(AH$2,Allocation!$J$4:$J$32,0),MATCH($AM22,Allocation!$K$3:$AL$3,0))/100,"") ->  | AI22: 0 | AK22: 0 | AL22: =VLOOKUP($E22,Allocation!$J$40:$M$65,4,FALSE) ->  | AM22: =VLOOKUP($E22,Allocation!$J$40:$M$65,3,FALSE) ->  | AQ22: Multi-actifs actions internationales | AR22: Catégorie portefeuille équilibré de croissance Investissements Russell
F23: =IFERROR(INDEX(Allocation!$K$4:$AL$32,MATCH(F$2,Allocation!$J$4:$J$32,0),MATCH($AM23,Allocation!$K$3:$AL$3,0))/100,"") ->  | G23: =IFERROR(INDEX(Allocation!$K$4:$AL$32,MATCH(G$2,Allocation!$J$4:$J$32,0),MATCH($AM23,Allocation!$K$3:$AL$3,0))/100,"") ->  | H23: =IFERROR(INDEX(Allocation!$K$4:$AL$32,MATCH(H$2,Allocation!$J$4:$J$32,0),MATCH($AM23,Allocation!$K$3:$AL$3,0))/100,"") ->  | I23: =IFERROR(INDEX(Allocation!$K$4:$AL$32,MATCH(I$2,Allocation!$J$4:$J$32,0),MATCH($AM23,Allocation!$K$3:$AL$3,0))/100,"") ->  | J23: =IFERROR(INDEX(Allocation!$K$4:$AL$32,MATCH(J$2,Allocation!$J$4:$J$32,0),MATCH($AM23,Allocation!$K$3:$AL$3,0))/100,"") ->  | K23: =IFERROR(INDEX(Allocation!$K$4:$AL$32,MATCH(K$2,Allocation!$J$4:$J$32,0),MATCH($AM23,Allocation!$K$3:$AL$3,0))/100,"") ->  | L23: =IFERROR(INDEX(Allocation!$K$4:$AL$32,MATCH(L$2,Allocation!$J$4:$J$32,0),MATCH($AM23,Allocation!$K$3:$AL$3,0))/100,"") ->  | M23: =IFERROR(INDEX(Allocation!$K$4:$AL$32,MATCH(M$2,Allocation!$J$4:$J$32,0),MATCH($AM23,Allocation!$K$3:$AL$3,0))/100,"") ->  | N23: =IFERROR(INDEX(Allocation!$K$4:$AL$32,MATCH(N$2,Allocation!$J$4:$J$32,0),MATCH($AM23,Allocation!$K$3:$AL$3,0))/100,"") ->  | O23: =IFERROR(INDEX(Allocation!$K$4:$AL$32,MATCH(O$2,Allocation!$J$4:$J$32,0),MATCH($AM23,Allocation!$K$3:$AL$3,0))/100,"") ->  | P23: =IFERROR(INDEX(Allocation!$K$4:$AL$32,MATCH(P$2,Allocation!$J$4:$J$32,0),MATCH($AM23,Allocation!$K$3:$AL$3,0))/100,"") ->  | Q23: =IFERROR(INDEX(Allocation!$K$4:$AL$32,MATCH(Q$2,Allocation!$J$4:$J$32,0),MATCH($AM23,Allocation!$K$3:$AL$3,0))/100,"") ->  | R23: =IFERROR(INDEX(Allocation!$K$4:$AL$32,MATCH(R$2,Allocation!$J$4:$J$32,0),MATCH($AM23,Allocation!$K$3:$AL$3,0))/100,"") ->  | S23: =IFERROR(INDEX(Allocation!$K$4:$AL$32,MATCH(S$2,Allocation!$J$4:$J$32,0),MATCH($AM23,Allocation!$K$3:$AL$3,0))/100,"") ->  | T23: =IFERROR(INDEX(Allocation!$K$4:$AL$32,MATCH(T$2,Allocation!$J$4:$J$32,0),MATCH($AM23,Allocation!$K$3:$AL$3,0))/100,"") ->  | U23: =IFERROR(INDEX(Allocation!$K$4:$AL$32,MATCH(U$2,Allocation!$J$4:$J$32,0),MATCH($AM23,Allocation!$K$3:$AL$3,0))/100,"") ->  | V23: =IFERROR(INDEX(Allocation!$K$4:$AL$32,MATCH(V$2,Allocation!$J$4:$J$32,0),MATCH($AM23,Allocation!$K$3:$AL$3,0))/100,"") ->  | W23: =IFERROR(INDEX(Allocation!$K$4:$AL$32,MATCH(W$2,Allocation!$J$4:$J$32,0),MATCH($AM23,Allocation!$K$3:$AL$3,0))/100,"") ->  | X23: =IFERROR(INDEX(Allocation!$K$4:$AL$32,MATCH(X$2,Allocation!$J$4:$J$32,0),MATCH($AM23,Allocation!$K$3:$AL$3,0))/100,"") ->  | Y23: =IFERROR(INDEX(Allocation!$K$4:$AL$32,MATCH(Y$2,Allocation!$J$4:$J$32,0),MATCH($AM23,Allocation!$K$3:$AL$3,0))/100,"") ->  | Z23: =IFERROR(INDEX(Allocation!$K$4:$AL$32,MATCH(Z$2,Allocation!$J$4:$J$32,0),MATCH($AM23,Allocation!$K$3:$AL$3,0))/100,"") ->  | AA23: =IFERROR(INDEX(Allocation!$K$4:$AL$32,MATCH(AA$2,Allocation!$J$4:$J$32,0),MATCH($AM23,Allocation!$K$3:$AL$3,0))/100,"") ->  | AB23: =IFERROR(INDEX(Allocation!$K$4:$AL$32,MATCH(AB$2,Allocation!$J$4:$J$32,0),MATCH($AM23,Allocation!$K$3:$AL$3,0))/100,"") ->  | AC23: =IFERROR(INDEX(Allocation!$K$4:$AL$32,MATCH(AC$2,Allocation!$J$4:$J$32,0),MATCH($AM23,Allocation!$K$3:$AL$3,0))/100,"") ->  | AD23: =IFERROR(INDEX(Allocation!$K$4:$AL$32,MATCH(AD$2,Allocation!$J$4:$J$32,0),MATCH($AM23,Allocation!$K$3:$AL$3,0))/100,"") ->  | AE23: =IFERROR(INDEX(Allocation!$K$4:$AL$32,MATCH(AE$2,Allocation!$J$4:$J$32,0),MATCH($AM23,Allocation!$K$3:$AL$3,0))/100,"") ->  | AF23: =IFERROR(INDEX(Allocation!$K$4:$AL$32,MATCH(AF$2,Allocation!$J$4:$J$32,0),MATCH($AM23,Allocation!$K$3:$AL$3,0))/100,"") ->  | AG23: =IFERROR(INDEX(Allocation!$K$4:$AL$32,MATCH(AG$2,Allocation!$J$4:$J$32,0),MATCH($AM23,Allocation!$K$3:$AL$3,0))/100,"") ->  | AH23: =IFERROR(INDEX(Allocation!$K$4:$AL$32,MATCH(AH$2,Allocation!$J$4:$J$32,0),MATCH($AM23,Allocation!$K$3:$AL$3,0))/100,"") ->  | AI23: 0 | AK23: 0 | AL23: =VLOOKUP($E23,Allocation!$J$40:$M$65,4,FALSE) ->  | AM23: =VLOOKUP($E23,Allocation!$J$40:$M$65,3,FALSE) ->  | AQ23: Portefeuille équilibré Investissements Russell | AR23: Catégorie portefeuille de croissance à long terme Investissements Russell
F24: =IFERROR(INDEX(Allocation!$K$4:$AL$32,MATCH(F$2,Allocation!$J$4:$J$32,0),MATCH($AM24,Allocation!$K$3:$AL$3,0))/100,"") ->  | G24: =IFERROR(INDEX(Allocation!$K$4:$AL$32,MATCH(G$2,Allocation!$J$4:$J$32,0),MATCH($AM24,Allocation!$K$3:$AL$3,0))/100,"") ->  | H24: =IFERROR(INDEX(Allocation!$K$4:$AL$32,MATCH(H$2,Allocation!$J$4:$J$32,0),MATCH($AM24,Allocation!$K$3:$AL$3,0))/100,"") ->  | I24: =IFERROR(INDEX(Allocation!$K$4:$AL$32,MATCH(I$2,Allocation!$J$4:$J$32,0),MATCH($AM24,Allocation!$K$3:$AL$3,0))/100,"") ->  | J24: =IFERROR(INDEX(Allocation!$K$4:$AL$32,MATCH(J$2,Allocation!$J$4:$J$32,0),MATCH($AM24,Allocation!$K$3:$AL$3,0))/100,"") ->  | K24: =IFERROR(INDEX(Allocation!$K$4:$AL$32,MATCH(K$2,Allocation!$J$4:$J$32,0),MATCH($AM24,Allocation!$K$3:$AL$3,0))/100,"") ->  | L24: =IFERROR(INDEX(Allocation!$K$4:$AL$32,MATCH(L$2,Allocation!$J$4:$J$32,0),MATCH($AM24,Allocation!$K$3:$AL$3,0))/100,"") ->  | M24: =IFERROR(INDEX(Allocation!$K$4:$AL$32,MATCH(M$2,Allocation!$J$4:$J$32,0),MATCH($AM24,Allocation!$K$3:$AL$3,0))/100,"") ->  | N24: =IFERROR(INDEX(Allocation!$K$4:$AL$32,MATCH(N$2,Allocation!$J$4:$J$32,0),MATCH($AM24,Allocation!$K$3:$AL$3,0))/100,"") ->  | O24: =IFERROR(INDEX(Allocation!$K$4:$AL$32,MATCH(O$2,Allocation!$J$4:$J$32,0),MATCH($AM24,Allocation!$K$3:$AL$3,0))/100,"") ->  | P24: =IFERROR(INDEX(Allocation!$K$4:$AL$32,MATCH(P$2,Allocation!$J$4:$J$32,0),MATCH($AM24,Allocation!$K$3:$AL$3,0))/100,"") ->  | Q24: =IFERROR(INDEX(Allocation!$K$4:$AL$32,MATCH(Q$2,Allocation!$J$4:$J$32,0),MATCH($AM24,Allocation!$K$3:$AL$3,0))/100,"") ->  | R24: =IFERROR(INDEX(Allocation!$K$4:$AL$32,MATCH(R$2,Allocation!$J$4:$J$32,0),MATCH($AM24,Allocation!$K$3:$AL$3,0))/100,"") ->  | S24: =IFERROR(INDEX(Allocation!$K$4:$AL$32,MATCH(S$2,Allocation!$J$4:$J$32,0),MATCH($AM24,Allocation!$K$3:$AL$3,0))/100,"") ->  | T24: =IFERROR(INDEX(Allocation!$K$4:$AL$32,MATCH(T$2,Allocation!$J$4:$J$32,0),MATCH($AM24,Allocation!$K$3:$AL$3,0))/100,"") ->  | U24: =IFERROR(INDEX(Allocation!$K$4:$AL$32,MATCH(U$2,Allocation!$J$4:$J$32,0),MATCH($AM24,Allocation!$K$3:$AL$3,0))/100,"") ->  | V24: =IFERROR(INDEX(Allocation!$K$4:$AL$32,MATCH(V$2,Allocation!$J$4:$J$32,0),MATCH($AM24,Allocation!$K$3:$AL$3,0))/100,"") ->  | W24: =IFERROR(INDEX(Allocation!$K$4:$AL$32,MATCH(W$2,Allocation!$J$4:$J$32,0),MATCH($AM24,Allocation!$K$3:$AL$3,0))/100,"") ->  | X24: =IFERROR(INDEX(Allocation!$K$4:$AL$32,MATCH(X$2,Allocation!$J$4:$J$32,0),MATCH($AM24,Allocation!$K$3:$AL$3,0))/100,"") ->  | Y24: =IFERROR(INDEX(Allocation!$K$4:$AL$32,MATCH(Y$2,Allocation!$J$4:$J$32,0),MATCH($AM24,Allocation!$K$3:$AL$3,0))/100,"") ->  | Z24: =IFERROR(INDEX(Allocation!$K$4:$AL$32,MATCH(Z$2,Allocation!$J$4:$J$32,0),MATCH($AM24,Allocation!$K$3:$AL$3,0))/100,"") ->  | AA24: =IFERROR(INDEX(Allocation!$K$4:$AL$32,MATCH(AA$2,Allocation!$J$4:$J$32,0),MATCH($AM24,Allocation!$K$3:$AL$3,0))/100,"") ->  | AB24: =IFERROR(INDEX(Allocation!$K$4:$AL$32,MATCH(AB$2,Allocation!$J$4:$J$32,0),MATCH($AM24,Allocation!$K$3:$AL$3,0))/100,"") ->  | AC24: =IFERROR(INDEX(Allocation!$K$4:$AL$32,MATCH(AC$2,Allocation!$J$4:$J$32,0),MATCH($AM24,Allocation!$K$3:$AL$3,0))/100,"") ->  | AD24: =IFERROR(INDEX(Allocation!$K$4:$AL$32,MATCH(AD$2,Allocation!$J$4:$J$32,0),MATCH($AM24,Allocation!$K$3:$AL$3,0))/100,"") ->  | AE24: =IFERROR(INDEX(Allocation!$K$4:$AL$32,MATCH(AE$2,Allocation!$J$4:$J$32,0),MATCH($AM24,Allocation!$K$3:$AL$3,0))/100,"") ->  | AF24: =IFERROR(INDEX(Allocation!$K$4:$AL$32,MATCH(AF$2,Allocation!$J$4:$J$32,0),MATCH($AM24,Allocation!$K$3:$AL$3,0))/100,"") ->  | AG24: =IFERROR(INDEX(Allocation!$K$4:$AL$32,MATCH(AG$2,Allocation!$J$4:$J$32,0),MATCH($AM24,Allocation!$K$3:$AL$3,0))/100,"") ->  | AH24: =IFERROR(INDEX(Allocation!$K$4:$AL$32,MATCH(AH$2,Allocation!$J$4:$J$32,0),MATCH($AM24,Allocation!$K$3:$AL$3,0))/100,"") ->  | AI24: 0 | AK24: 0 | AL24: =VLOOKUP($E24,Allocation!$J$40:$M$65,4,FALSE) ->  | AM24: =VLOOKUP($E24,Allocation!$J$40:$M$65,3,FALSE) ->  | AQ24: Portefeuille équilibré de croissance Investissements Russell
F25: =IFERROR(INDEX(Allocation!$K$4:$AL$32,MATCH(F$2,Allocation!$J$4:$J$32,0),MATCH($AM25,Allocation!$K$3:$AL$3,0))/100,"") ->  | G25: =IFERROR(INDEX(Allocation!$K$4:$AL$32,MATCH(G$2,Allocation!$J$4:$J$32,0),MATCH($AM25,Allocation!$K$3:$AL$3,0))/100,"") ->  | H25: =IFERROR(INDEX(Allocation!$K$4:$AL$32,MATCH(H$2,Allocation!$J$4:$J$32,0),MATCH($AM25,Allocation!$K$3:$AL$3,0))/100,"") ->  | I25: =IFERROR(INDEX(Allocation!$K$4:$AL$32,MATCH(I$2,Allocation!$J$4:$J$32,0),MATCH($AM25,Allocation!$K$3:$AL$3,0))/100,"") ->  | J25: =IFERROR(INDEX(Allocation!$K$4:$AL$32,MATCH(J$2,Allocation!$J$4:$J$32,0),MATCH($AM25,Allocation!$K$3:$AL$3,0))/100,"") ->  | K25: =IFERROR(INDEX(Allocation!$K$4:$AL$32,MATCH(K$2,Allocation!$J$4:$J$32,0),MATCH($AM25,Allocation!$K$3:$AL$3,0))/100,"") ->  | L25: =IFERROR(INDEX(Allocation!$K$4:$AL$32,MATCH(L$2,Allocation!$J$4:$J$32,0),MATCH($AM25,Allocation!$K$3:$AL$3,0))/100,"") ->  | M25: =IFERROR(INDEX(Allocation!$K$4:$AL$32,MATCH(M$2,Allocation!$J$4:$J$32,0),MATCH($AM25,Allocation!$K$3:$AL$3,0))/100,"") ->  | N25: =IFERROR(INDEX(Allocation!$K$4:$AL$32,MATCH(N$2,Allocation!$J$4:$J$32,0),MATCH($AM25,Allocation!$K$3:$AL$3,0))/100,"") ->  | O25: =IFERROR(INDEX(Allocation!$K$4:$AL$32,MATCH(O$2,Allocation!$J$4:$J$32,0),MATCH($AM25,Allocation!$K$3:$AL$3,0))/100,"") ->  | P25: =IFERROR(INDEX(Allocation!$K$4:$AL$32,MATCH(P$2,Allocation!$J$4:$J$32,0),MATCH($AM25,Allocation!$K$3:$AL$3,0))/100,"") ->  | Q25: =IFERROR(INDEX(Allocation!$K$4:$AL$32,MATCH(Q$2,Allocation!$J$4:$J$32,0),MATCH($AM25,Allocation!$K$3:$AL$3,0))/100,"") ->  | R25: =IFERROR(INDEX(Allocation!$K$4:$AL$32,MATCH(R$2,Allocation!$J$4:$J$32,0),MATCH($AM25,Allocation!$K$3:$AL$3,0))/100,"") ->  | S25: =IFERROR(INDEX(Allocation!$K$4:$AL$32,MATCH(S$2,Allocation!$J$4:$J$32,0),MATCH($AM25,Allocation!$K$3:$AL$3,0))/100,"") ->  | T25: =IFERROR(INDEX(Allocation!$K$4:$AL$32,MATCH(T$2,Allocation!$J$4:$J$32,0),MATCH($AM25,Allocation!$K$3:$AL$3,0))/100,"") ->  | U25: =IFERROR(INDEX(Allocation!$K$4:$AL$32,MATCH(U$2,Allocation!$J$4:$J$32,0),MATCH($AM25,Allocation!$K$3:$AL$3,0))/100,"") ->  | V25: =IFERROR(INDEX(Allocation!$K$4:$AL$32,MATCH(V$2,Allocation!$J$4:$J$32,0),MATCH($AM25,Allocation!$K$3:$AL$3,0))/100,"") ->  | W25: =IFERROR(INDEX(Allocation!$K$4:$AL$32,MATCH(W$2,Allocation!$J$4:$J$32,0),MATCH($AM25,Allocation!$K$3:$AL$3,0))/100,"") ->  | X25: =IFERROR(INDEX(Allocation!$K$4:$AL$32,MATCH(X$2,Allocation!$J$4:$J$32,0),MATCH($AM25,Allocation!$K$3:$AL$3,0))/100,"") ->  | Y25: =IFERROR(INDEX(Allocation!$K$4:$AL$32,MATCH(Y$2,Allocation!$J$4:$J$32,0),MATCH($AM25,Allocation!$K$3:$AL$3,0))/100,"") ->  | Z25: =IFERROR(INDEX(Allocation!$K$4:$AL$32,MATCH(Z$2,Allocation!$J$4:$J$32,0),MATCH($AM25,Allocation!$K$3:$AL$3,0))/100,"") ->  | AA25: =IFERROR(INDEX(Allocation!$K$4:$AL$32,MATCH(AA$2,Allocation!$J$4:$J$32,0),MATCH($AM25,Allocation!$K$3:$AL$3,0))/100,"") ->  | AB25: =IFERROR(INDEX(Allocation!$K$4:$AL$32,MATCH(AB$2,Allocation!$J$4:$J$32,0),MATCH($AM25,Allocation!$K$3:$AL$3,0))/100,"") ->  | AC25: =IFERROR(INDEX(Allocation!$K$4:$AL$32,MATCH(AC$2,Allocation!$J$4:$J$32,0),MATCH($AM25,Allocation!$K$3:$AL$3,0))/100,"") ->  | AD25: =IFERROR(INDEX(Allocation!$K$4:$AL$32,MATCH(AD$2,Allocation!$J$4:$J$32,0),MATCH($AM25,Allocation!$K$3:$AL$3,0))/100,"") ->  | AE25: =IFERROR(INDEX(Allocation!$K$4:$AL$32,MATCH(AE$2,Allocation!$J$4:$J$32,0),MATCH($AM25,Allocation!$K$3:$AL$3,0))/100,"") ->  | AF25: =IFERROR(INDEX(Allocation!$K$4:$AL$32,MATCH(AF$2,Allocation!$J$4:$J$32,0),MATCH($AM25,Allocation!$K$3:$AL$3,0))/100,"") ->  | AG25: =IFERROR(INDEX(Allocation!$K$4:$AL$32,MATCH(AG$2,Allocation!$J$4:$J$32,0),MATCH($AM25,Allocation!$K$3:$AL$3,0))/100,"") ->  | AH25: =IFERROR(INDEX(Allocation!$K$4:$AL$32,MATCH(AH$2,Allocation!$J$4:$J$32,0),MATCH($AM25,Allocation!$K$3:$AL$3,0))/100,"") ->  | AI25: 0 | AK25: 0 | AL25: =VLOOKUP($E25,Allocation!$J$40:$M$65,4,FALSE) ->  | AM25: =VLOOKUP($E25,Allocation!$J$40:$M$65,3,FALSE) ->  | AQ25: Portefeuille de croissance à long terme Investissements Russell
F26: =IFERROR(INDEX(Allocation!$K$4:$AL$32,MATCH(F$2,Allocation!$J$4:$J$32,0),MATCH($AM26,Allocation!$K$3:$AL$3,0))/100,"") ->  | G26: =IFERROR(INDEX(Allocation!$K$4:$AL$32,MATCH(G$2,Allocation!$J$4:$J$32,0),MATCH($AM26,Allocation!$K$3:$AL$3,0))/100,"") ->  | H26: =IFERROR(INDEX(Allocation!$K$4:$AL$32,MATCH(H$2,Allocation!$J$4:$J$32,0),MATCH($AM26,Allocation!$K$3:$AL$3,0))/100,"") ->  | I26: =IFERROR(INDEX(Allocation!$K$4:$AL$32,MATCH(I$2,Allocation!$J$4:$J$32,0),MATCH($AM26,Allocation!$K$3:$AL$3,0))/100,"") ->  | J26: =IFERROR(INDEX(Allocation!$K$4:$AL$32,MATCH(J$2,Allocation!$J$4:$J$32,0),MATCH($AM26,Allocation!$K$3:$AL$3,0))/100,"") ->  | K26: =IFERROR(INDEX(Allocation!$K$4:$AL$32,MATCH(K$2,Allocation!$J$4:$J$32,0),MATCH($AM26,Allocation!$K$3:$AL$3,0))/100,"") ->  | L26: =IFERROR(INDEX(Allocation!$K$4:$AL$32,MATCH(L$2,Allocation!$J$4:$J$32,0),MATCH($AM26,Allocation!$K$3:$AL$3,0))/100,"") ->  | M26: =IFERROR(INDEX(Allocation!$K$4:$AL$32,MATCH(M$2,Allocation!$J$4:$J$32,0),MATCH($AM26,Allocation!$K$3:$AL$3,0))/100,"") ->  | N26: =IFERROR(INDEX(Allocation!$K$4:$AL$32,MATCH(N$2,Allocation!$J$4:$J$32,0),MATCH($AM26,Allocation!$K$3:$AL$3,0))/100,"") ->  | O26: =IFERROR(INDEX(Allocation!$K$4:$AL$32,MATCH(O$2,Allocation!$J$4:$J$32,0),MATCH($AM26,Allocation!$K$3:$AL$3,0))/100,"") ->  | P26: =IFERROR(INDEX(Allocation!$K$4:$AL$32,MATCH(P$2,Allocation!$J$4:$J$32,0),MATCH($AM26,Allocation!$K$3:$AL$3,0))/100,"") ->  | Q26: =IFERROR(INDEX(Allocation!$K$4:$AL$32,MATCH(Q$2,Allocation!$J$4:$J$32,0),MATCH($AM26,Allocation!$K$3:$AL$3,0))/100,"") ->  | R26: =IFERROR(INDEX(Allocation!$K$4:$AL$32,MATCH(R$2,Allocation!$J$4:$J$32,0),MATCH($AM26,Allocation!$K$3:$AL$3,0))/100,"") ->  | S26: =IFERROR(INDEX(Allocation!$K$4:$AL$32,MATCH(S$2,Allocation!$J$4:$J$32,0),MATCH($AM26,Allocation!$K$3:$AL$3,0))/100,"") ->  | T26: =IFERROR(INDEX(Allocation!$K$4:$AL$32,MATCH(T$2,Allocation!$J$4:$J$32,0),MATCH($AM26,Allocation!$K$3:$AL$3,0))/100,"") ->  | U26: =IFERROR(INDEX(Allocation!$K$4:$AL$32,MATCH(U$2,Allocation!$J$4:$J$32,0),MATCH($AM26,Allocation!$K$3:$AL$3,0))/100,"") ->  | V26: =IFERROR(INDEX(Allocation!$K$4:$AL$32,MATCH(V$2,Allocation!$J$4:$J$32,0),MATCH($AM26,Allocation!$K$3:$AL$3,0))/100,"") ->  | W26: =IFERROR(INDEX(Allocation!$K$4:$AL$32,MATCH(W$2,Allocation!$J$4:$J$32,0),MATCH($AM26,Allocation!$K$3:$AL$3,0))/100,"") ->  | X26: =IFERROR(INDEX(Allocation!$K$4:$AL$32,MATCH(X$2,Allocation!$J$4:$J$32,0),MATCH($AM26,Allocation!$K$3:$AL$3,0))/100,"") ->  | Y26: =IFERROR(INDEX(Allocation!$K$4:$AL$32,MATCH(Y$2,Allocation!$J$4:$J$32,0),MATCH($AM26,Allocation!$K$3:$AL$3,0))/100,"") ->  | Z26: =IFERROR(INDEX(Allocation!$K$4:$AL$32,MATCH(Z$2,Allocation!$J$4:$J$32,0),MATCH($AM26,Allocation!$K$3:$AL$3,0))/100,"") ->  | AA26: =IFERROR(INDEX(Allocation!$K$4:$AL$32,MATCH(AA$2,Allocation!$J$4:$J$32,0),MATCH($AM26,Allocation!$K$3:$AL$3,0))/100,"") ->  | AB26: =IFERROR(INDEX(Allocation!$K$4:$AL$32,MATCH(AB$2,Allocation!$J$4:$J$32,0),MATCH($AM26,Allocation!$K$3:$AL$3,0))/100,"") ->  | AC26: =IFERROR(INDEX(Allocation!$K$4:$AL$32,MATCH(AC$2,Allocation!$J$4:$J$32,0),MATCH($AM26,Allocation!$K$3:$AL$3,0))/100,"") ->  | AD26: =IFERROR(INDEX(Allocation!$K$4:$AL$32,MATCH(AD$2,Allocation!$J$4:$J$32,0),MATCH($AM26,Allocation!$K$3:$AL$3,0))/100,"") ->  | AE26: =IFERROR(INDEX(Allocation!$K$4:$AL$32,MATCH(AE$2,Allocation!$J$4:$J$32,0),MATCH($AM26,Allocation!$K$3:$AL$3,0))/100,"") ->  | AF26: =IFERROR(INDEX(Allocation!$K$4:$AL$32,MATCH(AF$2,Allocation!$J$4:$J$32,0),MATCH($AM26,Allocation!$K$3:$AL$3,0))/100,"") ->  | AG26: =IFERROR(INDEX(Allocation!$K$4:$AL$32,MATCH(AG$2,Allocation!$J$4:$J$32,0),MATCH($AM26,Allocation!$K$3:$AL$3,0))/100,"") ->  | AH26: =IFERROR(INDEX(Allocation!$K$4:$AL$32,MATCH(AH$2,Allocation!$J$4:$J$32,0),MATCH($AM26,Allocation!$K$3:$AL$3,0))/100,"") ->  | AI26: 0 | AK26: 0 | AL26: =VLOOKUP($E26,Allocation!$J$40:$M$65,4,FALSE) ->  | AM26: =VLOOKUP($E26,Allocation!$J$40:$M$65,3,FALSE) ->  | AQ26: Multi-facteurs équilibré mondial Investissements Russell
F27: =IFERROR(INDEX(Allocation!$K$4:$AL$32,MATCH(F$2,Allocation!$J$4:$J$32,0),MATCH($AM27,Allocation!$K$3:$AL$3,0))/100,"") ->  | G27: =IFERROR(INDEX(Allocation!$K$4:$AL$32,MATCH(G$2,Allocation!$J$4:$J$32,0),MATCH($AM27,Allocation!$K$3:$AL$3,0))/100,"") ->  | H27: =IFERROR(INDEX(Allocation!$K$4:$AL$32,MATCH(H$2,Allocation!$J$4:$J$32,0),MATCH($AM27,Allocation!$K$3:$AL$3,0))/100,"") ->  | I27: =IFERROR(INDEX(Allocation!$K$4:$AL$32,MATCH(I$2,Allocation!$J$4:$J$32,0),MATCH($AM27,Allocation!$K$3:$AL$3,0))/100,"") ->  | J27: =IFERROR(INDEX(Allocation!$K$4:$AL$32,MATCH(J$2,Allocation!$J$4:$J$32,0),MATCH($AM27,Allocation!$K$3:$AL$3,0))/100,"") ->  | K27: =IFERROR(INDEX(Allocation!$K$4:$AL$32,MATCH(K$2,Allocation!$J$4:$J$32,0),MATCH($AM27,Allocation!$K$3:$AL$3,0))/100,"") ->  | L27: =IFERROR(INDEX(Allocation!$K$4:$AL$32,MATCH(L$2,Allocation!$J$4:$J$32,0),MATCH($AM27,Allocation!$K$3:$AL$3,0))/100,"") ->  | M27: =IFERROR(INDEX(Allocation!$K$4:$AL$32,MATCH(M$2,Allocation!$J$4:$J$32,0),MATCH($AM27,Allocation!$K$3:$AL$3,0))/100,"") ->  | N27: =IFERROR(INDEX(Allocation!$K$4:$AL$32,MATCH(N$2,Allocation!$J$4:$J$32,0),MATCH($AM27,Allocation!$K$3:$AL$3,0))/100,"") ->  | O27: =IFERROR(INDEX(Allocation!$K$4:$AL$32,MATCH(O$2,Allocation!$J$4:$J$32,0),MATCH($AM27,Allocation!$K$3:$AL$3,0))/100,"") ->  | P27: =IFERROR(INDEX(Allocation!$K$4:$AL$32,MATCH(P$2,Allocation!$J$4:$J$32,0),MATCH($AM27,Allocation!$K$3:$AL$3,0))/100,"") ->  | Q27: =IFERROR(INDEX(Allocation!$K$4:$AL$32,MATCH(Q$2,Allocation!$J$4:$J$32,0),MATCH($AM27,Allocation!$K$3:$AL$3,0))/100,"") ->  | R27: =IFERROR(INDEX(Allocation!$K$4:$AL$32,MATCH(R$2,Allocation!$J$4:$J$32,0),MATCH($AM27,Allocation!$K$3:$AL$3,0))/100,"") ->  | S27: =IFERROR(INDEX(Allocation!$K$4:$AL$32,MATCH(S$2,Allocation!$J$4:$J$32,0),MATCH($AM27,Allocation!$K$3:$AL$3,0))/100,"") ->  | T27: =IFERROR(INDEX(Allocation!$K$4:$AL$32,MATCH(T$2,Allocation!$J$4:$J$32,0),MATCH($AM27,Allocation!$K$3:$AL$3,0))/100,"") ->  | U27: =IFERROR(INDEX(Allocation!$K$4:$AL$32,MATCH(U$2,Allocation!$J$4:$J$32,0),MATCH($AM27,Allocation!$K$3:$AL$3,0))/100,"") ->  | V27: =IFERROR(INDEX(Allocation!$K$4:$AL$32,MATCH(V$2,Allocation!$J$4:$J$32,0),MATCH($AM27,Allocation!$K$3:$AL$3,0))/100,"") ->  | W27: =IFERROR(INDEX(Allocation!$K$4:$AL$32,MATCH(W$2,Allocation!$J$4:$J$32,0),MATCH($AM27,Allocation!$K$3:$AL$3,0))/100,"") ->  | X27: =IFERROR(INDEX(Allocation!$K$4:$AL$32,MATCH(X$2,Allocation!$J$4:$J$32,0),MATCH($AM27,Allocation!$K$3:$AL$3,0))/100,"") ->  | Y27: =IFERROR(INDEX(Allocation!$K$4:$AL$32,MATCH(Y$2,Allocation!$J$4:$J$32,0),MATCH($AM27,Allocation!$K$3:$AL$3,0))/100,"") ->  | Z27: =IFERROR(INDEX(Allocation!$K$4:$AL$32,MATCH(Z$2,Allocation!$J$4:$J$32,0),MATCH($AM27,Allocation!$K$3:$AL$3,0))/100,"") ->  | AA27: =IFERROR(INDEX(Allocation!$K$4:$AL$32,MATCH(AA$2,Allocation!$J$4:$J$32,0),MATCH($AM27,Allocation!$K$3:$AL$3,0))/100,"") ->  | AB27: =IFERROR(INDEX(Allocation!$K$4:$AL$32,MATCH(AB$2,Allocation!$J$4:$J$32,0),MATCH($AM27,Allocation!$K$3:$AL$3,0))/100,"") ->  | AC27: =IFERROR(INDEX(Allocation!$K$4:$AL$32,MATCH(AC$2,Allocation!$J$4:$J$32,0),MATCH($AM27,Allocation!$K$3:$AL$3,0))/100,"") ->  | AD27: =IFERROR(INDEX(Allocation!$K$4:$AL$32,MATCH(AD$2,Allocation!$J$4:$J$32,0),MATCH($AM27,Allocation!$K$3:$AL$3,0))/100,"") ->  | AE27: =IFERROR(INDEX(Allocation!$K$4:$AL$32,MATCH(AE$2,Allocation!$J$4:$J$32,0),MATCH($AM27,Allocation!$K$3:$AL$3,0))/100,"") ->  | AF27: =IFERROR(INDEX(Allocation!$K$4:$AL$32,MATCH(AF$2,Allocation!$J$4:$J$32,0),MATCH($AM27,Allocation!$K$3:$AL$3,0))/100,"") ->  | AG27: =IFERROR(INDEX(Allocation!$K$4:$AL$32,MATCH(AG$2,Allocation!$J$4:$J$32,0),MATCH($AM27,Allocation!$K$3:$AL$3,0))/100,"") ->  | AH27: =IFERROR(INDEX(Allocation!$K$4:$AL$32,MATCH(AH$2,Allocation!$J$4:$J$32,0),MATCH($AM27,Allocation!$K$3:$AL$3,0))/100,"") ->  | AI27: 0 | AK27: 0 | AL27: =VLOOKUP($E27,Allocation!$J$40:$M$65,4,FALSE) ->  | AM27: =VLOOKUP($E27,Allocation!$J$40:$M$65,3,FALSE) -> 
F28: =IFERROR(INDEX(Allocation!$K$4:$AL$32,MATCH(F$2,Allocation!$J$4:$J$32,0),MATCH($AM28,Allocation!$K$3:$AL$3,0))/100,"") ->  | G28: =IFERROR(INDEX(Allocation!$K$4:$AL$32,MATCH(G$2,Allocation!$J$4:$J$32,0),MATCH($AM28,Allocation!$K$3:$AL$3,0))/100,"") ->  | H28: =IFERROR(INDEX(Allocation!$K$4:$AL$32,MATCH(H$2,Allocation!$J$4:$J$32,0),MATCH($AM28,Allocation!$K$3:$AL$3,0))/100,"") ->  | I28: =IFERROR(INDEX(Allocation!$K$4:$AL$32,MATCH(I$2,Allocation!$J$4:$J$32,0),MATCH($AM28,Allocation!$K$3:$AL$3,0))/100,"") ->  | J28: =IFERROR(INDEX(Allocation!$K$4:$AL$32,MATCH(J$2,Allocation!$J$4:$J$32,0),MATCH($AM28,Allocation!$K$3:$AL$3,0))/100,"") ->  | K28: =IFERROR(INDEX(Allocation!$K$4:$AL$32,MATCH(K$2,Allocation!$J$4:$J$32,0),MATCH($AM28,Allocation!$K$3:$AL$3,0))/100,"") ->  | L28: =IFERROR(INDEX(Allocation!$K$4:$AL$32,MATCH(L$2,Allocation!$J$4:$J$32,0),MATCH($AM28,Allocation!$K$3:$AL$3,0))/100,"") ->  | M28: =IFERROR(INDEX(Allocation!$K$4:$AL$32,MATCH(M$2,Allocation!$J$4:$J$32,0),MATCH($AM28,Allocation!$K$3:$AL$3,0))/100,"") ->  | N28: =IFERROR(INDEX(Allocation!$K$4:$AL$32,MATCH(N$2,Allocation!$J$4:$J$32,0),MATCH($AM28,Allocation!$K$3:$AL$3,0))/100,"") ->  | O28: =IFERROR(INDEX(Allocation!$K$4:$AL$32,MATCH(O$2,Allocation!$J$4:$J$32,0),MATCH($AM28,Allocation!$K$3:$AL$3,0))/100,"") ->  | P28: =IFERROR(INDEX(Allocation!$K$4:$AL$32,MATCH(P$2,Allocation!$J$4:$J$32,0),MATCH($AM28,Allocation!$K$3:$AL$3,0))/100,"") ->  | Q28: =IFERROR(INDEX(Allocation!$K$4:$AL$32,MATCH(Q$2,Allocation!$J$4:$J$32,0),MATCH($AM28,Allocation!$K$3:$AL$3,0))/100,"") ->  | R28: =IFERROR(INDEX(Allocation!$K$4:$AL$32,MATCH(R$2,Allocation!$J$4:$J$32,0),MATCH($AM28,Allocation!$K$3:$AL$3,0))/100,"") ->  | S28: =IFERROR(INDEX(Allocation!$K$4:$AL$32,MATCH(S$2,Allocation!$J$4:$J$32,0),MATCH($AM28,Allocation!$K$3:$AL$3,0))/100,"") ->  | T28: =IFERROR(INDEX(Allocation!$K$4:$AL$32,MATCH(T$2,Allocation!$J$4:$J$32,0),MATCH($AM28,Allocation!$K$3:$AL$3,0))/100,"") ->  | U28: =IFERROR(INDEX(Allocation!$K$4:$AL$32,MATCH(U$2,Allocation!$J$4:$J$32,0),MATCH($AM28,Allocation!$K$3:$AL$3,0))/100,"") ->  | V28: =IFERROR(INDEX(Allocation!$K$4:$AL$32,MATCH(V$2,Allocation!$J$4:$J$32,0),MATCH($AM28,Allocation!$K$3:$AL$3,0))/100,"") ->  | W28: =IFERROR(INDEX(Allocation!$K$4:$AL$32,MATCH(W$2,Allocation!$J$4:$J$32,0),MATCH($AM28,Allocation!$K$3:$AL$3,0))/100,"") ->  | X28: =IFERROR(INDEX(Allocation!$K$4:$AL$32,MATCH(X$2,Allocation!$J$4:$J$32,0),MATCH($AM28,Allocation!$K$3:$AL$3,0))/100,"") ->  | Y28: =IFERROR(INDEX(Allocation!$K$4:$AL$32,MATCH(Y$2,Allocation!$J$4:$J$32,0),MATCH($AM28,Allocation!$K$3:$AL$3,0))/100,"") ->  | Z28: =IFERROR(INDEX(Allocation!$K$4:$AL$32,MATCH(Z$2,Allocation!$J$4:$J$32,0),MATCH($AM28,Allocation!$K$3:$AL$3,0))/100,"") ->  | AA28: =IFERROR(INDEX(Allocation!$K$4:$AL$32,MATCH(AA$2,Allocation!$J$4:$J$32,0),MATCH($AM28,Allocation!$K$3:$AL$3,0))/100,"") ->  | AB28: =IFERROR(INDEX(Allocation!$K$4:$AL$32,MATCH(AB$2,Allocation!$J$4:$J$32,0),MATCH($AM28,Allocation!$K$3:$AL$3,0))/100,"") ->  | AC28: =IFERROR(INDEX(Allocation!$K$4:$AL$32,MATCH(AC$2,Allocation!$J$4:$J$32,0),MATCH($AM28,Allocation!$K$3:$AL$3,0))/100,"") ->  | AD28: =IFERROR(INDEX(Allocation!$K$4:$AL$32,MATCH(AD$2,Allocation!$J$4:$J$32,0),MATCH($AM28,Allocation!$K$3:$AL$3,0))/100,"") ->  | AE28: =IFERROR(INDEX(Allocation!$K$4:$AL$32,MATCH(AE$2,Allocation!$J$4:$J$32,0),MATCH($AM28,Allocation!$K$3:$AL$3,0))/100,"") ->  | AF28: =IFERROR(INDEX(Allocation!$K$4:$AL$32,MATCH(AF$2,Allocation!$J$4:$J$32,0),MATCH($AM28,Allocation!$K$3:$AL$3,0))/100,"") ->  | AG28: =IFERROR(INDEX(Allocation!$K$4:$AL$32,MATCH(AG$2,Allocation!$J$4:$J$32,0),MATCH($AM28,Allocation!$K$3:$AL$3,0))/100,"") ->  | AH28: =IFERROR(INDEX(Allocation!$K$4:$AL$32,MATCH(AH$2,Allocation!$J$4:$J$32,0),MATCH($AM28,Allocation!$K$3:$AL$3,0))/100,"") ->  | AI28: 0 | AK28: 0 | AL28: =VLOOKUP($E28,Allocation!$J$40:$M$65,4,FALSE) ->  | AM28: =VLOOKUP($E28,Allocation!$J$40:$M$65,3,FALSE) -> 
F29: =IFERROR(INDEX(Allocation!$K$4:$AL$32,MATCH(F$2,Allocation!$J$4:$J$32,0),MATCH($AM29,Allocation!$K$3:$AL$3,0))/100,"") ->  | G29: =IFERROR(INDEX(Allocation!$K$4:$AL$32,MATCH(G$2,Allocation!$J$4:$J$32,0),MATCH($AM29,Allocation!$K$3:$AL$3,0))/100,"") ->  | H29: =IFERROR(INDEX(Allocation!$K$4:$AL$32,MATCH(H$2,Allocation!$J$4:$J$32,0),MATCH($AM29,Allocation!$K$3:$AL$3,0))/100,"") ->  | I29: =IFERROR(INDEX(Allocation!$K$4:$AL$32,MATCH(I$2,Allocation!$J$4:$J$32,0),MATCH($AM29,Allocation!$K$3:$AL$3,0))/100,"") ->  | J29: =IFERROR(INDEX(Allocation!$K$4:$AL$32,MATCH(J$2,Allocation!$J$4:$J$32,0),MATCH($AM29,Allocation!$K$3:$AL$3,0))/100,"") ->  | K29: =IFERROR(INDEX(Allocation!$K$4:$AL$32,MATCH(K$2,Allocation!$J$4:$J$32,0),MATCH($AM29,Allocation!$K$3:$AL$3,0))/100,"") ->  | L29: =IFERROR(INDEX(Allocation!$K$4:$AL$32,MATCH(L$2,Allocation!$J$4:$J$32,0),MATCH($AM29,Allocation!$K$3:$AL$3,0))/100,"") ->  | M29: =IFERROR(INDEX(Allocation!$K$4:$AL$32,MATCH(M$2,Allocation!$J$4:$J$32,0),MATCH($AM29,Allocation!$K$3:$AL$3,0))/100,"") ->  | N29: =IFERROR(INDEX(Allocation!$K$4:$AL$32,MATCH(N$2,Allocation!$J$4:$J$32,0),MATCH($AM29,Allocation!$K$3:$AL$3,0))/100,"") ->  | O29: =IFERROR(INDEX(Allocation!$K$4:$AL$32,MATCH(O$2,Allocation!$J$4:$J$32,0),MATCH($AM29,Allocation!$K$3:$AL$3,0))/100,"") ->  | P29: =IFERROR(INDEX(Allocation!$K$4:$AL$32,MATCH(P$2,Allocation!$J$4:$J$32,0),MATCH($AM29,Allocation!$K$3:$AL$3,0))/100,"") ->  | Q29: =IFERROR(INDEX(Allocation!$K$4:$AL$32,MATCH(Q$2,Allocation!$J$4:$J$32,0),MATCH($AM29,Allocation!$K$3:$AL$3,0))/100,"") ->  | R29: =IFERROR(INDEX(Allocation!$K$4:$AL$32,MATCH(R$2,Allocation!$J$4:$J$32,0),MATCH($AM29,Allocation!$K$3:$AL$3,0))/100,"") ->  | S29: =IFERROR(INDEX(Allocation!$K$4:$AL$32,MATCH(S$2,Allocation!$J$4:$J$32,0),MATCH($AM29,Allocation!$K$3:$AL$3,0))/100,"") ->  | T29: =IFERROR(INDEX(Allocation!$K$4:$AL$32,MATCH(T$2,Allocation!$J$4:$J$32,0),MATCH($AM29,Allocation!$K$3:$AL$3,0))/100,"") ->  | U29: =IFERROR(INDEX(Allocation!$K$4:$AL$32,MATCH(U$2,Allocation!$J$4:$J$32,0),MATCH($AM29,Allocation!$K$3:$AL$3,0))/100,"") ->  | V29: =IFERROR(INDEX(Allocation!$K$4:$AL$32,MATCH(V$2,Allocation!$J$4:$J$32,0),MATCH($AM29,Allocation!$K$3:$AL$3,0))/100,"") ->  | W29: =IFERROR(INDEX(Allocation!$K$4:$AL$32,MATCH(W$2,Allocation!$J$4:$J$32,0),MATCH($AM29,Allocation!$K$3:$AL$3,0))/100,"") ->  | X29: =IFERROR(INDEX(Allocation!$K$4:$AL$32,MATCH(X$2,Allocation!$J$4:$J$32,0),MATCH($AM29,Allocation!$K$3:$AL$3,0))/100,"") ->  | Y29: =IFERROR(INDEX(Allocation!$K$4:$AL$32,MATCH(Y$2,Allocation!$J$4:$J$32,0),MATCH($AM29,Allocation!$K$3:$AL$3,0))/100,"") ->  | Z29: =IFERROR(INDEX(Allocation!$K$4:$AL$32,MATCH(Z$2,Allocation!$J$4:$J$32,0),MATCH($AM29,Allocation!$K$3:$AL$3,0))/100,"") ->  | AA29: =IFERROR(INDEX(Allocation!$K$4:$AL$32,MATCH(AA$2,Allocation!$J$4:$J$32,0),MATCH($AM29,Allocation!$K$3:$AL$3,0))/100,"") ->  | AB29: =IFERROR(INDEX(Allocation!$K$4:$AL$32,MATCH(AB$2,Allocation!$J$4:$J$32,0),MATCH($AM29,Allocation!$K$3:$AL$3,0))/100,"") ->  | AC29: =IFERROR(INDEX(Allocation!$K$4:$AL$32,MATCH(AC$2,Allocation!$J$4:$J$32,0),MATCH($AM29,Allocation!$K$3:$AL$3,0))/100,"") ->  | AD29: =IFERROR(INDEX(Allocation!$K$4:$AL$32,MATCH(AD$2,Allocation!$J$4:$J$32,0),MATCH($AM29,Allocation!$K$3:$AL$3,0))/100,"") ->  | AE29: =IFERROR(INDEX(Allocation!$K$4:$AL$32,MATCH(AE$2,Allocation!$J$4:$J$32,0),MATCH($AM29,Allocation!$K$3:$AL$3,0))/100,"") ->  | AF29: =IFERROR(INDEX(Allocation!$K$4:$AL$32,MATCH(AF$2,Allocation!$J$4:$J$32,0),MATCH($AM29,Allocation!$K$3:$AL$3,0))/100,"") ->  | AG29: =IFERROR(INDEX(Allocation!$K$4:$AL$32,MATCH(AG$2,Allocation!$J$4:$J$32,0),MATCH($AM29,Allocation!$K$3:$AL$3,0))/100,"") ->  | AH29: =IFERROR(INDEX(Allocation!$K$4:$AL$32,MATCH(AH$2,Allocation!$J$4:$J$32,0),MATCH($AM29,Allocation!$K$3:$AL$3,0))/100,"") ->  | AI29: 0 | AK29: 0 | AL29: =VLOOKUP($E29,Allocation!$J$40:$M$65,4,FALSE) ->  | AM29: =VLOOKUP($E29,Allocation!$J$40:$M$65,3,FALSE) -> 
F30: =IFERROR(INDEX(Allocation!$K$4:$AL$32,MATCH(F$2,Allocation!$J$4:$J$32,0),MATCH($AM30,Allocation!$K$3:$AL$3,0))/100,"") ->  | G30: =IFERROR(INDEX(Allocation!$K$4:$AL$32,MATCH(G$2,Allocation!$J$4:$J$32,0),MATCH($AM30,Allocation!$K$3:$AL$3,0))/100,"") ->  | H30: =IFERROR(INDEX(Allocation!$K$4:$AL$32,MATCH(H$2,Allocation!$J$4:$J$32,0),MATCH($AM30,Allocation!$K$3:$AL$3,0))/100,"") ->  | I30: =IFERROR(INDEX(Allocation!$K$4:$AL$32,MATCH(I$2,Allocation!$J$4:$J$32,0),MATCH($AM30,Allocation!$K$3:$AL$3,0))/100,"") ->  | J30: =IFERROR(INDEX(Allocation!$K$4:$AL$32,MATCH(J$2,Allocation!$J$4:$J$32,0),MATCH($AM30,Allocation!$K$3:$AL$3,0))/100,"") ->  | K30: =IFERROR(INDEX(Allocation!$K$4:$AL$32,MATCH(K$2,Allocation!$J$4:$J$32,0),MATCH($AM30,Allocation!$K$3:$AL$3,0))/100,"") ->  | L30: =IFERROR(INDEX(Allocation!$K$4:$AL$32,MATCH(L$2,Allocation!$J$4:$J$32,0),MATCH($AM30,Allocation!$K$3:$AL$3,0))/100,"") ->  | M30: =IFERROR(INDEX(Allocation!$K$4:$AL$32,MATCH(M$2,Allocation!$J$4:$J$32,0),MATCH($AM30,Allocation!$K$3:$AL$3,0))/100,"") ->  | N30: =IFERROR(INDEX(Allocation!$K$4:$AL$32,MATCH(N$2,Allocation!$J$4:$J$32,0),MATCH($AM30,Allocation!$K$3:$AL$3,0))/100,"") ->  | O30: =IFERROR(INDEX(Allocation!$K$4:$AL$32,MATCH(O$2,Allocation!$J$4:$J$32,0),MATCH($AM30,Allocation!$K$3:$AL$3,0))/100,"") ->  | P30: =IFERROR(INDEX(Allocation!$K$4:$AL$32,MATCH(P$2,Allocation!$J$4:$J$32,0),MATCH($AM30,Allocation!$K$3:$AL$3,0))/100,"") ->  | Q30: =IFERROR(INDEX(Allocation!$K$4:$AL$32,MATCH(Q$2,Allocation!$J$4:$J$32,0),MATCH($AM30,Allocation!$K$3:$AL$3,0))/100,"") ->  | R30: =IFERROR(INDEX(Allocation!$K$4:$AL$32,MATCH(R$2,Allocation!$J$4:$J$32,0),MATCH($AM30,Allocation!$K$3:$AL$3,0))/100,"") ->  | S30: =IFERROR(INDEX(Allocation!$K$4:$AL$32,MATCH(S$2,Allocation!$J$4:$J$32,0),MATCH($AM30,Allocation!$K$3:$AL$3,0))/100,"") ->  | T30: =IFERROR(INDEX(Allocation!$K$4:$AL$32,MATCH(T$2,Allocation!$J$4:$J$32,0),MATCH($AM30,Allocation!$K$3:$AL$3,0))/100,"") ->  | U30: =IFERROR(INDEX(Allocation!$K$4:$AL$32,MATCH(U$2,Allocation!$J$4:$J$32,0),MATCH($AM30,Allocation!$K$3:$AL$3,0))/100,"") ->  | V30: =IFERROR(INDEX(Allocation!$K$4:$AL$32,MATCH(V$2,Allocation!$J$4:$J$32,0),MATCH($AM30,Allocation!$K$3:$AL$3,0))/100,"") ->  | W30: =IFERROR(INDEX(Allocation!$K$4:$AL$32,MATCH(W$2,Allocation!$J$4:$J$32,0),MATCH($AM30,Allocation!$K$3:$AL$3,0))/100,"") ->  | X30: =IFERROR(INDEX(Allocation!$K$4:$AL$32,MATCH(X$2,Allocation!$J$4:$J$32,0),MATCH($AM30,Allocation!$K$3:$AL$3,0))/100,"") ->  | Y30: =IFERROR(INDEX(Allocation!$K$4:$AL$32,MATCH(Y$2,Allocation!$J$4:$J$32,0),MATCH($AM30,Allocation!$K$3:$AL$3,0))/100,"") ->  | Z30: =IFERROR(INDEX(Allocation!$K$4:$AL$32,MATCH(Z$2,Allocation!$J$4:$J$32,0),MATCH($AM30,Allocation!$K$3:$AL$3,0))/100,"") ->  | AA30: =IFERROR(INDEX(Allocation!$K$4:$AL$32,MATCH(AA$2,Allocation!$J$4:$J$32,0),MATCH($AM30,Allocation!$K$3:$AL$3,0))/100,"") ->  | AB30: =IFERROR(INDEX(Allocation!$K$4:$AL$32,MATCH(AB$2,Allocation!$J$4:$J$32,0),MATCH($AM30,Allocation!$K$3:$AL$3,0))/100,"") ->  | AC30: =IFERROR(INDEX(Allocation!$K$4:$AL$32,MATCH(AC$2,Allocation!$J$4:$J$32,0),MATCH($AM30,Allocation!$K$3:$AL$3,0))/100,"") ->  | AD30: =IFERROR(INDEX(Allocation!$K$4:$AL$32,MATCH(AD$2,Allocation!$J$4:$J$32,0),MATCH($AM30,Allocation!$K$3:$AL$3,0))/100,"") ->  | AE30: =IFERROR(INDEX(Allocation!$K$4:$AL$32,MATCH(AE$2,Allocation!$J$4:$J$32,0),MATCH($AM30,Allocation!$K$3:$AL$3,0))/100,"") ->  | AF30: =IFERROR(INDEX(Allocation!$K$4:$AL$32,MATCH(AF$2,Allocation!$J$4:$J$32,0),MATCH($AM30,Allocation!$K$3:$AL$3,0))/100,"") ->  | AG30: =IFERROR(INDEX(Allocation!$K$4:$AL$32,MATCH(AG$2,Allocation!$J$4:$J$32,0),MATCH($AM30,Allocation!$K$3:$AL$3,0))/100,"") ->  | AH30: =IFERROR(INDEX(Allocation!$K$4:$AL$32,MATCH(AH$2,Allocation!$J$4:$J$32,0),MATCH($AM30,Allocation!$K$3:$AL$3,0))/100,"") ->  | AI30: 0 | AK30: 0 | AL30: =VLOOKUP($E30,Allocation!$J$40:$M$65,4,FALSE) ->  | AM30: =VLOOKUP($E30,Allocation!$J$40:$M$65,3,FALSE) -> 
F31: =IFERROR(INDEX(Allocation!$K$4:$AL$32,MATCH(F$2,Allocation!$J$4:$J$32,0),MATCH($AM31,Allocation!$K$3:$AL$3,0))/100,"") ->  | G31: =IFERROR(INDEX(Allocation!$K$4:$AL$32,MATCH(G$2,Allocation!$J$4:$J$32,0),MATCH($AM31,Allocation!$K$3:$AL$3,0))/100,"") ->  | H31: =IFERROR(INDEX(Allocation!$K$4:$AL$32,MATCH(H$2,Allocation!$J$4:$J$32,0),MATCH($AM31,Allocation!$K$3:$AL$3,0))/100,"") ->  | I31: =IFERROR(INDEX(Allocation!$K$4:$AL$32,MATCH(I$2,Allocation!$J$4:$J$32,0),MATCH($AM31,Allocation!$K$3:$AL$3,0))/100,"") ->  | J31: =IFERROR(INDEX(Allocation!$K$4:$AL$32,MATCH(J$2,Allocation!$J$4:$J$32,0),MATCH($AM31,Allocation!$K$3:$AL$3,0))/100,"") ->  | K31: =IFERROR(INDEX(Allocation!$K$4:$AL$32,MATCH(K$2,Allocation!$J$4:$J$32,0),MATCH($AM31,Allocation!$K$3:$AL$3,0))/100,"") ->  | L31: =IFERROR(INDEX(Allocation!$K$4:$AL$32,MATCH(L$2,Allocation!$J$4:$J$32,0),MATCH($AM31,Allocation!$K$3:$AL$3,0))/100,"") ->  | M31: =IFERROR(INDEX(Allocation!$K$4:$AL$32,MATCH(M$2,Allocation!$J$4:$J$32,0),MATCH($AM31,Allocation!$K$3:$AL$3,0))/100,"") ->  | N31: =IFERROR(INDEX(Allocation!$K$4:$AL$32,MATCH(N$2,Allocation!$J$4:$J$32,0),MATCH($AM31,Allocation!$K$3:$AL$3,0))/100,"") ->  | O31: =IFERROR(INDEX(Allocation!$K$4:$AL$32,MATCH(O$2,Allocation!$J$4:$J$32,0),MATCH($AM31,Allocation!$K$3:$AL$3,0))/100,"") ->  | P31: =IFERROR(INDEX(Allocation!$K$4:$AL$32,MATCH(P$2,Allocation!$J$4:$J$32,0),MATCH($AM31,Allocation!$K$3:$AL$3,0))/100,"") ->  | Q31: =IFERROR(INDEX(Allocation!$K$4:$AL$32,MATCH(Q$2,Allocation!$J$4:$J$32,0),MATCH($AM31,Allocation!$K$3:$AL$3,0))/100,"") ->  | R31: =IFERROR(INDEX(Allocation!$K$4:$AL$32,MATCH(R$2,Allocation!$J$4:$J$32,0),MATCH($AM31,Allocation!$K$3:$AL$3,0))/100,"") ->  | S31: =IFERROR(INDEX(Allocation!$K$4:$AL$32,MATCH(S$2,Allocation!$J$4:$J$32,0),MATCH($AM31,Allocation!$K$3:$AL$3,0))/100,"") ->  | T31: =IFERROR(INDEX(Allocation!$K$4:$AL$32,MATCH(T$2,Allocation!$J$4:$J$32,0),MATCH($AM31,Allocation!$K$3:$AL$3,0))/100,"") ->  | U31: =IFERROR(INDEX(Allocation!$K$4:$AL$32,MATCH(U$2,Allocation!$J$4:$J$32,0),MATCH($AM31,Allocation!$K$3:$AL$3,0))/100,"") ->  | V31: =IFERROR(INDEX(Allocation!$K$4:$AL$32,MATCH(V$2,Allocation!$J$4:$J$32,0),MATCH($AM31,Allocation!$K$3:$AL$3,0))/100,"") ->  | W31: =IFERROR(INDEX(Allocation!$K$4:$AL$32,MATCH(W$2,Allocation!$J$4:$J$32,0),MATCH($AM31,Allocation!$K$3:$AL$3,0))/100,"") ->  | X31: =IFERROR(INDEX(Allocation!$K$4:$AL$32,MATCH(X$2,Allocation!$J$4:$J$32,0),MATCH($AM31,Allocation!$K$3:$AL$3,0))/100,"") ->  | Y31: =IFERROR(INDEX(Allocation!$K$4:$AL$32,MATCH(Y$2,Allocation!$J$4:$J$32,0),MATCH($AM31,Allocation!$K$3:$AL$3,0))/100,"") ->  | Z31: =IFERROR(INDEX(Allocation!$K$4:$AL$32,MATCH(Z$2,Allocation!$J$4:$J$32,0),MATCH($AM31,Allocation!$K$3:$AL$3,0))/100,"") ->  | AA31: =IFERROR(INDEX(Allocation!$K$4:$AL$32,MATCH(AA$2,Allocation!$J$4:$J$32,0),MATCH($AM31,Allocation!$K$3:$AL$3,0))/100,"") ->  | AB31: =IFERROR(INDEX(Allocation!$K$4:$AL$32,MATCH(AB$2,Allocation!$J$4:$J$32,0),MATCH($AM31,Allocation!$K$3:$AL$3,0))/100,"") ->  | AC31: =IFERROR(INDEX(Allocation!$K$4:$AL$32,MATCH(AC$2,Allocation!$J$4:$J$32,0),MATCH($AM31,Allocation!$K$3:$AL$3,0))/100,"") ->  | AD31: =IFERROR(INDEX(Allocation!$K$4:$AL$32,MATCH(AD$2,Allocation!$J$4:$J$32,0),MATCH($AM31,Allocation!$K$3:$AL$3,0))/100,"") ->  | AE31: =IFERROR(INDEX(Allocation!$K$4:$AL$32,MATCH(AE$2,Allocation!$J$4:$J$32,0),MATCH($AM31,Allocation!$K$3:$AL$3,0))/100,"") ->  | AF31: =IFERROR(INDEX(Allocation!$K$4:$AL$32,MATCH(AF$2,Allocation!$J$4:$J$32,0),MATCH($AM31,Allocation!$K$3:$AL$3,0))/100,"") ->  | AG31: =IFERROR(INDEX(Allocation!$K$4:$AL$32,MATCH(AG$2,Allocation!$J$4:$J$32,0),MATCH($AM31,Allocation!$K$3:$AL$3,0))/100,"") ->  | AH31: =IFERROR(INDEX(Allocation!$K$4:$AL$32,MATCH(AH$2,Allocation!$J$4:$J$32,0),MATCH($AM31,Allocation!$K$3:$AL$3,0))/100,"") ->  | AI31: 0 | AK31: 0 | AL31: =VLOOKUP($E31,Allocation!$J$40:$M$65,4,FALSE) ->  | AM31: =VLOOKUP($E31,Allocation!$J$40:$M$65,3,FALSE) -> 
F32: =IFERROR(INDEX(Allocation!$K$4:$AL$32,MATCH(F$2,Allocation!$J$4:$J$32,0),MATCH($AM32,Allocation!$K$3:$AL$3,0))/100,"") ->  | G32: =IFERROR(INDEX(Allocation!$K$4:$AL$32,MATCH(G$2,Allocation!$J$4:$J$32,0),MATCH($AM32,Allocation!$K$3:$AL$3,0))/100,"") ->  | H32: =IFERROR(INDEX(Allocation!$K$4:$AL$32,MATCH(H$2,Allocation!$J$4:$J$32,0),MATCH($AM32,Allocation!$K$3:$AL$3,0))/100,"") ->  | I32: =IFERROR(INDEX(Allocation!$K$4:$AL$32,MATCH(I$2,Allocation!$J$4:$J$32,0),MATCH($AM32,Allocation!$K$3:$AL$3,0))/100,"") ->  | J32: =IFERROR(INDEX(Allocation!$K$4:$AL$32,MATCH(J$2,Allocation!$J$4:$J$32,0),MATCH($AM32,Allocation!$K$3:$AL$3,0))/100,"") ->  | K32: =IFERROR(INDEX(Allocation!$K$4:$AL$32,MATCH(K$2,Allocation!$J$4:$J$32,0),MATCH($AM32,Allocation!$K$3:$AL$3,0))/100,"") ->  | L32: =IFERROR(INDEX(Allocation!$K$4:$AL$32,MATCH(L$2,Allocation!$J$4:$J$32,0),MATCH($AM32,Allocation!$K$3:$AL$3,0))/100,"") ->  | M32: =IFERROR(INDEX(Allocation!$K$4:$AL$32,MATCH(M$2,Allocation!$J$4:$J$32,0),MATCH($AM32,Allocation!$K$3:$AL$3,0))/100,"") ->  | N32: =IFERROR(INDEX(Allocation!$K$4:$AL$32,MATCH(N$2,Allocation!$J$4:$J$32,0),MATCH($AM32,Allocation!$K$3:$AL$3,0))/100,"") ->  | O32: =IFERROR(INDEX(Allocation!$K$4:$AL$32,MATCH(O$2,Allocation!$J$4:$J$32,0),MATCH($AM32,Allocation!$K$3:$AL$3,0))/100,"") ->  | P32: =IFERROR(INDEX(Allocation!$K$4:$AL$32,MATCH(P$2,Allocation!$J$4:$J$32,0),MATCH($AM32,Allocation!$K$3:$AL$3,0))/100,"") ->  | Q32: =IFERROR(INDEX(Allocation!$K$4:$AL$32,MATCH(Q$2,Allocation!$J$4:$J$32,0),MATCH($AM32,Allocation!$K$3:$AL$3,0))/100,"") ->  | R32: =IFERROR(INDEX(Allocation!$K$4:$AL$32,MATCH(R$2,Allocation!$J$4:$J$32,0),MATCH($AM32,Allocation!$K$3:$AL$3,0))/100,"") ->  | S32: =IFERROR(INDEX(Allocation!$K$4:$AL$32,MATCH(S$2,Allocation!$J$4:$J$32,0),MATCH($AM32,Allocation!$K$3:$AL$3,0))/100,"") ->  | T32: =IFERROR(INDEX(Allocation!$K$4:$AL$32,MATCH(T$2,Allocation!$J$4:$J$32,0),MATCH($AM32,Allocation!$K$3:$AL$3,0))/100,"") ->  | U32: =IFERROR(INDEX(Allocation!$K$4:$AL$32,MATCH(U$2,Allocation!$J$4:$J$32,0),MATCH($AM32,Allocation!$K$3:$AL$3,0))/100,"") ->  | V32: =IFERROR(INDEX(Allocation!$K$4:$AL$32,MATCH(V$2,Allocation!$J$4:$J$32,0),MATCH($AM32,Allocation!$K$3:$AL$3,0))/100,"") ->  | W32: =IFERROR(INDEX(Allocation!$K$4:$AL$32,MATCH(W$2,Allocation!$J$4:$J$32,0),MATCH($AM32,Allocation!$K$3:$AL$3,0))/100,"") ->  | X32: =IFERROR(INDEX(Allocation!$K$4:$AL$32,MATCH(X$2,Allocation!$J$4:$J$32,0),MATCH($AM32,Allocation!$K$3:$AL$3,0))/100,"") ->  | Y32: =IFERROR(INDEX(Allocation!$K$4:$AL$32,MATCH(Y$2,Allocation!$J$4:$J$32,0),MATCH($AM32,Allocation!$K$3:$AL$3,0))/100,"") ->  | Z32: =IFERROR(INDEX(Allocation!$K$4:$AL$32,MATCH(Z$2,Allocation!$J$4:$J$32,0),MATCH($AM32,Allocation!$K$3:$AL$3,0))/100,"") ->  | AA32: =IFERROR(INDEX(Allocation!$K$4:$AL$32,MATCH(AA$2,Allocation!$J$4:$J$32,0),MATCH($AM32,Allocation!$K$3:$AL$3,0))/100,"") ->  | AB32: =IFERROR(INDEX(Allocation!$K$4:$AL$32,MATCH(AB$2,Allocation!$J$4:$J$32,0),MATCH($AM32,Allocation!$K$3:$AL$3,0))/100,"") ->  | AC32: =IFERROR(INDEX(Allocation!$K$4:$AL$32,MATCH(AC$2,Allocation!$J$4:$J$32,0),MATCH($AM32,Allocation!$K$3:$AL$3,0))/100,"") ->  | AD32: =IFERROR(INDEX(Allocation!$K$4:$AL$32,MATCH(AD$2,Allocation!$J$4:$J$32,0),MATCH($AM32,Allocation!$K$3:$AL$3,0))/100,"") ->  | AE32: =IFERROR(INDEX(Allocation!$K$4:$AL$32,MATCH(AE$2,Allocation!$J$4:$J$32,0),MATCH($AM32,Allocation!$K$3:$AL$3,0))/100,"") ->  | AF32: =IFERROR(INDEX(Allocation!$K$4:$AL$32,MATCH(AF$2,Allocation!$J$4:$J$32,0),MATCH($AM32,Allocation!$K$3:$AL$3,0))/100,"") ->  | AG32: =IFERROR(INDEX(Allocation!$K$4:$AL$32,MATCH(AG$2,Allocation!$J$4:$J$32,0),MATCH($AM32,Allocation!$K$3:$AL$3,0))/100,"") ->  | AH32: =IFERROR(INDEX(Allocation!$K$4:$AL$32,MATCH(AH$2,Allocation!$J$4:$J$32,0),MATCH($AM32,Allocation!$K$3:$AL$3,0))/100,"") ->  | AI32: 0 | AK32: 0 | AL32: =VLOOKUP($E32,Allocation!$J$40:$M$65,4,FALSE) ->  | AM32: =VLOOKUP($E32,Allocation!$J$40:$M$65,3,FALSE) -> 
F33: =IFERROR(INDEX(Allocation!$K$4:$AL$32,MATCH(F$2,Allocation!$J$4:$J$32,0),MATCH($AM33,Allocation!$K$3:$AL$3,0))/100,"") ->  | G33: =IFERROR(INDEX(Allocation!$K$4:$AL$32,MATCH(G$2,Allocation!$J$4:$J$32,0),MATCH($AM33,Allocation!$K$3:$AL$3,0))/100,"") ->  | H33: =IFERROR(INDEX(Allocation!$K$4:$AL$32,MATCH(H$2,Allocation!$J$4:$J$32,0),MATCH($AM33,Allocation!$K$3:$AL$3,0))/100,"") ->  | I33: =IFERROR(INDEX(Allocation!$K$4:$AL$32,MATCH(I$2,Allocation!$J$4:$J$32,0),MATCH($AM33,Allocation!$K$3:$AL$3,0))/100,"") ->  | J33: =IFERROR(INDEX(Allocation!$K$4:$AL$32,MATCH(J$2,Allocation!$J$4:$J$32,0),MATCH($AM33,Allocation!$K$3:$AL$3,0))/100,"") ->  | K33: =IFERROR(INDEX(Allocation!$K$4:$AL$32,MATCH(K$2,Allocation!$J$4:$J$32,0),MATCH($AM33,Allocation!$K$3:$AL$3,0))/100,"") ->  | L33: =IFERROR(INDEX(Allocation!$K$4:$AL$32,MATCH(L$2,Allocation!$J$4:$J$32,0),MATCH($AM33,Allocation!$K$3:$AL$3,0))/100,"") ->  | M33: =IFERROR(INDEX(Allocation!$K$4:$AL$32,MATCH(M$2,Allocation!$J$4:$J$32,0),MATCH($AM33,Allocation!$K$3:$AL$3,0))/100,"") ->  | N33: =IFERROR(INDEX(Allocation!$K$4:$AL$32,MATCH(N$2,Allocation!$J$4:$J$32,0),MATCH($AM33,Allocation!$K$3:$AL$3,0))/100,"") ->  | O33: =IFERROR(INDEX(Allocation!$K$4:$AL$32,MATCH(O$2,Allocation!$J$4:$J$32,0),MATCH($AM33,Allocation!$K$3:$AL$3,0))/100,"") ->  | P33: =IFERROR(INDEX(Allocation!$K$4:$AL$32,MATCH(P$2,Allocation!$J$4:$J$32,0),MATCH($AM33,Allocation!$K$3:$AL$3,0))/100,"") ->  | Q33: =IFERROR(INDEX(Allocation!$K$4:$AL$32,MATCH(Q$2,Allocation!$J$4:$J$32,0),MATCH($AM33,Allocation!$K$3:$AL$3,0))/100,"") ->  | R33: =IFERROR(INDEX(Allocation!$K$4:$AL$32,MATCH(R$2,Allocation!$J$4:$J$32,0),MATCH($AM33,Allocation!$K$3:$AL$3,0))/100,"") ->  | S33: =IFERROR(INDEX(Allocation!$K$4:$AL$32,MATCH(S$2,Allocation!$J$4:$J$32,0),MATCH($AM33,Allocation!$K$3:$AL$3,0))/100,"") ->  | T33: =IFERROR(INDEX(Allocation!$K$4:$AL$32,MATCH(T$2,Allocation!$J$4:$J$32,0),MATCH($AM33,Allocation!$K$3:$AL$3,0))/100,"") ->  | U33: =IFERROR(INDEX(Allocation!$K$4:$AL$32,MATCH(U$2,Allocation!$J$4:$J$32,0),MATCH($AM33,Allocation!$K$3:$AL$3,0))/100,"") ->  | V33: =IFERROR(INDEX(Allocation!$K$4:$AL$32,MATCH(V$2,Allocation!$J$4:$J$32,0),MATCH($AM33,Allocation!$K$3:$AL$3,0))/100,"") ->  | W33: =IFERROR(INDEX(Allocation!$K$4:$AL$32,MATCH(W$2,Allocation!$J$4:$J$32,0),MATCH($AM33,Allocation!$K$3:$AL$3,0))/100,"") ->  | X33: =IFERROR(INDEX(Allocation!$K$4:$AL$32,MATCH(X$2,Allocation!$J$4:$J$32,0),MATCH($AM33,Allocation!$K$3:$AL$3,0))/100,"") ->  | Y33: =IFERROR(INDEX(Allocation!$K$4:$AL$32,MATCH(Y$2,Allocation!$J$4:$J$32,0),MATCH($AM33,Allocation!$K$3:$AL$3,0))/100,"") ->  | Z33: =IFERROR(INDEX(Allocation!$K$4:$AL$32,MATCH(Z$2,Allocation!$J$4:$J$32,0),MATCH($AM33,Allocation!$K$3:$AL$3,0))/100,"") ->  | AA33: =IFERROR(INDEX(Allocation!$K$4:$AL$32,MATCH(AA$2,Allocation!$J$4:$J$32,0),MATCH($AM33,Allocation!$K$3:$AL$3,0))/100,"") ->  | AB33: =IFERROR(INDEX(Allocation!$K$4:$AL$32,MATCH(AB$2,Allocation!$J$4:$J$32,0),MATCH($AM33,Allocation!$K$3:$AL$3,0))/100,"") ->  | AC33: =IFERROR(INDEX(Allocation!$K$4:$AL$32,MATCH(AC$2,Allocation!$J$4:$J$32,0),MATCH($AM33,Allocation!$K$3:$AL$3,0))/100,"") ->  | AD33: =IFERROR(INDEX(Allocation!$K$4:$AL$32,MATCH(AD$2,Allocation!$J$4:$J$32,0),MATCH($AM33,Allocation!$K$3:$AL$3,0))/100,"") ->  | AE33: =IFERROR(INDEX(Allocation!$K$4:$AL$32,MATCH(AE$2,Allocation!$J$4:$J$32,0),MATCH($AM33,Allocation!$K$3:$AL$3,0))/100,"") ->  | AF33: =IFERROR(INDEX(Allocation!$K$4:$AL$32,MATCH(AF$2,Allocation!$J$4:$J$32,0),MATCH($AM33,Allocation!$K$3:$AL$3,0))/100,"") ->  | AG33: =IFERROR(INDEX(Allocation!$K$4:$AL$32,MATCH(AG$2,Allocation!$J$4:$J$32,0),MATCH($AM33,Allocation!$K$3:$AL$3,0))/100,"") ->  | AH33: =IFERROR(INDEX(Allocation!$K$4:$AL$32,MATCH(AH$2,Allocation!$J$4:$J$32,0),MATCH($AM33,Allocation!$K$3:$AL$3,0))/100,"") ->  | AI33: 0 | AK33: 0 | AL33: =VLOOKUP($E33,Allocation!$J$40:$M$65,4,FALSE) ->  | AM33: =VLOOKUP($E33,Allocation!$J$40:$M$65,3,FALSE) -> 
F34: =IFERROR(INDEX(Allocation!$K$4:$AL$32,MATCH(F$2,Allocation!$J$4:$J$32,0),MATCH($AM34,Allocation!$K$3:$AL$3,0))/100,"") ->  | G34: =IFERROR(INDEX(Allocation!$K$4:$AL$32,MATCH(G$2,Allocation!$J$4:$J$32,0),MATCH($AM34,Allocation!$K$3:$AL$3,0))/100,"") ->  | H34: =IFERROR(INDEX(Allocation!$K$4:$AL$32,MATCH(H$2,Allocation!$J$4:$J$32,0),MATCH($AM34,Allocation!$K$3:$AL$3,0))/100,"") ->  | I34: =IFERROR(INDEX(Allocation!$K$4:$AL$32,MATCH(I$2,Allocation!$J$4:$J$32,0),MATCH($AM34,Allocation!$K$3:$AL$3,0))/100,"") ->  | J34: =IFERROR(INDEX(Allocation!$K$4:$AL$32,MATCH(J$2,Allocation!$J$4:$J$32,0),MATCH($AM34,Allocation!$K$3:$AL$3,0))/100,"") ->  | K34: =IFERROR(INDEX(Allocation!$K$4:$AL$32,MATCH(K$2,Allocation!$J$4:$J$32,0),MATCH($AM34,Allocation!$K$3:$AL$3,0))/100,"") ->  | L34: =IFERROR(INDEX(Allocation!$K$4:$AL$32,MATCH(L$2,Allocation!$J$4:$J$32,0),MATCH($AM34,Allocation!$K$3:$AL$3,0))/100,"") ->  | M34: =IFERROR(INDEX(Allocation!$K$4:$AL$32,MATCH(M$2,Allocation!$J$4:$J$32,0),MATCH($AM34,Allocation!$K$3:$AL$3,0))/100,"") ->  | N34: =IFERROR(INDEX(Allocation!$K$4:$AL$32,MATCH(N$2,Allocation!$J$4:$J$32,0),MATCH($AM34,Allocation!$K$3:$AL$3,0))/100,"") ->  | O34: =IFERROR(INDEX(Allocation!$K$4:$AL$32,MATCH(O$2,Allocation!$J$4:$J$32,0),MATCH($AM34,Allocation!$K$3:$AL$3,0))/100,"") ->  | P34: =IFERROR(INDEX(Allocation!$K$4:$AL$32,MATCH(P$2,Allocation!$J$4:$J$32,0),MATCH($AM34,Allocation!$K$3:$AL$3,0))/100,"") ->  | Q34: =IFERROR(INDEX(Allocation!$K$4:$AL$32,MATCH(Q$2,Allocation!$J$4:$J$32,0),MATCH($AM34,Allocation!$K$3:$AL$3,0))/100,"") ->  | R34: =IFERROR(INDEX(Allocation!$K$4:$AL$32,MATCH(R$2,Allocation!$J$4:$J$32,0),MATCH($AM34,Allocation!$K$3:$AL$3,0))/100,"") ->  | S34: =IFERROR(INDEX(Allocation!$K$4:$AL$32,MATCH(S$2,Allocation!$J$4:$J$32,0),MATCH($AM34,Allocation!$K$3:$AL$3,0))/100,"") ->  | T34: =IFERROR(INDEX(Allocation!$K$4:$AL$32,MATCH(T$2,Allocation!$J$4:$J$32,0),MATCH($AM34,Allocation!$K$3:$AL$3,0))/100,"") ->  | U34: =IFERROR(INDEX(Allocation!$K$4:$AL$32,MATCH(U$2,Allocation!$J$4:$J$32,0),MATCH($AM34,Allocation!$K$3:$AL$3,0))/100,"") ->  | V34: =IFERROR(INDEX(Allocation!$K$4:$AL$32,MATCH(V$2,Allocation!$J$4:$J$32,0),MATCH($AM34,Allocation!$K$3:$AL$3,0))/100,"") ->  | W34: =IFERROR(INDEX(Allocation!$K$4:$AL$32,MATCH(W$2,Allocation!$J$4:$J$32,0),MATCH($AM34,Allocation!$K$3:$AL$3,0))/100,"") ->  | X34: =IFERROR(INDEX(Allocation!$K$4:$AL$32,MATCH(X$2,Allocation!$J$4:$J$32,0),MATCH($AM34,Allocation!$K$3:$AL$3,0))/100,"") ->  | Y34: =IFERROR(INDEX(Allocation!$K$4:$AL$32,MATCH(Y$2,Allocation!$J$4:$J$32,0),MATCH($AM34,Allocation!$K$3:$AL$3,0))/100,"") ->  | Z34: =IFERROR(INDEX(Allocation!$K$4:$AL$32,MATCH(Z$2,Allocation!$J$4:$J$32,0),MATCH($AM34,Allocation!$K$3:$AL$3,0))/100,"") ->  | AA34: =IFERROR(INDEX(Allocation!$K$4:$AL$32,MATCH(AA$2,Allocation!$J$4:$J$32,0),MATCH($AM34,Allocation!$K$3:$AL$3,0))/100,"") ->  | AB34: =IFERROR(INDEX(Allocation!$K$4:$AL$32,MATCH(AB$2,Allocation!$J$4:$J$32,0),MATCH($AM34,Allocation!$K$3:$AL$3,0))/100,"") ->  | AC34: =IFERROR(INDEX(Allocation!$K$4:$AL$32,MATCH(AC$2,Allocation!$J$4:$J$32,0),MATCH($AM34,Allocation!$K$3:$AL$3,0))/100,"") ->  | AD34: =IFERROR(INDEX(Allocation!$K$4:$AL$32,MATCH(AD$2,Allocation!$J$4:$J$32,0),MATCH($AM34,Allocation!$K$3:$AL$3,0))/100,"") ->  | AE34: =IFERROR(INDEX(Allocation!$K$4:$AL$32,MATCH(AE$2,Allocation!$J$4:$J$32,0),MATCH($AM34,Allocation!$K$3:$AL$3,0))/100,"") ->  | AF34: =IFERROR(INDEX(Allocation!$K$4:$AL$32,MATCH(AF$2,Allocation!$J$4:$J$32,0),MATCH($AM34,Allocation!$K$3:$AL$3,0))/100,"") ->  | AG34: =IFERROR(INDEX(Allocation!$K$4:$AL$32,MATCH(AG$2,Allocation!$J$4:$J$32,0),MATCH($AM34,Allocation!$K$3:$AL$3,0))/100,"") ->  | AH34: =IFERROR(INDEX(Allocation!$K$4:$AL$32,MATCH(AH$2,Allocation!$J$4:$J$32,0),MATCH($AM34,Allocation!$K$3:$AL$3,0))/100,"") ->  | AI34: 0 | AK34: 0 | AL34: =VLOOKUP($E34,Allocation!$J$40:$M$65,4,FALSE) ->  | AM34: =VLOOKUP($E34,Allocation!$J$40:$M$65,3,FALSE) -> 
F35: =IFERROR(INDEX(Allocation!$K$4:$AL$32,MATCH(F$2,Allocation!$J$4:$J$32,0),MATCH($AM35,Allocation!$K$3:$AL$3,0))/100,"") ->  | G35: =IFERROR(INDEX(Allocation!$K$4:$AL$32,MATCH(G$2,Allocation!$J$4:$J$32,0),MATCH($AM35,Allocation!$K$3:$AL$3,0))/100,"") ->  | H35: =IFERROR(INDEX(Allocation!$K$4:$AL$32,MATCH(H$2,Allocation!$J$4:$J$32,0),MATCH($AM35,Allocation!$K$3:$AL$3,0))/100,"") ->  | I35: =IFERROR(INDEX(Allocation!$K$4:$AL$32,MATCH(I$2,Allocation!$J$4:$J$32,0),MATCH($AM35,Allocation!$K$3:$AL$3,0))/100,"") ->  | J35: =IFERROR(INDEX(Allocation!$K$4:$AL$32,MATCH(J$2,Allocation!$J$4:$J$32,0),MATCH($AM35,Allocation!$K$3:$AL$3,0))/100,"") ->  | K35: =IFERROR(INDEX(Allocation!$K$4:$AL$32,MATCH(K$2,Allocation!$J$4:$J$32,0),MATCH($AM35,Allocation!$K$3:$AL$3,0))/100,"") ->  | L35: =IFERROR(INDEX(Allocation!$K$4:$AL$32,MATCH(L$2,Allocation!$J$4:$J$32,0),MATCH($AM35,Allocation!$K$3:$AL$3,0))/100,"") ->  | M35: =IFERROR(INDEX(Allocation!$K$4:$AL$32,MATCH(M$2,Allocation!$J$4:$J$32,0),MATCH($AM35,Allocation!$K$3:$AL$3,0))/100,"") ->  | N35: =IFERROR(INDEX(Allocation!$K$4:$AL$32,MATCH(N$2,Allocation!$J$4:$J$32,0),MATCH($AM35,Allocation!$K$3:$AL$3,0))/100,"") ->  | O35: =IFERROR(INDEX(Allocation!$K$4:$AL$32,MATCH(O$2,Allocation!$J$4:$J$32,0),MATCH($AM35,Allocation!$K$3:$AL$3,0))/100,"") ->  | P35: =IFERROR(INDEX(Allocation!$K$4:$AL$32,MATCH(P$2,Allocation!$J$4:$J$32,0),MATCH($AM35,Allocation!$K$3:$AL$3,0))/100,"") ->  | Q35: =IFERROR(INDEX(Allocation!$K$4:$AL$32,MATCH(Q$2,Allocation!$J$4:$J$32,0),MATCH($AM35,Allocation!$K$3:$AL$3,0))/100,"") ->  | R35: =IFERROR(INDEX(Allocation!$K$4:$AL$32,MATCH(R$2,Allocation!$J$4:$J$32,0),MATCH($AM35,Allocation!$K$3:$AL$3,0))/100,"") ->  | S35: =IFERROR(INDEX(Allocation!$K$4:$AL$32,MATCH(S$2,Allocation!$J$4:$J$32,0),MATCH($AM35,Allocation!$K$3:$AL$3,0))/100,"") ->  | T35: =IFERROR(INDEX(Allocation!$K$4:$AL$32,MATCH(T$2,Allocation!$J$4:$J$32,0),MATCH($AM35,Allocation!$K$3:$AL$3,0))/100,"") ->  | U35: =IFERROR(INDEX(Allocation!$K$4:$AL$32,MATCH(U$2,Allocation!$J$4:$J$32,0),MATCH($AM35,Allocation!$K$3:$AL$3,0))/100,"") ->  | V35: =IFERROR(INDEX(Allocation!$K$4:$AL$32,MATCH(V$2,Allocation!$J$4:$J$32,0),MATCH($AM35,Allocation!$K$3:$AL$3,0))/100,"") ->  | W35: =IFERROR(INDEX(Allocation!$K$4:$AL$32,MATCH(W$2,Allocation!$J$4:$J$32,0),MATCH($AM35,Allocation!$K$3:$AL$3,0))/100,"") ->  | X35: =IFERROR(INDEX(Allocation!$K$4:$AL$32,MATCH(X$2,Allocation!$J$4:$J$32,0),MATCH($AM35,Allocation!$K$3:$AL$3,0))/100,"") ->  | Y35: =IFERROR(INDEX(Allocation!$K$4:$AL$32,MATCH(Y$2,Allocation!$J$4:$J$32,0),MATCH($AM35,Allocation!$K$3:$AL$3,0))/100,"") ->  | Z35: =IFERROR(INDEX(Allocation!$K$4:$AL$32,MATCH(Z$2,Allocation!$J$4:$J$32,0),MATCH($AM35,Allocation!$K$3:$AL$3,0))/100,"") ->  | AA35: =IFERROR(INDEX(Allocation!$K$4:$AL$32,MATCH(AA$2,Allocation!$J$4:$J$32,0),MATCH($AM35,Allocation!$K$3:$AL$3,0))/100,"") ->  | AB35: =IFERROR(INDEX(Allocation!$K$4:$AL$32,MATCH(AB$2,Allocation!$J$4:$J$32,0),MATCH($AM35,Allocation!$K$3:$AL$3,0))/100,"") ->  | AC35: =IFERROR(INDEX(Allocation!$K$4:$AL$32,MATCH(AC$2,Allocation!$J$4:$J$32,0),MATCH($AM35,Allocation!$K$3:$AL$3,0))/100,"") ->  | AD35: =IFERROR(INDEX(Allocation!$K$4:$AL$32,MATCH(AD$2,Allocation!$J$4:$J$32,0),MATCH($AM35,Allocation!$K$3:$AL$3,0))/100,"") ->  | AE35: =IFERROR(INDEX(Allocation!$K$4:$AL$32,MATCH(AE$2,Allocation!$J$4:$J$32,0),MATCH($AM35,Allocation!$K$3:$AL$3,0))/100,"") ->  | AF35: =IFERROR(INDEX(Allocation!$K$4:$AL$32,MATCH(AF$2,Allocation!$J$4:$J$32,0),MATCH($AM35,Allocation!$K$3:$AL$3,0))/100,"") ->  | AG35: =IFERROR(INDEX(Allocation!$K$4:$AL$32,MATCH(AG$2,Allocation!$J$4:$J$32,0),MATCH($AM35,Allocation!$K$3:$AL$3,0))/100,"") ->  | AH35: =IFERROR(INDEX(Allocation!$K$4:$AL$32,MATCH(AH$2,Allocation!$J$4:$J$32,0),MATCH($AM35,Allocation!$K$3:$AL$3,0))/100,"") ->  | AI35: 0 | AK35: 0 | AL35: =VLOOKUP($E35,Allocation!$J$40:$M$65,4,FALSE) ->  | AM35: =VLOOKUP($E35,Allocation!$J$40:$M$65,3,FALSE) -> 
F36: =IFERROR(INDEX(Allocation!$K$4:$AL$32,MATCH(F$2,Allocation!$J$4:$J$32,0),MATCH($AM36,Allocation!$K$3:$AL$3,0))/100,"") ->  | G36: =IFERROR(INDEX(Allocation!$K$4:$AL$32,MATCH(G$2,Allocation!$J$4:$J$32,0),MATCH($AM36,Allocation!$K$3:$AL$3,0))/100,"") ->  | H36: =IFERROR(INDEX(Allocation!$K$4:$AL$32,MATCH(H$2,Allocation!$J$4:$J$32,0),MATCH($AM36,Allocation!$K$3:$AL$3,0))/100,"") ->  | I36: =IFERROR(INDEX(Allocation!$K$4:$AL$32,MATCH(I$2,Allocation!$J$4:$J$32,0),MATCH($AM36,Allocation!$K$3:$AL$3,0))/100,"") ->  | J36: =IFERROR(INDEX(Allocation!$K$4:$AL$32,MATCH(J$2,Allocation!$J$4:$J$32,0),MATCH($AM36,Allocation!$K$3:$AL$3,0))/100,"") ->  | K36: =IFERROR(INDEX(Allocation!$K$4:$AL$32,MATCH(K$2,Allocation!$J$4:$J$32,0),MATCH($AM36,Allocation!$K$3:$AL$3,0))/100,"") ->  | L36: =IFERROR(INDEX(Allocation!$K$4:$AL$32,MATCH(L$2,Allocation!$J$4:$J$32,0),MATCH($AM36,Allocation!$K$3:$AL$3,0))/100,"") ->  | M36: =IFERROR(INDEX(Allocation!$K$4:$AL$32,MATCH(M$2,Allocation!$J$4:$J$32,0),MATCH($AM36,Allocation!$K$3:$AL$3,0))/100,"") ->  | N36: =IFERROR(INDEX(Allocation!$K$4:$AL$32,MATCH(N$2,Allocation!$J$4:$J$32,0),MATCH($AM36,Allocation!$K$3:$AL$3,0))/100,"") ->  | O36: =IFERROR(INDEX(Allocation!$K$4:$AL$32,MATCH(O$2,Allocation!$J$4:$J$32,0),MATCH($AM36,Allocation!$K$3:$AL$3,0))/100,"") ->  | P36: =IFERROR(INDEX(Allocation!$K$4:$AL$32,MATCH(P$2,Allocation!$J$4:$J$32,0),MATCH($AM36,Allocation!$K$3:$AL$3,0))/100,"") ->  | Q36: =IFERROR(INDEX(Allocation!$K$4:$AL$32,MATCH(Q$2,Allocation!$J$4:$J$32,0),MATCH($AM36,Allocation!$K$3:$AL$3,0))/100,"") ->  | R36: =IFERROR(INDEX(Allocation!$K$4:$AL$32,MATCH(R$2,Allocation!$J$4:$J$32,0),MATCH($AM36,Allocation!$K$3:$AL$3,0))/100,"") ->  | S36: =IFERROR(INDEX(Allocation!$K$4:$AL$32,MATCH(S$2,Allocation!$J$4:$J$32,0),MATCH($AM36,Allocation!$K$3:$AL$3,0))/100,"") ->  | T36: =IFERROR(INDEX(Allocation!$K$4:$AL$32,MATCH(T$2,Allocation!$J$4:$J$32,0),MATCH($AM36,Allocation!$K$3:$AL$3,0))/100,"") ->  | U36: =IFERROR(INDEX(Allocation!$K$4:$AL$32,MATCH(U$2,Allocation!$J$4:$J$32,0),MATCH($AM36,Allocation!$K$3:$AL$3,0))/100,"") ->  | V36: =IFERROR(INDEX(Allocation!$K$4:$AL$32,MATCH(V$2,Allocation!$J$4:$J$32,0),MATCH($AM36,Allocation!$K$3:$AL$3,0))/100,"") ->  | W36: =IFERROR(INDEX(Allocation!$K$4:$AL$32,MATCH(W$2,Allocation!$J$4:$J$32,0),MATCH($AM36,Allocation!$K$3:$AL$3,0))/100,"") ->  | X36: =IFERROR(INDEX(Allocation!$K$4:$AL$32,MATCH(X$2,Allocation!$J$4:$J$32,0),MATCH($AM36,Allocation!$K$3:$AL$3,0))/100,"") ->  | Y36: =IFERROR(INDEX(Allocation!$K$4:$AL$32,MATCH(Y$2,Allocation!$J$4:$J$32,0),MATCH($AM36,Allocation!$K$3:$AL$3,0))/100,"") ->  | Z36: =IFERROR(INDEX(Allocation!$K$4:$AL$32,MATCH(Z$2,Allocation!$J$4:$J$32,0),MATCH($AM36,Allocation!$K$3:$AL$3,0))/100,"") ->  | AA36: =IFERROR(INDEX(Allocation!$K$4:$AL$32,MATCH(AA$2,Allocation!$J$4:$J$32,0),MATCH($AM36,Allocation!$K$3:$AL$3,0))/100,"") ->  | AB36: =IFERROR(INDEX(Allocation!$K$4:$AL$32,MATCH(AB$2,Allocation!$J$4:$J$32,0),MATCH($AM36,Allocation!$K$3:$AL$3,0))/100,"") ->  | AC36: =IFERROR(INDEX(Allocation!$K$4:$AL$32,MATCH(AC$2,Allocation!$J$4:$J$32,0),MATCH($AM36,Allocation!$K$3:$AL$3,0))/100,"") ->  | AD36: =IFERROR(INDEX(Allocation!$K$4:$AL$32,MATCH(AD$2,Allocation!$J$4:$J$32,0),MATCH($AM36,Allocation!$K$3:$AL$3,0))/100,"") ->  | AE36: =IFERROR(INDEX(Allocation!$K$4:$AL$32,MATCH(AE$2,Allocation!$J$4:$J$32,0),MATCH($AM36,Allocation!$K$3:$AL$3,0))/100,"") ->  | AF36: =IFERROR(INDEX(Allocation!$K$4:$AL$32,MATCH(AF$2,Allocation!$J$4:$J$32,0),MATCH($AM36,Allocation!$K$3:$AL$3,0))/100,"") ->  | AG36: =IFERROR(INDEX(Allocation!$K$4:$AL$32,MATCH(AG$2,Allocation!$J$4:$J$32,0),MATCH($AM36,Allocation!$K$3:$AL$3,0))/100,"") ->  | AH36: =IFERROR(INDEX(Allocation!$K$4:$AL$32,MATCH(AH$2,Allocation!$J$4:$J$32,0),MATCH($AM36,Allocation!$K$3:$AL$3,0))/100,"") ->  | AI36: 0 | AK36: 0 | AL36: =VLOOKUP($E36,Allocation!$J$40:$M$65,4,FALSE) ->  | AM36: =VLOOKUP($E36,Allocation!$J$40:$M$65,3,FALSE) -> 
F37: =IFERROR(INDEX(Allocation!$K$4:$AL$32,MATCH(F$2,Allocation!$J$4:$J$32,0),MATCH($AM37,Allocation!$K$3:$AL$3,0))/100,"") ->  | G37: =IFERROR(INDEX(Allocation!$K$4:$AL$32,MATCH(G$2,Allocation!$J$4:$J$32,0),MATCH($AM37,Allocation!$K$3:$AL$3,0))/100,"") ->  | H37: =IFERROR(INDEX(Allocation!$K$4:$AL$32,MATCH(H$2,Allocation!$J$4:$J$32,0),MATCH($AM37,Allocation!$K$3:$AL$3,0))/100,"") ->  | I37: =IFERROR(INDEX(Allocation!$K$4:$AL$32,MATCH(I$2,Allocation!$J$4:$J$32,0),MATCH($AM37,Allocation!$K$3:$AL$3,0))/100,"") ->  | J37: =IFERROR(INDEX(Allocation!$K$4:$AL$32,MATCH(J$2,Allocation!$J$4:$J$32,0),MATCH($AM37,Allocation!$K$3:$AL$3,0))/100,"") ->  | K37: =IFERROR(INDEX(Allocation!$K$4:$AL$32,MATCH(K$2,Allocation!$J$4:$J$32,0),MATCH($AM37,Allocation!$K$3:$AL$3,0))/100,"") ->  | L37: =IFERROR(INDEX(Allocation!$K$4:$AL$32,MATCH(L$2,Allocation!$J$4:$J$32,0),MATCH($AM37,Allocation!$K$3:$AL$3,0))/100,"") ->  | M37: =IFERROR(INDEX(Allocation!$K$4:$AL$32,MATCH(M$2,Allocation!$J$4:$J$32,0),MATCH($AM37,Allocation!$K$3:$AL$3,0))/100,"") ->  | N37: =IFERROR(INDEX(Allocation!$K$4:$AL$32,MATCH(N$2,Allocation!$J$4:$J$32,0),MATCH($AM37,Allocation!$K$3:$AL$3,0))/100,"") ->  | O37: =IFERROR(INDEX(Allocation!$K$4:$AL$32,MATCH(O$2,Allocation!$J$4:$J$32,0),MATCH($AM37,Allocation!$K$3:$AL$3,0))/100,"") ->  | P37: =IFERROR(INDEX(Allocation!$K$4:$AL$32,MATCH(P$2,Allocation!$J$4:$J$32,0),MATCH($AM37,Allocation!$K$3:$AL$3,0))/100,"") ->  | Q37: =IFERROR(INDEX(Allocation!$K$4:$AL$32,MATCH(Q$2,Allocation!$J$4:$J$32,0),MATCH($AM37,Allocation!$K$3:$AL$3,0))/100,"") ->  | R37: =IFERROR(INDEX(Allocation!$K$4:$AL$32,MATCH(R$2,Allocation!$J$4:$J$32,0),MATCH($AM37,Allocation!$K$3:$AL$3,0))/100,"") ->  | S37: =IFERROR(INDEX(Allocation!$K$4:$AL$32,MATCH(S$2,Allocation!$J$4:$J$32,0),MATCH($AM37,Allocation!$K$3:$AL$3,0))/100,"") ->  | T37: =IFERROR(INDEX(Allocation!$K$4:$AL$32,MATCH(T$2,Allocation!$J$4:$J$32,0),MATCH($AM37,Allocation!$K$3:$AL$3,0))/100,"") ->  | U37: =IFERROR(INDEX(Allocation!$K$4:$AL$32,MATCH(U$2,Allocation!$J$4:$J$32,0),MATCH($AM37,Allocation!$K$3:$AL$3,0))/100,"") ->  | V37: =IFERROR(INDEX(Allocation!$K$4:$AL$32,MATCH(V$2,Allocation!$J$4:$J$32,0),MATCH($AM37,Allocation!$K$3:$AL$3,0))/100,"") ->  | W37: =IFERROR(INDEX(Allocation!$K$4:$AL$32,MATCH(W$2,Allocation!$J$4:$J$32,0),MATCH($AM37,Allocation!$K$3:$AL$3,0))/100,"") ->  | X37: =IFERROR(INDEX(Allocation!$K$4:$AL$32,MATCH(X$2,Allocation!$J$4:$J$32,0),MATCH($AM37,Allocation!$K$3:$AL$3,0))/100,"") ->  | Y37: =IFERROR(INDEX(Allocation!$K$4:$AL$32,MATCH(Y$2,Allocation!$J$4:$J$32,0),MATCH($AM37,Allocation!$K$3:$AL$3,0))/100,"") ->  | Z37: =IFERROR(INDEX(Allocation!$K$4:$AL$32,MATCH(Z$2,Allocation!$J$4:$J$32,0),MATCH($AM37,Allocation!$K$3:$AL$3,0))/100,"") ->  | AA37: =IFERROR(INDEX(Allocation!$K$4:$AL$32,MATCH(AA$2,Allocation!$J$4:$J$32,0),MATCH($AM37,Allocation!$K$3:$AL$3,0))/100,"") ->  | AB37: =IFERROR(INDEX(Allocation!$K$4:$AL$32,MATCH(AB$2,Allocation!$J$4:$J$32,0),MATCH($AM37,Allocation!$K$3:$AL$3,0))/100,"") ->  | AC37: =IFERROR(INDEX(Allocation!$K$4:$AL$32,MATCH(AC$2,Allocation!$J$4:$J$32,0),MATCH($AM37,Allocation!$K$3:$AL$3,0))/100,"") ->  | AD37: =IFERROR(INDEX(Allocation!$K$4:$AL$32,MATCH(AD$2,Allocation!$J$4:$J$32,0),MATCH($AM37,Allocation!$K$3:$AL$3,0))/100,"") ->  | AE37: =IFERROR(INDEX(Allocation!$K$4:$AL$32,MATCH(AE$2,Allocation!$J$4:$J$32,0),MATCH($AM37,Allocation!$K$3:$AL$3,0))/100,"") ->  | AF37: =IFERROR(INDEX(Allocation!$K$4:$AL$32,MATCH(AF$2,Allocation!$J$4:$J$32,0),MATCH($AM37,Allocation!$K$3:$AL$3,0))/100,"") ->  | AG37: =IFERROR(INDEX(Allocation!$K$4:$AL$32,MATCH(AG$2,Allocation!$J$4:$J$32,0),MATCH($AM37,Allocation!$K$3:$AL$3,0))/100,"") ->  | AH37: =IFERROR(INDEX(Allocation!$K$4:$AL$32,MATCH(AH$2,Allocation!$J$4:$J$32,0),MATCH($AM37,Allocation!$K$3:$AL$3,0))/100,"") ->  | AI37: 0 | AK37: 0 | AL37: =VLOOKUP($E37,Allocation!$J$40:$M$65,4,FALSE) ->  | AM37: =VLOOKUP($E37,Allocation!$J$40:$M$65,3,FALSE) -> 
F38: =IFERROR(INDEX(Allocation!$K$4:$AL$32,MATCH(F$2,Allocation!$J$4:$J$32,0),MATCH($AM38,Allocation!$K$3:$AL$3,0))/100,"") ->  | G38: =IFERROR(INDEX(Allocation!$K$4:$AL$32,MATCH(G$2,Allocation!$J$4:$J$32,0),MATCH($AM38,Allocation!$K$3:$AL$3,0))/100,"") ->  | H38: =IFERROR(INDEX(Allocation!$K$4:$AL$32,MATCH(H$2,Allocation!$J$4:$J$32,0),MATCH($AM38,Allocation!$K$3:$AL$3,0))/100,"") ->  | I38: =IFERROR(INDEX(Allocation!$K$4:$AL$32,MATCH(I$2,Allocation!$J$4:$J$32,0),MATCH($AM38,Allocation!$K$3:$AL$3,0))/100,"") ->  | J38: =IFERROR(INDEX(Allocation!$K$4:$AL$32,MATCH(J$2,Allocation!$J$4:$J$32,0),MATCH($AM38,Allocation!$K$3:$AL$3,0))/100,"") ->  | K38: =IFERROR(INDEX(Allocation!$K$4:$AL$32,MATCH(K$2,Allocation!$J$4:$J$32,0),MATCH($AM38,Allocation!$K$3:$AL$3,0))/100,"") ->  | L38: =IFERROR(INDEX(Allocation!$K$4:$AL$32,MATCH(L$2,Allocation!$J$4:$J$32,0),MATCH($AM38,Allocation!$K$3:$AL$3,0))/100,"") ->  | M38: =IFERROR(INDEX(Allocation!$K$4:$AL$32,MATCH(M$2,Allocation!$J$4:$J$32,0),MATCH($AM38,Allocation!$K$3:$AL$3,0))/100,"") ->  | N38: =IFERROR(INDEX(Allocation!$K$4:$AL$32,MATCH(N$2,Allocation!$J$4:$J$32,0),MATCH($AM38,Allocation!$K$3:$AL$3,0))/100,"") ->  | O38: =IFERROR(INDEX(Allocation!$K$4:$AL$32,MATCH(O$2,Allocation!$J$4:$J$32,0),MATCH($AM38,Allocation!$K$3:$AL$3,0))/100,"") ->  | P38: =IFERROR(INDEX(Allocation!$K$4:$AL$32,MATCH(P$2,Allocation!$J$4:$J$32,0),MATCH($AM38,Allocation!$K$3:$AL$3,0))/100,"") ->  | Q38: =IFERROR(INDEX(Allocation!$K$4:$AL$32,MATCH(Q$2,Allocation!$J$4:$J$32,0),MATCH($AM38,Allocation!$K$3:$AL$3,0))/100,"") ->  | R38: =IFERROR(INDEX(Allocation!$K$4:$AL$32,MATCH(R$2,Allocation!$J$4:$J$32,0),MATCH($AM38,Allocation!$K$3:$AL$3,0))/100,"") ->  | S38: =IFERROR(INDEX(Allocation!$K$4:$AL$32,MATCH(S$2,Allocation!$J$4:$J$32,0),MATCH($AM38,Allocation!$K$3:$AL$3,0))/100,"") ->  | T38: =IFERROR(INDEX(Allocation!$K$4:$AL$32,MATCH(T$2,Allocation!$J$4:$J$32,0),MATCH($AM38,Allocation!$K$3:$AL$3,0))/100,"") ->  | U38: =IFERROR(INDEX(Allocation!$K$4:$AL$32,MATCH(U$2,Allocation!$J$4:$J$32,0),MATCH($AM38,Allocation!$K$3:$AL$3,0))/100,"") ->  | V38: =IFERROR(INDEX(Allocation!$K$4:$AL$32,MATCH(V$2,Allocation!$J$4:$J$32,0),MATCH($AM38,Allocation!$K$3:$AL$3,0))/100,"") ->  | W38: =IFERROR(INDEX(Allocation!$K$4:$AL$32,MATCH(W$2,Allocation!$J$4:$J$32,0),MATCH($AM38,Allocation!$K$3:$AL$3,0))/100,"") ->  | X38: =IFERROR(INDEX(Allocation!$K$4:$AL$32,MATCH(X$2,Allocation!$J$4:$J$32,0),MATCH($AM38,Allocation!$K$3:$AL$3,0))/100,"") ->  | Y38: =IFERROR(INDEX(Allocation!$K$4:$AL$32,MATCH(Y$2,Allocation!$J$4:$J$32,0),MATCH($AM38,Allocation!$K$3:$AL$3,0))/100,"") ->  | Z38: =IFERROR(INDEX(Allocation!$K$4:$AL$32,MATCH(Z$2,Allocation!$J$4:$J$32,0),MATCH($AM38,Allocation!$K$3:$AL$3,0))/100,"") ->  | AA38: =IFERROR(INDEX(Allocation!$K$4:$AL$32,MATCH(AA$2,Allocation!$J$4:$J$32,0),MATCH($AM38,Allocation!$K$3:$AL$3,0))/100,"") ->  | AB38: =IFERROR(INDEX(Allocation!$K$4:$AL$32,MATCH(AB$2,Allocation!$J$4:$J$32,0),MATCH($AM38,Allocation!$K$3:$AL$3,0))/100,"") ->  | AC38: =IFERROR(INDEX(Allocation!$K$4:$AL$32,MATCH(AC$2,Allocation!$J$4:$J$32,0),MATCH($AM38,Allocation!$K$3:$AL$3,0))/100,"") ->  | AD38: =IFERROR(INDEX(Allocation!$K$4:$AL$32,MATCH(AD$2,Allocation!$J$4:$J$32,0),MATCH($AM38,Allocation!$K$3:$AL$3,0))/100,"") ->  | AE38: =IFERROR(INDEX(Allocation!$K$4:$AL$32,MATCH(AE$2,Allocation!$J$4:$J$32,0),MATCH($AM38,Allocation!$K$3:$AL$3,0))/100,"") ->  | AF38: =IFERROR(INDEX(Allocation!$K$4:$AL$32,MATCH(AF$2,Allocation!$J$4:$J$32,0),MATCH($AM38,Allocation!$K$3:$AL$3,0))/100,"") ->  | AG38: =IFERROR(INDEX(Allocation!$K$4:$AL$32,MATCH(AG$2,Allocation!$J$4:$J$32,0),MATCH($AM38,Allocation!$K$3:$AL$3,0))/100,"") ->  | AH38: =IFERROR(INDEX(Allocation!$K$4:$AL$32,MATCH(AH$2,Allocation!$J$4:$J$32,0),MATCH($AM38,Allocation!$K$3:$AL$3,0))/100,"") ->  | AI38: 0 | AK38: 0 | AL38: =VLOOKUP($E38,Allocation!$J$40:$M$65,4,FALSE) ->  | AM38: =VLOOKUP($E38,Allocation!$J$40:$M$65,3,FALSE) -> 
F39: =IFERROR(INDEX(Allocation!$K$4:$AL$32,MATCH(F$2,Allocation!$J$4:$J$32,0),MATCH($AM39,Allocation!$K$3:$AL$3,0))/100,"") ->  | G39: =IFERROR(INDEX(Allocation!$K$4:$AL$32,MATCH(G$2,Allocation!$J$4:$J$32,0),MATCH($AM39,Allocation!$K$3:$AL$3,0))/100,"") ->  | H39: =IFERROR(INDEX(Allocation!$K$4:$AL$32,MATCH(H$2,Allocation!$J$4:$J$32,0),MATCH($AM39,Allocation!$K$3:$AL$3,0))/100,"") ->  | I39: =IFERROR(INDEX(Allocation!$K$4:$AL$32,MATCH(I$2,Allocation!$J$4:$J$32,0),MATCH($AM39,Allocation!$K$3:$AL$3,0))/100,"") ->  | J39: =IFERROR(INDEX(Allocation!$K$4:$AL$32,MATCH(J$2,Allocation!$J$4:$J$32,0),MATCH($AM39,Allocation!$K$3:$AL$3,0))/100,"") ->  | K39: =IFERROR(INDEX(Allocation!$K$4:$AL$32,MATCH(K$2,Allocation!$J$4:$J$32,0),MATCH($AM39,Allocation!$K$3:$AL$3,0))/100,"") ->  | L39: =IFERROR(INDEX(Allocation!$K$4:$AL$32,MATCH(L$2,Allocation!$J$4:$J$32,0),MATCH($AM39,Allocation!$K$3:$AL$3,0))/100,"") ->  | M39: =IFERROR(INDEX(Allocation!$K$4:$AL$32,MATCH(M$2,Allocation!$J$4:$J$32,0),MATCH($AM39,Allocation!$K$3:$AL$3,0))/100,"") ->  | N39: =IFERROR(INDEX(Allocation!$K$4:$AL$32,MATCH(N$2,Allocation!$J$4:$J$32,0),MATCH($AM39,Allocation!$K$3:$AL$3,0))/100,"") ->  | O39: =IFERROR(INDEX(Allocation!$K$4:$AL$32,MATCH(O$2,Allocation!$J$4:$J$32,0),MATCH($AM39,Allocation!$K$3:$AL$3,0))/100,"") ->  | P39: =IFERROR(INDEX(Allocation!$K$4:$AL$32,MATCH(P$2,Allocation!$J$4:$J$32,0),MATCH($AM39,Allocation!$K$3:$AL$3,0))/100,"") ->  | Q39: =IFERROR(INDEX(Allocation!$K$4:$AL$32,MATCH(Q$2,Allocation!$J$4:$J$32,0),MATCH($AM39,Allocation!$K$3:$AL$3,0))/100,"") ->  | R39: =IFERROR(INDEX(Allocation!$K$4:$AL$32,MATCH(R$2,Allocation!$J$4:$J$32,0),MATCH($AM39,Allocation!$K$3:$AL$3,0))/100,"") ->  | S39: =IFERROR(INDEX(Allocation!$K$4:$AL$32,MATCH(S$2,Allocation!$J$4:$J$32,0),MATCH($AM39,Allocation!$K$3:$AL$3,0))/100,"") ->  | T39: =IFERROR(INDEX(Allocation!$K$4:$AL$32,MATCH(T$2,Allocation!$J$4:$J$32,0),MATCH($AM39,Allocation!$K$3:$AL$3,0))/100,"") ->  | U39: =IFERROR(INDEX(Allocation!$K$4:$AL$32,MATCH(U$2,Allocation!$J$4:$J$32,0),MATCH($AM39,Allocation!$K$3:$AL$3,0))/100,"") ->  | V39: =IFERROR(INDEX(Allocation!$K$4:$AL$32,MATCH(V$2,Allocation!$J$4:$J$32,0),MATCH($AM39,Allocation!$K$3:$AL$3,0))/100,"") ->  | W39: =IFERROR(INDEX(Allocation!$K$4:$AL$32,MATCH(W$2,Allocation!$J$4:$J$32,0),MATCH($AM39,Allocation!$K$3:$AL$3,0))/100,"") ->  | X39: =IFERROR(INDEX(Allocation!$K$4:$AL$32,MATCH(X$2,Allocation!$J$4:$J$32,0),MATCH($AM39,Allocation!$K$3:$AL$3,0))/100,"") ->  | Y39: =IFERROR(INDEX(Allocation!$K$4:$AL$32,MATCH(Y$2,Allocation!$J$4:$J$32,0),MATCH($AM39,Allocation!$K$3:$AL$3,0))/100,"") ->  | Z39: =IFERROR(INDEX(Allocation!$K$4:$AL$32,MATCH(Z$2,Allocation!$J$4:$J$32,0),MATCH($AM39,Allocation!$K$3:$AL$3,0))/100,"") ->  | AA39: =IFERROR(INDEX(Allocation!$K$4:$AL$32,MATCH(AA$2,Allocation!$J$4:$J$32,0),MATCH($AM39,Allocation!$K$3:$AL$3,0))/100,"") ->  | AB39: =IFERROR(INDEX(Allocation!$K$4:$AL$32,MATCH(AB$2,Allocation!$J$4:$J$32,0),MATCH($AM39,Allocation!$K$3:$AL$3,0))/100,"") ->  | AC39: =IFERROR(INDEX(Allocation!$K$4:$AL$32,MATCH(AC$2,Allocation!$J$4:$J$32,0),MATCH($AM39,Allocation!$K$3:$AL$3,0))/100,"") ->  | AD39: =IFERROR(INDEX(Allocation!$K$4:$AL$32,MATCH(AD$2,Allocation!$J$4:$J$32,0),MATCH($AM39,Allocation!$K$3:$AL$3,0))/100,"") ->  | AE39: =IFERROR(INDEX(Allocation!$K$4:$AL$32,MATCH(AE$2,Allocation!$J$4:$J$32,0),MATCH($AM39,Allocation!$K$3:$AL$3,0))/100,"") ->  | AF39: =IFERROR(INDEX(Allocation!$K$4:$AL$32,MATCH(AF$2,Allocation!$J$4:$J$32,0),MATCH($AM39,Allocation!$K$3:$AL$3,0))/100,"") ->  | AG39: =IFERROR(INDEX(Allocation!$K$4:$AL$32,MATCH(AG$2,Allocation!$J$4:$J$32,0),MATCH($AM39,Allocation!$K$3:$AL$3,0))/100,"") ->  | AH39: =IFERROR(INDEX(Allocation!$K$4:$AL$32,MATCH(AH$2,Allocation!$J$4:$J$32,0),MATCH($AM39,Allocation!$K$3:$AL$3,0))/100,"") ->  | AI39: 0 | AK39: 0 | AL39: =VLOOKUP($E39,Allocation!$J$40:$M$65,4,FALSE) ->  | AM39: =VLOOKUP($E39,Allocation!$J$40:$M$65,3,FALSE) -> 
F40: =IFERROR(INDEX(Allocation!$K$4:$AL$32,MATCH(F$2,Allocation!$J$4:$J$32,0),MATCH($AM40,Allocation!$K$3:$AL$3,0))/100,"") ->  | G40: =IFERROR(INDEX(Allocation!$K$4:$AL$32,MATCH(G$2,Allocation!$J$4:$J$32,0),MATCH($AM40,Allocation!$K$3:$AL$3,0))/100,"") ->  | H40: =IFERROR(INDEX(Allocation!$K$4:$AL$32,MATCH(H$2,Allocation!$J$4:$J$32,0),MATCH($AM40,Allocation!$K$3:$AL$3,0))/100,"") ->  | I40: =IFERROR(INDEX(Allocation!$K$4:$AL$32,MATCH(I$2,Allocation!$J$4:$J$32,0),MATCH($AM40,Allocation!$K$3:$AL$3,0))/100,"") ->  | J40: =IFERROR(INDEX(Allocation!$K$4:$AL$32,MATCH(J$2,Allocation!$J$4:$J$32,0),MATCH($AM40,Allocation!$K$3:$AL$3,0))/100,"") ->  | K40: =IFERROR(INDEX(Allocation!$K$4:$AL$32,MATCH(K$2,Allocation!$J$4:$J$32,0),MATCH($AM40,Allocation!$K$3:$AL$3,0))/100,"") ->  | L40: =IFERROR(INDEX(Allocation!$K$4:$AL$32,MATCH(L$2,Allocation!$J$4:$J$32,0),MATCH($AM40,Allocation!$K$3:$AL$3,0))/100,"") ->  | M40: =IFERROR(INDEX(Allocation!$K$4:$AL$32,MATCH(M$2,Allocation!$J$4:$J$32,0),MATCH($AM40,Allocation!$K$3:$AL$3,0))/100,"") ->  | N40: =IFERROR(INDEX(Allocation!$K$4:$AL$32,MATCH(N$2,Allocation!$J$4:$J$32,0),MATCH($AM40,Allocation!$K$3:$AL$3,0))/100,"") ->  | O40: =IFERROR(INDEX(Allocation!$K$4:$AL$32,MATCH(O$2,Allocation!$J$4:$J$32,0),MATCH($AM40,Allocation!$K$3:$AL$3,0))/100,"") ->  | P40: =IFERROR(INDEX(Allocation!$K$4:$AL$32,MATCH(P$2,Allocation!$J$4:$J$32,0),MATCH($AM40,Allocation!$K$3:$AL$3,0))/100,"") ->  | Q40: =IFERROR(INDEX(Allocation!$K$4:$AL$32,MATCH(Q$2,Allocation!$J$4:$J$32,0),MATCH($AM40,Allocation!$K$3:$AL$3,0))/100,"") ->  | R40: =IFERROR(INDEX(Allocation!$K$4:$AL$32,MATCH(R$2,Allocation!$J$4:$J$32,0),MATCH($AM40,Allocation!$K$3:$AL$3,0))/100,"") ->  | S40: =IFERROR(INDEX(Allocation!$K$4:$AL$32,MATCH(S$2,Allocation!$J$4:$J$32,0),MATCH($AM40,Allocation!$K$3:$AL$3,0))/100,"") ->  | T40: =IFERROR(INDEX(Allocation!$K$4:$AL$32,MATCH(T$2,Allocation!$J$4:$J$32,0),MATCH($AM40,Allocation!$K$3:$AL$3,0))/100,"") ->  | U40: =IFERROR(INDEX(Allocation!$K$4:$AL$32,MATCH(U$2,Allocation!$J$4:$J$32,0),MATCH($AM40,Allocation!$K$3:$AL$3,0))/100,"") ->  | V40: =IFERROR(INDEX(Allocation!$K$4:$AL$32,MATCH(V$2,Allocation!$J$4:$J$32,0),MATCH($AM40,Allocation!$K$3:$AL$3,0))/100,"") ->  | W40: =IFERROR(INDEX(Allocation!$K$4:$AL$32,MATCH(W$2,Allocation!$J$4:$J$32,0),MATCH($AM40,Allocation!$K$3:$AL$3,0))/100,"") ->  | X40: =IFERROR(INDEX(Allocation!$K$4:$AL$32,MATCH(X$2,Allocation!$J$4:$J$32,0),MATCH($AM40,Allocation!$K$3:$AL$3,0))/100,"") ->  | Y40: =IFERROR(INDEX(Allocation!$K$4:$AL$32,MATCH(Y$2,Allocation!$J$4:$J$32,0),MATCH($AM40,Allocation!$K$3:$AL$3,0))/100,"") ->  | Z40: =IFERROR(INDEX(Allocation!$K$4:$AL$32,MATCH(Z$2,Allocation!$J$4:$J$32,0),MATCH($AM40,Allocation!$K$3:$AL$3,0))/100,"") ->  | AA40: =IFERROR(INDEX(Allocation!$K$4:$AL$32,MATCH(AA$2,Allocation!$J$4:$J$32,0),MATCH($AM40,Allocation!$K$3:$AL$3,0))/100,"") ->  | AB40: =IFERROR(INDEX(Allocation!$K$4:$AL$32,MATCH(AB$2,Allocation!$J$4:$J$32,0),MATCH($AM40,Allocation!$K$3:$AL$3,0))/100,"") ->  | AC40: =IFERROR(INDEX(Allocation!$K$4:$AL$32,MATCH(AC$2,Allocation!$J$4:$J$32,0),MATCH($AM40,Allocation!$K$3:$AL$3,0))/100,"") ->  | AD40: =IFERROR(INDEX(Allocation!$K$4:$AL$32,MATCH(AD$2,Allocation!$J$4:$J$32,0),MATCH($AM40,Allocation!$K$3:$AL$3,0))/100,"") ->  | AE40: =IFERROR(INDEX(Allocation!$K$4:$AL$32,MATCH(AE$2,Allocation!$J$4:$J$32,0),MATCH($AM40,Allocation!$K$3:$AL$3,0))/100,"") ->  | AF40: =IFERROR(INDEX(Allocation!$K$4:$AL$32,MATCH(AF$2,Allocation!$J$4:$J$32,0),MATCH($AM40,Allocation!$K$3:$AL$3,0))/100,"") ->  | AG40: =IFERROR(INDEX(Allocation!$K$4:$AL$32,MATCH(AG$2,Allocation!$J$4:$J$32,0),MATCH($AM40,Allocation!$K$3:$AL$3,0))/100,"") ->  | AH40: =IFERROR(INDEX(Allocation!$K$4:$AL$32,MATCH(AH$2,Allocation!$J$4:$J$32,0),MATCH($AM40,Allocation!$K$3:$AL$3,0))/100,"") ->  | AI40: 0 | AK40: 0 | AL40: =VLOOKUP($E40,Allocation!$J$40:$M$65,4,FALSE) ->  | AM40: =VLOOKUP($E40,Allocation!$J$40:$M$65,3,FALSE) -> 
F41: =IFERROR(INDEX(Allocation!$K$4:$AL$32,MATCH(F$2,Allocation!$J$4:$J$32,0),MATCH($AM41,Allocation!$K$3:$AL$3,0))/100,"") ->  | G41: =IFERROR(INDEX(Allocation!$K$4:$AL$32,MATCH(G$2,Allocation!$J$4:$J$32,0),MATCH($AM41,Allocation!$K$3:$AL$3,0))/100,"") ->  | H41: =IFERROR(INDEX(Allocation!$K$4:$AL$32,MATCH(H$2,Allocation!$J$4:$J$32,0),MATCH($AM41,Allocation!$K$3:$AL$3,0))/100,"") ->  | I41: =IFERROR(INDEX(Allocation!$K$4:$AL$32,MATCH(I$2,Allocation!$J$4:$J$32,0),MATCH($AM41,Allocation!$K$3:$AL$3,0))/100,"") ->  | J41: =IFERROR(INDEX(Allocation!$K$4:$AL$32,MATCH(J$2,Allocation!$J$4:$J$32,0),MATCH($AM41,Allocation!$K$3:$AL$3,0))/100,"") ->  | K41: =IFERROR(INDEX(Allocation!$K$4:$AL$32,MATCH(K$2,Allocation!$J$4:$J$32,0),MATCH($AM41,Allocation!$K$3:$AL$3,0))/100,"") ->  | L41: =IFERROR(INDEX(Allocation!$K$4:$AL$32,MATCH(L$2,Allocation!$J$4:$J$32,0),MATCH($AM41,Allocation!$K$3:$AL$3,0))/100,"") ->  | M41: =IFERROR(INDEX(Allocation!$K$4:$AL$32,MATCH(M$2,Allocation!$J$4:$J$32,0),MATCH($AM41,Allocation!$K$3:$AL$3,0))/100,"") ->  | N41: =IFERROR(INDEX(Allocation!$K$4:$AL$32,MATCH(N$2,Allocation!$J$4:$J$32,0),MATCH($AM41,Allocation!$K$3:$AL$3,0))/100,"") ->  | O41: =IFERROR(INDEX(Allocation!$K$4:$AL$32,MATCH(O$2,Allocation!$J$4:$J$32,0),MATCH($AM41,Allocation!$K$3:$AL$3,0))/100,"") ->  | P41: =IFERROR(INDEX(Allocation!$K$4:$AL$32,MATCH(P$2,Allocation!$J$4:$J$32,0),MATCH($AM41,Allocation!$K$3:$AL$3,0))/100,"") ->  | Q41: =IFERROR(INDEX(Allocation!$K$4:$AL$32,MATCH(Q$2,Allocation!$J$4:$J$32,0),MATCH($AM41,Allocation!$K$3:$AL$3,0))/100,"") ->  | R41: =IFERROR(INDEX(Allocation!$K$4:$AL$32,MATCH(R$2,Allocation!$J$4:$J$32,0),MATCH($AM41,Allocation!$K$3:$AL$3,0))/100,"") ->  | S41: =IFERROR(INDEX(Allocation!$K$4:$AL$32,MATCH(S$2,Allocation!$J$4:$J$32,0),MATCH($AM41,Allocation!$K$3:$AL$3,0))/100,"") ->  | T41: =IFERROR(INDEX(Allocation!$K$4:$AL$32,MATCH(T$2,Allocation!$J$4:$J$32,0),MATCH($AM41,Allocation!$K$3:$AL$3,0))/100,"") ->  | U41: =IFERROR(INDEX(Allocation!$K$4:$AL$32,MATCH(U$2,Allocation!$J$4:$J$32,0),MATCH($AM41,Allocation!$K$3:$AL$3,0))/100,"") ->  | V41: =IFERROR(INDEX(Allocation!$K$4:$AL$32,MATCH(V$2,Allocation!$J$4:$J$32,0),MATCH($AM41,Allocation!$K$3:$AL$3,0))/100,"") ->  | W41: =IFERROR(INDEX(Allocation!$K$4:$AL$32,MATCH(W$2,Allocation!$J$4:$J$32,0),MATCH($AM41,Allocation!$K$3:$AL$3,0))/100,"") ->  | X41: =IFERROR(INDEX(Allocation!$K$4:$AL$32,MATCH(X$2,Allocation!$J$4:$J$32,0),MATCH($AM41,Allocation!$K$3:$AL$3,0))/100,"") ->  | Y41: =IFERROR(INDEX(Allocation!$K$4:$AL$32,MATCH(Y$2,Allocation!$J$4:$J$32,0),MATCH($AM41,Allocation!$K$3:$AL$3,0))/100,"") ->  | Z41: =IFERROR(INDEX(Allocation!$K$4:$AL$32,MATCH(Z$2,Allocation!$J$4:$J$32,0),MATCH($AM41,Allocation!$K$3:$AL$3,0))/100,"") ->  | AA41: =IFERROR(INDEX(Allocation!$K$4:$AL$32,MATCH(AA$2,Allocation!$J$4:$J$32,0),MATCH($AM41,Allocation!$K$3:$AL$3,0))/100,"") ->  | AB41: =IFERROR(INDEX(Allocation!$K$4:$AL$32,MATCH(AB$2,Allocation!$J$4:$J$32,0),MATCH($AM41,Allocation!$K$3:$AL$3,0))/100,"") ->  | AC41: =IFERROR(INDEX(Allocation!$K$4:$AL$32,MATCH(AC$2,Allocation!$J$4:$J$32,0),MATCH($AM41,Allocation!$K$3:$AL$3,0))/100,"") ->  | AD41: =IFERROR(INDEX(Allocation!$K$4:$AL$32,MATCH(AD$2,Allocation!$J$4:$J$32,0),MATCH($AM41,Allocation!$K$3:$AL$3,0))/100,"") ->  | AE41: =IFERROR(INDEX(Allocation!$K$4:$AL$32,MATCH(AE$2,Allocation!$J$4:$J$32,0),MATCH($AM41,Allocation!$K$3:$AL$3,0))/100,"") ->  | AF41: =IFERROR(INDEX(Allocation!$K$4:$AL$32,MATCH(AF$2,Allocation!$J$4:$J$32,0),MATCH($AM41,Allocation!$K$3:$AL$3,0))/100,"") ->  | AG41: =IFERROR(INDEX(Allocation!$K$4:$AL$32,MATCH(AG$2,Allocation!$J$4:$J$32,0),MATCH($AM41,Allocation!$K$3:$AL$3,0))/100,"") ->  | AH41: =IFERROR(INDEX(Allocation!$K$4:$AL$32,MATCH(AH$2,Allocation!$J$4:$J$32,0),MATCH($AM41,Allocation!$K$3:$AL$3,0))/100,"") ->  | AI41: 0 | AK41: 0 | AL41: =VLOOKUP($E41,Allocation!$J$40:$M$65,4,FALSE) ->  | AM41: =VLOOKUP($E41,Allocation!$J$40:$M$65,3,FALSE) -> 
F42: =IFERROR(INDEX(Allocation!$K$4:$AL$32,MATCH(F$2,Allocation!$J$4:$J$32,0),MATCH($AM42,Allocation!$K$3:$AL$3,0))/100,"") ->  | G42: =IFERROR(INDEX(Allocation!$K$4:$AL$32,MATCH(G$2,Allocation!$J$4:$J$32,0),MATCH($AM42,Allocation!$K$3:$AL$3,0))/100,"") ->  | H42: =IFERROR(INDEX(Allocation!$K$4:$AL$32,MATCH(H$2,Allocation!$J$4:$J$32,0),MATCH($AM42,Allocation!$K$3:$AL$3,0))/100,"") ->  | I42: =IFERROR(INDEX(Allocation!$K$4:$AL$32,MATCH(I$2,Allocation!$J$4:$J$32,0),MATCH($AM42,Allocation!$K$3:$AL$3,0))/100,"") ->  | J42: =IFERROR(INDEX(Allocation!$K$4:$AL$32,MATCH(J$2,Allocation!$J$4:$J$32,0),MATCH($AM42,Allocation!$K$3:$AL$3,0))/100,"") ->  | K42: =IFERROR(INDEX(Allocation!$K$4:$AL$32,MATCH(K$2,Allocation!$J$4:$J$32,0),MATCH($AM42,Allocation!$K$3:$AL$3,0))/100,"") ->  | L42: =IFERROR(INDEX(Allocation!$K$4:$AL$32,MATCH(L$2,Allocation!$J$4:$J$32,0),MATCH($AM42,Allocation!$K$3:$AL$3,0))/100,"") ->  | M42: =IFERROR(INDEX(Allocation!$K$4:$AL$32,MATCH(M$2,Allocation!$J$4:$J$32,0),MATCH($AM42,Allocation!$K$3:$AL$3,0))/100,"") ->  | N42: =IFERROR(INDEX(Allocation!$K$4:$AL$32,MATCH(N$2,Allocation!$J$4:$J$32,0),MATCH($AM42,Allocation!$K$3:$AL$3,0))/100,"") ->  | O42: =IFERROR(INDEX(Allocation!$K$4:$AL$32,MATCH(O$2,Allocation!$J$4:$J$32,0),MATCH($AM42,Allocation!$K$3:$AL$3,0))/100,"") ->  | P42: =IFERROR(INDEX(Allocation!$K$4:$AL$32,MATCH(P$2,Allocation!$J$4:$J$32,0),MATCH($AM42,Allocation!$K$3:$AL$3,0))/100,"") ->  | Q42: =IFERROR(INDEX(Allocation!$K$4:$AL$32,MATCH(Q$2,Allocation!$J$4:$J$32,0),MATCH($AM42,Allocation!$K$3:$AL$3,0))/100,"") ->  | R42: =IFERROR(INDEX(Allocation!$K$4:$AL$32,MATCH(R$2,Allocation!$J$4:$J$32,0),MATCH($AM42,Allocation!$K$3:$AL$3,0))/100,"") ->  | S42: =IFERROR(INDEX(Allocation!$K$4:$AL$32,MATCH(S$2,Allocation!$J$4:$J$32,0),MATCH($AM42,Allocation!$K$3:$AL$3,0))/100,"") ->  | T42: =IFERROR(INDEX(Allocation!$K$4:$AL$32,MATCH(T$2,Allocation!$J$4:$J$32,0),MATCH($AM42,Allocation!$K$3:$AL$3,0))/100,"") ->  | U42: =IFERROR(INDEX(Allocation!$K$4:$AL$32,MATCH(U$2,Allocation!$J$4:$J$32,0),MATCH($AM42,Allocation!$K$3:$AL$3,0))/100,"") ->  | V42: =IFERROR(INDEX(Allocation!$K$4:$AL$32,MATCH(V$2,Allocation!$J$4:$J$32,0),MATCH($AM42,Allocation!$K$3:$AL$3,0))/100,"") ->  | W42: =IFERROR(INDEX(Allocation!$K$4:$AL$32,MATCH(W$2,Allocation!$J$4:$J$32,0),MATCH($AM42,Allocation!$K$3:$AL$3,0))/100,"") ->  | X42: =IFERROR(INDEX(Allocation!$K$4:$AL$32,MATCH(X$2,Allocation!$J$4:$J$32,0),MATCH($AM42,Allocation!$K$3:$AL$3,0))/100,"") ->  | Y42: =IFERROR(INDEX(Allocation!$K$4:$AL$32,MATCH(Y$2,Allocation!$J$4:$J$32,0),MATCH($AM42,Allocation!$K$3:$AL$3,0))/100,"") ->  | Z42: =IFERROR(INDEX(Allocation!$K$4:$AL$32,MATCH(Z$2,Allocation!$J$4:$J$32,0),MATCH($AM42,Allocation!$K$3:$AL$3,0))/100,"") ->  | AA42: =IFERROR(INDEX(Allocation!$K$4:$AL$32,MATCH(AA$2,Allocation!$J$4:$J$32,0),MATCH($AM42,Allocation!$K$3:$AL$3,0))/100,"") ->  | AB42: =IFERROR(INDEX(Allocation!$K$4:$AL$32,MATCH(AB$2,Allocation!$J$4:$J$32,0),MATCH($AM42,Allocation!$K$3:$AL$3,0))/100,"") ->  | AC42: =IFERROR(INDEX(Allocation!$K$4:$AL$32,MATCH(AC$2,Allocation!$J$4:$J$32,0),MATCH($AM42,Allocation!$K$3:$AL$3,0))/100,"") ->  | AD42: =IFERROR(INDEX(Allocation!$K$4:$AL$32,MATCH(AD$2,Allocation!$J$4:$J$32,0),MATCH($AM42,Allocation!$K$3:$AL$3,0))/100,"") ->  | AE42: =IFERROR(INDEX(Allocation!$K$4:$AL$32,MATCH(AE$2,Allocation!$J$4:$J$32,0),MATCH($AM42,Allocation!$K$3:$AL$3,0))/100,"") ->  | AF42: =IFERROR(INDEX(Allocation!$K$4:$AL$32,MATCH(AF$2,Allocation!$J$4:$J$32,0),MATCH($AM42,Allocation!$K$3:$AL$3,0))/100,"") ->  | AG42: =IFERROR(INDEX(Allocation!$K$4:$AL$32,MATCH(AG$2,Allocation!$J$4:$J$32,0),MATCH($AM42,Allocation!$K$3:$AL$3,0))/100,"") ->  | AH42: =IFERROR(INDEX(Allocation!$K$4:$AL$32,MATCH(AH$2,Allocation!$J$4:$J$32,0),MATCH($AM42,Allocation!$K$3:$AL$3,0))/100,"") ->  | AI42: 0 | AK42: 0 | AL42: =VLOOKUP($E42,Allocation!$J$40:$M$65,4,FALSE) ->  | AM42: =VLOOKUP($E42,Allocation!$J$40:$M$65,3,FALSE) -> 
F43: =IFERROR(INDEX(Allocation!$K$4:$AL$32,MATCH(F$2,Allocation!$J$4:$J$32,0),MATCH($AM43,Allocation!$K$3:$AL$3,0))/100,"") ->  | G43: =IFERROR(INDEX(Allocation!$K$4:$AL$32,MATCH(G$2,Allocation!$J$4:$J$32,0),MATCH($AM43,Allocation!$K$3:$AL$3,0))/100,"") ->  | H43: =IFERROR(INDEX(Allocation!$K$4:$AL$32,MATCH(H$2,Allocation!$J$4:$J$32,0),MATCH($AM43,Allocation!$K$3:$AL$3,0))/100,"") ->  | I43: =IFERROR(INDEX(Allocation!$K$4:$AL$32,MATCH(I$2,Allocation!$J$4:$J$32,0),MATCH($AM43,Allocation!$K$3:$AL$3,0))/100,"") ->  | J43: =IFERROR(INDEX(Allocation!$K$4:$AL$32,MATCH(J$2,Allocation!$J$4:$J$32,0),MATCH($AM43,Allocation!$K$3:$AL$3,0))/100,"") ->  | K43: =IFERROR(INDEX(Allocation!$K$4:$AL$32,MATCH(K$2,Allocation!$J$4:$J$32,0),MATCH($AM43,Allocation!$K$3:$AL$3,0))/100,"") ->  | L43: =IFERROR(INDEX(Allocation!$K$4:$AL$32,MATCH(L$2,Allocation!$J$4:$J$32,0),MATCH($AM43,Allocation!$K$3:$AL$3,0))/100,"") ->  | M43: =IFERROR(INDEX(Allocation!$K$4:$AL$32,MATCH(M$2,Allocation!$J$4:$J$32,0),MATCH($AM43,Allocation!$K$3:$AL$3,0))/100,"") ->  | N43: =IFERROR(INDEX(Allocation!$K$4:$AL$32,MATCH(N$2,Allocation!$J$4:$J$32,0),MATCH($AM43,Allocation!$K$3:$AL$3,0))/100,"") ->  | O43: =IFERROR(INDEX(Allocation!$K$4:$AL$32,MATCH(O$2,Allocation!$J$4:$J$32,0),MATCH($AM43,Allocation!$K$3:$AL$3,0))/100,"") ->  | P43: =IFERROR(INDEX(Allocation!$K$4:$AL$32,MATCH(P$2,Allocation!$J$4:$J$32,0),MATCH($AM43,Allocation!$K$3:$AL$3,0))/100,"") ->  | Q43: =IFERROR(INDEX(Allocation!$K$4:$AL$32,MATCH(Q$2,Allocation!$J$4:$J$32,0),MATCH($AM43,Allocation!$K$3:$AL$3,0))/100,"") ->  | R43: =IFERROR(INDEX(Allocation!$K$4:$AL$32,MATCH(R$2,Allocation!$J$4:$J$32,0),MATCH($AM43,Allocation!$K$3:$AL$3,0))/100,"") ->  | S43: =IFERROR(INDEX(Allocation!$K$4:$AL$32,MATCH(S$2,Allocation!$J$4:$J$32,0),MATCH($AM43,Allocation!$K$3:$AL$3,0))/100,"") ->  | T43: =IFERROR(INDEX(Allocation!$K$4:$AL$32,MATCH(T$2,Allocation!$J$4:$J$32,0),MATCH($AM43,Allocation!$K$3:$AL$3,0))/100,"") ->  | U43: =IFERROR(INDEX(Allocation!$K$4:$AL$32,MATCH(U$2,Allocation!$J$4:$J$32,0),MATCH($AM43,Allocation!$K$3:$AL$3,0))/100,"") ->  | V43: =IFERROR(INDEX(Allocation!$K$4:$AL$32,MATCH(V$2,Allocation!$J$4:$J$32,0),MATCH($AM43,Allocation!$K$3:$AL$3,0))/100,"") ->  | W43: =IFERROR(INDEX(Allocation!$K$4:$AL$32,MATCH(W$2,Allocation!$J$4:$J$32,0),MATCH($AM43,Allocation!$K$3:$AL$3,0))/100,"") ->  | X43: =IFERROR(INDEX(Allocation!$K$4:$AL$32,MATCH(X$2,Allocation!$J$4:$J$32,0),MATCH($AM43,Allocation!$K$3:$AL$3,0))/100,"") ->  | Y43: =IFERROR(INDEX(Allocation!$K$4:$AL$32,MATCH(Y$2,Allocation!$J$4:$J$32,0),MATCH($AM43,Allocation!$K$3:$AL$3,0))/100,"") ->  | Z43: =IFERROR(INDEX(Allocation!$K$4:$AL$32,MATCH(Z$2,Allocation!$J$4:$J$32,0),MATCH($AM43,Allocation!$K$3:$AL$3,0))/100,"") ->  | AA43: =IFERROR(INDEX(Allocation!$K$4:$AL$32,MATCH(AA$2,Allocation!$J$4:$J$32,0),MATCH($AM43,Allocation!$K$3:$AL$3,0))/100,"") ->  | AB43: =IFERROR(INDEX(Allocation!$K$4:$AL$32,MATCH(AB$2,Allocation!$J$4:$J$32,0),MATCH($AM43,Allocation!$K$3:$AL$3,0))/100,"") ->  | AC43: =IFERROR(INDEX(Allocation!$K$4:$AL$32,MATCH(AC$2,Allocation!$J$4:$J$32,0),MATCH($AM43,Allocation!$K$3:$AL$3,0))/100,"") ->  | AD43: =IFERROR(INDEX(Allocation!$K$4:$AL$32,MATCH(AD$2,Allocation!$J$4:$J$32,0),MATCH($AM43,Allocation!$K$3:$AL$3,0))/100,"") ->  | AE43: =IFERROR(INDEX(Allocation!$K$4:$AL$32,MATCH(AE$2,Allocation!$J$4:$J$32,0),MATCH($AM43,Allocation!$K$3:$AL$3,0))/100,"") ->  | AF43: =IFERROR(INDEX(Allocation!$K$4:$AL$32,MATCH(AF$2,Allocation!$J$4:$J$32,0),MATCH($AM43,Allocation!$K$3:$AL$3,0))/100,"") ->  | AG43: =IFERROR(INDEX(Allocation!$K$4:$AL$32,MATCH(AG$2,Allocation!$J$4:$J$32,0),MATCH($AM43,Allocation!$K$3:$AL$3,0))/100,"") ->  | AH43: =IFERROR(INDEX(Allocation!$K$4:$AL$32,MATCH(AH$2,Allocation!$J$4:$J$32,0),MATCH($AM43,Allocation!$K$3:$AL$3,0))/100,"") ->  | AI43: 0 | AK43: 0 | AL43: =VLOOKUP($E43,Allocation!$J$40:$M$65,4,FALSE) ->  | AM43: =VLOOKUP($E43,Allocation!$J$40:$M$65,3,FALSE) -> 
F44: =IFERROR(INDEX(Allocation!$K$4:$AL$32,MATCH(F$2,Allocation!$J$4:$J$32,0),MATCH($AM44,Allocation!$K$3:$AL$3,0))/100,"") ->  | G44: =IFERROR(INDEX(Allocation!$K$4:$AL$32,MATCH(G$2,Allocation!$J$4:$J$32,0),MATCH($AM44,Allocation!$K$3:$AL$3,0))/100,"") ->  | H44: =IFERROR(INDEX(Allocation!$K$4:$AL$32,MATCH(H$2,Allocation!$J$4:$J$32,0),MATCH($AM44,Allocation!$K$3:$AL$3,0))/100,"") ->  | I44: =IFERROR(INDEX(Allocation!$K$4:$AL$32,MATCH(I$2,Allocation!$J$4:$J$32,0),MATCH($AM44,Allocation!$K$3:$AL$3,0))/100,"") ->  | J44: =IFERROR(INDEX(Allocation!$K$4:$AL$32,MATCH(J$2,Allocation!$J$4:$J$32,0),MATCH($AM44,Allocation!$K$3:$AL$3,0))/100,"") ->  | K44: =IFERROR(INDEX(Allocation!$K$4:$AL$32,MATCH(K$2,Allocation!$J$4:$J$32,0),MATCH($AM44,Allocation!$K$3:$AL$3,0))/100,"") ->  | L44: =IFERROR(INDEX(Allocation!$K$4:$AL$32,MATCH(L$2,Allocation!$J$4:$J$32,0),MATCH($AM44,Allocation!$K$3:$AL$3,0))/100,"") ->  | M44: =IFERROR(INDEX(Allocation!$K$4:$AL$32,MATCH(M$2,Allocation!$J$4:$J$32,0),MATCH($AM44,Allocation!$K$3:$AL$3,0))/100,"") ->  | N44: =IFERROR(INDEX(Allocation!$K$4:$AL$32,MATCH(N$2,Allocation!$J$4:$J$32,0),MATCH($AM44,Allocation!$K$3:$AL$3,0))/100,"") ->  | O44: =IFERROR(INDEX(Allocation!$K$4:$AL$32,MATCH(O$2,Allocation!$J$4:$J$32,0),MATCH($AM44,Allocation!$K$3:$AL$3,0))/100,"") ->  | P44: =IFERROR(INDEX(Allocation!$K$4:$AL$32,MATCH(P$2,Allocation!$J$4:$J$32,0),MATCH($AM44,Allocation!$K$3:$AL$3,0))/100,"") ->  | Q44: =IFERROR(INDEX(Allocation!$K$4:$AL$32,MATCH(Q$2,Allocation!$J$4:$J$32,0),MATCH($AM44,Allocation!$K$3:$AL$3,0))/100,"") ->  | R44: =IFERROR(INDEX(Allocation!$K$4:$AL$32,MATCH(R$2,Allocation!$J$4:$J$32,0),MATCH($AM44,Allocation!$K$3:$AL$3,0))/100,"") ->  | S44: =IFERROR(INDEX(Allocation!$K$4:$AL$32,MATCH(S$2,Allocation!$J$4:$J$32,0),MATCH($AM44,Allocation!$K$3:$AL$3,0))/100,"") ->  | T44: =IFERROR(INDEX(Allocation!$K$4:$AL$32,MATCH(T$2,Allocation!$J$4:$J$32,0),MATCH($AM44,Allocation!$K$3:$AL$3,0))/100,"") ->  | U44: =IFERROR(INDEX(Allocation!$K$4:$AL$32,MATCH(U$2,Allocation!$J$4:$J$32,0),MATCH($AM44,Allocation!$K$3:$AL$3,0))/100,"") ->  | V44: =IFERROR(INDEX(Allocation!$K$4:$AL$32,MATCH(V$2,Allocation!$J$4:$J$32,0),MATCH($AM44,Allocation!$K$3:$AL$3,0))/100,"") ->  | W44: =IFERROR(INDEX(Allocation!$K$4:$AL$32,MATCH(W$2,Allocation!$J$4:$J$32,0),MATCH($AM44,Allocation!$K$3:$AL$3,0))/100,"") ->  | X44: =IFERROR(INDEX(Allocation!$K$4:$AL$32,MATCH(X$2,Allocation!$J$4:$J$32,0),MATCH($AM44,Allocation!$K$3:$AL$3,0))/100,"") ->  | Y44: =IFERROR(INDEX(Allocation!$K$4:$AL$32,MATCH(Y$2,Allocation!$J$4:$J$32,0),MATCH($AM44,Allocation!$K$3:$AL$3,0))/100,"") ->  | Z44: =IFERROR(INDEX(Allocation!$K$4:$AL$32,MATCH(Z$2,Allocation!$J$4:$J$32,0),MATCH($AM44,Allocation!$K$3:$AL$3,0))/100,"") ->  | AA44: =IFERROR(INDEX(Allocation!$K$4:$AL$32,MATCH(AA$2,Allocation!$J$4:$J$32,0),MATCH($AM44,Allocation!$K$3:$AL$3,0))/100,"") ->  | AB44: =IFERROR(INDEX(Allocation!$K$4:$AL$32,MATCH(AB$2,Allocation!$J$4:$J$32,0),MATCH($AM44,Allocation!$K$3:$AL$3,0))/100,"") ->  | AC44: =IFERROR(INDEX(Allocation!$K$4:$AL$32,MATCH(AC$2,Allocation!$J$4:$J$32,0),MATCH($AM44,Allocation!$K$3:$AL$3,0))/100,"") ->  | AD44: =IFERROR(INDEX(Allocation!$K$4:$AL$32,MATCH(AD$2,Allocation!$J$4:$J$32,0),MATCH($AM44,Allocation!$K$3:$AL$3,0))/100,"") ->  | AE44: =IFERROR(INDEX(Allocation!$K$4:$AL$32,MATCH(AE$2,Allocation!$J$4:$J$32,0),MATCH($AM44,Allocation!$K$3:$AL$3,0))/100,"") ->  | AF44: =IFERROR(INDEX(Allocation!$K$4:$AL$32,MATCH(AF$2,Allocation!$J$4:$J$32,0),MATCH($AM44,Allocation!$K$3:$AL$3,0))/100,"") ->  | AG44: =IFERROR(INDEX(Allocation!$K$4:$AL$32,MATCH(AG$2,Allocation!$J$4:$J$32,0),MATCH($AM44,Allocation!$K$3:$AL$3,0))/100,"") ->  | AH44: =IFERROR(INDEX(Allocation!$K$4:$AL$32,MATCH(AH$2,Allocation!$J$4:$J$32,0),MATCH($AM44,Allocation!$K$3:$AL$3,0))/100,"") ->  | AI44: 0 | AK44: 0 | AL44: =VLOOKUP($E44,Allocation!$J$40:$M$65,4,FALSE) ->  | AM44: =VLOOKUP($E44,Allocation!$J$40:$M$65,3,FALSE) -> 
F45: =IFERROR(INDEX(Allocation!$K$4:$AL$32,MATCH(F$2,Allocation!$J$4:$J$32,0),MATCH($AM45,Allocation!$K$3:$AL$3,0))/100,"") ->  | G45: =IFERROR(INDEX(Allocation!$K$4:$AL$32,MATCH(G$2,Allocation!$J$4:$J$32,0),MATCH($AM45,Allocation!$K$3:$AL$3,0))/100,"") ->  | H45: =IFERROR(INDEX(Allocation!$K$4:$AL$32,MATCH(H$2,Allocation!$J$4:$J$32,0),MATCH($AM45,Allocation!$K$3:$AL$3,0))/100,"") ->  | I45: =IFERROR(INDEX(Allocation!$K$4:$AL$32,MATCH(I$2,Allocation!$J$4:$J$32,0),MATCH($AM45,Allocation!$K$3:$AL$3,0))/100,"") ->  | J45: =IFERROR(INDEX(Allocation!$K$4:$AL$32,MATCH(J$2,Allocation!$J$4:$J$32,0),MATCH($AM45,Allocation!$K$3:$AL$3,0))/100,"") ->  | K45: =IFERROR(INDEX(Allocation!$K$4:$AL$32,MATCH(K$2,Allocation!$J$4:$J$32,0),MATCH($AM45,Allocation!$K$3:$AL$3,0))/100,"") ->  | L45: =IFERROR(INDEX(Allocation!$K$4:$AL$32,MATCH(L$2,Allocation!$J$4:$J$32,0),MATCH($AM45,Allocation!$K$3:$AL$3,0))/100,"") ->  | M45: =IFERROR(INDEX(Allocation!$K$4:$AL$32,MATCH(M$2,Allocation!$J$4:$J$32,0),MATCH($AM45,Allocation!$K$3:$AL$3,0))/100,"") ->  | N45: =IFERROR(INDEX(Allocation!$K$4:$AL$32,MATCH(N$2,Allocation!$J$4:$J$32,0),MATCH($AM45,Allocation!$K$3:$AL$3,0))/100,"") ->  | O45: =IFERROR(INDEX(Allocation!$K$4:$AL$32,MATCH(O$2,Allocation!$J$4:$J$32,0),MATCH($AM45,Allocation!$K$3:$AL$3,0))/100,"") ->  | P45: =IFERROR(INDEX(Allocation!$K$4:$AL$32,MATCH(P$2,Allocation!$J$4:$J$32,0),MATCH($AM45,Allocation!$K$3:$AL$3,0))/100,"") ->  | Q45: =IFERROR(INDEX(Allocation!$K$4:$AL$32,MATCH(Q$2,Allocation!$J$4:$J$32,0),MATCH($AM45,Allocation!$K$3:$AL$3,0))/100,"") ->  | R45: =IFERROR(INDEX(Allocation!$K$4:$AL$32,MATCH(R$2,Allocation!$J$4:$J$32,0),MATCH($AM45,Allocation!$K$3:$AL$3,0))/100,"") ->  | S45: =IFERROR(INDEX(Allocation!$K$4:$AL$32,MATCH(S$2,Allocation!$J$4:$J$32,0),MATCH($AM45,Allocation!$K$3:$AL$3,0))/100,"") ->  | T45: =IFERROR(INDEX(Allocation!$K$4:$AL$32,MATCH(T$2,Allocation!$J$4:$J$32,0),MATCH($AM45,Allocation!$K$3:$AL$3,0))/100,"") ->  | U45: =IFERROR(INDEX(Allocation!$K$4:$AL$32,MATCH(U$2,Allocation!$J$4:$J$32,0),MATCH($AM45,Allocation!$K$3:$AL$3,0))/100,"") ->  | V45: =IFERROR(INDEX(Allocation!$K$4:$AL$32,MATCH(V$2,Allocation!$J$4:$J$32,0),MATCH($AM45,Allocation!$K$3:$AL$3,0))/100,"") ->  | W45: =IFERROR(INDEX(Allocation!$K$4:$AL$32,MATCH(W$2,Allocation!$J$4:$J$32,0),MATCH($AM45,Allocation!$K$3:$AL$3,0))/100,"") ->  | X45: =IFERROR(INDEX(Allocation!$K$4:$AL$32,MATCH(X$2,Allocation!$J$4:$J$32,0),MATCH($AM45,Allocation!$K$3:$AL$3,0))/100,"") ->  | Y45: =IFERROR(INDEX(Allocation!$K$4:$AL$32,MATCH(Y$2,Allocation!$J$4:$J$32,0),MATCH($AM45,Allocation!$K$3:$AL$3,0))/100,"") ->  | Z45: =IFERROR(INDEX(Allocation!$K$4:$AL$32,MATCH(Z$2,Allocation!$J$4:$J$32,0),MATCH($AM45,Allocation!$K$3:$AL$3,0))/100,"") ->  | AA45: =IFERROR(INDEX(Allocation!$K$4:$AL$32,MATCH(AA$2,Allocation!$J$4:$J$32,0),MATCH($AM45,Allocation!$K$3:$AL$3,0))/100,"") ->  | AB45: =IFERROR(INDEX(Allocation!$K$4:$AL$32,MATCH(AB$2,Allocation!$J$4:$J$32,0),MATCH($AM45,Allocation!$K$3:$AL$3,0))/100,"") ->  | AC45: =IFERROR(INDEX(Allocation!$K$4:$AL$32,MATCH(AC$2,Allocation!$J$4:$J$32,0),MATCH($AM45,Allocation!$K$3:$AL$3,0))/100,"") ->  | AD45: =IFERROR(INDEX(Allocation!$K$4:$AL$32,MATCH(AD$2,Allocation!$J$4:$J$32,0),MATCH($AM45,Allocation!$K$3:$AL$3,0))/100,"") ->  | AE45: =IFERROR(INDEX(Allocation!$K$4:$AL$32,MATCH(AE$2,Allocation!$J$4:$J$32,0),MATCH($AM45,Allocation!$K$3:$AL$3,0))/100,"") ->  | AF45: =IFERROR(INDEX(Allocation!$K$4:$AL$32,MATCH(AF$2,Allocation!$J$4:$J$32,0),MATCH($AM45,Allocation!$K$3:$AL$3,0))/100,"") ->  | AG45: =IFERROR(INDEX(Allocation!$K$4:$AL$32,MATCH(AG$2,Allocation!$J$4:$J$32,0),MATCH($AM45,Allocation!$K$3:$AL$3,0))/100,"") ->  | AH45: =IFERROR(INDEX(Allocation!$K$4:$AL$32,MATCH(AH$2,Allocation!$J$4:$J$32,0),MATCH($AM45,Allocation!$K$3:$AL$3,0))/100,"") ->  | AI45: 0 | AK45: 0 | AL45: =VLOOKUP($E45,Allocation!$J$40:$M$65,4,FALSE) ->  | AM45: =VLOOKUP($E45,Allocation!$J$40:$M$65,3,FALSE) -> 
F46: =IFERROR(INDEX(Allocation!$K$4:$AL$32,MATCH(F$2,Allocation!$J$4:$J$32,0),MATCH($AM46,Allocation!$K$3:$AL$3,0))/100,"") ->  | G46: =IFERROR(INDEX(Allocation!$K$4:$AL$32,MATCH(G$2,Allocation!$J$4:$J$32,0),MATCH($AM46,Allocation!$K$3:$AL$3,0))/100,"") ->  | H46: =IFERROR(INDEX(Allocation!$K$4:$AL$32,MATCH(H$2,Allocation!$J$4:$J$32,0),MATCH($AM46,Allocation!$K$3:$AL$3,0))/100,"") ->  | I46: =IFERROR(INDEX(Allocation!$K$4:$AL$32,MATCH(I$2,Allocation!$J$4:$J$32,0),MATCH($AM46,Allocation!$K$3:$AL$3,0))/100,"") ->  | J46: =IFERROR(INDEX(Allocation!$K$4:$AL$32,MATCH(J$2,Allocation!$J$4:$J$32,0),MATCH($AM46,Allocation!$K$3:$AL$3,0))/100,"") ->  | K46: =IFERROR(INDEX(Allocation!$K$4:$AL$32,MATCH(K$2,Allocation!$J$4:$J$32,0),MATCH($AM46,Allocation!$K$3:$AL$3,0))/100,"") ->  | L46: =IFERROR(INDEX(Allocation!$K$4:$AL$32,MATCH(L$2,Allocation!$J$4:$J$32,0),MATCH($AM46,Allocation!$K$3:$AL$3,0))/100,"") ->  | M46: =IFERROR(INDEX(Allocation!$K$4:$AL$32,MATCH(M$2,Allocation!$J$4:$J$32,0),MATCH($AM46,Allocation!$K$3:$AL$3,0))/100,"") ->  | N46: =IFERROR(INDEX(Allocation!$K$4:$AL$32,MATCH(N$2,Allocation!$J$4:$J$32,0),MATCH($AM46,Allocation!$K$3:$AL$3,0))/100,"") ->  | O46: =IFERROR(INDEX(Allocation!$K$4:$AL$32,MATCH(O$2,Allocation!$J$4:$J$32,0),MATCH($AM46,Allocation!$K$3:$AL$3,0))/100,"") ->  | P46: =IFERROR(INDEX(Allocation!$K$4:$AL$32,MATCH(P$2,Allocation!$J$4:$J$32,0),MATCH($AM46,Allocation!$K$3:$AL$3,0))/100,"") ->  | Q46: =IFERROR(INDEX(Allocation!$K$4:$AL$32,MATCH(Q$2,Allocation!$J$4:$J$32,0),MATCH($AM46,Allocation!$K$3:$AL$3,0))/100,"") ->  | R46: =IFERROR(INDEX(Allocation!$K$4:$AL$32,MATCH(R$2,Allocation!$J$4:$J$32,0),MATCH($AM46,Allocation!$K$3:$AL$3,0))/100,"") ->  | S46: =IFERROR(INDEX(Allocation!$K$4:$AL$32,MATCH(S$2,Allocation!$J$4:$J$32,0),MATCH($AM46,Allocation!$K$3:$AL$3,0))/100,"") ->  | T46: =IFERROR(INDEX(Allocation!$K$4:$AL$32,MATCH(T$2,Allocation!$J$4:$J$32,0),MATCH($AM46,Allocation!$K$3:$AL$3,0))/100,"") ->  | U46: =IFERROR(INDEX(Allocation!$K$4:$AL$32,MATCH(U$2,Allocation!$J$4:$J$32,0),MATCH($AM46,Allocation!$K$3:$AL$3,0))/100,"") ->  | V46: =IFERROR(INDEX(Allocation!$K$4:$AL$32,MATCH(V$2,Allocation!$J$4:$J$32,0),MATCH($AM46,Allocation!$K$3:$AL$3,0))/100,"") ->  | W46: =IFERROR(INDEX(Allocation!$K$4:$AL$32,MATCH(W$2,Allocation!$J$4:$J$32,0),MATCH($AM46,Allocation!$K$3:$AL$3,0))/100,"") ->  | X46: =IFERROR(INDEX(Allocation!$K$4:$AL$32,MATCH(X$2,Allocation!$J$4:$J$32,0),MATCH($AM46,Allocation!$K$3:$AL$3,0))/100,"") ->  | Y46: =IFERROR(INDEX(Allocation!$K$4:$AL$32,MATCH(Y$2,Allocation!$J$4:$J$32,0),MATCH($AM46,Allocation!$K$3:$AL$3,0))/100,"") ->  | Z46: =IFERROR(INDEX(Allocation!$K$4:$AL$32,MATCH(Z$2,Allocation!$J$4:$J$32,0),MATCH($AM46,Allocation!$K$3:$AL$3,0))/100,"") ->  | AA46: =IFERROR(INDEX(Allocation!$K$4:$AL$32,MATCH(AA$2,Allocation!$J$4:$J$32,0),MATCH($AM46,Allocation!$K$3:$AL$3,0))/100,"") ->  | AB46: =IFERROR(INDEX(Allocation!$K$4:$AL$32,MATCH(AB$2,Allocation!$J$4:$J$32,0),MATCH($AM46,Allocation!$K$3:$AL$3,0))/100,"") ->  | AC46: =IFERROR(INDEX(Allocation!$K$4:$AL$32,MATCH(AC$2,Allocation!$J$4:$J$32,0),MATCH($AM46,Allocation!$K$3:$AL$3,0))/100,"") ->  | AD46: =IFERROR(INDEX(Allocation!$K$4:$AL$32,MATCH(AD$2,Allocation!$J$4:$J$32,0),MATCH($AM46,Allocation!$K$3:$AL$3,0))/100,"") ->  | AE46: =IFERROR(INDEX(Allocation!$K$4:$AL$32,MATCH(AE$2,Allocation!$J$4:$J$32,0),MATCH($AM46,Allocation!$K$3:$AL$3,0))/100,"") ->  | AF46: =IFERROR(INDEX(Allocation!$K$4:$AL$32,MATCH(AF$2,Allocation!$J$4:$J$32,0),MATCH($AM46,Allocation!$K$3:$AL$3,0))/100,"") ->  | AG46: =IFERROR(INDEX(Allocation!$K$4:$AL$32,MATCH(AG$2,Allocation!$J$4:$J$32,0),MATCH($AM46,Allocation!$K$3:$AL$3,0))/100,"") ->  | AH46: =IFERROR(INDEX(Allocation!$K$4:$AL$32,MATCH(AH$2,Allocation!$J$4:$J$32,0),MATCH($AM46,Allocation!$K$3:$AL$3,0))/100,"") ->  | AI46: 0 | AK46: 0 | AL46: =VLOOKUP($E46,Allocation!$J$40:$M$65,4,FALSE) ->  | AM46: =VLOOKUP($E46,Allocation!$J$40:$M$65,3,FALSE) -> 
F47: =IFERROR(INDEX(Allocation!$K$4:$AL$32,MATCH(F$2,Allocation!$J$4:$J$32,0),MATCH($AM47,Allocation!$K$3:$AL$3,0))/100,"") ->  | G47: =IFERROR(INDEX(Allocation!$K$4:$AL$32,MATCH(G$2,Allocation!$J$4:$J$32,0),MATCH($AM47,Allocation!$K$3:$AL$3,0))/100,"") ->  | H47: =IFERROR(INDEX(Allocation!$K$4:$AL$32,MATCH(H$2,Allocation!$J$4:$J$32,0),MATCH($AM47,Allocation!$K$3:$AL$3,0))/100,"") ->  | I47: =IFERROR(INDEX(Allocation!$K$4:$AL$32,MATCH(I$2,Allocation!$J$4:$J$32,0),MATCH($AM47,Allocation!$K$3:$AL$3,0))/100,"") ->  | J47: =IFERROR(INDEX(Allocation!$K$4:$AL$32,MATCH(J$2,Allocation!$J$4:$J$32,0),MATCH($AM47,Allocation!$K$3:$AL$3,0))/100,"") ->  | K47: =IFERROR(INDEX(Allocation!$K$4:$AL$32,MATCH(K$2,Allocation!$J$4:$J$32,0),MATCH($AM47,Allocation!$K$3:$AL$3,0))/100,"") ->  | L47: =IFERROR(INDEX(Allocation!$K$4:$AL$32,MATCH(L$2,Allocation!$J$4:$J$32,0),MATCH($AM47,Allocation!$K$3:$AL$3,0))/100,"") ->  | M47: =IFERROR(INDEX(Allocation!$K$4:$AL$32,MATCH(M$2,Allocation!$J$4:$J$32,0),MATCH($AM47,Allocation!$K$3:$AL$3,0))/100,"") ->  | N47: =IFERROR(INDEX(Allocation!$K$4:$AL$32,MATCH(N$2,Allocation!$J$4:$J$32,0),MATCH($AM47,Allocation!$K$3:$AL$3,0))/100,"") ->  | O47: =IFERROR(INDEX(Allocation!$K$4:$AL$32,MATCH(O$2,Allocation!$J$4:$J$32,0),MATCH($AM47,Allocation!$K$3:$AL$3,0))/100,"") ->  | P47: =IFERROR(INDEX(Allocation!$K$4:$AL$32,MATCH(P$2,Allocation!$J$4:$J$32,0),MATCH($AM47,Allocation!$K$3:$AL$3,0))/100,"") ->  | Q47: =IFERROR(INDEX(Allocation!$K$4:$AL$32,MATCH(Q$2,Allocation!$J$4:$J$32,0),MATCH($AM47,Allocation!$K$3:$AL$3,0))/100,"") ->  | R47: =IFERROR(INDEX(Allocation!$K$4:$AL$32,MATCH(R$2,Allocation!$J$4:$J$32,0),MATCH($AM47,Allocation!$K$3:$AL$3,0))/100,"") ->  | S47: =IFERROR(INDEX(Allocation!$K$4:$AL$32,MATCH(S$2,Allocation!$J$4:$J$32,0),MATCH($AM47,Allocation!$K$3:$AL$3,0))/100,"") ->  | T47: =IFERROR(INDEX(Allocation!$K$4:$AL$32,MATCH(T$2,Allocation!$J$4:$J$32,0),MATCH($AM47,Allocation!$K$3:$AL$3,0))/100,"") ->  | U47: =IFERROR(INDEX(Allocation!$K$4:$AL$32,MATCH(U$2,Allocation!$J$4:$J$32,0),MATCH($AM47,Allocation!$K$3:$AL$3,0))/100,"") ->  | V47: =IFERROR(INDEX(Allocation!$K$4:$AL$32,MATCH(V$2,Allocation!$J$4:$J$32,0),MATCH($AM47,Allocation!$K$3:$AL$3,0))/100,"") ->  | W47: =IFERROR(INDEX(Allocation!$K$4:$AL$32,MATCH(W$2,Allocation!$J$4:$J$32,0),MATCH($AM47,Allocation!$K$3:$AL$3,0))/100,"") ->  | X47: =IFERROR(INDEX(Allocation!$K$4:$AL$32,MATCH(X$2,Allocation!$J$4:$J$32,0),MATCH($AM47,Allocation!$K$3:$AL$3,0))/100,"") ->  | Y47: =IFERROR(INDEX(Allocation!$K$4:$AL$32,MATCH(Y$2,Allocation!$J$4:$J$32,0),MATCH($AM47,Allocation!$K$3:$AL$3,0))/100,"") ->  | Z47: =IFERROR(INDEX(Allocation!$K$4:$AL$32,MATCH(Z$2,Allocation!$J$4:$J$32,0),MATCH($AM47,Allocation!$K$3:$AL$3,0))/100,"") ->  | AA47: =IFERROR(INDEX(Allocation!$K$4:$AL$32,MATCH(AA$2,Allocation!$J$4:$J$32,0),MATCH($AM47,Allocation!$K$3:$AL$3,0))/100,"") ->  | AB47: =IFERROR(INDEX(Allocation!$K$4:$AL$32,MATCH(AB$2,Allocation!$J$4:$J$32,0),MATCH($AM47,Allocation!$K$3:$AL$3,0))/100,"") ->  | AC47: =IFERROR(INDEX(Allocation!$K$4:$AL$32,MATCH(AC$2,Allocation!$J$4:$J$32,0),MATCH($AM47,Allocation!$K$3:$AL$3,0))/100,"") ->  | AD47: =IFERROR(INDEX(Allocation!$K$4:$AL$32,MATCH(AD$2,Allocation!$J$4:$J$32,0),MATCH($AM47,Allocation!$K$3:$AL$3,0))/100,"") ->  | AE47: =IFERROR(INDEX(Allocation!$K$4:$AL$32,MATCH(AE$2,Allocation!$J$4:$J$32,0),MATCH($AM47,Allocation!$K$3:$AL$3,0))/100,"") ->  | AF47: =IFERROR(INDEX(Allocation!$K$4:$AL$32,MATCH(AF$2,Allocation!$J$4:$J$32,0),MATCH($AM47,Allocation!$K$3:$AL$3,0))/100,"") ->  | AG47: =IFERROR(INDEX(Allocation!$K$4:$AL$32,MATCH(AG$2,Allocation!$J$4:$J$32,0),MATCH($AM47,Allocation!$K$3:$AL$3,0))/100,"") ->  | AH47: =IFERROR(INDEX(Allocation!$K$4:$AL$32,MATCH(AH$2,Allocation!$J$4:$J$32,0),MATCH($AM47,Allocation!$K$3:$AL$3,0))/100,"") ->  | AI47: 0 | AK47: 0 | AL47: =VLOOKUP($E47,Allocation!$J$40:$M$65,4,FALSE) ->  | AM47: =VLOOKUP($E47,Allocation!$J$40:$M$65,3,FALSE) -> 
F48: =IFERROR(INDEX(Allocation!$K$4:$AL$32,MATCH(F$2,Allocation!$J$4:$J$32,0),MATCH($AM48,Allocation!$K$3:$AL$3,0))/100,"") ->  | G48: =IFERROR(INDEX(Allocation!$K$4:$AL$32,MATCH(G$2,Allocation!$J$4:$J$32,0),MATCH($AM48,Allocation!$K$3:$AL$3,0))/100,"") ->  | H48: =IFERROR(INDEX(Allocation!$K$4:$AL$32,MATCH(H$2,Allocation!$J$4:$J$32,0),MATCH($AM48,Allocation!$K$3:$AL$3,0))/100,"") ->  | I48: =IFERROR(INDEX(Allocation!$K$4:$AL$32,MATCH(I$2,Allocation!$J$4:$J$32,0),MATCH($AM48,Allocation!$K$3:$AL$3,0))/100,"") ->  | J48: =IFERROR(INDEX(Allocation!$K$4:$AL$32,MATCH(J$2,Allocation!$J$4:$J$32,0),MATCH($AM48,Allocation!$K$3:$AL$3,0))/100,"") ->  | K48: =IFERROR(INDEX(Allocation!$K$4:$AL$32,MATCH(K$2,Allocation!$J$4:$J$32,0),MATCH($AM48,Allocation!$K$3:$AL$3,0))/100,"") ->  | L48: =IFERROR(INDEX(Allocation!$K$4:$AL$32,MATCH(L$2,Allocation!$J$4:$J$32,0),MATCH($AM48,Allocation!$K$3:$AL$3,0))/100,"") ->  | M48: =IFERROR(INDEX(Allocation!$K$4:$AL$32,MATCH(M$2,Allocation!$J$4:$J$32,0),MATCH($AM48,Allocation!$K$3:$AL$3,0))/100,"") ->  | N48: =IFERROR(INDEX(Allocation!$K$4:$AL$32,MATCH(N$2,Allocation!$J$4:$J$32,0),MATCH($AM48,Allocation!$K$3:$AL$3,0))/100,"") ->  | O48: =IFERROR(INDEX(Allocation!$K$4:$AL$32,MATCH(O$2,Allocation!$J$4:$J$32,0),MATCH($AM48,Allocation!$K$3:$AL$3,0))/100,"") ->  | P48: =IFERROR(INDEX(Allocation!$K$4:$AL$32,MATCH(P$2,Allocation!$J$4:$J$32,0),MATCH($AM48,Allocation!$K$3:$AL$3,0))/100,"") ->  | Q48: =IFERROR(INDEX(Allocation!$K$4:$AL$32,MATCH(Q$2,Allocation!$J$4:$J$32,0),MATCH($AM48,Allocation!$K$3:$AL$3,0))/100,"") ->  | R48: =IFERROR(INDEX(Allocation!$K$4:$AL$32,MATCH(R$2,Allocation!$J$4:$J$32,0),MATCH($AM48,Allocation!$K$3:$AL$3,0))/100,"") ->  | S48: =IFERROR(INDEX(Allocation!$K$4:$AL$32,MATCH(S$2,Allocation!$J$4:$J$32,0),MATCH($AM48,Allocation!$K$3:$AL$3,0))/100,"") ->  | T48: =IFERROR(INDEX(Allocation!$K$4:$AL$32,MATCH(T$2,Allocation!$J$4:$J$32,0),MATCH($AM48,Allocation!$K$3:$AL$3,0))/100,"") ->  | U48: =IFERROR(INDEX(Allocation!$K$4:$AL$32,MATCH(U$2,Allocation!$J$4:$J$32,0),MATCH($AM48,Allocation!$K$3:$AL$3,0))/100,"") ->  | V48: =IFERROR(INDEX(Allocation!$K$4:$AL$32,MATCH(V$2,Allocation!$J$4:$J$32,0),MATCH($AM48,Allocation!$K$3:$AL$3,0))/100,"") ->  | W48: =IFERROR(INDEX(Allocation!$K$4:$AL$32,MATCH(W$2,Allocation!$J$4:$J$32,0),MATCH($AM48,Allocation!$K$3:$AL$3,0))/100,"") ->  | X48: =IFERROR(INDEX(Allocation!$K$4:$AL$32,MATCH(X$2,Allocation!$J$4:$J$32,0),MATCH($AM48,Allocation!$K$3:$AL$3,0))/100,"") ->  | Y48: =IFERROR(INDEX(Allocation!$K$4:$AL$32,MATCH(Y$2,Allocation!$J$4:$J$32,0),MATCH($AM48,Allocation!$K$3:$AL$3,0))/100,"") ->  | Z48: =IFERROR(INDEX(Allocation!$K$4:$AL$32,MATCH(Z$2,Allocation!$J$4:$J$32,0),MATCH($AM48,Allocation!$K$3:$AL$3,0))/100,"") ->  | AA48: =IFERROR(INDEX(Allocation!$K$4:$AL$32,MATCH(AA$2,Allocation!$J$4:$J$32,0),MATCH($AM48,Allocation!$K$3:$AL$3,0))/100,"") ->  | AB48: =IFERROR(INDEX(Allocation!$K$4:$AL$32,MATCH(AB$2,Allocation!$J$4:$J$32,0),MATCH($AM48,Allocation!$K$3:$AL$3,0))/100,"") ->  | AC48: =IFERROR(INDEX(Allocation!$K$4:$AL$32,MATCH(AC$2,Allocation!$J$4:$J$32,0),MATCH($AM48,Allocation!$K$3:$AL$3,0))/100,"") ->  | AD48: =IFERROR(INDEX(Allocation!$K$4:$AL$32,MATCH(AD$2,Allocation!$J$4:$J$32,0),MATCH($AM48,Allocation!$K$3:$AL$3,0))/100,"") ->  | AE48: =IFERROR(INDEX(Allocation!$K$4:$AL$32,MATCH(AE$2,Allocation!$J$4:$J$32,0),MATCH($AM48,Allocation!$K$3:$AL$3,0))/100,"") ->  | AF48: =IFERROR(INDEX(Allocation!$K$4:$AL$32,MATCH(AF$2,Allocation!$J$4:$J$32,0),MATCH($AM48,Allocation!$K$3:$AL$3,0))/100,"") ->  | AG48: =IFERROR(INDEX(Allocation!$K$4:$AL$32,MATCH(AG$2,Allocation!$J$4:$J$32,0),MATCH($AM48,Allocation!$K$3:$AL$3,0))/100,"") ->  | AH48: =IFERROR(INDEX(Allocation!$K$4:$AL$32,MATCH(AH$2,Allocation!$J$4:$J$32,0),MATCH($AM48,Allocation!$K$3:$AL$3,0))/100,"") ->  | AI48: 0 | AK48: 0 | AL48: =VLOOKUP($E48,Allocation!$J$40:$M$65,4,FALSE) ->  | AM48: =VLOOKUP($E48,Allocation!$J$40:$M$65,3,FALSE) -> 
F49: =IFERROR(INDEX(Allocation!$K$4:$AL$32,MATCH(F$2,Allocation!$J$4:$J$32,0),MATCH($AM49,Allocation!$K$3:$AL$3,0))/100,"") ->  | G49: =IFERROR(INDEX(Allocation!$K$4:$AL$32,MATCH(G$2,Allocation!$J$4:$J$32,0),MATCH($AM49,Allocation!$K$3:$AL$3,0))/100,"") ->  | H49: =IFERROR(INDEX(Allocation!$K$4:$AL$32,MATCH(H$2,Allocation!$J$4:$J$32,0),MATCH($AM49,Allocation!$K$3:$AL$3,0))/100,"") ->  | I49: =IFERROR(INDEX(Allocation!$K$4:$AL$32,MATCH(I$2,Allocation!$J$4:$J$32,0),MATCH($AM49,Allocation!$K$3:$AL$3,0))/100,"") ->  | J49: =IFERROR(INDEX(Allocation!$K$4:$AL$32,MATCH(J$2,Allocation!$J$4:$J$32,0),MATCH($AM49,Allocation!$K$3:$AL$3,0))/100,"") ->  | K49: =IFERROR(INDEX(Allocation!$K$4:$AL$32,MATCH(K$2,Allocation!$J$4:$J$32,0),MATCH($AM49,Allocation!$K$3:$AL$3,0))/100,"") ->  | L49: =IFERROR(INDEX(Allocation!$K$4:$AL$32,MATCH(L$2,Allocation!$J$4:$J$32,0),MATCH($AM49,Allocation!$K$3:$AL$3,0))/100,"") ->  | M49: =IFERROR(INDEX(Allocation!$K$4:$AL$32,MATCH(M$2,Allocation!$J$4:$J$32,0),MATCH($AM49,Allocation!$K$3:$AL$3,0))/100,"") ->  | N49: =IFERROR(INDEX(Allocation!$K$4:$AL$32,MATCH(N$2,Allocation!$J$4:$J$32,0),MATCH($AM49,Allocation!$K$3:$AL$3,0))/100,"") ->  | O49: =IFERROR(INDEX(Allocation!$K$4:$AL$32,MATCH(O$2,Allocation!$J$4:$J$32,0),MATCH($AM49,Allocation!$K$3:$AL$3,0))/100,"") ->  | P49: =IFERROR(INDEX(Allocation!$K$4:$AL$32,MATCH(P$2,Allocation!$J$4:$J$32,0),MATCH($AM49,Allocation!$K$3:$AL$3,0))/100,"") ->  | Q49: =IFERROR(INDEX(Allocation!$K$4:$AL$32,MATCH(Q$2,Allocation!$J$4:$J$32,0),MATCH($AM49,Allocation!$K$3:$AL$3,0))/100,"") ->  | R49: =IFERROR(INDEX(Allocation!$K$4:$AL$32,MATCH(R$2,Allocation!$J$4:$J$32,0),MATCH($AM49,Allocation!$K$3:$AL$3,0))/100,"") ->  | S49: =IFERROR(INDEX(Allocation!$K$4:$AL$32,MATCH(S$2,Allocation!$J$4:$J$32,0),MATCH($AM49,Allocation!$K$3:$AL$3,0))/100,"") ->  | T49: =IFERROR(INDEX(Allocation!$K$4:$AL$32,MATCH(T$2,Allocation!$J$4:$J$32,0),MATCH($AM49,Allocation!$K$3:$AL$3,0))/100,"") ->  | U49: =IFERROR(INDEX(Allocation!$K$4:$AL$32,MATCH(U$2,Allocation!$J$4:$J$32,0),MATCH($AM49,Allocation!$K$3:$AL$3,0))/100,"") ->  | V49: =IFERROR(INDEX(Allocation!$K$4:$AL$32,MATCH(V$2,Allocation!$J$4:$J$32,0),MATCH($AM49,Allocation!$K$3:$AL$3,0))/100,"") ->  | W49: =IFERROR(INDEX(Allocation!$K$4:$AL$32,MATCH(W$2,Allocation!$J$4:$J$32,0),MATCH($AM49,Allocation!$K$3:$AL$3,0))/100,"") ->  | X49: =IFERROR(INDEX(Allocation!$K$4:$AL$32,MATCH(X$2,Allocation!$J$4:$J$32,0),MATCH($AM49,Allocation!$K$3:$AL$3,0))/100,"") ->  | Y49: =IFERROR(INDEX(Allocation!$K$4:$AL$32,MATCH(Y$2,Allocation!$J$4:$J$32,0),MATCH($AM49,Allocation!$K$3:$AL$3,0))/100,"") ->  | Z49: =IFERROR(INDEX(Allocation!$K$4:$AL$32,MATCH(Z$2,Allocation!$J$4:$J$32,0),MATCH($AM49,Allocation!$K$3:$AL$3,0))/100,"") ->  | AA49: =IFERROR(INDEX(Allocation!$K$4:$AL$32,MATCH(AA$2,Allocation!$J$4:$J$32,0),MATCH($AM49,Allocation!$K$3:$AL$3,0))/100,"") ->  | AB49: =IFERROR(INDEX(Allocation!$K$4:$AL$32,MATCH(AB$2,Allocation!$J$4:$J$32,0),MATCH($AM49,Allocation!$K$3:$AL$3,0))/100,"") ->  | AC49: =IFERROR(INDEX(Allocation!$K$4:$AL$32,MATCH(AC$2,Allocation!$J$4:$J$32,0),MATCH($AM49,Allocation!$K$3:$AL$3,0))/100,"") ->  | AD49: =IFERROR(INDEX(Allocation!$K$4:$AL$32,MATCH(AD$2,Allocation!$J$4:$J$32,0),MATCH($AM49,Allocation!$K$3:$AL$3,0))/100,"") ->  | AE49: =IFERROR(INDEX(Allocation!$K$4:$AL$32,MATCH(AE$2,Allocation!$J$4:$J$32,0),MATCH($AM49,Allocation!$K$3:$AL$3,0))/100,"") ->  | AF49: =IFERROR(INDEX(Allocation!$K$4:$AL$32,MATCH(AF$2,Allocation!$J$4:$J$32,0),MATCH($AM49,Allocation!$K$3:$AL$3,0))/100,"") ->  | AG49: =IFERROR(INDEX(Allocation!$K$4:$AL$32,MATCH(AG$2,Allocation!$J$4:$J$32,0),MATCH($AM49,Allocation!$K$3:$AL$3,0))/100,"") ->  | AH49: =IFERROR(INDEX(Allocation!$K$4:$AL$32,MATCH(AH$2,Allocation!$J$4:$J$32,0),MATCH($AM49,Allocation!$K$3:$AL$3,0))/100,"") ->  | AI49: 0 | AK49: 0 | AL49: =VLOOKUP($E49,Allocation!$J$40:$M$65,4,FALSE) ->  | AM49: =VLOOKUP($E49,Allocation!$J$40:$M$65,3,FALSE) -> 
F50: =IFERROR(INDEX(Allocation!$K$4:$AL$32,MATCH(F$2,Allocation!$J$4:$J$32,0),MATCH($AM50,Allocation!$K$3:$AL$3,0))/100,"") ->  | G50: =IFERROR(INDEX(Allocation!$K$4:$AL$32,MATCH(G$2,Allocation!$J$4:$J$32,0),MATCH($AM50,Allocation!$K$3:$AL$3,0))/100,"") ->  | H50: =IFERROR(INDEX(Allocation!$K$4:$AL$32,MATCH(H$2,Allocation!$J$4:$J$32,0),MATCH($AM50,Allocation!$K$3:$AL$3,0))/100,"") ->  | I50: =IFERROR(INDEX(Allocation!$K$4:$AL$32,MATCH(I$2,Allocation!$J$4:$J$32,0),MATCH($AM50,Allocation!$K$3:$AL$3,0))/100,"") ->  | J50: =IFERROR(INDEX(Allocation!$K$4:$AL$32,MATCH(J$2,Allocation!$J$4:$J$32,0),MATCH($AM50,Allocation!$K$3:$AL$3,0))/100,"") ->  | K50: =IFERROR(INDEX(Allocation!$K$4:$AL$32,MATCH(K$2,Allocation!$J$4:$J$32,0),MATCH($AM50,Allocation!$K$3:$AL$3,0))/100,"") ->  | L50: =IFERROR(INDEX(Allocation!$K$4:$AL$32,MATCH(L$2,Allocation!$J$4:$J$32,0),MATCH($AM50,Allocation!$K$3:$AL$3,0))/100,"") ->  | M50: =IFERROR(INDEX(Allocation!$K$4:$AL$32,MATCH(M$2,Allocation!$J$4:$J$32,0),MATCH($AM50,Allocation!$K$3:$AL$3,0))/100,"") ->  | N50: =IFERROR(INDEX(Allocation!$K$4:$AL$32,MATCH(N$2,Allocation!$J$4:$J$32,0),MATCH($AM50,Allocation!$K$3:$AL$3,0))/100,"") ->  | O50: =IFERROR(INDEX(Allocation!$K$4:$AL$32,MATCH(O$2,Allocation!$J$4:$J$32,0),MATCH($AM50,Allocation!$K$3:$AL$3,0))/100,"") ->  | P50: =IFERROR(INDEX(Allocation!$K$4:$AL$32,MATCH(P$2,Allocation!$J$4:$J$32,0),MATCH($AM50,Allocation!$K$3:$AL$3,0))/100,"") ->  | Q50: =IFERROR(INDEX(Allocation!$K$4:$AL$32,MATCH(Q$2,Allocation!$J$4:$J$32,0),MATCH($AM50,Allocation!$K$3:$AL$3,0))/100,"") ->  | R50: =IFERROR(INDEX(Allocation!$K$4:$AL$32,MATCH(R$2,Allocation!$J$4:$J$32,0),MATCH($AM50,Allocation!$K$3:$AL$3,0))/100,"") ->  | S50: =IFERROR(INDEX(Allocation!$K$4:$AL$32,MATCH(S$2,Allocation!$J$4:$J$32,0),MATCH($AM50,Allocation!$K$3:$AL$3,0))/100,"") ->  | T50: =IFERROR(INDEX(Allocation!$K$4:$AL$32,MATCH(T$2,Allocation!$J$4:$J$32,0),MATCH($AM50,Allocation!$K$3:$AL$3,0))/100,"") ->  | U50: =IFERROR(INDEX(Allocation!$K$4:$AL$32,MATCH(U$2,Allocation!$J$4:$J$32,0),MATCH($AM50,Allocation!$K$3:$AL$3,0))/100,"") ->  | V50: =IFERROR(INDEX(Allocation!$K$4:$AL$32,MATCH(V$2,Allocation!$J$4:$J$32,0),MATCH($AM50,Allocation!$K$3:$AL$3,0))/100,"") ->  | W50: =IFERROR(INDEX(Allocation!$K$4:$AL$32,MATCH(W$2,Allocation!$J$4:$J$32,0),MATCH($AM50,Allocation!$K$3:$AL$3,0))/100,"") ->  | X50: =IFERROR(INDEX(Allocation!$K$4:$AL$32,MATCH(X$2,Allocation!$J$4:$J$32,0),MATCH($AM50,Allocation!$K$3:$AL$3,0))/100,"") ->  | Y50: =IFERROR(INDEX(Allocation!$K$4:$AL$32,MATCH(Y$2,Allocation!$J$4:$J$32,0),MATCH($AM50,Allocation!$K$3:$AL$3,0))/100,"") ->  | Z50: =IFERROR(INDEX(Allocation!$K$4:$AL$32,MATCH(Z$2,Allocation!$J$4:$J$32,0),MATCH($AM50,Allocation!$K$3:$AL$3,0))/100,"") ->  | AA50: =IFERROR(INDEX(Allocation!$K$4:$AL$32,MATCH(AA$2,Allocation!$J$4:$J$32,0),MATCH($AM50,Allocation!$K$3:$AL$3,0))/100,"") ->  | AB50: =IFERROR(INDEX(Allocation!$K$4:$AL$32,MATCH(AB$2,Allocation!$J$4:$J$32,0),MATCH($AM50,Allocation!$K$3:$AL$3,0))/100,"") ->  | AC50: =IFERROR(INDEX(Allocation!$K$4:$AL$32,MATCH(AC$2,Allocation!$J$4:$J$32,0),MATCH($AM50,Allocation!$K$3:$AL$3,0))/100,"") ->  | AD50: =IFERROR(INDEX(Allocation!$K$4:$AL$32,MATCH(AD$2,Allocation!$J$4:$J$32,0),MATCH($AM50,Allocation!$K$3:$AL$3,0))/100,"") ->  | AE50: =IFERROR(INDEX(Allocation!$K$4:$AL$32,MATCH(AE$2,Allocation!$J$4:$J$32,0),MATCH($AM50,Allocation!$K$3:$AL$3,0))/100,"") ->  | AF50: =IFERROR(INDEX(Allocation!$K$4:$AL$32,MATCH(AF$2,Allocation!$J$4:$J$32,0),MATCH($AM50,Allocation!$K$3:$AL$3,0))/100,"") ->  | AG50: =IFERROR(INDEX(Allocation!$K$4:$AL$32,MATCH(AG$2,Allocation!$J$4:$J$32,0),MATCH($AM50,Allocation!$K$3:$AL$3,0))/100,"") ->  | AH50: =IFERROR(INDEX(Allocation!$K$4:$AL$32,MATCH(AH$2,Allocation!$J$4:$J$32,0),MATCH($AM50,Allocation!$K$3:$AL$3,0))/100,"") ->  | AI50: 0 | AK50: 0 | AL50: =VLOOKUP($E50,Allocation!$J$40:$M$65,4,FALSE) ->  | AM50: =VLOOKUP($E50,Allocation!$J$40:$M$65,3,FALSE) -> 
F52: =IFERROR(INDEX(Allocation!$K$4:$AL$32,MATCH(F$2,Allocation!$J$4:$J$32,0),MATCH($AM52,Allocation!$K$3:$AL$3,0))/100,"") ->  | G52: =IFERROR(INDEX(Allocation!$K$4:$AL$32,MATCH(G$2,Allocation!$J$4:$J$32,0),MATCH($AM52,Allocation!$K$3:$AL$3,0))/100,"") ->  | H52: =IFERROR(INDEX(Allocation!$K$4:$AL$32,MATCH(H$2,Allocation!$J$4:$J$32,0),MATCH($AM52,Allocation!$K$3:$AL$3,0))/100,"") ->  | I52: =IFERROR(INDEX(Allocation!$K$4:$AL$32,MATCH(I$2,Allocation!$J$4:$J$32,0),MATCH($AM52,Allocation!$K$3:$AL$3,0))/100,"") ->  | J52: =IFERROR(INDEX(Allocation!$K$4:$AL$32,MATCH(J$2,Allocation!$J$4:$J$32,0),MATCH($AM52,Allocation!$K$3:$AL$3,0))/100,"") ->  | K52: =IFERROR(INDEX(Allocation!$K$4:$AL$32,MATCH(K$2,Allocation!$J$4:$J$32,0),MATCH($AM52,Allocation!$K$3:$AL$3,0))/100,"") ->  | L52: =IFERROR(INDEX(Allocation!$K$4:$AL$32,MATCH(L$2,Allocation!$J$4:$J$32,0),MATCH($AM52,Allocation!$K$3:$AL$3,0))/100,"") ->  | M52: =IFERROR(INDEX(Allocation!$K$4:$AL$32,MATCH(M$2,Allocation!$J$4:$J$32,0),MATCH($AM52,Allocation!$K$3:$AL$3,0))/100,"") ->  | N52: =IFERROR(INDEX(Allocation!$K$4:$AL$32,MATCH(N$2,Allocation!$J$4:$J$32,0),MATCH($AM52,Allocation!$K$3:$AL$3,0))/100,"") ->  | O52: =IFERROR(INDEX(Allocation!$K$4:$AL$32,MATCH(O$2,Allocation!$J$4:$J$32,0),MATCH($AM52,Allocation!$K$3:$AL$3,0))/100,"") ->  | P52: =IFERROR(INDEX(Allocation!$K$4:$AL$32,MATCH(P$2,Allocation!$J$4:$J$32,0),MATCH($AM52,Allocation!$K$3:$AL$3,0))/100,"") ->  | Q52: =IFERROR(INDEX(Allocation!$K$4:$AL$32,MATCH(Q$2,Allocation!$J$4:$J$32,0),MATCH($AM52,Allocation!$K$3:$AL$3,0))/100,"") ->  | R52: =IFERROR(INDEX(Allocation!$K$4:$AL$32,MATCH(R$2,Allocation!$J$4:$J$32,0),MATCH($AM52,Allocation!$K$3:$AL$3,0))/100,"") ->  | S52: =IFERROR(INDEX(Allocation!$K$4:$AL$32,MATCH(S$2,Allocation!$J$4:$J$32,0),MATCH($AM52,Allocation!$K$3:$AL$3,0))/100,"") ->  | T52: =IFERROR(INDEX(Allocation!$K$4:$AL$32,MATCH(T$2,Allocation!$J$4:$J$32,0),MATCH($AM52,Allocation!$K$3:$AL$3,0))/100,"") ->  | U52: =IFERROR(INDEX(Allocation!$K$4:$AL$32,MATCH(U$2,Allocation!$J$4:$J$32,0),MATCH($AM52,Allocation!$K$3:$AL$3,0))/100,"") ->  | V52: =IFERROR(INDEX(Allocation!$K$4:$AL$32,MATCH(V$2,Allocation!$J$4:$J$32,0),MATCH($AM52,Allocation!$K$3:$AL$3,0))/100,"") ->  | W52: =IFERROR(INDEX(Allocation!$K$4:$AL$32,MATCH(W$2,Allocation!$J$4:$J$32,0),MATCH($AM52,Allocation!$K$3:$AL$3,0))/100,"") ->  | X52: =IFERROR(INDEX(Allocation!$K$4:$AL$32,MATCH(X$2,Allocation!$J$4:$J$32,0),MATCH($AM52,Allocation!$K$3:$AL$3,0))/100,"") ->  | Y52: =IFERROR(INDEX(Allocation!$K$4:$AL$32,MATCH(Y$2,Allocation!$J$4:$J$32,0),MATCH($AM52,Allocation!$K$3:$AL$3,0))/100,"") ->  | Z52: =IFERROR(INDEX(Allocation!$K$4:$AL$32,MATCH(Z$2,Allocation!$J$4:$J$32,0),MATCH($AM52,Allocation!$K$3:$AL$3,0))/100,"") ->  | AA52: =IFERROR(INDEX(Allocation!$K$4:$AL$32,MATCH(AA$2,Allocation!$J$4:$J$32,0),MATCH($AM52,Allocation!$K$3:$AL$3,0))/100,"") ->  | AB52: =IFERROR(INDEX(Allocation!$K$4:$AL$32,MATCH(AB$2,Allocation!$J$4:$J$32,0),MATCH($AM52,Allocation!$K$3:$AL$3,0))/100,"") ->  | AC52: =IFERROR(INDEX(Allocation!$K$4:$AL$32,MATCH(AC$2,Allocation!$J$4:$J$32,0),MATCH($AM52,Allocation!$K$3:$AL$3,0))/100,"") ->  | AD52: =IFERROR(INDEX(Allocation!$K$4:$AL$32,MATCH(AD$2,Allocation!$J$4:$J$32,0),MATCH($AM52,Allocation!$K$3:$AL$3,0))/100,"") ->  | AE52: =IFERROR(INDEX(Allocation!$K$4:$AL$32,MATCH(AE$2,Allocation!$J$4:$J$32,0),MATCH($AM52,Allocation!$K$3:$AL$3,0))/100,"") ->  | AF52: =IFERROR(INDEX(Allocation!$K$4:$AL$32,MATCH(AF$2,Allocation!$J$4:$J$32,0),MATCH($AM52,Allocation!$K$3:$AL$3,0))/100,"") ->  | AG52: =IFERROR(INDEX(Allocation!$K$4:$AL$32,MATCH(AG$2,Allocation!$J$4:$J$32,0),MATCH($AM52,Allocation!$K$3:$AL$3,0))/100,"") ->  | AH52: =IFERROR(INDEX(Allocation!$K$4:$AL$32,MATCH(AH$2,Allocation!$J$4:$J$32,0),MATCH($AM52,Allocation!$K$3:$AL$3,0))/100,"") -> 

Sheet Portefeuilles
A1: Portefeuilles de revenu Investissements Russell
C2: Portefeuille diversifié de revenu mensuel Investissements Russell | E2: Client
E3: =Allocation!$E$34 &" sous-conseiller" -> 62 sous-conseiller
E4: =Allocation!$D$34 &" fonds d’investissement" -> 13 fonds d’investissement
E6: Montant total portefeuille | F6: 100000
C7: =INDEX(Allocation!$L$40:$L$65,MATCH(PortfolioName,Allocation!$J$40:$J$65,0)) -> RDMIP
C8: Fonds d’investissement | D8: Style de gestion | E8: Pourcentage portefeuille | F8: Montant investi
C9: =MasterManagerList!$C$9 -> Fonds de revenu à court terme Investissements Russell | E9: =INDEX(Allocation!$D$4:$D$32,MATCH(C9,Allocation!$J$4:$J$32,0)) -> 0 | F9: =F6*E9 -> 0
C10: =MasterManagerList!$C$10 -> Leith Wheeler Investment Counsel Ltd. | D10: =MasterManagerList!$D$10 -> Multi-styles | E10: =MasterManagerList!$E$10*E9 -> 0 | F10: =F6*E10 -> 0
C11: =MasterManagerList!$C$11 -> Canso Investment Counsel Ltd. | D11: =MasterManagerList!$D$11 -> Choix des titres de créance | E11: =MasterManagerList!$E$11*E9 -> 0 | F11: =F6*E11 -> 0
C12: =MasterManagerList!$C$12 -> Investissements Russell | D12: =MasterManagerList!$D$12 -> Stratégies de positionnement et Réserve de liquidité** | E12: =MasterManagerList!$E$12*E9 -> 0 | F12: =F6*E12 -> 0
C13: =MasterManagerList!$C$13 -> Fonds à revenu fixe Investissements Russell | E13: =INDEX(Allocation!$D$4:$D$32,MATCH(C13,Allocation!$J$4:$J$32,0)) -> 0.31 | F13: =F6*E13 -> 31000
C14: =MasterManagerList!$C$14 -> Beutel, Goodman & Company Ltd. | D14: =MasterManagerList!$D$14 -> Gestion taux d'intérêt | E14: =MasterManagerList!$E$14*E13 -> 0.0992 | F14: =F6*E14 -> 9920
C15: =MasterManagerList!$C$15 -> Canso Investment Counsel Ltd. | D15: =MasterManagerList!$D$15 -> Choix des titres de créance | E15: =MasterManagerList!$E$15*E13 -> 0.0775 | F15: =F6*E15 -> 7750
C16: =MasterManagerList!$C$16 -> Leith Wheeler Investment Counsel Ltd. | D16: =MasterManagerList!$D$16 -> Gestion des taux d’intérêt et du risque de crédit | E16: =MasterManagerList!$E$16*E13 -> 0.0713 | F16: =F6*E16 -> 7130
C17: =MasterManagerList!$C$17 -> Western Asset Management Company, LLC | D17: =MasterManagerList!$D$17 -> Taux et titres de créance mondiaux | E17: =MasterManagerList!$E$17*E13 -> 0.0465 | F17: =F6*E17 -> 4650
C18: =MasterManagerList!$C$18 -> Investissements Russell | D18: =MasterManagerList!$D$18 -> Stratégies de positionnement | E18: =MasterManagerList!$E$18*E13 -> 0.0155 | F18: =F6*E18 -> 1550
C19: =MasterManagerList!$C$19 -> Fonds d’investissement à revenu fixe canadien Investissements Russell | E19: =INDEX(Allocation!$D$4:$D$32,MATCH(C19,Allocation!$J$4:$J$32,0)) -> 0 | F19: =F6*E19 -> 0
C20: =MasterManagerList!$C$20 -> Beutel, Goodman & Company Ltd. | D20: =MasterManagerList!$D$20 -> Gestion des taux d’intérêt | E20: =MasterManagerList!$E$20*E19 -> 0 | F20: =F6*E20 -> 0
C21: =MasterManagerList!$C$21 -> Canso Investment Counsel Ltd. | D21: =MasterManagerList!$D$21 -> Choix des titres de créance | E21: =MasterManagerList!$E$21*E19 -> 0 | F21: =F6*E21 -> 0
C22: =MasterManagerList!$C$22 -> Leith Wheeler Investment Counsel Ltd. | D22: =MasterManagerList!$D$16 -> Gestion des taux d’intérêt et du risque de crédit | E22: =MasterManagerList!$E$22*E19 -> 0 | F22: =F6*E22 -> 0
C23: =MasterManagerList!$C$23 -> Western Asset Management Co.,LLC | D23: =MasterManagerList!$D$23 -> Taux et titres de créance mondiaux | E23: =MasterManagerList!$E$23*E19 -> 0 | F23: =F6*E23 -> 0
C24: =MasterManagerList!$C$24 -> Fonds à revenu fixe Plus Investissements Russell | E24: =INDEX(Allocation!$D$4:$D$32,MATCH(C24,Allocation!$J$4:$J$32,0)) -> 0 | F24: =F6*E24 -> 0
C25: =MasterManagerList!$C$25 -> Beutel, Goodman & Company Ltd. | D25: =MasterManagerList!$D$25 -> Gestion taux d’intérêt | E25: =MasterManagerList!$E$25*E24 -> 0 | F25: =F6*E25 -> 0
C26: =MasterManagerList!$C$26 -> Canso Investment Counsel Ltd. | D26: =MasterManagerList!$D$26 -> Choix des titres de créance | E26: =MasterManagerList!$E$26*E24 -> 0 | F26: =F6*E26 -> 0
C27: =MasterManagerList!$C$27 -> Leith Wheeler Investment Counsel Ltd. | D27: =MasterManagerList!$D$27 -> Gestion des taux d’intérêt et du risque de crédit | E27: =MasterManagerList!$E$27*E24 -> 0 | F27: =F6*E27 -> 0
C28: =MasterManagerList!$C$28 -> Western Asset Management Company, LLC | D28: =MasterManagerList!$D$28 -> Taux et titres de créance mondiaux | E28: =MasterManagerList!$E$28*E24 -> 0 | F28: =F6*E28 -> 0
C29: =MasterManagerList!$C$29 -> Investissements Russell | D29: =MasterManagerList!$D$29 -> Stratégies de positionnement | E29: =MasterManagerList!$E$29*E24 -> 0 | F29: =F6*E29 -> 0
C30: =MasterManagerList!$C$30 -> Western Asset Management Company, LLC | D30: =MasterManagerList!$D$30 -> Créance sécurisée | E30: =MasterManagerList!$E$30*E24 -> 0 | F30: =F6*E30 -> 0
C31: =MasterManagerList!$C$31 -> MetLife Investment Management, LLC | D31: =MasterManagerList!$D$31 -> Crédit mondial | E31: =MasterManagerList!$E$31*E24 -> 0 | F31: =F6*E31 -> 0
C32: =MasterManagerList!$C$32 -> Picton Mahoney Fortified Income Alternative Fund⁺ | D32: =MasterManagerList!$D$32 -> Crédit acheteur/vendeur | E32: =MasterManagerList!$E$32*E24 -> 0 | F32: =F6*E32 -> 0
C33: =MasterManagerList!$C$33 -> Investissements Russell | D33: =MasterManagerList!$D$33 -> Stratégies de positionnement et Réserve de liquidité** | E33: =MasterManagerList!$E$33*E24 -> 0 | F33: =F6*E33 -> 0
C34: =MasterManagerList!$C$34 -> Fonds d’investissement d’obligations indexées sur l’inflation Investissements Russell | E34: =INDEX(Allocation!$D$4:$D$32,MATCH(C34,Allocation!$J$4:$J$32,0)) -> 0.01 | F34: =F6*E34 -> 1000
C35: =MasterManagerList!$C$35 -> Fonds d’obligations mondiales sans contrainte Investissements Russell | E35: =INDEX(Allocation!$D$4:$D$32,MATCH(C35,Allocation!$J$4:$J$32,0)) -> 0 | F35: =F6*E35 -> 0
C36: =MasterManagerList!$C$36 -> Voya Investment Management Co. LLC | D36: =MasterManagerList!$D$36 -> Taux de rendement | E36: =MasterManagerList!$E$36*E35 -> 0 | F36: =F6*E36 -> 0
C37: =MasterManagerList!$C$37 -> Federated Hermes, Inc. | D37: =MasterManagerList!$D$37 -> Choix des titres de créance | E37: =MasterManagerList!$E$37*E35 -> 0 | F37: =F6*E37 -> 0
C38: =MasterManagerList!$C$38 -> Putnam Investment Management, LLC | D38: =MasterManagerList!$D$38 -> Investissements opportunistes | E38: =MasterManagerList!$E$38*E35 -> 0 | F38: =F6*E38 -> 0
C39: =MasterManagerList!$C$39 -> Investissements Russell | D39: =MasterManagerList!$D$39 -> Stratégies de positionnement et Réserve de liquidité** | E39: =MasterManagerList!$E$39*E35 -> 0 | F39: =F6*E39 -> 0
C40: =MasterManagerList!$C$40 -> Fonds de titres de créance mondiaux Investissements Russell | E40: =INDEX(Allocation!$D$4:$D$32,MATCH(C40,Allocation!$J$4:$J$32,0)) -> 0.09 | F40: =F6*E40 -> 9000
C41: =MasterManagerList!$C$41 -> Federated Hermes, Inc. | D41: =MasterManagerList!$D$41 -> Rendement élevé mondial | E41: =MasterManagerList!$E$41*E40 -> 0.0243 | F41: =F6*E41 -> 2430
C42: =MasterManagerList!$C$42 -> Marathon Asset Management, L.P. | D42: =MasterManagerList!$D$42 -> Titres d'emprunt marchés émergents | E42: =MasterManagerList!$E$42*E40 -> 0.0162 | F42: =F6*E42 -> 1620
C43: =MasterManagerList!$C$43 -> Voya Investment Management Co. LLC | D43: =MasterManagerList!$D$43 -> Créances tritrisées | E43: =MasterManagerList!$E$43*E40 -> 0.0198 | F43: =F6*E43 -> 1980
C44: =MasterManagerList!$C$44 -> Investissements Russell | D44: =MasterManagerList!$D$44 -> Stratégies de positionnement | E44: =MasterManagerList!$E$44*E40 -> 0.0297 | F44: =F6*E44 -> 2970
C45: =MasterManagerList!$C$45 -> BlueBay Global Convertible Bond Fund (Canada) | E45: =INDEX(Allocation!$D$4:$D$32,MATCH(C45,Allocation!$J$4:$J$32,0)) -> 0 | F45: =F6*E45 -> 0
C46: =MasterManagerList!$C$46 -> Fonds de dividendes canadien Investissements Russell | E46: =INDEX(Allocation!$D$4:$D$32,MATCH(C46,Allocation!$J$4:$J$32,0)) -> 0.14 | F46: =F6*E46 -> 14000
C47: =MasterManagerList!$C$47 -> Wellington Management Canada ULC | D47: =MasterManagerList!$D$47 -> Valeur | E47: =MasterManagerList!$E$47*E46 -> 0.014 | F47: =F6*E47 -> 1400
C48: =MasterManagerList!$C$48 -> Montrusco Bolton Investments, Inc. | D48: =MasterManagerList!$D$48 -> Croissance défensive | E48: =MasterManagerList!$E$48*E46 -> 0.0406 | F48: =F6*E48 -> 4060
C49: =MasterManagerList!$C$49 -> Iris Asset Management Ltd. | D49: =MasterManagerList!$D$49 -> Croissance défensive des dividendes | E49: =MasterManagerList!$E$49*E46 -> 0.0406 | F49: =F6*E49 -> 4060
C50: =MasterManagerList!$C$50 -> Investissements Russell | D50: =MasterManagerList!$D$50 -> Stratégies de positionnement et Réserve de liquidité** | E50: =MasterManagerList!$E$50*E46 -> 0.0448 | F50: =F6*E50 -> 4480
C51: =MasterManagerList!$C$51 -> Fonds multi-facteurs actions canadiennes Investissements Russell | E51: =INDEX(Allocation!$D$4:$D$32,MATCH(C51,Allocation!$J$4:$J$32,0)) -> 0 | F51: =F6*E51 -> 0
C52: =MasterManagerList!$C$52 -> Fonds d’actions canadiennes Investissements Russell | E52: =INDEX(Allocation!$D$4:$D$32,MATCH(C52,Allocation!$J$4:$J$32,0)) -> 0 | F52: =F6*E52 -> 0
C53: =MasterManagerList!$C$53 -> Scheer, Rowlett & Associates Investment Management Ltd. | D53: =MasterManagerList!$D$53 -> Valeur | E53: =MasterManagerList!$E$53*E52 -> 0 | F53: =F6*E53 -> 0
C54: =MasterManagerList!$C$54 -> Montrusco Bolton Investments, Inc. | D54: =MasterManagerList!$D$54 -> Croissance défensive | E54: =MasterManagerList!$E$54*E52 -> 0 | F54: =F6*E54 -> 0
C55: =MasterManagerList!$C$55 -> Picton Mahoney Asset Management | D55: =MasterManagerList!$D$55 -> Croissance | E55: =MasterManagerList!$E$55*E52 -> 0 | F55: =F6*E55 -> 0
C56: =MasterManagerList!$C$56 -> Galibier Capital Management Ltd. | D56: =MasterManagerList!$D$56 -> Croissance à un prix raisonnable | E56: =MasterManagerList!$E$56*E52 -> 0 | F56: =F6*E56 -> 0
C57: =MasterManagerList!$C$57 -> Investissements Russell | D57: =MasterManagerList!$D$57 -> Stratégies de positionnement et Réserve de liquidité** | E57: =MasterManagerList!$E$57*E52 -> 0 | F57: =F6*E57 -> 0
C58: =MasterManagerList!$C$58 -> Fonds de petites sociétés mondiales Investissements Russell | E58: =INDEX(Allocation!$D$4:$D$32,MATCH(C58,Allocation!$J$4:$J$32,0)) -> 0.03 | F58: =F6*E58 -> 3000
C59: =MasterManagerList!$C$59 -> Boston Partners Global Investors, Inc. | D59: =MasterManagerList!$D$59 -> Valeur à faible cap – États-Unis | E59: =MasterManagerList!$E$59*E58 -> 0.0045 | F59: =F6*E59 -> 450
C60: =MasterManagerList!$C$60 -> Copeland Capital Management, LLC | D60: =MasterManagerList!$D$60 -> Axé sur la marché à faible cap – États-Unis | E60: =MasterManagerList!$E$60*E58 -> 0.0045 | F60: =F6*E60 -> 450
C61: =MasterManagerList!$C$61 -> Calamos Advisors LLC | D61: =MasterManagerList!$D$61 -> Croissance à moyenne capitalisation – États-Unis | E61: =MasterManagerList!$E$61*E58 -> 0.00405 | F61: =F6*E61 -> 405
C62: =MasterManagerList!$C$62 -> AllianceBernstein Canada, Inc. | D62: =MasterManagerList!$D$62 -> Valeur à faible cap - Europe | E62: =MasterManagerList!$E$62*E58 -> 0.00225 | F62: =F6*E62 -> 225
C63: =MasterManagerList!$C$63 -> Liontrust Investment Partners LLP | D63: =MasterManagerList!$D$63 -> Axé sur la marché à faible cap - Europe | E63: =MasterManagerList!$E$63*E58 -> 0.00225 | F63: =F6*E63 -> 225
C64: =MasterManagerList!$C$64 -> Joh. Berenberg, Gossler & Co. KG | D64: =MasterManagerList!$D$64 -> Croissance-Europe | E64: =MasterManagerList!$E$64*E58 -> 0.00165 | F64: =F6*E64 -> 165
C65: =MasterManagerList!$C$65 -> Four Seasons Asia Investment Pte. Ltd. | D65: =MasterManagerList!$D$65 -> Faible/microcapitalisation - Japon | E65: =MasterManagerList!$E$65*E58 -> 0.00405 | F65: =F6*E65 -> 405
C66: =MasterManagerList!$C$66 -> Investissements Russell | D66: =MasterManagerList!$D$66 -> Stratégies de positionnement et Réserve de liquidité** | E66: =MasterManagerList!$E$66*E58 -> 0.00675 | F66: =F6*E66 -> 675
C67: =MasterManagerList!$C$67 -> Fonds d'actions américaines à gestion fiscale Investissements Russell | E67: =INDEX(Allocation!$D$4:$D$32,MATCH(C67,Allocation!$J$4:$J$32,0)) -> 0 | F67: =F6*E67 -> 0
C68: =MasterManagerList!$C$68 -> Brandywine Global Investment Management, LLC | D68: =MasterManagerList!$D$68 -> Valeur | E68: =MasterManagerList!$E$68*E67 -> 0 | F68: =F6*E68 -> 0
C69: =MasterManagerList!$C$69 -> Jacobs Levy Equity Management, Inc. | D69: =MasterManagerList!$D$69 -> Axé sur le marché | E69: =MasterManagerList!$E$69*E67 -> 0 | F69: =F6*E69 -> 0
C70: =MasterManagerList!$C$70 -> William Blair Investment Management, LLC | D70: =MasterManagerList!$D$70 -> De base | E70: =MasterManagerList!$E$70*E67 -> 0 | F70: =F6*E70 -> 0
C71: =MasterManagerList!$C$71 -> J.P. Morgan Asset Management | D71: =MasterManagerList!$D$71 -> De base | E71: =MasterManagerList!$E$71*E67 -> 0 | F71: =F6*E71 -> 0
C72: =MasterManagerList!$C$72 -> Investissements Russell | D72: =MasterManagerList!$D$72 -> Stratégies de positionnement | E72: =MasterManagerList!$E$72*E67 -> 0 | F72: =F6*E72 -> 0
C73: =MasterManagerList!$C$73 -> Fonds multi-facteurs actions américaines Investissements Russell | E73: =INDEX(Allocation!$D$4:$D$32,MATCH(C73,Allocation!$J$4:$J$32,0)) -> 0 | F73: =F6*E73 -> 0
C74: =MasterManagerList!$C$74 -> Fonds d’actions américaines Investissements Russell | E74: =INDEX(Allocation!$D$4:$D$32,MATCH(C74,Allocation!$J$4:$J$32,0)) -> 0.1 | F74: =F6*E74 -> 10000
C75: =MasterManagerList!$C$75 -> Brandywine Global Investment Management, LLC | D75: =MasterManagerList!$D$75 -> Valeur | E75: =MasterManagerList!$E$75*E74 -> 0.017 | F75: =F6*E75 -> 1700
C76: =MasterManagerList!$C$76 -> Jacobs Levy Equity Management, Inc. | D76: =MasterManagerList!$D$76 -> Axé sur le marché | E76: =MasterManagerList!$E$76*E74 -> 0.022 | F76: =F6*E76 -> 2200
C77: =MasterManagerList!$C$77 -> William Blair Investment Management, LLC | D77: =MasterManagerList!$D$77 -> De base | E77: =MasterManagerList!$E$77*E74 -> 0.022 | F77: =F6*E77 -> 2200
C78: =MasterManagerList!$C$78 -> J.P. Morgan Asset Management | D78: =MasterManagerList!$D$78 -> De base | E78: =MasterManagerList!$E$78*E74 -> 0.019 | F78: =F6*E78 -> 1900
C79: =MasterManagerList!$C$79 -> Investissements Russell | D79: =MasterManagerList!$D$79 -> Stratégies de positionnement | E79: =MasterManagerList!$E$79*E74 -> 0.02 | F79: =F6*E79 -> 2000
C80: =MasterManagerList!$C$80 -> Fonds multi-facteurs actions internationales Investissements Russell | E80: =INDEX(Allocation!$D$4:$D$32,MATCH(C80,Allocation!$J$4:$J$32,0)) -> 0 | F80: =F6*E80 -> 0
C81: =MasterManagerList!$C$81 -> Fonds d’actions outre-mer Investissements Russell | E81: =INDEX(Allocation!$D$4:$D$32,MATCH(C81,Allocation!$J$4:$J$32,0)) -> 0.05 | F81: =F6*E81 -> 5000
C82: =MasterManagerList!$C$82 -> Pzena Investment Management, LLC | D82: =MasterManagerList!$D$82 -> Valeur | E82: =MasterManagerList!$E$82*E81 -> 0.00675 | F82: =F6*E82 -> 675
C83: =MasterManagerList!$C$83 -> Numeric Investors, LLC | D83: =MasterManagerList!$D$83 -> Axé sur le marché | E83: =MasterManagerList!$E$83*E81 -> 0.0095 | F83: =F6*E83 -> 950
C84: =MasterManagerList!$C$84 -> Wellington Management Canada ULC | D84: =MasterManagerList!$D$84 -> Croissance et valeur | E84: =MasterManagerList!$E$84*E81 -> 0.013 | F84: =F6*E84 -> 1300
C85: =MasterManagerList!$C$85 -> Intermede Investment Partners Limited and Intermede Global Partners Inc. | D85: =MasterManagerList!$D$85 -> Croissance | E85: =MasterManagerList!$E$85*E81 -> 0.01225 | F85: =F6*E85 -> 1225
C86: =MasterManagerList!$C$86 -> Investissements Russell | D86: =MasterManagerList!$D$86 -> Stratégies de positionnement | E86: =MasterManagerList!$E$86*E81 -> 0.0085 | F86: =F6*E86 -> 850
C87: =MasterManagerList!$C$87 -> Fonds d'actions mondiales à gestion fiscale Investissements Russell | E87: =INDEX(Allocation!$D$4:$D$32,MATCH(C87,Allocation!$J$4:$J$32,0)) -> 0 | F87: =F6*E87 -> 0
C88: =MasterManagerList!$C$88 -> Sanders Capital, LLC | D88: =MasterManagerList!$D$88 -> Valeur | E88: =MasterManagerList!$E$88*E87 -> 0 | F88: =F6*E88 -> 0
C89: =MasterManagerList!$C$89 -> Wellington Management Canada ULC | D89: =MasterManagerList!$D$89 -> Croissance | E89: =MasterManagerList!$E$89*E87 -> 0 | F89: =F6*E89 -> 0
C90: =MasterManagerList!$C$90 -> Intermede Investment Partners Limited and Intermede Global Partners Inc. | D90: =MasterManagerList!$D$90 -> Croissance | E90: =MasterManagerList!$E$90*E87 -> 0 | F90: =F6*E90 -> 0
C91: =MasterManagerList!$C$91 -> Pzena Investment Management, LLC | D91: =MasterManagerList!$D$91 -> Valeur | E91: =MasterManagerList!$E$91*E87 -> 0 | F91: =F6*E91 -> 0
C92: =MasterManagerList!$C$92 -> Russell Investments | D92: =MasterManagerList!$D$92 -> Stratégies de positionnement et Réserve de liquidité** | E92: =MasterManagerList!$E$92*E87 -> 0 | F92: =F6*E92 -> 0
C93: =MasterManagerList!$C$93 -> Fonds d’actions mondiales ESG Investissements Russell | E93: =INDEX(Allocation!$D$4:$D$32,MATCH(C93,Allocation!$J$4:$J$32,0)) -> 0 | F93: =F6*E93 -> 0
C94: =MasterManagerList!$C$94 -> Sanders Capital, LLC | D94: =MasterManagerList!$D$94 -> Valeur | E94: =MasterManagerList!$E$94*E93 -> 0 | F94: =F6*E94 -> 0
C95: =MasterManagerList!$C$95 -> Intermede Investment Partners Limited and Intermede Global Partners Inc. | D95: =MasterManagerList!$D$95 -> Croissance | E95: =MasterManagerList!$E$95*E93 -> 0 | F95: =F6*E95 -> 0
C96: =MasterManagerList!$C$96 -> Investissements Russell | D96: =MasterManagerList!$D$96 -> Stratégies de positionnement et Réserve de liquidité** | E96: =MasterManagerList!$E$96*E93 -> 0 | F96: =F6*E96 -> 0
C97: =MasterManagerList!$C$97 -> Fonds d’actions mondiales Investissements Russell | E97: =INDEX(Allocation!$D$4:$D$32,MATCH(C97,Allocation!$J$4:$J$32,0)) -> 0.11 | F97: =F6*E97 -> 11000
C98: =MasterManagerList!$C$98 -> Sanders Capital, LLC | D98: =MasterManagerList!$D$98 -> Valeur | E98: =MasterManagerList!$E$98*E97 -> 0.02255 | F98: =F6*E98 -> 2255
C99: =MasterManagerList!$C$99 -> Wellington Management Canada ULC | D99: =MasterManagerList!$D$99 -> Croissance et valeur | E99: =MasterManagerList!$E$99*E97 -> 0.04015 | F99: =F6*E99 -> 4015
C100: =MasterManagerList!$C$100 -> Intermede Investment Partners Limited and Intermede Global Partners Inc. | D100: =MasterManagerList!$D$100 -> Croissance | E100: =MasterManagerList!$E$100*E97 -> 0.0231 | F100: =F6*E100 -> 2310
C101: =MasterManagerList!$C$101 -> Investissements Russell | D101: =MasterManagerList!$D$101 -> Stratégies de positionnement | E101: =MasterManagerList!$E$101*E97 -> 0.0242 | F101: =F6*E101 -> 2420
C102: =MasterManagerList!$C$102 -> Fonds d’actions marchés émergents Investissements Russell | E102: =INDEX(Allocation!$D$4:$D$32,MATCH(C102,Allocation!$J$4:$J$32,0)) -> 0.03 | F102: =F6*E102 -> 3000
C103: =MasterManagerList!$C$103 -> Numeric Investors, LLC | D103: =MasterManagerList!$D$103 -> Axé sur le marché | E103: =MasterManagerList!$E$103*E102 -> 0.0057 | F103: =F6*E103 -> 570
C104: =MasterManagerList!$C$104 -> Oaktree Capital Management, L.P. | D104: =MasterManagerList!$D$104 -> Valeur relative | E104: =MasterManagerList!$E$104*E102 -> 0.0045 | F104: =F6*E104 -> 450
C105: =MasterManagerList!$C$105 -> RWC Asset Advisors (US) LLC | D105: =MasterManagerList!$D$105 -> Croissance | E105: =MasterManagerList!$E$105*E102 -> 0.003 | F105: =F6*E105 -> 300
C106: =MasterManagerList!$C$106 -> Axiom International Investors LLC | D106: =MasterManagerList!$D$106 -> Croissance de qualité | E106: =MasterManagerList!$E$106*E102 -> 0.0036 | F106: =F6*E106 -> 360
C107: =MasterManagerList!$C$107 -> Sands Capital Management, LLC | D107: =MasterManagerList!$D$107 -> Croissance | E107: =MasterManagerList!$E$107*E102 -> 0.0024 | F107: =F6*E107 -> 240
C108: =MasterManagerList!$C$108 -> Coeli AB | D108: =MasterManagerList!$D$108 -> Marchés frontières | E108: =MasterManagerList!$E$108*E102 -> 0.0015 | F108: =F6*E108 -> 150
C109: =MasterManagerList!$C$109 -> Pzena Investment Management, LLC | D109: =MasterManagerList!$D$109 -> Valeur | E109: =MasterManagerList!$E$109*E102 -> 0.0039 | F109: =F6*E109 -> 390
C110: =MasterManagerList!$C$110 -> Investissements Russell | D110: =MasterManagerList!$D$110 -> Stratégies de positionnement et Réserve de liquidité** | E110: =MasterManagerList!$E$110*E102 -> 0.0054 | F110: =F6*E110 -> 540
C111: =MasterManagerList!$C$111 -> Fonds du marché monétaire Investissements Russell | E111: =INDEX(Allocation!$D$4:$D$32,MATCH(C111,Allocation!$J$4:$J$32,0)) -> 0 | F111: =F6*E111 -> 0
C112: =MasterManagerList!$C$112 -> Russell Investment Management, LLC | D112: =MasterManagerList!$D$112 -> Court terme | E112: =MasterManagerList!$E$112*E111 -> 0 | F112: =F6*E112 -> 0
C113: =MasterManagerList!$C$113 -> Fonds d’infrastructures mondiales Investissements Russell | E113: =INDEX(Allocation!$D$4:$D$32,MATCH(C113,Allocation!$J$4:$J$32,0)) -> 0.035 | F113: =F6*E113 -> 3500
C114: =MasterManagerList!$C$114 -> Nuveen Asset Management, LLC | D114: =MasterManagerList!$D$114 -> Valeur | E114: =MasterManagerList!$E$114*E113 -> 0.01295 | F114: =F6*E114 -> 1295
C115: =MasterManagerList!$C$115 -> Cohen & Steers Capital Management, Inc. | D115: =MasterManagerList!$D$115 -> Axé sur le marché | E115: =MasterManagerList!$E$115*E113 -> 0.00525 | F115: =F6*E115 -> 525
C116: =MasterManagerList!$C$116 -> First Sentier Investors (Australia) IM Ltd. | D116: =MasterManagerList!$D$116 -> Croissance à un prix raisonnable | E116: =MasterManagerList!$E$116*E113 -> 0.0133 | F116: =F6*E116 -> 1330
C117: =MasterManagerList!$C$117 -> Investissements Russell | D117: =MasterManagerList!$D$117 -> Stratégies de positionnement | E117: =MasterManagerList!$E$117*E113 -> 0.0035 | F117: =F6*E117 -> 350
C118: =MasterManagerList!$C$118 -> Fonds immobilier mondial Investissements Russell | E118: =INDEX(Allocation!$D$4:$D$32,MATCH(C118,Allocation!$J$4:$J$32,0)) -> 0.035 | F118: =F6*E118 -> 3500
C119: =MasterManagerList!$C$119 -> Cohen & Steers Capital Management, Inc. | D119: =MasterManagerList!$D$119 -> Axé sur le marché | E119: =MasterManagerList!$E$119*E118 -> 0.01505 | F119: =F6*E119 -> 1505
C120: =MasterManagerList!$C$120 -> DWS* | D120: =MasterManagerList!$D$120 -> Axé sur le marché | E120: =MasterManagerList!$E$120*E118 -> 0.01645 | F120: =F6*E120 -> 1645
C121: =MasterManagerList!$C$121 -> Investissements Russell | D121: =MasterManagerList!$D$121 -> Stratégies de positionnement | E121: =MasterManagerList!$E$121*E118 -> 0.0035 | F121: =F6*E121 -> 350
C122: =MasterManagerList!$C$122 -> Portefeuille d’actifs réels Investissements Russell | E122: =INDEX(Allocation!$D$4:$D$32,MATCH(C122,Allocation!$J$4:$J$32,0)) -> 0 | F122: =F6*E122 -> 0
C123: =MasterManagerList!$C$123 -> Nuveen Asset Management, LLC | D123: =MasterManagerList!$D$123 -> Valeur | E123: =MasterManagerList!$E$123*E122 -> 0 | F123: =F6*E123 -> 0
C124: =MasterManagerList!$C$124 -> Cohen & Steers Capital Management, Inc. | D124: =MasterManagerList!$D$124 -> Axé sur le marché | E124: =MasterManagerList!$E$124*E122 -> 0 | F124: =F6*E124 -> 0
C125: =MasterManagerList!$C$125 -> First Sentier Investors (Australia) IM Ltd. | D125: =MasterManagerList!$D$125 -> Croissance à un prix raisonnable | E125: =MasterManagerList!$E$125*E122 -> 0 | F125: =F6*E125 -> 0
C126: =MasterManagerList!$C$126 -> Investissements Russell | D126: =MasterManagerList!$D$126 -> Stratégies de positionnement | E126: =MasterManagerList!$E$126*E122 -> 0 | F126: =F6*E126 -> 0
C127: =MasterManagerList!$C$127 -> DWS* | D127: =MasterManagerList!$D$127 -> Axé sur le marché | E127: =MasterManagerList!$E$127*E122 -> 0 | F127: =F6*E127 -> 0
C128: =MasterManagerList!$C$128 -> Russell Investment Management, LLC | D128: =MasterManagerList!$D$128 -> Stratégie d’indexation - Produits de base | E128: =MasterManagerList!$E$128*E122 -> 0 | F128: =F6*E128 -> 0
C129: =MasterManagerList!$C$129 -> Russell Investment Management, LLC | D129: =MasterManagerList!$D$129 -> Stratégie d’indexation - ORR | E129: =MasterManagerList!$E$129*E122 -> 0 | F129: =F6*E129 -> 0
C130: =MasterManagerList!$C$130 -> iShares Gold Trust | E130: =INDEX(Allocation!$D$4:$D$32,MATCH(C130,Allocation!$J$4:$J$32,0)) -> 0 | F130: =F6*E130 -> 0
C131: =MasterManagerList!$C$131 -> Invesco DB Commodity Index Tracking Fund | E131: =INDEX(Allocation!$D$4:$D$32,MATCH(C131,Allocation!$J$4:$J$32,0)) -> 0 | F131: =F6*E131 -> 0
C132: =MasterManagerList!$C$132 -> Fonds d’opportunités de revenu Investissements Russell | E132: =INDEX(Allocation!$D$4:$D$32,MATCH(C132,Allocation!$J$4:$J$32,0)) -> 0.05 | F132: =F6*E132 -> 5000
C133: =MasterManagerList!$C$133 -> Oaktree Capital Management, L.P. | D133: =MasterManagerList!$D$133 -> Obligations convertibles | E133: =MasterManagerList!$E$133*E132 -> 0.003 | F133: =F6*E133 -> 300
C134: =MasterManagerList!$C$134 -> Marathon Asset Management, L.P. | D134: =MasterManagerList!$D$134 -> Devise forte de la dette des marchés émergents | E134: =MasterManagerList!$E$134*E132 -> 0.005 | F134: =F6*E134 -> 500
C135: =MasterManagerList!$C$135 -> Putnam Investments Canada, ULC | D135: =MasterManagerList!$D$135 -> Prêts hypothécaires | E135: =MasterManagerList!$E$135*E132 -> 0.006 | F135: =F6*E135 -> 600
C136: =MasterManagerList!$C$136 -> Boston Partners Global Investors, Inc. | D136: =MasterManagerList!$D$136 -> Titres à petite capitalisation américains | E136: =MasterManagerList!$E$136*E132 -> 0.003 | F136: =F6*E136 -> 300
C137: =MasterManagerList!$C$137 -> Kopernik Global Investors LLC | D137: =MasterManagerList!$D$137 -> Actions mondiales | E137: =MasterManagerList!$E$137*E132 -> 0.003 | F137: =F6*E137 -> 300
C138: =MasterManagerList!$C$138 -> Sompo Asset Management Co., Ltd. | D138: =MasterManagerList!$D$138 -> Actions japonaises | E138: =MasterManagerList!$E$138*E132 -> 0.003 | F138: =F6*E138 -> 300
C139: =MasterManagerList!$C$139 -> Cohen & Steers Capital Management, Inc. | D139: =MasterManagerList!$D$139 -> Actions privilégiés | E139: =MasterManagerList!$E$139*E132 -> 0.005 | F139: =F6*E139 -> 500
C140: =MasterManagerList!$C$140 -> First Sentier Investors (Australia) IM Ltd. | D140: =MasterManagerList!$D$140 -> Infrastructures mondiales cotées en bourse | E140: =MasterManagerList!$E$140*E132 -> 0.0015 | F140: =F6*E140 -> 150
C141: =MasterManagerList!$C$141 -> RREEF America LLC | D141: =MasterManagerList!$D$141 -> Immobilier mondial coté en bourse | E141: =MasterManagerList!$E$141*E132 -> 0.0015 | F141: =F6*E141 -> 150
C142: =MasterManagerList!$C$142 -> Berenberg Asset Management, LLC | D142: =MasterManagerList!$D$142 -> Actions européennes | E142: =MasterManagerList!$E$142*E132 -> 0.0035 | F142: =F6*E142 -> 350
C143: =MasterManagerList!$C$143 -> Russell Investment Management, LLC | D143: =MasterManagerList!$D$143 -> Stratégies de superposition | E143: =MasterManagerList!$E$143*E132 -> 0.004 | F143: =F6*E143 -> 400
C144: =MasterManagerList!$C$144 -> Russell Investment Management, LLC | D144: =MasterManagerList!$D$144 -> Superposition tactique | E144: =MasterManagerList!$E$144*E132 -> 0.0115 | F144: =F6*E144 -> 1150
C145: =MasterManagerList!$C$145 -> Stratégies de positionnement Investissements Russell | E145: =INDEX(Allocation!$D$4:$D$32,MATCH(C145,Allocation!$J$4:$J$32,0)) -> 0.01 | F145: =F6*E145 -> 1000
A146: Le nombre de sous-conseiller est courant en date de janvier 2024. Investissements Russell peut embaucher, changer ou congédier les sous-conseiller à n’importe quel moment. *Cette stratégie est gérée par RREEF America LLC, sous la bannière DWS. **La réserve de liquidité est un compte en espèces pour gérer les flux de trésorerie quotidien et peut utiliser des instruments dérivés pour fournir une exposition au marché afin de gérer le profile de risque de fonds.
A149: Information importante
A150: ¹ La version Catégorie de société du portefeuille PDRMIR - Catégorie portefeuille diversifié de revenu mensuel Investissements Russell - investira dans les fonds Investissements Russell et leurs fonds sous-jacents conformément aux répartitions établies pour chaque catégorie d’actif.
A151: ¹ La version Catégorie de société du portefeuille PERIR - Catégorie portefeuille essentiel de revenu Investissements Russell - investira dans les fonds Investissements Russell et leurs fonds sous-jacents conformément aux répartitions établies pour chaque catégorie d’actif.
A152: ¹ La version Catégorie de société du portefeuille MACR - Catégorie multi-actifs stratégie de croissance et de revenu - investira dans les fonds Investissements Russell et leurs fonds sous-jacents conformément aux répartitions établies pour chaque catégorie d’actif.
A153: ¹ La version Catégorie de société du portefeuille MASC - Catégorie multi-actifs stratégie de croissance - investira dans les fonds Investissements Russell et leurs fonds sous-jacents conformément aux répartitions établies pour chaque catégorie d’actif.
A154: ¹ La version Catégorie de société du portefeuille PRPIR - Catégorie portefeuille de revenu prudent Investissements Russell - investira dans les fonds Investissements Russell et leurs fonds sous-jacents conformément aux répartitions établies pour chaque catégorie d’actif.
A155: ¹ La version Catégorie de société du portefeuille MASR - Catégorie multi-actifs stratégie de revenu - investira dans les fonds Investissements Russell et leurs fonds sous-jacents conformément aux répartitions établies pour chaque catégorie d’actif.
A156: ¹ La version Catégorie de société du portefeuille d’accumulation investira dans le groupe de fonds Investissements Russell et ses fonds sous-jacents conformément aux répartitions établis pour chaque catégorie d’actif.
A157: ¹ La Catégorie gestion du rendement Investissements Russell entend vendre à terme un portefeuille déterminé de titres participatifs canadiens en échange d’une exposition à des rendements économiques assimilables à ceux du Fonds à revenu fixe canadien Investissements Russell, un fonds de Investissements Russell. L’objectif du Fonds à revenu fixe canadien Investissements Russell est d’obtenir un niveau stable de flux de trésorerie au moyen de placements effectués surtout dans des titres à revenu fixe d’émetteurs canadiens. Le fonds investira généralement dans des titres ayant une cote minimale de « BBB » et au moins 80 % de son actif net sera composé de titres dont la cote est supérieure à « BBB ». Les styles de placement utilisés par le fonds comprennent la durée limitée, la gestion active du rendement et la gestion mondiale. ² La Catégorie fonds d’obligations mondiales sans contrainte Investissements Russell peut conclure des contrats à terme de gré à gré avec une ou plusieurs banques canadiennes (la contrepartie) afin de générer des gains en capital fiscalement avantageux. La Catégorie fonds d’obligations mondiales sans contrainte Investissements Russell peut choisir d’investir directement dans des titres sans conclure de contrats à terme. Dans ce cas, le Fonds peut investir dans des titres d’un autre organisme de placement collectif comme le fonds de référence, notamment le Fonds d’obligations mondiales sans contrainte Investissements Russell. ** Ce fonds d’investissement n’accepte plus de nouveaux placements dans la version catégorie de société. Veuillez utiliser la version fiducie de ce fonds. Les actions de ces fonds sont réservés aux investisseurs qui utilisent actuellement le programme de rééquilibrage automatique Russell Souverain aux fins de rééquilibrage et pour le réinvestissement des dividendes et des distributions.
A158: Les placements dans les fonds communs peuvent faire l’objet de commissions, de commissions de suivi, de frais de gestion et d’autres charges. Avant d’investir, veuillez lire le prospectus. Les fonds communs de placement ne sont pas garantis, leur valeur fluctue fréquemment et les rendements passés peuvent ne pas se reproduire. Aucune partie du contenu de cette publication ne constitue des conseils juridiques, fiscaux, sur les titres ou de placement. Il ne s’agit pas non plus d’une opinion concernant la pertinence d’un placement ni une sollicitation de quelque type que ce soit. Cette information est disponible « telle quelle ». Investissements Russell Canada Limitée ne fait aucune déclaration et n’offre aucune garantie à l’égard de cette information. Investissements Russell est le nom commercial d’un groupe d’entreprises dotées d’une administration commune, incluant Investissements Russell Canada Limitée. La propriété d’Investissements Russell se compose comme suit : une participation majoritaire de fonds gérés par TA Associates Management, L.P. et une participation minoritaire de fonds gérés par Reverence Capital Partners, L.P. Certains des employés d’Investissements Russell ainsi que Hamilton Lane, LLC détiennent également des participations minoritaires sans contrôle. Droits d’auteur © Investissements Russell Canada Limitée 2024. Tous droits réservés. Le présent document est la propriété exclusive d’Investissements Russell et ne peut être reproduit, transféré ou distribué sous quelque forme que ce soit sans l’autorisation écrite d’Investissements Russell. Frank Russell Company est le titulaire des marques de commerce Russell contenues aux présentes et de tous les droits de marque liés aux marques commerciales Russell, et autorise les membres du groupe d’entreprises Investissements Russell à les utiliser sous licence. Les membres du groupe d’entreprises Investissements Russell ne sont en aucune façon affiliés à Frank Russell Company ni à toute autre entité exploitée sous la marque «FTSE RUSSELL». Date de publication initiale : janvier 2024 RETAIL-03937 (EXP-10-2024)

Sheet Fonds Investissements Russell
A1: Fonds Investissements Russell
C2: Répartition de l’actif cible Investissements Russell | E2: Client
E3: 76 sous-conseiller
E4: 16 fonds d'investissement
E6: Montant total portefeuille | F6: 100000
C8: Fonds d’investissement | D8: Style de gestion | E8: Pourcentage portefeuille | F8: Montant investi
C9: =MasterManagerList!$C$9 -> Fonds de revenu à court terme Investissements Russell | E9: 0.05 | F9: =F6*E9 -> 5000 | H9: =MATCH($C9,'Client Data Sheet'!$F$2:$AH$2,0) -> 1
C10: =MasterManagerList!$C$10 -> Leith Wheeler Investment Counsel Ltd. | D10: =MasterManagerList!$D$10 -> Multi-styles | E10: =MasterManagerList!$E$10*E9 -> 0.0225 | F10: =F6*E10 -> 2250
C11: =MasterManagerList!$C$11 -> Canso Investment Counsel Ltd. | D11: =MasterManagerList!$D$11 -> Choix des titres de créance | E11: =MasterManagerList!$E$11*E9 -> 0.0175 | F11: =F6*E11 -> 1750
C12: =MasterManagerList!$C$12 -> Investissements Russell | D12: =MasterManagerList!$D$12 -> Stratégies de positionnement et Réserve de liquidité** | E12: =MasterManagerList!$E$12*E9 -> 0.01 | F12: =F6*E12 -> 1000
C13: =MasterManagerList!$C$13 -> Fonds à revenu fixe Investissements Russell | E13: 0.2 | F13: =F6*E13 -> 20000 | H13: =MATCH($C13,'Client Data Sheet'!$F$2:$AH$2,0) -> 2
C14: =MasterManagerList!$C$14 -> Beutel, Goodman & Company Ltd. | D14: =MasterManagerList!$D$14 -> Gestion taux d'intérêt | E14: =MasterManagerList!$E$14*E13 -> 0.064 | F14: =F6*E14 -> 6400
C15: =MasterManagerList!$C$15 -> Canso Investment Counsel Ltd. | D15: =MasterManagerList!$D$15 -> Choix des titres de créance | E15: =MasterManagerList!$E$15*E13 -> 0.05 | F15: =F6*E15 -> 5000
C16: =MasterManagerList!$C$16 -> Leith Wheeler Investment Counsel Ltd. | D16: =MasterManagerList!$D$16 -> Gestion des taux d’intérêt et du risque de crédit | E16: =MasterManagerList!$E$16*E13 -> 0.046 | F16: =F6*E16 -> 4600
C17: =MasterManagerList!$C$17 -> Western Asset Management Company, LLC | D17: =MasterManagerList!$D$17 -> Taux et titres de créance mondiaux | E17: =MasterManagerList!$E$17*E13 -> 0.03 | F17: =F6*E17 -> 3000
C18: =MasterManagerList!$C$18 -> Investissements Russell | D18: =MasterManagerList!$D$18 -> Stratégies de positionnement | E18: =MasterManagerList!$E$18*E13 -> 0.01 | F18: =F6*E18 -> 1000
C19: =MasterManagerList!$C$19 -> Fonds d’investissement à revenu fixe canadien Investissements Russell | E19: 0 | F19: =F6*E19 -> 0 | H19: =MATCH($C19,'Client Data Sheet'!$F$2:$AH$2,0) -> 3
C20: =MasterManagerList!$C$20 -> Beutel, Goodman & Company Ltd. | D20: =MasterManagerList!$D$20 -> Gestion des taux d’intérêt | E20: =MasterManagerList!$E$20*E19 -> 0 | F20: =F6*E20 -> 0
C21: =MasterManagerList!$C$21 -> Canso Investment Counsel Ltd. | D21: =MasterManagerList!$D$21 -> Choix des titres de créance | E21: =MasterManagerList!$E$21*E19 -> 0 | F21: =F6*E21 -> 0
C22: =MasterManagerList!$C$22 -> Leith Wheeler Investment Counsel Ltd. | D22: =MasterManagerList!$D$22 -> Gestion des taux d’intérêt et du risque de crédit | E22: =MasterManagerList!$E$22*E19 -> 0 | F22: =F6*E22 -> 0
C23: =MasterManagerList!$C$23 -> Western Asset Management Co.,LLC | D23: =MasterManagerList!$D$23 -> Taux et titres de créance mondiaux | E23: =MasterManagerList!$E$23*E19 -> 0 | F23: =F6*E23 -> 0
C24: =MasterManagerList!$C$24 -> Fonds à revenu fixe Plus Investissements Russell | E24: 0 | F24: =F6*E24 -> 0 | H24: =MATCH($C24,'Client Data Sheet'!$F$2:$AH$2,0) -> 4
C25: =MasterManagerList!$C$25 -> Beutel, Goodman & Company Ltd. | D25: =MasterManagerList!$D$25 -> Gestion taux d’intérêt | E25: =MasterManagerList!$E$25*E24 -> 0 | F25: =F6*E25 -> 0
C26: =MasterManagerList!$C$26 -> Canso Investment Counsel Ltd. | D26: =MasterManagerList!$D$26 -> Choix des titres de créance | E26: =MasterManagerList!$E$26*E24 -> 0 | F26: =F6*E26 -> 0
C27: =MasterManagerList!$C$27 -> Leith Wheeler Investment Counsel Ltd. | D27: =MasterManagerList!$D$27 -> Gestion des taux d’intérêt et du risque de crédit | E27: =MasterManagerList!$E$27*E24 -> 0 | F27: =F6*E27 -> 0
C28: =MasterManagerList!$C$28 -> Western Asset Management Company, LLC | D28: =MasterManagerList!$D$28 -> Taux et titres de créance mondiaux | E28: =MasterManagerList!$E$28*E24 -> 0 | F28: =F6*E28 -> 0
C29: =MasterManagerList!$C$29 -> Investissements Russell | D29: =MasterManagerList!$D$29 -> Stratégies de positionnement | E29: =MasterManagerList!$E$29*E24 -> 0 | F29: =F6*E29 -> 0
C30: =MasterManagerList!$C$30 -> Western Asset Management Company, LLC | D30: =MasterManagerList!$D$30 -> Créance sécurisée | E30: =MasterManagerList!$E$30*E24 -> 0 | F30: =F6*E30 -> 0
C31: =MasterManagerList!$C$31 -> MetLife Investment Management, LLC | D31: =MasterManagerList!$D$31 -> Crédit mondial | E31: =MasterManagerList!$E$31*E24 -> 0 | F31: =F6*E31 -> 0
C32: =MasterManagerList!$C$32 -> Picton Mahoney Fortified Income Alternative Fund⁺ | D32: =MasterManagerList!$D$32 -> Crédit acheteur/vendeur | E32: =MasterManagerList!$E$32*E24 -> 0 | F32: =F6*E32 -> 0
C33: =MasterManagerList!$C$33 -> Investissements Russell | D33: =MasterManagerList!$D$33 -> Stratégies de positionnement et Réserve de liquidité** | E33: =MasterManagerList!$E$33*E24 -> 0 | F33: =F6*E33 -> 0
C34: =MasterManagerList!$C$34 -> Fonds d’investissement d’obligations indexées sur l’inflation Investissements Russell | E34: 0 | F34: =F6*E34 -> 0 | H34: =MATCH($C34,'Client Data Sheet'!$F$2:$AH$2,0) -> 5
C35: =MasterManagerList!$C$35 -> Fonds d’obligations mondiales sans contrainte Investissements Russell | E35: 0 | F35: =F6*E35 -> 0 | H35: =MATCH($C35,'Client Data Sheet'!$F$2:$AH$2,0) -> 6
C36: =MasterManagerList!$C$36 -> Voya Investment Management Co. LLC | D36: =MasterManagerList!$D$36 -> Taux de rendement | E36: =MasterManagerList!$E$36*E35 -> 0 | F36: =F6*E36 -> 0
C37: =MasterManagerList!$C$37 -> Federated Hermes, Inc. | D37: =MasterManagerList!$D$37 -> Choix des titres de créance | E37: =MasterManagerList!$E$37*E35 -> 0 | F37: =F6*E37 -> 0
C38: =MasterManagerList!$C$38 -> Putnam Investment Management, LLC | D38: =MasterManagerList!$D$38 -> Investissements opportunistes | E38: =MasterManagerList!$E$38*E35 -> 0 | F38: =F6*E38 -> 0
C39: =MasterManagerList!$C$39 -> Investissements Russell | D39: =MasterManagerList!$D$39 -> Stratégies de positionnement et Réserve de liquidité** | E39: =MasterManagerList!$E$39*E35 -> 0 | F39: =F6*E39 -> 0
C40: =MasterManagerList!$C$40 -> Fonds de titres de créance mondiaux Investissements Russell | E40: 0.1 | F40: =F6*E40 -> 10000 | H40: =MATCH($C40,'Client Data Sheet'!$F$2:$AH$2,0) -> 7
C41: =MasterManagerList!$C$41 -> Federated Hermes, Inc. | D41: =MasterManagerList!$D$41 -> Rendement élevé mondial | E41: =MasterManagerList!$E$41*E40 -> 0.027 | F41: =F6*E41 -> 2700
C42: =MasterManagerList!$C$42 -> Marathon Asset Management, L.P. | D42: =MasterManagerList!$D$42 -> Titres d'emprunt marchés émergents | E42: =MasterManagerList!$E$42*E40 -> 0.018 | F42: =F6*E42 -> 1800
C43: =MasterManagerList!$C$43 -> Voya Investment Management Co. LLC | D43: =MasterManagerList!$D$43 -> Créances tritrisées | E43: =MasterManagerList!$E$43*E40 -> 0.022 | F43: =F6*E43 -> 2200
C44: =MasterManagerList!$C$44 -> Investissements Russell | D44: =MasterManagerList!$D$44 -> Stratégies de positionnement | E44: =MasterManagerList!$E$44*E40 -> 0.033 | F44: =F6*E44 -> 3300
C45: =MasterManagerList!$C$45 -> BlueBay Global Convertible Bond Fund (Canada) | E45: 0 | F45: =F6*E45 -> 0 | H45: =MATCH($C45,'Client Data Sheet'!$F$2:$AH$2,0) -> 8
C46: =MasterManagerList!$C$46 -> Fonds de dividendes canadien Investissements Russell | E46: 0.1 | F46: =F6*E46 -> 10000 | H46: =MATCH($C46,'Client Data Sheet'!$F$2:$AH$2,0) -> 9
C47: =MasterManagerList!$C$47 -> Wellington Management Canada ULC | D47: =MasterManagerList!$D$47 -> Valeur | E47: =MasterManagerList!$E$47*E46 -> 0.01 | F47: =F6*E47 -> 1000
C48: =MasterManagerList!$C$48 -> Montrusco Bolton Investments, Inc. | D48: =MasterManagerList!$D$48 -> Croissance défensive | E48: =MasterManagerList!$E$48*E46 -> 0.029 | F48: =F6*E48 -> 2900
C49: =MasterManagerList!$C$49 -> Iris Asset Management Ltd. | D49: =MasterManagerList!$D$49 -> Croissance défensive des dividendes | E49: =MasterManagerList!$E$49*E46 -> 0.029 | F49: =F6*E49 -> 2900
C50: =MasterManagerList!$C$50 -> Investissements Russell | D50: =MasterManagerList!$D$50 -> Stratégies de positionnement et Réserve de liquidité** | E50: =MasterManagerList!$E$50*E46 -> 0.032 | F50: =F6*E50 -> 3200
C51: =MasterManagerList!$C$51 -> Fonds multi-facteurs actions canadiennes Investissements Russell | E51: 0 | F51: =F6*E51 -> 0 | H51: =MATCH($C51,'Client Data Sheet'!$F$2:$AH$2,0) -> 10
C52: =MasterManagerList!$C$52 -> Fonds d’actions canadiennes Investissements Russell | E52: 0.08 | F52: =F6*E52 -> 8000 | H52: =MATCH($C52,'Client Data Sheet'!$F$2:$AH$2,0) -> 11
C53: =MasterManagerList!$C$53 -> Scheer, Rowlett & Associates Investment Management Ltd. | D53: =MasterManagerList!$D$53 -> Valeur | E53: =MasterManagerList!$E$53*E52 -> 0.0176 | F53: =F6*E53 -> 1760
C54: =MasterManagerList!$C$54 -> Montrusco Bolton Investments, Inc. | D54: =MasterManagerList!$D$54 -> Croissance défensive | E54: =MasterManagerList!$E$54*E52 -> 0.0144 | F54: =F6*E54 -> 1440
C55: =MasterManagerList!$C$55 -> Picton Mahoney Asset Management | D55: =MasterManagerList!$D$55 -> Croissance | E55: =MasterManagerList!$E$55*E52 -> 0.016 | F55: =F6*E55 -> 1600
C56: =MasterManagerList!$C$56 -> Galibier Capital Management Ltd. | D56: =MasterManagerList!$D$56 -> Croissance à un prix raisonnable | E56: =MasterManagerList!$E$56*E52 -> 0.0136 | F56: =F6*E56 -> 1360
C57: =MasterManagerList!$C$57 -> Investissements Russell | D57: =MasterManagerList!$D$57 -> Stratégies de positionnement et Réserve de liquidité** | E57: =MasterManagerList!$E$57*E52 -> 0.0184 | F57: =F6*E57 -> 1840
C58: =MasterManagerList!$C$58 -> Fonds de petites sociétés mondiales Investissements Russell | E58: 0.03 | F58: =F6*E58 -> 3000 | H58: =MATCH($C58,'Client Data Sheet'!$F$2:$AH$2,0) -> 12
C59: =MasterManagerList!$C$59 -> Boston Partners Global Investors, Inc. | D59: =MasterManagerList!$D$59 -> Valeur à faible cap – États-Unis | E59: =MasterManagerList!$E$59*E58 -> 0.0045 | F59: =F6*E59 -> 450
C60: =MasterManagerList!$C$60 -> Copeland Capital Management, LLC | D60: =MasterManagerList!$D$60 -> Axé sur la marché à faible cap – États-Unis | E60: =MasterManagerList!$E$60*E58 -> 0.0045 | F60: =F6*E60 -> 450
C61: =MasterManagerList!$C$61 -> Calamos Advisors LLC | D61: =MasterManagerList!$D$61 -> Croissance à moyenne capitalisation – États-Unis | E61: =MasterManagerList!$E$61*E58 -> 0.00405 | F61: =F6*E61 -> 405
C62: =MasterManagerList!$C$62 -> AllianceBernstein Canada, Inc. | D62: =MasterManagerList!$D$62 -> Valeur à faible cap - Europe | E62: =MasterManagerList!$E$62*E58 -> 0.00225 | F62: =F6*E62 -> 225
C63: =MasterManagerList!$C$63 -> Liontrust Investment Partners LLP | D63: =MasterManagerList!$D$63 -> Axé sur la marché à faible cap - Europe | E63: =MasterManagerList!$E$63*E58 -> 0.00225 | F63: =F6*E63 -> 225
C64: =MasterManagerList!$C$64 -> Joh. Berenberg, Gossler & Co. KG | D64: =MasterManagerList!$D$64 -> Croissance-Europe | E64: =MasterManagerList!$E$64*E58 -> 0.00165 | F64: =F6*E64 -> 165
C65: =MasterManagerList!$C$65 -> Four Seasons Asia Investment Pte. Ltd. | D65: =MasterManagerList!$D$65 -> Faible/microcapitalisation - Japon | E65: =MasterManagerList!$E$65*E58 -> 0.00405 | F65: =F6*E65 -> 405
C66: =MasterManagerList!$C$66 -> Investissements Russell | D66: =MasterManagerList!$D$66 -> Stratégies de positionnement et Réserve de liquidité** | E66: =MasterManagerList!$E$66*E58 -> 0.00675 | F66: =F6*E66 -> 675
C67: =MasterManagerList!$C$67 -> Fonds d'actions américaines à gestion fiscale Investissements Russell | E67: 0.05 | F67: =F6*E67 -> 5000 | H67: =MATCH($C67,'Client Data Sheet'!$F$2:$AH$2,0) -> 13
C68: =MasterManagerList!$C$68 -> Brandywine Global Investment Management, LLC | D68: =MasterManagerList!$D$68 -> Valeur | E68: =MasterManagerList!$E$68*E67 -> 0.0085 | F68: =F6*E68 -> 850
C69: =MasterManagerList!$C$69 -> Jacobs Levy Equity Management, Inc. | D69: =MasterManagerList!$D$69 -> Axé sur le marché | E69: =MasterManagerList!$E$69*E67 -> 0.011 | F69: =F6*E69 -> 1100
C70: =MasterManagerList!$C$70 -> William Blair Investment Management, LLC | D70: =MasterManagerList!$D$70 -> De base | E70: =MasterManagerList!$E$70*E67 -> 0.011 | F70: =F6*E70 -> 1100
C71: =MasterManagerList!$C$71 -> J.P. Morgan Asset Management | D71: =MasterManagerList!$D$71 -> De base | E71: =MasterManagerList!$E$71*E67 -> 0.0095 | F71: =F6*E71 -> 950
C72: =MasterManagerList!$C$72 -> Investissements Russell | D72: =MasterManagerList!$D$72 -> Stratégies de positionnement | E72: =MasterManagerList!$E$72*E67 -> 0.01 | F72: =F6*E72 -> 1000
C73: =MasterManagerList!$C$73 -> Fonds multi-facteurs actions américaines Investissements Russell | E73: 0 | F73: =F6*E73 -> 0 | H73: =MATCH($C73,'Client Data Sheet'!$F$2:$AH$2,0) -> 14
C74: =MasterManagerList!$C$74 -> Fonds d’actions américaines Investissements Russell | E74: 0.05 | F74: =F6*E74 -> 5000 | H74: =MATCH($C74,'Client Data Sheet'!$F$2:$AH$2,0) -> 15
C75: =MasterManagerList!$C$75 -> Brandywine Global Investment Management, LLC | D75: =MasterManagerList!$D$75 -> Valeur | E75: =MasterManagerList!$E$75*E74 -> 0.0085 | F75: =F6*E75 -> 850
C76: =MasterManagerList!$C$76 -> Jacobs Levy Equity Management, Inc. | D76: =MasterManagerList!$D$76 -> Axé sur le marché | E76: =MasterManagerList!$E$76*E74 -> 0.011 | F76: =F6*E76 -> 1100
C77: =MasterManagerList!$C$77 -> William Blair Investment Management, LLC | D77: =MasterManagerList!$D$77 -> De base | E77: =MasterManagerList!$E$77*E74 -> 0.011 | F77: =F6*E77 -> 1100
C78: =MasterManagerList!$C$78 -> J.P. Morgan Asset Management | D78: =MasterManagerList!$D$78 -> De base | E78: =MasterManagerList!$E$78*E74 -> 0.0095 | F78: =F6*E78 -> 950
C79: =MasterManagerList!$C$79 -> Investissements Russell | D79: =MasterManagerList!$D$79 -> Stratégies de positionnement | E79: =MasterManagerList!$E$79*E74 -> 0.01 | F79: =F6*E79 -> 1000
C80: =MasterManagerList!$C$80 -> Fonds multi-facteurs actions internationales Investissements Russell | E80: 0 | F80: =F6*E80 -> 0 | H80: =MATCH($C80,'Client Data Sheet'!$F$2:$AH$2,0) -> 16
C81: =MasterManagerList!$C$81 -> Fonds d’actions outre-mer Investissements Russell | E81: 0.05 | F81: =F6*E81 -> 5000 | H81: =MATCH($C81,'Client Data Sheet'!$F$2:$AH$2,0) -> 17
C82: =MasterManagerList!$C$82 -> Pzena Investment Management, LLC | D82: =MasterManagerList!$D$82 -> Valeur | E82: =MasterManagerList!$E$82*E81 -> 0.00675 | F82: =F6*E82 -> 675
C83: =MasterManagerList!$C$83 -> Numeric Investors, LLC | D83: =MasterManagerList!$D$83 -> Axé sur le marché | E83: =MasterManagerList!$E$83*E81 -> 0.0095 | F83: =F6*E83 -> 950
C84: =MasterManagerList!$C$84 -> Wellington Management Canada ULC | D84: =MasterManagerList!$D$84 -> Croissance et valeur | E84: =MasterManagerList!$E$84*E81 -> 0.013 | F84: =F6*E84 -> 1300
C85: =MasterManagerList!$C$85 -> Intermede Investment Partners Limited and Intermede Global Partners Inc. | D85: =MasterManagerList!$D$85 -> Croissance | E85: =MasterManagerList!$E$85*E81 -> 0.01225 | F85: =F6*E85 -> 1225
C86: =MasterManagerList!$C$86 -> Investissements Russell | D86: =MasterManagerList!$D$86 -> Stratégies de positionnement | E86: =MasterManagerList!$E$86*E81 -> 0.0085 | F86: =F6*E86 -> 850
C87: =MasterManagerList!$C$87 -> Fonds d'actions mondiales à gestion fiscale Investissements Russell | E87: 0.05 | F87: =F6*E87 -> 5000 | H87: =MATCH($C87,'Client Data Sheet'!$F$2:$AH$2,0) -> 18
C88: =MasterManagerList!$C$88 -> Sanders Capital, LLC | D88: =MasterManagerList!$D$88 -> Valeur | E88: =MasterManagerList!$E$88*E87 -> 0.0095 | F88: =F6*E88 -> 950
C89: =MasterManagerList!$C$89 -> Wellington Management Canada ULC | D89: =MasterManagerList!$D$89 -> Croissance | E89: =MasterManagerList!$E$89*E87 -> 0.007 | F89: =F6*E89 -> 700
C90: =MasterManagerList!$C$90 -> Intermede Investment Partners Limited and Intermede Global Partners Inc. | D90: =MasterManagerList!$D$90 -> Croissance | E90: =MasterManagerList!$E$90*E87 -> 0.01 | F90: =F6*E90 -> 1000
C91: =MasterManagerList!$C$91 -> Pzena Investment Management, LLC | D91: =MasterManagerList!$D$91 -> Valeur | E91: =MasterManagerList!$E$91*E87 -> 0.0095 | F91: =F6*E91 -> 950
C92: =MasterManagerList!$C$92 -> Russell Investments | D92: =MasterManagerList!$D$92 -> Stratégies de positionnement et Réserve de liquidité** | E92: =MasterManagerList!$E$92*E87 -> 0.014 | F92: =F6*E92 -> 1400
C93: =MasterManagerList!$C$93 -> Fonds d’actions mondiales ESG Investissements Russell | E93: 0 | F93: =F6*E93 -> 0 | H93: =MATCH($C93,'Client Data Sheet'!$F$2:$AH$2,0) -> 19
C94: =MasterManagerList!$C$94 -> Sanders Capital, LLC | D94: =MasterManagerList!$D$94 -> Valeur | E94: =MasterManagerList!$E$94*E93 -> 0 | F94: =F6*E94 -> 0
C95: =MasterManagerList!$C$95 -> Intermede Investment Partners Limited and Intermede Global Partners Inc. | D95: =MasterManagerList!$D$95 -> Croissance | E95: =MasterManagerList!$E$95*E93 -> 0 | F95: =F6*E95 -> 0
C96: =MasterManagerList!$C$96 -> Investissements Russell | D96: =MasterManagerList!$D$96 -> Stratégies de positionnement et Réserve de liquidité** | E96: =MasterManagerList!$E$96*E93 -> 0 | F96: =F6*E96 -> 0
C97: =MasterManagerList!$C$97 -> Fonds d’actions mondiales Investissements Russell | E97: 0.05 | F97: =F6*E97 -> 5000 | H97: =MATCH($C97,'Client Data Sheet'!$F$2:$AH$2,0) -> 20
C98: =MasterManagerList!$C$98 -> Sanders Capital, LLC | D98: =MasterManagerList!$D$98 -> Valeur | E98: =MasterManagerList!$E$98*E97 -> 0.01025 | F98: =F6*E98 -> 1025
C99: =MasterManagerList!$C$99 -> Wellington Management Canada ULC | D99: =MasterManagerList!$D$99 -> Croissance et valeur | E99: =MasterManagerList!$E$99*E97 -> 0.01825 | F99: =F6*E99 -> 1825
C100: =MasterManagerList!$C$100 -> Intermede Investment Partners Limited and Intermede Global Partners Inc. | D100: =MasterManagerList!$D$100 -> Croissance | E100: =MasterManagerList!$E$100*E97 -> 0.0105 | F100: =F6*E100 -> 1050
C101: =MasterManagerList!$C$101 -> Investissements Russell | D101: =MasterManagerList!$D$101 -> Stratégies de positionnement | E101: =MasterManagerList!$E$101*E97 -> 0.011 | F101: =F6*E101 -> 1100
C102: =MasterManagerList!$C$102 -> Fonds d’actions marchés émergents Investissements Russell | E102: 0.05 | F102: =F6*E102 -> 5000 | H102: =MATCH($C102,'Client Data Sheet'!$F$2:$AH$2,0) -> 21
C103: =MasterManagerList!$C$103 -> Numeric Investors, LLC | D103: =MasterManagerList!$D$103 -> Axé sur le marché | E103: =MasterManagerList!$E$103*E102 -> 0.0095 | F103: =F6*E103 -> 950
C104: =MasterManagerList!$C$104 -> Oaktree Capital Management, L.P. | D104: =MasterManagerList!$D$104 -> Valeur relative | E104: =MasterManagerList!$E$104*E102 -> 0.0075 | F104: =F6*E104 -> 750
C105: =MasterManagerList!$C$105 -> RWC Asset Advisors (US) LLC | D105: =MasterManagerList!$D$105 -> Croissance | E105: =MasterManagerList!$E$105*E102 -> 0.005 | F105: =F6*E105 -> 500
C106: =MasterManagerList!$C$106 -> Axiom International Investors LLC | D106: =MasterManagerList!$D$106 -> Croissance de qualité | E106: =MasterManagerList!$E$106*E102 -> 0.006 | F106: =F6*E106 -> 600
C107: =MasterManagerList!$C$107 -> Sands Capital Management, LLC | D107: =MasterManagerList!$D$107 -> Croissance | E107: =MasterManagerList!$E$107*E102 -> 0.004 | F107: =F6*E107 -> 400
C108: =MasterManagerList!$C$108 -> Coeli AB | D108: =MasterManagerList!$D$108 -> Marchés frontières | E108: =MasterManagerList!$E$108*E102 -> 0.0025 | F108: =F6*E108 -> 250
C109: =MasterManagerList!$C$109 -> Pzena Investment Management, LLC | D109: =MasterManagerList!$D$109 -> Valeur | E109: =MasterManagerList!$E$109*E102 -> 0.0065 | F109: =F6*E109 -> 650
C110: =MasterManagerList!$C$110 -> Investissements Russell | D110: =MasterManagerList!$D$110 -> Stratégies de positionnement et Réserve de liquidité** | E110: =MasterManagerList!$E$110*E102 -> 0.009 | F110: =F6*E110 -> 900
C111: =MasterManagerList!$C$111 -> Fonds du marché monétaire Investissements Russell | E111: 0.05 | F111: =F6*E111 -> 5000 | H111: =MATCH($C111,'Client Data Sheet'!$F$2:$AH$2,0) -> 22
C112: =MasterManagerList!$C$112 -> Russell Investment Management, LLC | D112: =MasterManagerList!$D$112 -> Court terme | E112: =MasterManagerList!$E$112*E111 -> 0.05 | F112: =F6*E112 -> 5000
C113: =MasterManagerList!$C$113 -> Fonds d’infrastructures mondiales Investissements Russell | E113: 0.03 | F113: =F6*E113 -> 3000 | H113: =MATCH($C113,'Client Data Sheet'!$F$2:$AH$2,0) -> 23
C114: =MasterManagerList!$C$114 -> Nuveen Asset Management, LLC | D114: =MasterManagerList!$D$114 -> Valeur | E114: =MasterManagerList!$E$114*E113 -> 0.0111 | F114: =F6*E114 -> 1110
C115: =MasterManagerList!$C$115 -> Cohen & Steers Capital Management, Inc. | D115: =MasterManagerList!$D$115 -> Axé sur le marché | E115: =MasterManagerList!$E$115*E113 -> 0.0045 | F115: =F6*E115 -> 450
C116: =MasterManagerList!$C$116 -> First Sentier Investors (Australia) IM Ltd. | D116: =MasterManagerList!$D$116 -> Croissance à un prix raisonnable | E116: =MasterManagerList!$E$116*E113 -> 0.0114 | F116: =F6*E116 -> 1140
C117: =MasterManagerList!$C$117 -> Investissements Russell | D117: =MasterManagerList!$D$117 -> Stratégies de positionnement | E117: =MasterManagerList!$E$117*E113 -> 0.003 | F117: =F6*E117 -> 300
C118: =MasterManagerList!$C$118 -> Fonds immobilier mondial Investissements Russell | E118: 0.03 | F118: =F6*E118 -> 3000 | H118: =MATCH($C118,'Client Data Sheet'!$F$2:$AH$2,0) -> 24
C119: =MasterManagerList!$C$119 -> Cohen & Steers Capital Management, Inc. | D119: =MasterManagerList!$D$119 -> Axé sur le marché | E119: =MasterManagerList!$E$119*E118 -> 0.0129 | F119: =F6*E119 -> 1290
C120: =MasterManagerList!$C$120 -> DWS* | D120: =MasterManagerList!$D$120 -> Axé sur le marché | E120: =MasterManagerList!$E$120*E118 -> 0.0141 | F120: =F6*E120 -> 1410
C121: =MasterManagerList!$C$121 -> Investissements Russell | D121: =MasterManagerList!$D$121 -> Stratégies de positionnement | E121: =MasterManagerList!$E$121*E118 -> 0.003 | F121: =F6*E121 -> 300
C122: =MasterManagerList!$C$122 -> Portefeuille d’actifs réels Investissements Russell | E122: 0.03 | F122: =F6*E122 -> 3000 | H122: =MATCH($C122,'Client Data Sheet'!$F$2:$AH$2,0) -> 25
C123: =MasterManagerList!$C$123 -> Nuveen Asset Management, LLC | D123: =MasterManagerList!$D$123 -> Valeur | E123: =MasterManagerList!$E$123*E122 -> 0.004218 | F123: =F6*E123 -> 421.8
C124: =MasterManagerList!$C$124 -> Cohen & Steers Capital Management, Inc. | D124: =MasterManagerList!$D$124 -> Axé sur le marché | E124: =MasterManagerList!$E$124*E122 -> 0.00621 | F124: =F6*E124 -> 621
C125: =MasterManagerList!$C$125 -> First Sentier Investors (Australia) IM Ltd. | D125: =MasterManagerList!$D$125 -> Croissance à un prix raisonnable | E125: =MasterManagerList!$E$125*E122 -> 0.004332 | F125: =F6*E125 -> 433.2
C126: =MasterManagerList!$C$126 -> Investissements Russell | D126: =MasterManagerList!$D$126 -> Stratégies de positionnement | E126: =MasterManagerList!$E$126*E122 -> 0.002265 | F126: =F6*E126 -> 226.5
C127: =MasterManagerList!$C$127 -> DWS* | D127: =MasterManagerList!$D$127 -> Axé sur le marché | E127: =MasterManagerList!$E$127*E122 -> 0.005625 | F127: =F6*E127 -> 562.5
C128: =MasterManagerList!$C$128 -> Russell Investment Management, LLC | D128: =MasterManagerList!$D$128 -> Stratégie d’indexation - Produits de base | E128: =MasterManagerList!$E$128*E122 -> 0.00285 | F128: =F6*E128 -> 285
C129: =MasterManagerList!$C$129 -> Russell Investment Management, LLC | D129: =MasterManagerList!$D$129 -> Stratégie d’indexation - ORR | E129: =MasterManagerList!$E$129*E122 -> 0.0045 | F129: =F6*E129 -> 450
C130: =MasterManagerList!$C$130 -> iShares Gold Trust | E130: 0 | F130: =F6*E130 -> 0 | H130: =MATCH($C130,'Client Data Sheet'!$F$2:$AH$2,0) -> 26
C131: =MasterManagerList!$C$131 -> Invesco DB Commodity Index Tracking Fund | E131: 0 | F131: =F6*E131 -> 0 | H131: =MATCH($C131,'Client Data Sheet'!$F$2:$AH$2,0) -> 27
C132: =MasterManagerList!$C$132 -> Fonds d’opportunités de revenu Investissements Russell | E132: 0 | F132: =F6*E132 -> 0 | H132: =MATCH($C132,'Client Data Sheet'!$F$2:$AH$2,0) -> 28
C133: =MasterManagerList!$C$133 -> Oaktree Capital Management, L.P. | D133: =MasterManagerList!$D$133 -> Obligations convertibles | E133: =MasterManagerList!$E$133*E132 -> 0 | F133: =F6*E133 -> 0
C134: =MasterManagerList!$C$134 -> Marathon Asset Management, L.P. | D134: =MasterManagerList!$D$134 -> Devise forte de la dette des marchés émergents | E134: =MasterManagerList!$E$134*E132 -> 0 | F134: =F6*E134 -> 0
C135: =MasterManagerList!$C$135 -> Putnam Investments Canada, ULC | D135: =MasterManagerList!$D$135 -> Prêts hypothécaires | E135: =MasterManagerList!$E$135*E132 -> 0 | F135: =F6*E135 -> 0
C136: =MasterManagerList!$C$136 -> Boston Partners Global Investors, Inc. | D136: =MasterManagerList!$D$136 -> Titres à petite capitalisation américains | E136: =MasterManagerList!$E$136*E132 -> 0 | F136: =F6*E136 -> 0
C137: =MasterManagerList!$C$137 -> Kopernik Global Investors LLC | D137: =MasterManagerList!$D$137 -> Actions mondiales | E137: =MasterManagerList!$E$137*E132 -> 0 | F137: =F6*E137 -> 0
C138: =MasterManagerList!$C$138 -> Sompo Asset Management Co., Ltd. | D138: =MasterManagerList!$D$138 -> Actions japonaises | E138: =MasterManagerList!$E$138*E132 -> 0 | F138: =F6*E138 -> 0
C139: =MasterManagerList!$C$139 -> Cohen & Steers Capital Management, Inc. | D139: =MasterManagerList!$D$139 -> Actions privilégiés | E139: =MasterManagerList!$E$139*E132 -> 0 | F139: =F6*E139 -> 0
C140: =MasterManagerList!$C$140 -> First Sentier Investors (Australia) IM Ltd. | D140: =MasterManagerList!$D$140 -> Infrastructures mondiales cotées en bourse | E140: =MasterManagerList!$E$140*E132 -> 0 | F140: =F6*E140 -> 0
C141: =MasterManagerList!$C$141 -> RREEF America LLC | D141: =MasterManagerList!$D$141 -> Immobilier mondial coté en bourse | E141: =MasterManagerList!$E$141*E132 -> 0 | F141: =F6*E141 -> 0
C142: =MasterManagerList!$C$142 -> Berenberg Asset Management, LLC | D142: =MasterManagerList!$D$142 -> Actions européennes | E142: =MasterManagerList!$E$142*E132 -> 0 | F142: =F6*E142 -> 0
C143: =MasterManagerList!$C$143 -> Russell Investment Management, LLC | D143: =MasterManagerList!$D$143 -> Stratégies de superposition | E143: =MasterManagerList!$E$143*E132 -> 0 | F143: =F6*E143 -> 0
C144: =MasterManagerList!$C$144 -> Russell Investment Management, LLC | D144: =MasterManagerList!$D$144 -> Superposition tactique | E144: =MasterManagerList!$E$144*E132 -> 0 | F144: =F6*E144 -> 0
C145: =MasterManagerList!$C$145 -> Stratégies de positionnement Investissements Russell | E145: 0 | F145: =F6*E145 -> 0 | H145: =MATCH($C145,'Client Data Sheet'!$F$2:$AH$2,0) -> 29
A146: Le nombre de sous-conseiller est courant en date de janvier 2024. Investissements Russell peut embaucher, changer ou congédier les sous-conseiller à n’importe quel moment. *Cette stratégie est gérée par RREEF America LLC, sous la bannière DWS. **La réserve de liquidité est un compte en espèces pour gérer les flux de trésorerie quotidien et peut utiliser des instruments dérivés pour fournir une exposition au marché afin de gérer le profile de risque de fonds.
A147: =IF(F24=0,"","⁺Il ne s'agit pas de sous-conseillers.") -> 
A149: Information importante
A150: ¹ La version Catégorie de société du portefeuille PDRMIR - Catégorie portefeuille diversifié de revenu mensuel Investissements Russell - investira dans les fonds Investissements Russell et leurs fonds sous-jacents conformément aux répartitions établies pour chaque catégorie d’actif.
A151: ¹ La version Catégorie de société du portefeuille PERIR - Catégorie portefeuille essentiel de revenu Investissements Russell - investira dans les fonds Investissements Russell et leurs fonds sous-jacents conformément aux répartitions établies pour chaque catégorie d’actif.
A152: ¹ La version Catégorie de société du portefeuille MACR - Catégorie multi-actifs stratégie de croissance et de revenu - investira dans les fonds Investissements Russell et leurs fonds sous-jacents conformément aux répartitions établies pour chaque catégorie d’actif.
A153: ¹ La version Catégorie de société du portefeuille MASC - Catégorie multi-actifs stratégie de croissance - investira dans les fonds Investissements Russell et leurs fonds sous-jacents conformément aux répartitions établies pour chaque catégorie d’actif.
A154: ¹ La version Catégorie de société du portefeuille PRPIR - Catégorie portefeuille de revenu prudent Investissements Russell - investira dans les fonds Investissements Russell et leurs fonds sous-jacents conformément aux répartitions établies pour chaque catégorie d’actif.
A155: ¹ La version Catégorie de société du portefeuille MASR - Catégorie multi-actifs stratégie de revenu - investira dans les fonds Investissements Russell et leurs fonds sous-jacents conformément aux répartitions établies pour chaque catégorie d’actif.
A156: ¹ La version Catégorie de société du portefeuille d’accumulation investira dans le groupe de fonds Investissements Russell et ses fonds sous-jacents conformément aux répartitions établis pour chaque catégorie d’actif.
A157: ¹ La Catégorie gestion du rendement Investissements Russell entend vendre à terme un portefeuille déterminé de titres participatifs canadiens en échange d’une exposition à des rendements économiques assimilables à ceux du Fonds à revenu fixe canadien Investissements Russell, un fonds de Investissements Russell. L’objectif du Fonds à revenu fixe canadien Investissements Russell est d’obtenir un niveau stable de flux de trésorerie au moyen de placements effectués surtout dans des titres à revenu fixe d’émetteurs canadiens. Le fonds investira généralement dans des titres ayant une cote minimale de « BBB » et au moins 80 % de son actif net sera composé de titres dont la cote est supérieure à « BBB ». Les styles de placement utilisés par le fonds comprennent la durée limitée, la gestion active du rendement et la gestion mondiale. ² La Catégorie fonds d’obligations mondiales sans contrainte Investissements Russell peut conclure des contrats à terme de gré à gré avec une ou plusieurs banques canadiennes (la contrepartie) afin de générer des gains en capital fiscalement avantageux. La Catégorie fonds d’obligations mondiales sans contrainte Investissements Russell peut choisir d’investir directement dans des titres sans conclure de contrats à terme. Dans ce cas, le Fonds peut investir dans des titres d’un autre organisme de placement collectif comme le fonds de référence, notamment le Fonds d’obligations mondiales sans contrainte Investissements Russell. ** Ce fonds d’investissement n’accepte plus de nouveaux placements dans la version catégorie de société. Veuillez utiliser la version fiducie de ce fonds. Les actions de ces fonds sont réservés aux investisseurs qui utilisent actuellement le programme de rééquilibrage automatique Russell Souverain aux fins de rééquilibrage et pour le réinvestissement des dividendes et des distributions.
A158: Les placements dans les fonds communs peuvent faire l’objet de commissions, de commissions de suivi, de frais de gestion et d’autres charges. Avant d’investir, veuillez lire le prospectus. Les fonds communs de placement ne sont pas garantis, leur valeur fluctue fréquemment et les rendements passés peuvent ne pas se reproduire. Aucune partie du contenu de cette publication ne constitue des conseils juridiques, fiscaux, sur les titres ou de placement. Il ne s’agit pas non plus d’une opinion concernant la pertinence d’un placement ni une sollicitation de quelque type que ce soit. Cette information est disponible « telle quelle ». Investissements Russell Canada Limitée ne fait aucune déclaration et n’offre aucune garantie à l’égard de cette information. Investissements Russell est le nom commercial d’un groupe d’entreprises dotées d’une administration commune, incluant Investissements Russell Canada Limitée. La propriété d’Investissements Russell se compose comme suit : une participation majoritaire de fonds gérés par TA Associates Management, L.P. et une participation minoritaire de fonds gérés par Reverence Capital Partners, L.P. Certains des employés d’Investissements Russell ainsi que Hamilton Lane, LLC détiennent également des participations minoritaires sans contrôle. Droits d’auteur © Investissements Russell Canada Limitée 2024. Tous droits réservés. Le présent document est la propriété exclusive d’Investissements Russell et ne peut être reproduit, transféré ou distribué sous quelque forme que ce soit sans l’autorisation écrite d’Investissements Russell. Frank Russell Company est le titulaire des marques de commerce Russell contenues aux présentes et de tous les droits de marque liés aux marques commerciales Russell, et autorise les membres du groupe d’entreprises Investissements Russell à les utiliser sous licence. Les membres du groupe d’entreprises Investissements Russell ne sont en aucune façon affiliés à Frank Russell Company ni à toute autre entité exploitée sous la marque «FTSE RUSSELL». Date de publication initiale : janvier 2024 RETAIL-03937 (EXP-10-2024)

Sheet MasterManagerList (hidden)
A1: Fonds Investissements Russell
C8: Fonds d’investissement | D8: Style de gestion | E8: Pourcentage portefeuille | F8: Montant investi
C9: Fonds de revenu à court terme Investissements Russell | H9: =MATCH($C9,'Client Data Sheet'!$F$2:$AH$2,0) -> 1 | J9: Catégorie fonds de revenu à court terme Investissements Russell
C10: Leith Wheeler Investment Counsel Ltd. | D10: Multi-styles | E10: 0.45
C11: Canso Investment Counsel Ltd. | D11: Choix des titres de créance | E11: 0.35
C12: Investissements Russell | D12: Stratégies de positionnement et Réserve de liquidité** | E12: 0.2 | G12: =SUM(E10:E12) -> 1
C13: Fonds à revenu fixe Investissements Russell | H13: =MATCH($C13,'Client Data Sheet'!$F$2:$AH$2,0) -> 2 | J13: Fonds à revenu fixe Investissements Russell
C14: Beutel, Goodman & Company Ltd. | D14: Gestion taux d'intérêt | E14: 0.32
C15: Canso Investment Counsel Ltd. | D15: Choix des titres de créance | E15: 0.25
C16: Leith Wheeler Investment Counsel Ltd. | D16: Gestion des taux d’intérêt et du risque de crédit | E16: 0.23
C17: Western Asset Management Company, LLC | D17: Taux et titres de créance mondiaux | E17: 0.15
C18: Investissements Russell | D18: Stratégies de positionnement | E18: 0.05 | G18: =SUM(E14:E18) -> 1
C19: Fonds d’investissement à revenu fixe canadien Investissements Russell | H19: =MATCH($C19,'Client Data Sheet'!$F$2:$AH$2,0) -> 3 | J19: Catégorie fonds à revenu fixe Investissements Russell¹ **
C20: Beutel, Goodman & Company Ltd. | D20: Gestion des taux d’intérêt | E20: 0.33
C21: Canso Investment Counsel Ltd. | D21: Choix des titres de créance | E21: 0.25
C22: Leith Wheeler Investment Counsel Ltd. | D22: Gestion des taux d’intérêt et du risque de crédit | E22: 0.24
C23: Western Asset Management Co.,LLC | D23: Taux et titres de créance mondiaux | E23: 0.18 | G23: =SUM(E20:E23) -> 1
C24: Fonds à revenu fixe Plus Investissements Russell | H24: =MATCH($C24,'Client Data Sheet'!$F$2:$AH$2,0) -> 4 | J24: Fonds à revenu fixe Plus Investissements Russell | K24: <- special number formatting adding " ^"
C25: Beutel, Goodman & Company Ltd. | D25: Gestion taux d’intérêt | E25: 0.144
C26: Canso Investment Counsel Ltd. | D26: Choix des titres de créance | E26: 0.1125
C27: Leith Wheeler Investment Counsel Ltd. | D27: Gestion des taux d’intérêt et du risque de crédit | E27: 0.1035
C28: Western Asset Management Company, LLC | D28: Taux et titres de créance mondiaux | E28: 0.0675
C29: Investissements Russell | D29: Stratégies de positionnement | E29: 0.0225
C30: Western Asset Management Company, LLC | D30: Créance sécurisée | E30: 0.15
C31: MetLife Investment Management, LLC | D31: Crédit mondial | E31: 0.2
C32: Picton Mahoney Fortified Income Alternative Fund⁺ | D32: Crédit acheteur/vendeur | E32: 0.09
C33: Investissements Russell | D33: Stratégies de positionnement et Réserve de liquidité** | E33: 0.11 | G33: =SUM(E25:E33) -> 1
C34: Fonds d’investissement d’obligations indexées sur l’inflation Investissements Russell | H34: =MATCH($C34,'Client Data Sheet'!$F$2:$AH$2,0) -> 5 | J34: Fonds d’investissement d’obligations indexées sur l’inflation Investissements Russell
C35: Fonds d’obligations mondiales sans contrainte Investissements Russell | H35: =MATCH($C35,'Client Data Sheet'!$F$2:$AH$2,0) -> 6 | J35: Catégorie fonds d’obligations mondiales sans contrainte Investissements Russell² **
C36: Voya Investment Management Co. LLC | D36: Taux de rendement | E36: 0.2
C37: Federated Hermes, Inc. | D37: Choix des titres de créance | E37: 0.5
C38: Putnam Investment Management, LLC | D38: Investissements opportunistes | E38: 0.2
C39: Investissements Russell | D39: Stratégies de positionnement et Réserve de liquidité** | E39: 0.1 | G39: =SUM(E36:E39) -> 1
C40: Fonds de titres de créance mondiaux Investissements Russell | H40: =MATCH($C40,'Client Data Sheet'!$F$2:$AH$2,0) -> 7 | J40: Catégorie fonds de titres de créance mondiaux Investissements Russell
C41: Federated Hermes, Inc. | D41: Rendement élevé mondial | E41: 0.27
C42: Marathon Asset Management, L.P. | D42: Titres d'emprunt marchés émergents | E42: 0.18
C43: Voya Investment Management Co. LLC | D43: Créances tritrisées | E43: 0.22
C44: Investissements Russell | D44: Stratégies de positionnement | E44: 0.33 | G44: =SUM(E41:E44) -> 1
C45: BlueBay Global Convertible Bond Fund (Canada) | H45: =MATCH($C45,'Client Data Sheet'!$F$2:$AH$2,0) -> 8 | J45: BlueBay Global Convertible Bond Fund (Canada)
C46: Fonds de dividendes canadien Investissements Russell | H46: =MATCH($C46,'Client Data Sheet'!$F$2:$AH$2,0) -> 9 | J46: Catégorie fonds de dividendes canadien Investissements Russell
C47: Wellington Management Canada ULC | D47: Valeur | E47: 0.1
C48: Montrusco Bolton Investments, Inc. | D48: Croissance défensive | E48: 0.29
C49: Iris Asset Management Ltd. | D49: Croissance défensive des dividendes | E49: 0.29
C50: Investissements Russell | D50: Stratégies de positionnement et Réserve de liquidité** | E50: 0.32 | G50: =SUM(E47:E50) -> 1
C51: Fonds multi-facteurs actions canadiennes Investissements Russell | H51: =MATCH($C51,'Client Data Sheet'!$F$2:$AH$2,0) -> 10 | J51: Fonds multi-facteurs actions canadiennes Investissements Russell
C52: Fonds d’actions canadiennes Investissements Russell | H52: =MATCH($C52,'Client Data Sheet'!$F$2:$AH$2,0) -> 11 | J52: Catégorie fonds d’actions canadiennes Investissements Russell
C53: Scheer, Rowlett & Associates Investment Management Ltd. | D53: Valeur | E53: 0.22
C54: Montrusco Bolton Investments, Inc. | D54: Croissance défensive | E54: 0.18
C55: Picton Mahoney Asset Management | D55: Croissance | E55: 0.2
C56: Galibier Capital Management Ltd. | D56: Croissance à un prix raisonnable | E56: 0.17
C57: Investissements Russell | D57: Stratégies de positionnement et Réserve de liquidité** | E57: 0.23 | G57: =SUM(E53:E57) -> 1
C58: Fonds de petites sociétés mondiales Investissements Russell | H58: =MATCH($C58,'Client Data Sheet'!$F$2:$AH$2,0) -> 12 | J58: Catégorie fonds de petites sociétés mondiales Investissements Russell
C59: Boston Partners Global Investors, Inc. | D59: Valeur à faible cap – États-Unis | E59: 0.15
C60: Copeland Capital Management, LLC | D60: Axé sur la marché à faible cap – États-Unis | E60: 0.15
C61: Calamos Advisors LLC | D61: Croissance à moyenne capitalisation – États-Unis | E61: 0.135
C62: AllianceBernstein Canada, Inc. | D62: Valeur à faible cap - Europe | E62: 0.075
C63: Liontrust Investment Partners LLP | D63: Axé sur la marché à faible cap - Europe | E63: 0.075
C64: Joh. Berenberg, Gossler & Co. KG | D64: Croissance-Europe | E64: 0.055
C65: Four Seasons Asia Investment Pte. Ltd. | D65: Faible/microcapitalisation - Japon | E65: 0.135
C66: Investissements Russell | D66: Stratégies de positionnement et Réserve de liquidité** | E66: 0.225 | G66: =SUM(E59:E66) -> 1
C67: Fonds d'actions américaines à gestion fiscale Investissements Russell | H67: =MATCH($C67,'Client Data Sheet'!$F$2:$AH$2,0) -> 13 | J67: Catégorie fonds d'actions américaines à gestion fiscale Investissements Russell
C68: Brandywine Global Investment Management, LLC | D68: Valeur | E68: 0.17
C69: Jacobs Levy Equity Management, Inc. | D69: Axé sur le marché | E69: 0.22
C70: William Blair Investment Management, LLC | D70: De base | E70: 0.22
C71: J.P. Morgan Asset Management | D71: De base | E71: 0.19
C72: Investissements Russell | D72: Stratégies de positionnement | E72: 0.2 | G72: =SUM(E68:E72) -> 1
C73: Fonds multi-facteurs actions américaines Investissements Russell | H73: =MATCH($C73,'Client Data Sheet'!$F$2:$AH$2,0) -> 14 | J73: Fonds multi-facteurs actions américaines Investissements Russell
C74: Fonds d’actions américaines Investissements Russell | H74: =MATCH($C74,'Client Data Sheet'!$F$2:$AH$2,0) -> 15 | J74: Catégorie fonds d’actions américaines Investissements Russell
C75: Brandywine Global Investment Management, LLC | D75: Valeur | E75: 0.17
C76: Jacobs Levy Equity Management, Inc. | D76: Axé sur le marché | E76: 0.22
C77: William Blair Investment Management, LLC | D77: De base | E77: 0.22
C78: J.P. Morgan Asset Management | D78: De base | E78: 0.19
C79: Investissements Russell | D79: Stratégies de positionnement | E79: 0.2 | G79: =SUM(E75:E79) -> 1
C80: Fonds multi-facteurs actions internationales Investissements Russell | H80: =MATCH($C80,'Client Data Sheet'!$F$2:$AH$2,0) -> 16 | J80: Fonds multi-facteurs actions internationales Investissements Russell
C81: Fonds d’actions outre-mer Investissements Russell | H81: =MATCH($C81,'Client Data Sheet'!$F$2:$AH$2,0) -> 17 | J81: Catégorie fonds d’actions outre-mer Investissements Russell
C82: Pzena Investment Management, LLC | D82: Valeur | E82: 0.135
C83: Numeric Investors, LLC | D83: Axé sur le marché | E83: 0.19
C84: Wellington Management Canada ULC | D84: Croissance et valeur | E84: 0.26
C85: Intermede Investment Partners Limited and Intermede Global Partners Inc. | D85: Croissance | E85: 0.245
C86: Investissements Russell | D86: Stratégies de positionnement | E86: 0.17 | G86: =SUM(E82:E86) -> 1
C87: Fonds d'actions mondiales à gestion fiscale Investissements Russell | H87: =MATCH($C87,'Client Data Sheet'!$F$2:$AH$2,0) -> 18 | J87: Catégorie fonds d'actions mondiales à gestion fiscale Investissements Russell
C88: Sanders Capital, LLC | D88: Valeur | E88: 0.19
C89: Wellington Management Canada ULC | D89: Croissance | E89: 0.14
C90: Intermede Investment Partners Limited and Intermede Global Partners Inc. | D90: Croissance | E90: 0.2
C91: Pzena Investment Management, LLC | D91: Valeur | E91: 0.19
C92: Russell Investments | D92: Stratégies de positionnement et Réserve de liquidité** | E92: 0.28 | G92: =SUM(E88:E92) -> 1
C93: Fonds d’actions mondiales ESG Investissements Russell | H93: =MATCH($C93,'Client Data Sheet'!$F$2:$AH$2,0) -> 19 | J93: Fonds d’actions mondiales ESG Investissements Russell
C94: Sanders Capital, LLC | D94: Valeur | E94: 0.34
C95: Intermede Investment Partners Limited and Intermede Global Partners Inc. | D95: Croissance | E95: 0.34
C96: Investissements Russell | D96: Stratégies de positionnement et Réserve de liquidité** | E96: 0.32 | G96: =SUM(E94:E96) -> 1
C97: Fonds d’actions mondiales Investissements Russell | H97: =MATCH($C97,'Client Data Sheet'!$F$2:$AH$2,0) -> 20 | J97: Catégorie fonds d’actions mondiales Investissements Russell
C98: Sanders Capital, LLC | D98: Valeur | E98: 0.205
C99: Wellington Management Canada ULC | D99: Croissance et valeur | E99: 0.365
C100: Intermede Investment Partners Limited and Intermede Global Partners Inc. | D100: Croissance | E100: 0.21
C101: Investissements Russell | D101: Stratégies de positionnement | E101: 0.22 | G101: =SUM(E98:E101) -> 1
C102: Fonds d’actions marchés émergents Investissements Russell | H102: =MATCH($C102,'Client Data Sheet'!$F$2:$AH$2,0) -> 21 | J102: Catégorie fonds d’actions marchés émergents Investissements Russell
C103: Numeric Investors, LLC | D103: Axé sur le marché | E103: 0.19
C104: Oaktree Capital Management, L.P. | D104: Valeur relative | E104: 0.15
C105: RWC Asset Advisors (US) LLC | D105: Croissance | E105: 0.1
C106: Axiom International Investors LLC | D106: Croissance de qualité | E106: 0.12
C107: Sands Capital Management, LLC | D107: Croissance | E107: 0.08
C108: Coeli AB | D108: Marchés frontières | E108: 0.05
C109: Pzena Investment Management, LLC | D109: Valeur | E109: 0.13
C110: Investissements Russell | D110: Stratégies de positionnement et Réserve de liquidité** | E110: 0.18 | G110: =SUM(E103:E110) -> 1
C111: Fonds du marché monétaire Investissements Russell | H111: =MATCH($C111,'Client Data Sheet'!$F$2:$AH$2,0) -> 22 | J111: Catégorie fonds du marché monétaire Investissements Russell
C112: Russell Investment Management, LLC | D112: Court terme | E112: 1
C113: Fonds d’infrastructures mondiales Investissements Russell | H113: =MATCH($C113,'Client Data Sheet'!$F$2:$AH$2,0) -> 23 | J113: Catégorie Fonds d’infrastructures mondiales Investissements Russell
C114: Nuveen Asset Management, LLC | D114: Valeur | E114: 0.37
C115: Cohen & Steers Capital Management, Inc. | D115: Axé sur le marché | E115: 0.15
C116: First Sentier Investors (Australia) IM Ltd. | D116: Croissance à un prix raisonnable | E116: 0.38
C117: Investissements Russell | D117: Stratégies de positionnement | E117: 0.1 | G117: =SUM(E114:E117) -> 1
C118: Fonds immobilier mondial Investissements Russell | H118: =MATCH($C118,'Client Data Sheet'!$F$2:$AH$2,0) -> 24 | J118: Fonds immobilier mondial Investissements Russell
C119: Cohen & Steers Capital Management, Inc. | D119: Axé sur le marché | E119: 0.43
C120: DWS* | D120: Axé sur le marché | E120: 0.47
C121: Investissements Russell | D121: Stratégies de positionnement | E121: 0.1 | G121: =SUM(E119:E121) -> 1
C122: Portefeuille d’actifs réels Investissements Russell | H122: =MATCH($C122,'Client Data Sheet'!$F$2:$AH$2,0) -> 25 | J122: Portefeuille d’actifs réels Investissements Russell
C123: Nuveen Asset Management, LLC | D123: Valeur | E123: 0.1406
C124: Cohen & Steers Capital Management, Inc. | D124: Axé sur le marché | E124: 0.207
C125: First Sentier Investors (Australia) IM Ltd. | D125: Croissance à un prix raisonnable | E125: 0.1444
C126: Investissements Russell | D126: Stratégies de positionnement | E126: 0.0755
C127: DWS* | D127: Axé sur le marché | E127: 0.1875
C128: Russell Investment Management, LLC | D128: Stratégie d’indexation - Produits de base | E128: 0.095
C129: Russell Investment Management, LLC | D129: Stratégie d’indexation - ORR | E129: 0.15 | G129: =SUM(E123:E129) -> 1
C130: iShares Gold Trust | H130: =MATCH($C130,'Client Data Sheet'!$F$2:$AH$2,0) -> 26 | J130: Invesco DB Commodity Index Tracking Fund
C131: Invesco DB Commodity Index Tracking Fund | H131: =MATCH($C131,'Client Data Sheet'!$F$2:$AH$2,0) -> 27 | J131: Invesco DB Commodity Index Tracking Fund
C132: Fonds d’opportunités de revenu Investissements Russell | H132: =MATCH($C132,'Client Data Sheet'!$F$2:$AH$2,0) -> 28 | J132: Fonds d’opportunités de revenu Investissements Russell
C133: Oaktree Capital Management, L.P. | D133: Obligations convertibles | E133: 0.06
C134: Marathon Asset Management, L.P. | D134: Devise forte de la dette des marchés émergents | E134: 0.1
C135: Putnam Investments Canada, ULC | D135: Prêts hypothécaires | E135: 0.12
C136: Boston Partners Global Investors, Inc. | D136: Titres à petite capitalisation américains | E136: 0.06
C137: Kopernik Global Investors LLC | D137: Actions mondiales | E137: 0.06
C138: Sompo Asset Management Co., Ltd. | D138: Actions japonaises | E138: 0.06
C139: Cohen & Steers Capital Management, Inc. | D139: Actions privilégiés | E139: 0.1
C140: First Sentier Investors (Australia) IM Ltd. | D140: Infrastructures mondiales cotées en bourse | E140: 0.03
C141: RREEF America LLC | D141: Immobilier mondial coté en bourse | E141: 0.03
C142: Berenberg Asset Management, LLC | D142: Actions européennes | E142: 0.07
C143: Russell Investment Management, LLC | D143: Stratégies de superposition | E143: 0.08
C144: Russell Investment Management, LLC | D144: Superposition tactique | E144: 0.23 | G144: =SUM(E133:E144) -> 1
C145: Stratégies de positionnement Investissements Russell | H145: =MATCH($C145,'Client Data Sheet'!$F$2:$AH$2,0) -> 29 | J145: Stratégies de positionnement Investissements Russell
A146: Le nombre de sous-conseiller est courant en date de janvier 2024. Investissements Russell peut embaucher, changer ou congédier les sous-conseiller à n’importe quel moment. *Cette stratégie est gérée par RREEF America LLC, sous la bannière DWS. **La réserve de liquidité est un compte en espèces pour gérer les flux de trésorerie quotidien et peut utiliser des instruments dérivés pour fournir une exposition au marché afin de gérer le profile de risque de fonds.
A147: ⁺Il ne s'agit pas de sous-conseillers.
A149: Information importante
A150: ¹ La version Catégorie de société du portefeuille PDRMIR - Catégorie portefeuille diversifié de revenu mensuel Investissements Russell - investira dans les fonds Investissements Russell et leurs fonds sous-jacents conformément aux répartitions établies pour chaque catégorie d’actif.
A151: ¹ La version Catégorie de société du portefeuille PERIR - Catégorie portefeuille essentiel de revenu Investissements Russell - investira dans les fonds Investissements Russell et leurs fonds sous-jacents conformément aux répartitions établies pour chaque catégorie d’actif.
A152: ¹ La version Catégorie de société du portefeuille MACR - Catégorie multi-actifs stratégie de croissance et de revenu - investira dans les fonds Investissements Russell et leurs fonds sous-jacents conformément aux répartitions établies pour chaque catégorie d’actif.
A153: ¹ La version Catégorie de société du portefeuille MASC - Catégorie multi-actifs stratégie de croissance - investira dans les fonds Investissements Russell et leurs fonds sous-jacents conformément aux répartitions établies pour chaque catégorie d’actif.
A154: ¹ La version Catégorie de société du portefeuille PRPIR - Catégorie portefeuille de revenu prudent Investissements Russell - investira dans les fonds Investissements Russell et leurs fonds sous-jacents conformément aux répartitions établies pour chaque catégorie d’actif.
A155: ¹ La version Catégorie de société du portefeuille MASR - Catégorie multi-actifs stratégie de revenu - investira dans les fonds Investissements Russell et leurs fonds sous-jacents conformément aux répartitions établies pour chaque catégorie d’actif.
A156: ¹ La version Catégorie de société du portefeuille d’accumulation investira dans le groupe de fonds Investissements Russell et ses fonds sous-jacents conformément aux répartitions établis pour chaque catégorie d’actif.
A157: ¹ La Catégorie gestion du rendement Investissements Russell entend vendre à terme un portefeuille déterminé de titres participatifs canadiens en échange d’une exposition à des rendements économiques assimilables à ceux du Fonds à revenu fixe canadien Investissements Russell, un fonds de Investissements Russell. L’objectif du Fonds à revenu fixe canadien Investissements Russell est d’obtenir un niveau stable de flux de trésorerie au moyen de placements effectués surtout dans des titres à revenu fixe d’émetteurs canadiens. Le fonds investira généralement dans des titres ayant une cote minimale de « BBB » et au moins 80 % de son actif net sera composé de titres dont la cote est supérieure à « BBB ». Les styles de placement utilisés par le fonds comprennent la durée limitée, la gestion active du rendement et la gestion mondiale. ² La Catégorie fonds d’obligations mondiales sans contrainte Investissements Russell peut conclure des contrats à terme de gré à gré avec une ou plusieurs banques canadiennes (la contrepartie) afin de générer des gains en capital fiscalement avantageux. La Catégorie fonds d’obligations mondiales sans contrainte Investissements Russell peut choisir d’investir directement dans des titres sans conclure de contrats à terme. Dans ce cas, le Fonds peut investir dans des titres d’un autre organisme de placement collectif comme le fonds de référence, notamment le Fonds d’obligations mondiales sans contrainte Investissements Russell. ** Ce fonds d’investissement n’accepte plus de nouveaux placements dans la version catégorie de société. Veuillez utiliser la version fiducie de ce fonds. Les actions de ces fonds sont réservés aux investisseurs qui utilisent actuellement le programme de rééquilibrage automatique Russell Souverain aux fins de rééquilibrage et pour le réinvestissement des dividendes et des distributions.
A158: Les placements dans les fonds communs peuvent faire l’objet de commissions, de commissions de suivi, de frais de gestion et d’autres charges. Avant d’investir, veuillez lire le prospectus. Les fonds communs de placement ne sont pas garantis, leur valeur fluctue fréquemment et les rendements passés peuvent ne pas se reproduire. Aucune partie du contenu de cette publication ne constitue des conseils juridiques, fiscaux, sur les titres ou de placement. Il ne s’agit pas non plus d’une opinion concernant la pertinence d’un placement ni une sollicitation de quelque type que ce soit. Cette information est disponible « telle quelle ». Investissements Russell Canada Limitée ne fait aucune déclaration et n’offre aucune garantie à l’égard de cette information. Investissements Russell est le nom commercial d’un groupe d’entreprises dotées d’une administration commune, incluant Investissements Russell Canada Limitée. La propriété d’Investissements Russell se compose comme suit : une participation majoritaire de fonds gérés par TA Associates Management, L.P. et une participation minoritaire de fonds gérés par Reverence Capital Partners, L.P. Certains des employés d’Investissements Russell ainsi que Hamilton Lane, LLC détiennent également des participations minoritaires sans contrôle. Droits d’auteur © Investissements Russell Canada Limitée 2024. Tous droits réservés. Le présent document est la propriété exclusive d’Investissements Russell et ne peut être reproduit, transféré ou distribué sous quelque forme que ce soit sans l’autorisation écrite d’Investissements Russell. Frank Russell Company est le titulaire des marques de commerce Russell contenues aux présentes et de tous les droits de marque liés aux marques commerciales Russell, et autorise les membres du groupe d’entreprises Investissements Russell à les utiliser sous licence. Les membres du groupe d’entreprises Investissements Russell ne sont en aucune façon affiliés à Frank Russell Company ni à toute autre entité exploitée sous la marque «FTSE RUSSELL». Date de publication initiale : janvier 2024 RETAIL-03937 (EXP-10-2024)

Sheet Allocation (hidden)
J1: 2023-12-01
B2: FOR TEMPLATE | D2: Portfolio | K2: Strategic Allocation | X2: Tactical Allocation | AK2: Default | AN2: Test
B3: Current Allocation | C3: Current # Sub-advisers | D3: Portfolio | E3: Current # Sub-advisers | H3: # Sub-advisers | J3: Fund Name | K3: RICI | L3: RIEP | M3: RDMIP | N3: MAIS | O3: MAGIS | P3: MAGS | Q3: MAIE | R3: RIB | S3: RIBG | T3: RILTG | U3: MFGB | V3: RA | X3: RICI-T | Y3: RIEP-T | Z3: RDMIP-T | AA3: MAIS-T | AB3: MAGIS-T | AC3: MAGS-T | AD3: MAIE-T | AE3: RIB-T | AF3: RIBG-T | AG3: RILTG-T | AH3: MFGB-T | AI3: RA-T | AK3: SAA | AL3: SAA-CC | AN3: temp | AV3: PortfolioName_Selection | AW3: Drop-down | AX3: Portefeuilles de revenu Investissements Russell | AY3: Solutions Multi-actifs Investissements Russell | AZ3: Portefeuilles d’accumulation Investissements Russell | BA3: Solutions Multi-facteurs Investissements Russell | BB3: Catégories portefeuille de revenu Investissements Russell | BC3: Catégories Solutions Multi-actifs Investissements Russell | BD3: Catégories portefeuilles d’accumulation
A4: 1 | B4: 0.05 | C4: =IF(B4,$H4,0) -> 3 | D4: =INDEX($K$4:$AL$32,A4,MATCH(PortfolioIndex,$K$3:$AL$3,0))/100 -> 0 | E4: =IF(D4,$H4,0) -> 0 | H4: =MATCH(J5,MasterManagerList!$C$9:$C$145,0)-MATCH(J4,MasterManagerList!$C$9:$C$145,0)-1 -> 3 | J4: Fonds de revenu à court terme Investissements Russell | K4: 0 | L4: 0 | M4: 0 | N4: 12 | O4: 5 | P4: 0 | Q4: 0 | R4: 0 | S4: 0 | T4: 0 | U4: 0 | V4: 0 | X4: 0 | Y4: 0 | Z4: 0 | AA4: 11 | AB4: 5 | AC4: 0 | AD4: 0 | AE4: 0 | AF4: 0 | AG4: 0 | AH4: 0 | AI4: 0 | AK4: 5 | AL4: 5 | AN4: =100/$J$34/100 -> 0.03448275862 | AP4: 92 | AQ4: 92 | AR4: 92 | AT4: Catégorie fonds de revenu à court terme Investissements Russell | AV4: #Col: | AW4: =MATCH(Portefeuilles!$A$1,Allocation!$AX$3:$BD$3,0) -> 1 | AX4: Portefeuille diversifié de revenu mensuel Investissements Russell | AY4: Multi-actifs stratégie de revenu | AZ4: Portefeuille équilibré Investissements Russell | BA4: Multi-facteurs équilibré mondial Investissements Russell | BB4: Catégorie portefeuille diversifié de revenu mensuel Investissements Russell | BC4: Catégorie multi-actifs stratégie de revenu | BD4: Catégorie portefeuille équilibré Investissements Russell
A5: 2 | B5: 0.2 | C5: 5 | D5: 0.31 | E5: =IF(D5,$H5,0) -> 5 | H5: =MATCH(J6,MasterManagerList!$C$9:$C$145,0)-MATCH(J5,MasterManagerList!$C$9:$C$145,0)-1 -> 5 | J5: Fonds à revenu fixe Investissements Russell | K5: 60 | L5: 49 | M5: 31 | N5: 33 | O5: 19 | P5: 5 | Q5: 0 | R5: 0 | S5: 0 | T5: 0 | U5: 30 | V5: 0 | X5: 63 | Y5: 52 | Z5: 34.5 | AA5: 35 | AB5: 22 | AC5: 7 | AD5: 0 | AE5: 0 | AF5: 0 | AG5: 0 | AH5: 32 | AI5: 0 | AK5: 20 | AL5: 0 | AN5: 0.03448275862 | AP5: 158 | AQ5: 158 | AR5: 158 | AT5: Fonds à revenu fixe Investissements Russell | AV5: RowCount: | AW5: =INDEX($AX$12:$BD$12,1,$AW$4) -> 3 | AX5: Portefeuille essentiel de revenu Investissements Russell | AY5: Multi-actifs stratégie de croissance et de revenu | AZ5: Portefeuille équilibré de croissance Investissements Russell | BB5: Catégorie portefeuille essentiel de revenu Investissements Russell | BC5: Catégorie multi-actifs stratégie de croissance et de revenu | BD5: Catégorie portefeuille équilibré de croissance Investissements Russell
A6: 3 | B6: 0 | C6: 0 | D6: 0 | E6: 0 | H6: =MATCH(J7,MasterManagerList!$C$9:$C$145,0)-MATCH(J6,MasterManagerList!$C$9:$C$145,0)-1 -> 4 | J6: Fonds d’investissement à revenu fixe canadien Investissements Russell | K6: 0 | L6: 0 | M6: 0 | N6: 0 | O6: 0 | P6: 0 | Q6: 0 | R6: 46 | S6: 33 | T6: 16 | U6: 0 | V6: 0 | X6: 0 | Y6: 0 | Z6: 0 | AA6: 0 | AB6: 0 | AC6: 0 | AD6: 0 | AE6: 50 | AF6: 37 | AG6: 20 | AH6: 0 | AI6: 0 | AK6: 0 | AL6: 20 | AN6: 0.03448275862 | AP6: 158 | AQ6: 158 | AR6: 158 | AT6: Catégorie fonds à revenu fixe Investissements Russell¹ ** | AX6: Portefeuille de revenu prudent Investissements Russell | AY6: Multi-actifs stratégie de croissance | AZ6: Portefeuille de croissance à long terme Investissements Russell | BB6: Catégorie portefeuille de revenu prudent Investissements Russell | BC6: Catégorie multi-actifs stratégie de croissance | BD6: Catégorie portefeuille de croissance à long terme Investissements Russell
A7: 4 | B7: 0 | C7: 0 | D7: 0 | E7: 0 | H7: =MATCH(J8,MasterManagerList!$C$9:$C$145,0)-MATCH(J7,MasterManagerList!$C$9:$C$145,0)-1 -> 9 | J7: Fonds à revenu fixe Plus Investissements Russell | K7: 0 | L7: 0 | M7: 0 | N7: 0 | O7: 0 | P7: 0 | Q7: 0 | R7: 0 | S7: 0 | T7: 0 | U7: 0 | V7: 0 | X7: 0 | Y7: 0 | Z7: 0 | AA7: 0 | AB7: 0 | AC7: 0 | AD7: 0 | AE7: 0 | AF7: 0 | AG7: 0 | AH7: 0 | AI7: 0 | AN7: 0.03448275862 | AP7: 190 | AQ7: 191 | AR7: 192 | AT7: Fonds à revenu fixe Plus Investissements Russell | AY7: Multi-actifs actions internationales | BC7: Catégorie multi-actifs stratégie de croissance et de revenu - Répartition tactique
A8: 5 | B8: 0 | C8: 0 | D8: 0.01 | E8: 0 | H8: =MATCH(J9,MasterManagerList!$C$9:$C$145,0)-MATCH(J8,MasterManagerList!$C$9:$C$145,0)-1 -> 0 | J8: Fonds d’investissement d’obligations indexées sur l’inflation Investissements Russell | K8: 1 | L8: 1 | M8: 1 | N8: 4 | O8: 3 | P8: 0 | Q8: 0 | R8: 1 | S8: 1 | T8: 1 | U8: 0 | V8: 15 | X8: 1 | Y8: 1 | Z8: 1 | AA8: 4 | AB8: 4 | AC8: 2 | AD8: 0 | AE8: 1 | AF8: 1 | AG8: 1 | AH8: 0 | AI8: 16 | AK8: 0 | AL8: 0 | AN8: 0.03448275862 | AP8: 128 | AQ8: 128 | AR8: 128 | AT8: Fonds d’investissement d’obligations indexées sur l’inflation Investissements Russell | AY8: Multi-actifs stratégie de croissance et de revenu - Répartition tactique | BC8: Catégorie multi-actifs stratégie de croissance - Répartition tactique
A9: 6 | B9: 0 | C9: 0 | D9: 0 | E9: 0 | H9: =MATCH(J10,MasterManagerList!$C$9:$C$145,0)-MATCH(J9,MasterManagerList!$C$9:$C$145,0)-1 -> 4 | J9: Fonds d’obligations mondiales sans contrainte Investissements Russell | K9: 0 | L9: 0 | M9: 0 | N9: 0 | O9: 0 | P9: 0 | Q9: 0 | R9: 0 | S9: 0 | T9: 0 | U9: 0 | V9: 0 | X9: 0 | Y9: 0 | Z9: 0 | AA9: 0 | AB9: 0 | AC9: 0 | AD9: 0 | AE9: 0 | AF9: 0 | AG9: 0 | AH9: 0 | AI9: 0 | AN9: 0.03448275862 | AP9: 124 | AQ9: 58 | AR9: 0 | AT9: Catégorie fonds d’obligations mondiales sans contrainte Investissements Russell² ** | AY9: Multi-actifs stratégie de croissance - Répartition tactique
A10: 7 | B10: 0.1 | C10: 4 | D10: 0.09 | E10: 4 | H10: =MATCH(J11,MasterManagerList!$C$9:$C$145,0)-MATCH(J10,MasterManagerList!$C$9:$C$145,0)-1 -> 4 | J10: Fonds de titres de créance mondiaux Investissements Russell | K10: 14 | L10: 13 | M10: 9 | N10: 9 | O10: 20 | P10: 15 | Q10: 0 | R10: 17 | S10: 10 | T10: 5.5 | U10: 0 | V10: 0 | X10: 11 | Y10: 10.5 | Z10: 7 | AA10: 7 | AB10: 15 | AC10: 11 | AD10: 0 | AE10: 15 | AF10: 8 | AG10: 3.5 | AH10: 0 | AI10: 0 | AK10: 10 | AL10: 10 | AN10: 0.03448275862 | AP10: 204 | AQ10: 204 | AR10: 187 | AT10: Catégorie fonds de titres de créance mondiaux Investissements Russell
A11: 8 | B11: 0 | C11: 0 | D11: 0 | E11: 0 | H11: =MATCH(J12,MasterManagerList!$C$9:$C$145,0)-MATCH(J11,MasterManagerList!$C$9:$C$145,0)-1 -> 0 | J11: BlueBay Global Convertible Bond Fund (Canada) | K11: 0 | L11: 0 | M11: 0 | N11: 4 | O11: 5 | P11: 5 | Q11: 0 | R11: 0 | S11: 0 | T11: 0 | U11: 0 | V11: 0 | X11: 0 | Y11: 0 | Z11: 0 | AA11: 5 | AB11: 6 | AC11: 7 | AD11: 0 | AE11: 0 | AF11: 0 | AG11: 0 | AH11: 0 | AI11: 0 | AK11: 0 | AL11: 0 | AN11: 0.03448275862 | AP11: 166 | AQ11: 166 | AR11: 149 | AT11: BlueBay Global Convertible Bond Fund (Canada)
A12: 9 | B12: 0.1 | C12: 4 | D12: 0.14 | E12: 4 | H12: =MATCH(J13,MasterManagerList!$C$9:$C$145,0)-MATCH(J12,MasterManagerList!$C$9:$C$145,0)-1 -> 4 | J12: Fonds de dividendes canadien Investissements Russell | K12: 6 | L12: 9 | M12: 14 | N12: 2 | O12: 2 | P12: 2 | Q12: 0 | R12: 0 | S12: 0 | T12: 0 | U12: 0 | V12: 0 | X12: 6 | Y12: 9 | Z12: 14 | AA12: 2 | AB12: 2 | AC12: 4 | AD12: 0 | AE12: 0 | AF12: 0 | AG12: 0 | AH12: 0 | AI12: 0 | AK12: 10 | AL12: 10 | AN12: 0.03448275862 | AP12: 102 | AQ12: 170 | AR12: 221 | AT12: Catégorie fonds de dividendes canadien Investissements Russell | AX12: =COUNTA(AX4:AX11) -> 3 | AY12: =COUNTA(AY4:AY11) -> 6 | AZ12: 3 | BA12: 1 | BB12: 3 | BC12: 5 | BD12: 3
A13: 10 | B13: 0 | C13: 0 | D13: 0 | E13: 0 | H13: =MATCH(J14,MasterManagerList!$C$9:$C$145,0)-MATCH(J13,MasterManagerList!$C$9:$C$145,0)-1 -> 0 | J13: Fonds multi-facteurs actions canadiennes Investissements Russell | K13: 0 | L13: 0 | M13: 0 | N13: 0 | O13: 0 | P13: 0 | Q13: 0 | R13: 9 | S13: 14 | T13: 19 | U13: 17 | V13: 0 | X13: 0 | Y13: 0 | Z13: 0 | AA13: 0 | AB13: 0 | AC13: 0 | AD13: 0 | AE13: 9 | AF13: 14 | AG13: 19 | AH13: 17 | AI13: 0 | AK13: 0 | AL13: 0 | AN13: 0.03448275862 | AP13: 44 | AQ13: 133 | AR13: 199 | AT13: Fonds multi-facteurs actions canadiennes Investissements Russell
A14: 11 | B14: 0.08 | C14: 5 | D14: 0 | E14: 0 | H14: =MATCH(J15,MasterManagerList!$C$9:$C$145,0)-MATCH(J14,MasterManagerList!$C$9:$C$145,0)-1 -> 5 | J14: Fonds d’actions canadiennes Investissements Russell | K14: 0 | L14: 0 | M14: 0 | N14: 0 | O14: 0 | P14: 0 | Q14: 0 | R14: 0 | S14: 0 | T14: 0 | U14: 0 | V14: 0 | X14: 0 | Y14: 0 | Z14: 0 | AA14: 0 | AB14: 0 | AC14: 0 | AD14: 0 | AE14: 0 | AF14: 0 | AG14: 0 | AH14: 0 | AI14: 0 | AK14: 8 | AL14: 8 | AN14: 0.03448275862 | AP14: 145 | AQ14: 196 | AR14: 235 | AT14: Catégorie fonds d’actions canadiennes Investissements Russell
A15: 12 | B15: 0.03 | C15: 8 | D15: 0.03 | E15: 8 | H15: =MATCH(J16,MasterManagerList!$C$9:$C$145,0)-MATCH(J15,MasterManagerList!$C$9:$C$145,0)-1 -> 8 | J15: Fonds de petites sociétés mondiales Investissements Russell | K15: 2 | L15: 2 | M15: 3 | N15: 3 | O15: 4 | P15: 6 | Q15: 14 | R15: 2 | S15: 2.5 | T15: 3 | U15: 0 | V15: 0 | X15: 2 | Y15: 2 | Z15: 3 | AA15: 3 | AB15: 4 | AC15: 6 | AD15: 14 | AE15: 2 | AF15: 3 | AG15: 3 | AH15: 0 | AI15: 0 | AK15: 3 | AL15: 3 | AN15: 0.03448275862 | AP15: 0 | AQ15: 85 | AR15: 150 | AT15: Catégorie fonds de petites sociétés mondiales Investissements Russell
A16: 13 | B16: 0.05 | C16: 5 | D16: 0 | E16: 0 | H16: =MATCH(J17,MasterManagerList!$C$9:$C$145,0)-MATCH(J16,MasterManagerList!$C$9:$C$145,0)-1 -> 5 | J16: Fonds d'actions américaines à gestion fiscale Investissements Russell | K16: 0 | L16: 0 | M16: 0 | N16: 0 | O16: 0 | P16: 0 | Q16: 0 | R16: 0 | S16: 0 | T16: 0 | U16: 0 | V16: 0 | X16: 0 | Y16: 0 | Z16: 0 | AA16: 0 | AB16: 0 | AC16: 0 | AD16: 0 | AE16: 0 | AF16: 0 | AG16: 0 | AH16: 0 | AI16: 0 | AK16: 5 | AL16: 5 | AN16: 0.03448275862 | AP16: 118 | AQ16: 171 | AR16: 213 | AT16: Catégorie fonds ciblé d’actions américaines Investissements Russell
A17: 14 | B17: 0 | C17: 0 | D17: 0 | E17: 0 | H17: =MATCH(J18,MasterManagerList!$C$9:$C$145,0)-MATCH(J17,MasterManagerList!$C$9:$C$145,0)-1 -> 0 | J17: Fonds multi-facteurs actions américaines Investissements Russell | K17: 0 | L17: 0 | M17: 0 | N17: 0 | O17: 0 | P17: 0 | Q17: 0 | R17: 6 | S17: 13 | T17: 18 | U17: 24 | V17: 0 | X17: 0 | Y17: 0 | Z17: 0 | AA17: 0 | AB17: 0 | AC17: 0 | AD17: 0 | AE17: 4 | AF17: 11 | AG17: 16 | AH17: 22 | AI17: 0 | AK17: 0 | AL17: 0 | AN17: 0.03448275862 | AP17: 164 | AQ17: 199 | AR17: 227 | AT17: Fonds multi-facteurs actions américaines Investissements Russell
A18: 15 | B18: 0.05 | C18: 5 | D18: 0.1 | E18: 5 | H18: =MATCH(J19,MasterManagerList!$C$9:$C$145,0)-MATCH(J18,MasterManagerList!$C$9:$C$145,0)-1 -> 5 | J18: Fonds d’actions américaines Investissements Russell | K18: 0 | L18: 5 | M18: 10 | N18: 4 | O18: 6 | P18: 12 | Q18: 0 | R18: 0 | S18: 0 | T18: 0 | U18: 0 | V18: 0 | X18: 0 | Y18: 4 | Z18: 9 | AA18: 2 | AB18: 4 | AC18: 9 | AD18: 0 | AE18: 0 | AF18: 0 | AG18: 0 | AH18: 0 | AI18: 0 | AK18: 5 | AL18: 5 | AN18: 0.03448275862 | AP18: 72 | AQ18: 143 | AR18: 199 | AT18: Catégorie fonds d’actions américaines Investissements Russell
A19: 16 | B19: 0 | C19: 0 | D19: 0 | E19: 0 | H19: =MATCH(J20,MasterManagerList!$C$9:$C$145,0)-MATCH(J19,MasterManagerList!$C$9:$C$145,0)-1 -> 0 | J19: Fonds multi-facteurs actions internationales Investissements Russell | K19: 0 | L19: 0 | M19: 0 | N19: 0 | O19: 0 | P19: 0 | Q19: 38 | R19: 4 | S19: 7 | T19: 10 | U19: 19 | V19: 0 | X19: 0 | Y19: 0 | Z19: 0 | AA19: 0 | AB19: 0 | AC19: 0 | AD19: 34 | AE19: 3 | AF19: 6 | AG19: 9 | AH19: 18 | AI19: 0 | AK19: 0 | AL19: 0 | AN19: 0.03448275862 | AP19: 91 | AQ19: 149 | AR19: 193 | AT19: Fonds multi-facteurs actions internationales Investissements Russell
A20: 17 | B20: 0.05 | C20: 5 | D20: 0.05 | E20: 5 | H20: =MATCH(J21,MasterManagerList!$C$9:$C$145,0)-MATCH(J20,MasterManagerList!$C$9:$C$145,0)-1 -> 5 | J20: Fonds d’actions outre-mer Investissements Russell | K20: 0 | L20: 3 | M20: 5 | N20: 4 | O20: 7 | P20: 13 | Q20: 0 | R20: 0 | S20: 0 | T20: 0 | U20: 0 | V20: 0 | X20: 0 | Y20: 3 | Z20: 5 | AA20: 4 | AB20: 7 | AC20: 12 | AD20: 0 | AE20: 0 | AF20: 0 | AG20: 0 | AH20: 0 | AI20: 0 | AK20: 5 | AL20: 10 | AN20: 0.03448275862 | AP20: 146 | AQ20: 188 | AR20: 219 | AT20: Catégorie fonds d’actions outre-mer Investissements Russell
A21: 18 | B21: 0.05 | C21: 5 | D21: 0 | E21: 0 | H21: =MATCH(J22,MasterManagerList!$C$9:$C$145,0)-MATCH(J21,MasterManagerList!$C$9:$C$145,0)-1 -> 5 | J21: Fonds d'actions mondiales à gestion fiscale Investissements Russell | K21: 0 | L21: 0 | M21: 0 | N21: 0 | O21: 0 | P21: 0 | Q21: 0 | R21: 0 | S21: 0 | T21: 0 | U21: 0 | V21: 0 | X21: 0 | Y21: 0 | Z21: 0 | AA21: 0 | AB21: 0 | AC21: 0 | AD21: 0 | AE21: 0 | AF21: 0 | AG21: 0 | AH21: 0 | AI21: 0 | AK21: 5 | AL21: 5 | AN21: 0.03448275862 | AP21: 37 | AQ21: 122 | AR21: 182 | AT21: Catégorie fonds ciblé d’actions mondiales Investissements Russell
A22: 19 | B22: 0 | C22: 0 | D22: 0 | E22: 0 | H22: =MATCH(J23,MasterManagerList!$C$9:$C$145,0)-MATCH(J22,MasterManagerList!$C$9:$C$145,0)-1 -> 3 | J22: Fonds d’actions mondiales ESG Investissements Russell | K22: 0 | L22: 0 | M22: 0 | N22: 0 | O22: 0 | P22: 0 | Q22: 0 | R22: 0 | S22: 0 | T22: 0 | U22: 0 | V22: 0 | X22: 0 | Y22: 0 | Z22: 0 | AA22: 0 | AB22: 0 | AC22: 0 | AD22: 0 | AE22: 0 | AF22: 0 | AG22: 0 | AH22: 0 | AI22: 0 | AK22: 0 | AL22: 0 | AN22: 0.03448275862 | AP22: 30 | AQ22: 88 | AR22: 132 | AT22: Fonds d’actions mondiales ESG Investissements Russell
A23: 20 | B23: 0.05 | C23: 4 | D23: 0.11 | E23: 4 | H23: =MATCH(J24,MasterManagerList!$C$9:$C$145,0)-MATCH(J23,MasterManagerList!$C$9:$C$145,0)-1 -> 4 | J23: Fonds d’actions mondiales Investissements Russell | K23: 3 | L23: 5 | M23: 11 | N23: 4 | O23: 9 | P23: 17 | Q23: 0 | R23: 10 | S23: 13 | T23: 18 | U23: 0 | V23: 0 | X23: 3 | Y23: 5 | Z23: 10 | AA23: 4 | AB23: 8 | AC23: 15 | AD23: 0 | AE23: 9 | AF23: 11.5 | AG23: 17 | AH23: 0 | AI23: 0 | AK23: 5 | AL23: 8 | AN23: 0.03448275862 | AP23: 0 | AQ23: 103 | AR23: 167 | AT23: Catégorie fonds d’actions mondiales Investissements Russell
A24: 21 | B24: 0.05 | C24: 8 | D24: 0.03 | E24: 8 | H24: =MATCH(J25,MasterManagerList!$C$9:$C$145,0)-MATCH(J24,MasterManagerList!$C$9:$C$145,0)-1 -> 8 | J24: Fonds d’actions marchés émergents Investissements Russell | K24: 2 | L24: 2 | M24: 3 | N24: 3 | O24: 5 | P24: 7 | Q24: 16 | R24: 2 | S24: 2.5 | T24: 4.5 | U24: 0 | V24: 0 | X24: 2 | Y24: 2 | Z24: 3 | AA24: 3 | AB24: 5 | AC24: 6 | AD24: 18 | AE24: 2 | AF24: 2.5 | AG24: 4.5 | AH24: 0 | AI24: 0 | AK24: 5 | AL24: 5 | AN24: 0.03448275862 | AP24: 14 | AQ24: 56 | AR24: 97 | AT24: Catégorie fonds d’actions marchés émergents Investissements Russell
A25: 22 | B25: 0.05 | C25: 1 | D25: 0 | E25: 0 | H25: =MATCH(J26,MasterManagerList!$C$9:$C$145,0)-MATCH(J25,MasterManagerList!$C$9:$C$145,0)-1 -> 1 | J25: Fonds du marché monétaire Investissements Russell | K25: 0 | L25: 0 | M25: 0 | N25: 0 | O25: 0 | P25: 0 | Q25: 0 | R25: 0 | S25: 0 | T25: 0 | U25: 0 | V25: 0 | X25: 0 | Y25: 0 | Z25: 0 | AA25: 1 | AB25: 2 | AC25: 2 | AD25: 0 | AE25: 0 | AF25: 0 | AG25: 0 | AH25: 0 | AI25: 0 | AK25: 5 | AL25: 3 | AN25: 0.03448275862 | AP25: 133 | AQ25: 104 | AR25: 133 | AT25: Catégorie fonds du marché monétaire Investissements Russell
A26: 23 | B26: 0.03 | C26: 4 | D26: 0.035 | E26: 4 | H26: =MATCH(J27,MasterManagerList!$C$9:$C$145,0)-MATCH(J26,MasterManagerList!$C$9:$C$145,0)-1 -> 4 | J26: Fonds d’infrastructures mondiales Investissements Russell | K26: 2.5 | L26: 2.5 | M26: 3.5 | N26: 4 | O26: 5 | P26: 6 | Q26: 16 | R26: 1.5 | S26: 2 | T26: 2.5 | U26: 5 | V26: 38 | X26: 2.5 | Y26: 3 | Z26: 4 | AA26: 3 | AB26: 4 | AC26: 5 | AD26: 16 | AE26: 3 | AF26: 3.5 | AG26: 4 | AH26: 6 | AI26: 37 | AK26: 3 | AL26: 3 | AN26: 0.03448275862 | AP26: 221 | AQ26: 102 | AR26: 0 | AT26: Catégorie Fonds d’infrastructures mondiales Investissements Russell
A27: 24 | B27: 0.03 | C27: 3 | D27: 0.035 | E27: 3 | H27: =MATCH(J28,MasterManagerList!$C$9:$C$145,0)-MATCH(J27,MasterManagerList!$C$9:$C$145,0)-1 -> 3 | J27: Fonds immobilier mondial Investissements Russell | K27: 2.5 | L27: 2.5 | M27: 3.5 | N27: 4 | O27: 5 | P27: 6 | Q27: 16 | R27: 1.5 | S27: 2 | T27: 2.5 | U27: 5 | V27: 37.5 | X27: 2.5 | Y27: 2.5 | Z27: 3.5 | AA27: 4 | AB27: 5 | AC27: 6 | AD27: 18 | AE27: 2 | AF27: 2.5 | AG27: 3 | AH27: 5 | AI27: 39 | AK27: 3 | AN27: 0.03448275862 | AP27: 194 | AQ27: 72 | AR27: 37 | AT27: Fonds immobilier mondial Investissements Russell
A28: 25 | B28: 0.03 | C28: 7 | D28: 0 | E28: 0 | H28: =MATCH(J29,MasterManagerList!$C$9:$C$145,0)-MATCH(J28,MasterManagerList!$C$9:$C$145,0)-1 -> 7 | J28: Portefeuille d’actifs réels Investissements Russell | K28: 0 | L28: 0 | M28: 0 | N28: 0 | O28: 0 | P28: 0 | Q28: 0 | R28: 0 | S28: 0 | T28: 0 | U28: 0 | V28: 0 | X28: 0 | Y28: 0 | Z28: 0 | AA28: 0 | AB28: 0 | AC28: 0 | AD28: 0 | AE28: 0 | AF28: 0 | AG28: 0 | AH28: 0 | AI28: 0 | AK28: 3 | AN28: 0.03448275862 | AP28: 151 | AQ28: 31 | AR28: 34 | AT28: Portefeuille d’actifs réels Investissements Russell
A29: 26 | B29: 0 | C29: 0 | D29: 0 | E29: 0 | H29: =MATCH(J30,MasterManagerList!$C$9:$C$145,0)-MATCH(J29,MasterManagerList!$C$9:$C$145,0)-1 -> 0 | J29: iShares Gold Trust | K29: 0 | L29: 0 | M29: 0 | N29: 0 | O29: 0 | P29: 0 | Q29: 0 | R29: 0 | S29: 0 | T29: 0 | U29: 0 | V29: 0 | X29: 0 | Y29: 0 | Z29: 0 | AA29: 2 | AB29: 2 | AC29: 2 | AD29: 0 | AE29: 0 | AF29: 0 | AG29: 0 | AH29: 0 | AI29: 0 | AK29: 0 | AL29: 0 | AN29: 0.03448275862 | AP29: 230 | AQ29: 163 | AR29: 23 | AT29: iShares Gold Trust
A30: 27 | B30: 0 | C30: 0 | D30: 0 | E30: 0 | H30: =MATCH(J31,MasterManagerList!$C$9:$C$145,0)-MATCH(J30,MasterManagerList!$C$9:$C$145,0)-1 -> 0 | J30: Invesco DB Commodity Index Tracking Fund | K30: 0 | L30: 0 | M30: 0 | N30: 3 | O30: 3 | P30: 4 | Q30: 0 | R30: 0 | S30: 0 | T30: 0 | U30: 0 | V30: 9.5 | X30: 0 | Y30: 0 | Z30: 0 | AA30: 3 | AB30: 3 | AC30: 4 | AD30: 0 | AE30: 0 | AF30: 0 | AG30: 0 | AH30: 0 | AI30: 8 | AK30: 0 | AL30: 0 | AN30: 0.03448275862 | AP30: 206 | AQ30: 109 | AR30: 81 | AT30: Invesco DB Commodity Index Tracking Fund
